Workbook

Sheet Forside
A1: Sjekkliste årsregnskap store og øvrige foretak
A2: Selskap
A3: År | B3: 2021
A4: Utfylt
A5: Review
B8: Ubesvart | C8: Ja | D8: Nei | E8: IA | F8: Sum
A9: Noter | B9: =F9-SUM(C9:E9) -> 1 | C9: =_xlfn.AGGREGATE(3,5,'Sjekkliste noter'!E7:E645) -> 0 | D9: =_xlfn.AGGREGATE(3,5,'Sjekkliste noter'!F7:F645) -> 0 | E9: =_xlfn.AGGREGATE(3,5,'Sjekkliste noter'!G7:G645)+(F9-_xlfn.AGGREGATE(2,5,'Sjekkliste noter'!A7:A645)) -> 432 | F9: =_xlfn.AGGREGATE(2,4,'Sjekkliste noter'!A7:A645) -> 433
A10: Formelle forhold | B10: =F10-SUM(C10:E10) -> 0 | C10: =_xlfn.AGGREGATE(3,5,'Sjekkliste formelle forhold'!E7:E110) -> 0 | D10: =_xlfn.AGGREGATE(3,5,'Sjekkliste formelle forhold'!F7:F110) -> 0 | E10: =_xlfn.AGGREGATE(3,5,'Sjekkliste formelle forhold'!G7:G110)+(F10-_xlfn.AGGREGATE(2,5,'Sjekkliste formelle forhold'!A7:A110)) -> 64 | F10: =_xlfn.AGGREGATE(2,4,'Sjekkliste formelle forhold'!A7:A110) -> 64
A14: Ønsker du å bruke full sjekkliste, eller kun å kontrollere endringer i regelverk fra tidligere år og utvalgte risikoområder i virksomheten?
A16: Veiledning for bruk av full sjekkliste: Sjekklisten kan spisses sånn at den kun omfatter forhold som er relevante for den aktuelle virksomheten.
A18: Full sjekkliste
A19: Er selskapet et stort foretak?
A20: Har selskapet ansatte?
A21: Har selskapet ytelsespensjon?
A22: Driver selskapet med forskning og utvikling?
A23: Har selskapet langsiktige tilvirkningskontrakter?
A24: Er selskapet et datterselskap?
A25: Avlegger selskapet konsernregnskap?
A26: Har foretaket vært gjennom en restrukturering gjennom året?
A27: Er selskapet et samvirkeforetak?
A28: Har selskapet bokført goodwill?
A30: Har foretaket aksjer i:
A34: Er foretaket omfattet av disse bransjereglene:
A35: Utvinner av petroleum, kraftprodusent eller gruvedrift | C35: Ja | E35: Nei
A36: Rederiselskap | C36: Ja | E36: Nei
A37: Borettslag | C37: Ja | E37: Nei
A38: Betalingsforetak | C38: Ja | E38: Nei
A39: E-pengeforetak | C39: Ja | E39: Nei
A40: Eiendomsmegler | C40: Ja | E40: Nei
A41: Inkassovirksomhet | C41: Ja | E41: Nei
A42: Verdipapirforetak, forvaltningsselskap eller AIF-forvalter med tillatelse | C42: Ja | E42: Nei
A43: Verdipapirfond | C43: Ja | E43: Nei
A47: Veiledning for bruk av endringssjekkliste: Ved avkryssing i listen nedenfor velger du de deler av sjekklisten som er relevante for det temaet du krysser av for. Du får da opp alle sjekkpunkter i regelverket som er aktuelle for det temaet du har valgt.
A49: Endringssjekkliste
A50: Er policy for bruk av endringssjekkliste fulgt? | C50: Ja | E50: Nei
A52: Angi siste år for gjennomgang av full sjekkliste
A54: Har det vært endringer i foretaket, eller er det spesifikke områder som kan ha økt risiko for feil, som man ønsker å kontrollere?
A55: Tilleggskrav for store foretak
A56: Driftsmidler
A57: Investeringer i datterselskaper
A58: Investeringer i tilknyttede selskaper
A59: Investeringer i felleskontrollert virksomhet
A60: Fordringer, gjeld, garantiforpliktelser
A61: Pensjonsordninger
A62: Ytelser til ledende personer
A63: Har selskapet endret noen regnskapsprinsipper?
A65: Er foretaket omfattet av disse bransjereglene:
A66: Utvinner av petroleum, kraftprodusent eller gruvedrift | C66: Ja | E66: Nei
A67: Rederiselskap | C67: Ja | E67: Nei
A68: Borettslag | C68: Ja | E68: Nei
A69: Betalingsforetak | C69: Ja | E69: Nei
A70: E-pengeforetak | C70: Ja | E70: Nei
A71: Eiendomsmegler | C71: Ja | E71: Nei
A72: Inkassovirksomhet | C72: Ja | E72: Nei
A73: Verdipapirforetak, forvaltningsselskap eller AIF-forvalter med tillatelse | C73: Ja | E73: Nei
A74: Verdipapirfond | C74: Ja | E74: Nei
A77: Annet (må spesifiseres nedenfor, og du må selv velge manuelt de deler av sjekklisten du ønsker å ta inn)
A78: Tekst her

Sheet sjekkliste_noter_matrix (hidden)
A1: F0 | B1: E0 | C1: F1 | D1: F2 | E1: F3 | F1: F4 | G1: F5 | H1: F6 | I1: F7 | J1: F8 | K1: F9 | L1: F10 | M1: F9F10 | N1: F11 | O1: F12 | P1: F13 | Q1: F14 | R1: F15 | S1: F16 | T1: F17 | U1: F18 | V1: F19 | W1: F20 | X1: F21 | Y1: F22 | Z1: F23 | AA1: F24 | AB1: F25 | AC1: E1 | AD1: E2 | AE1: E3 | AF1: E4 | AG1: E5 | AH1: E6 | AI1: E7 | AJ1: E8 | AK1: E9 | AL1: E10 | AM1: E11 | AN1: E12 | AO1: E13 | AP1: E14 | AQ1: E15 | AR1: E16 | AS1: E17 | AT1: E18 | AU1: E19
A2: x | B2: x | C2: x | D2: x | E2: x | F2: x | G2: x | H2: x | I2: x | J2: x | K2: x | L2: x | M2: x | N2: x | O2: x | P2: x | Q2: x | R2: x | S2: x | T2: x | U2: x | V2: x | W2: x | X2: x | Y2: x | Z2: x | AA2: x | AB2: x | AC2: x | AD2: x | AE2: x | AF2: x | AG2: x | AH2: x | AI2: x | AJ2: x | AK2: x | AL2: x | AM2: x | AN2: x | AO2: x | AP2: x | AQ2: x | AR2: x | AS2: x | AT2: x | AU2: x
A3: x | B3: x | C3: x | D3: x | E3: x | F3: x | G3: x | H3: x | I3: x | J3: x | K3: x | L3: x | M3: x | N3: x | O3: x | P3: x | Q3: x | R3: x | S3: x | T3: x | U3: x | V3: x | W3: x | X3: x | Y3: x | Z3: x | AA3: x | AB3: x | AC3: x | AD3: x | AE3: x | AF3: x | AG3: x | AH3: x | AI3: x | AJ3: x | AK3: x | AL3: x | AM3: x | AN3: x | AO3: x | AP3: x | AQ3: x | AR3: x | AS3: x | AT3: x | AU3: x
A4: x | B4: x | C4: x | D4: x | E4: x | F4: x | G4: x | H4: x | I4: x | J4: x | K4: x | L4: x | M4: x | N4: x | O4: x | P4: x | Q4: x | R4: x | S4: x | T4: x | U4: x | V4: x | W4: x | X4: x | Y4: x | Z4: x | AA4: x | AB4: x | AC4: x | AD4: x | AE4: x | AF4: x | AG4: x | AH4: x | AI4: x | AJ4: x | AK4: x | AL4: x | AM4: x | AN4: x | AO4: x | AP4: x | AQ4: x | AR4: x | AS4: x | AT4: x | AU4: x
A5: x | B5: x | C5: x | D5: x | E5: x | F5: x | G5: x | H5: x | I5: x | J5: x | K5: x | L5: x | M5: x | N5: x | O5: x | P5: x | Q5: x | R5: x | S5: x | T5: x | U5: x | V5: x | W5: x | X5: x | Y5: x | Z5: x | AA5: x | AB5: x | AC5: x | AD5: x | AE5: x | AF5: x | AG5: x | AH5: x | AI5: x | AJ5: x | AK5: x | AL5: x | AM5: x | AN5: x | AO5: x | AP5: x | AQ5: x | AR5: x | AS5: x | AT5: x | AU5: x
A6: x | B6: x | C6: x | D6: x | E6: x | F6: x | G6: x | H6: x | I6: x | J6: x | K6: x | L6: x | M6: x | N6: x | O6: x | P6: x | Q6: x | R6: x | S6: x | T6: x | U6: x | V6: x | W6: x | X6: x | Y6: x | Z6: x | AA6: x | AB6: x | AC6: x | AD6: x | AE6: x | AF6: x | AG6: x | AH6: x | AI6: x | AJ6: x | AK6: x | AL6: x | AM6: x | AN6: x | AO6: x | AP6: x | AQ6: x | AR6: x | AS6: x | AT6: x | AU6: x
A7: x | B7: x | C7: x | D7: x | E7: x | F7: x | G7: x | H7: x | I7: x | J7: x | K7: x | L7: x | M7: x | N7: x | O7: x | P7: x | Q7: x | R7: x | S7: x | T7: x | U7: x | V7: x | W7: x | X7: x | Y7: x | Z7: x | AA7: x | AB7: x | AC7: x | AD7: x | AE7: x | AF7: x | AG7: x | AH7: x | AI7: x | AJ7: x | AK7: x | AL7: x | AM7: x | AN7: x | AO7: x | AP7: x | AQ7: x | AR7: x | AS7: x | AT7: x | AU7: x
A8: x | B8: x | C8: x | D8: x | E8: x | F8: x | G8: x | H8: x | I8: x | J8: x | K8: x | L8: x | M8: x | N8: x | O8: x | P8: x | Q8: x | R8: x | S8: x | T8: x | U8: x | V8: x | W8: x | X8: x | Y8: x | Z8: x | AA8: x | AB8: x | AC8: x | AD8: x | AE8: x | AF8: x | AG8: x | AH8: x | AI8: x | AJ8: x | AK8: x | AL8: x | AM8: x | AN8: x | AO8: x | AP8: x | AQ8: x | AR8: x | AS8: x | AT8: x | AU8: x
A9: x | B9: x | C9: x | D9: x | E9: x | F9: x | G9: x | H9: x | I9: x | J9: x | K9: x | L9: x | M9: x | N9: x | O9: x | P9: x | Q9: x | R9: x | S9: x | T9: x | U9: x | V9: x | W9: x | X9: x | Y9: x | Z9: x | AA9: x | AB9: x | AC9: x | AD9: x | AE9: x | AF9: x | AG9: x | AH9: x | AI9: x | AJ9: x | AK9: x | AL9: x | AM9: x | AN9: x | AO9: x | AP9: x | AQ9: x | AR9: x | AS9: x | AT9: x | AU9: x
A10: x | B10: x | C10: x | D10: x | E10: x | F10: x | G10: x | H10: x | I10: x | J10: x | K10: x | L10: x | M10: x | N10: x | O10: x | P10: x | Q10: x | R10: x | S10: x | T10: x | U10: x | V10: x | W10: x | X10: x | Y10: x | Z10: x | AA10: x | AB10: x | AC10: x | AD10: x | AE10: x | AF10: x | AG10: x | AH10: x | AI10: x | AJ10: x | AK10: x | AL10: x | AM10: x | AN10: x | AO10: x | AP10: x | AQ10: x | AR10: x | AS10: x | AT10: x | AU10: x
A11: x | B11: x | C11: x | D11: x | E11: x | F11: x | G11: x | H11: x | I11: x | J11: x | K11: x | L11: x | M11: x | N11: x | O11: x | P11: x | Q11: x | R11: x | S11: x | T11: x | U11: x | V11: x | W11: x | X11: x | Y11: x | Z11: x | AA11: x | AB11: x | AC11: x | AD11: x | AE11: x | AF11: x | AG11: x | AH11: x | AI11: x | AJ11: x | AK11: x | AL11: x | AM11: x | AN11: x | AO11: x | AP11: x | AQ11: x | AR11: x | AS11: x | AT11: x | AU11: x
A12: x | B12: x | C12: x | D12: x | E12: x | F12: x | G12: x | H12: x | I12: x | J12: x | K12: x | L12: x | M12: x | N12: x | O12: x | P12: x | Q12: x | R12: x | S12: x | T12: x | U12: x | V12: x | W12: x | X12: x | Y12: x | Z12: x | AA12: x | AB12: x | AC12: x | AD12: x | AE12: x | AF12: x | AG12: x | AH12: x | AI12: x | AJ12: x | AK12: x | AL12: x | AM12: x | AN12: x | AO12: x | AP12: x | AQ12: x | AR12: x | AS12: x | AT12: x | AU12: x
A13: x | B13: x | C13: x | D13: x | E13: x | F13: x | G13: x | H13: x | I13: x | J13: x | K13: x | L13: x | M13: x | N13: x | O13: x | P13: x | Q13: x | R13: x | S13: x | T13: x | U13: x | V13: x | W13: x | X13: x | Y13: x | Z13: x | AA13: x | AB13: x | AC13: x | AD13: x | AE13: x | AF13: x | AG13: x | AH13: x | AI13: x | AJ13: x | AK13: x | AL13: x | AM13: x | AN13: x | AO13: x | AP13: x | AQ13: x | AR13: x | AS13: x | AT13: x | AU13: x
A14: x | B14: x | C14: x | D14: x | E14: x | F14: x | G14: x | H14: x | I14: x | J14: x | K14: x | L14: x | M14: x | N14: x | O14: x | P14: x | Q14: x | R14: x | S14: x | T14: x | U14: x | V14: x | W14: x | X14: x | Y14: x | Z14: x | AA14: x | AB14: x | AC14: x | AD14: x | AE14: x | AF14: x | AG14: x | AH14: x | AI14: x | AJ14: x | AK14: x | AL14: x | AM14: x | AN14: x | AO14: x | AP14: x | AQ14: x | AR14: x | AS14: x | AT14: x | AU14: x
A15: x | B15: x | C15: x | D15: x | E15: x | F15: x | G15: x | H15: x | I15: x | J15: x | K15: x | L15: x | M15: x | N15: x | O15: x | P15: x | Q15: x | R15: x | S15: x | T15: x | U15: x | V15: x | W15: x | X15: x | Y15: x | Z15: x | AA15: x | AB15: x | AC15: x | AD15: x | AE15: x | AF15: x | AG15: x | AH15: x | AI15: x | AJ15: x | AK15: x | AL15: x | AM15: x | AN15: x | AO15: x | AP15: x | AQ15: x | AR15: x | AS15: x | AT15: x | AU15: x
A16: x | C16: x | D16: x | E16: x | F16: x | G16: x | H16: x | I16: x | J16: x | K16: x | L16: x | M16: x | N16: x | O16: x | P16: x | Q16: x | R16: x | S16: x | T16: x | U16: x | V16: x | W16: x | X16: x | Y16: x | Z16: x | AA16: x | AB16: x | AL16: x
A17: x | C17: x | D17: x | E17: x | F17: x | G17: x | H17: x | I17: x | J17: x | K17: x | L17: x | M17: x | N17: x | O17: x | P17: x | Q17: x | R17: x | S17: x | T17: x | U17: x | V17: x | W17: x | X17: x | Y17: x | Z17: x | AA17: x | AB17: x | AL17: x
A18: x | C18: x | D18: x | E18: x | F18: x | G18: x | H18: x | I18: x | J18: x | K18: x | L18: x | M18: x | N18: x | O18: x | P18: x | Q18: x | R18: x | S18: x | T18: x | U18: x | V18: x | W18: x | X18: x | Y18: x | Z18: x | AA18: x | AB18: x | AL18: x
A19: x | C19: x | D19: x | E19: x | F19: x | G19: x | H19: x | I19: x | J19: x | K19: x | L19: x | M19: x | N19: x | O19: x | P19: x | Q19: x | R19: x | S19: x | T19: x | U19: x | V19: x | W19: x | X19: x | Y19: x | Z19: x | AA19: x | AB19: x | AL19: x
A20: x | C20: x | D20: x | E20: x | F20: x | G20: x | H20: x | I20: x | J20: x | K20: x | L20: x | M20: x | N20: x | O20: x | P20: x | Q20: x | R20: x | S20: x | T20: x | U20: x | V20: x | W20: x | X20: x | Y20: x | Z20: x | AA20: x | AB20: x | AL20: x
A21: x | C21: x | D21: x | E21: x | F21: x | G21: x | H21: x | I21: x | J21: x | K21: x | L21: x | M21: x | N21: x | O21: x | P21: x | Q21: x | R21: x | S21: x | T21: x | U21: x | V21: x | W21: x | X21: x | Y21: x | Z21: x | AA21: x | AB21: x | AL21: x
A22: x | C22: x | D22: x | E22: x | F22: x | G22: x | H22: x | I22: x | J22: x | K22: x | L22: x | M22: x | N22: x | O22: x | P22: x | Q22: x | R22: x | S22: x | T22: x | U22: x | V22: x | W22: x | X22: x | Y22: x | Z22: x | AA22: x | AB22: x | AL22: x
A23: x | C23: x | D23: x | E23: x | F23: x | G23: x | H23: x | I23: x | J23: x | K23: x | L23: x | M23: x | N23: x | O23: x | P23: x | Q23: x | R23: x | S23: x | T23: x | U23: x | V23: x | W23: x | X23: x | Y23: x | Z23: x | AA23: x | AB23: x | AL23: x
A24: x | C24: x | D24: x | E24: x | F24: x | G24: x | H24: x | I24: x | J24: x | K24: x | L24: x | M24: x | N24: x | O24: x | P24: x | Q24: x | R24: x | S24: x | T24: x | U24: x | V24: x | W24: x | X24: x | Y24: x | Z24: x | AA24: x | AB24: x | AL24: x
A25: x | C25: x | D25: x | E25: x | F25: x | G25: x | H25: x | I25: x | J25: x | K25: x | L25: x | M25: x | N25: x | O25: x | P25: x | Q25: x | R25: x | S25: x | T25: x | U25: x | V25: x | W25: x | X25: x | Y25: x | Z25: x | AA25: x | AB25: x | AL25: x
A26: x | C26: x | D26: x | E26: x | F26: x | G26: x | H26: x | I26: x | J26: x | K26: x | L26: x | M26: x | N26: x | O26: x | P26: x | Q26: x | R26: x | S26: x | T26: x | U26: x | V26: x | W26: x | X26: x | Y26: x | Z26: x | AA26: x | AB26: x | AL26: x
A27: x | C27: x | D27: x | E27: x | F27: x | G27: x | H27: x | I27: x | J27: x | K27: x | L27: x | M27: x | N27: x | O27: x | P27: x | Q27: x | R27: x | S27: x | T27: x | U27: x | V27: x | W27: x | X27: x | Y27: x | Z27: x | AA27: x | AB27: x | AL27: x
A28: x | C28: x | D28: x | E28: x | F28: x | G28: x | H28: x | I28: x | J28: x | K28: x | L28: x | M28: x | N28: x | O28: x | P28: x | Q28: x | R28: x | S28: x | T28: x | U28: x | V28: x | W28: x | X28: x | Y28: x | Z28: x | AA28: x | AB28: x | AL28: x
A29: x | C29: x | D29: x | E29: x | F29: x | G29: x | H29: x | I29: x | J29: x | K29: x | L29: x | M29: x | N29: x | O29: x | P29: x | Q29: x | R29: x | S29: x | T29: x | U29: x | V29: x | W29: x | X29: x | Y29: x | Z29: x | AA29: x | AB29: x | AL29: x
A30: x | C30: x | D30: x | E30: x | F30: x | G30: x | H30: x | I30: x | J30: x | K30: x | L30: x | M30: x | N30: x | O30: x | P30: x | Q30: x | R30: x | S30: x | T30: x | U30: x | V30: x | W30: x | X30: x | Y30: x | Z30: x | AA30: x | AB30: x | AL30: x
A31: x | C31: x | D31: x | E31: x | F31: x | H31: x | I31: x | J31: x | K31: x | L31: x | M31: x | N31: x | O31: x | P31: x | Q31: x | R31: x | S31: x | T31: x | U31: x | V31: x | W31: x | X31: x | Y31: x | Z31: x | AA31: x | AB31: x | AL31: x
A32: x | C32: x | D32: x | E32: x | F32: x | G32: x | H32: x | I32: x | J32: x | K32: x | L32: x | M32: x | N32: x | O32: x | P32: x | Q32: x | R32: x | S32: x | T32: x | U32: x | V32: x | W32: x | X32: x | Y32: x | Z32: x | AA32: x | AB32: x | AL32: x
A33: x | C33: x | D33: x | E33: x | F33: x | G33: x | H33: x | I33: x | J33: x | K33: x | L33: x | M33: x | N33: x | O33: x | P33: x | Q33: x | R33: x | S33: x | T33: x | U33: x | V33: x | W33: x | X33: x | Y33: x | Z33: x | AA33: x | AB33: x | AL33: x
A34: x | C34: x | D34: x | E34: x | G34: x | H34: x | I34: x | J34: x | K34: x | L34: x | M34: x | N34: x | O34: x | P34: x | Q34: x | R34: x | S34: x | T34: x | U34: x | V34: x | W34: x | X34: x | Y34: x | Z34: x | AA34: x | AB34: x | AL34: x
A35: x | C35: x | D35: x | E35: x | F35: x | G35: x | H35: x | I35: x | J35: x | K35: x | L35: x | M35: x | N35: x | O35: x | P35: x | Q35: x | R35: x | S35: x | T35: x | U35: x | V35: x | W35: x | X35: x | Y35: x | Z35: x | AA35: x | AB35: x | AL35: x
A36: x | C36: x | D36: x | E36: x | F36: x | G36: x | H36: x | I36: x | J36: x | K36: x | L36: x | M36: x | N36: x | O36: x | P36: x | Q36: x | R36: x | S36: x | T36: x | U36: x | V36: x | W36: x | X36: x | Y36: x | Z36: x | AA36: x | AB36: x | AL36: x
A37: x | C37: x | D37: x | E37: x | F37: x | G37: x | H37: x | I37: x | J37: x | K37: x | L37: x | M37: x | N37: x | O37: x | P37: x | Q37: x | R37: x | S37: x | T37: x | U37: x | V37: x | W37: x | X37: x | Y37: x | Z37: x | AA37: x | AB37: x | AL37: x
A38: x | C38: x | E38: x | F38: x | G38: x | H38: x | I38: x | J38: x | K38: x | L38: x | M38: x | N38: x | O38: x | P38: x | Q38: x | R38: x | S38: x | T38: x | U38: x | V38: x | W38: x | X38: x | Y38: x | Z38: x | AA38: x | AB38: x | AJ38: x | AL38: x
A39: x | C39: x | D39: x | E39: x | F39: x | G39: x | H39: x | I39: x | J39: x | K39: x | L39: x | M39: x | N39: x | O39: x | P39: x | Q39: x | R39: x | S39: x | T39: x | U39: x | V39: x | W39: x | X39: x | Y39: x | Z39: x | AA39: x | AB39: x | AL39: x
A40: x | C40: x | D40: x | E40: x | F40: x | G40: x | H40: x | I40: x | J40: x | K40: x | L40: x | M40: x | N40: x | O40: x | P40: x | Q40: x | R40: x | S40: x | T40: x | U40: x | V40: x | W40: x | X40: x | Y40: x | Z40: x | AA40: x | AB40: x | AL40: x
A41: x | C41: x | D41: x | E41: x | F41: x | G41: x | H41: x | I41: x | J41: x | K41: x | L41: x | M41: x | N41: x | O41: x | P41: x | Q41: x | R41: x | S41: x | T41: x | U41: x | V41: x | W41: x | X41: x | Y41: x | Z41: x | AA41: x | AB41: x | AL41: x
A42: x | C42: x | D42: x | E42: x | F42: x | G42: x | H42: x | I42: x | J42: x | K42: x | L42: x | M42: x | N42: x | O42: x | P42: x | Q42: x | R42: x | S42: x | T42: x | U42: x | V42: x | W42: x | X42: x | Y42: x | Z42: x | AA42: x | AB42: x | AL42: x
A43: x | C43: x | D43: x | E43: x | F43: x | G43: x | H43: x | I43: x | J43: x | K43: x | L43: x | M43: x | N43: x | O43: x | P43: x | Q43: x | R43: x | S43: x | T43: x | U43: x | V43: x | W43: x | X43: x | Y43: x | Z43: x | AA43: x | AB43: x | AL43: x
A44: x | B44: x | C44: x | D44: x | E44: x | F44: x | G44: x | H44: x | I44: x | J44: x | K44: x | L44: x | M44: x | N44: x | O44: x | P44: x | Q44: x | R44: x | S44: x | T44: x | U44: x | V44: x | W44: x | X44: x | Y44: x | Z44: x | AA44: x | AB44: x | AC44: x | AD44: x | AE44: x | AF44: x | AG44: x | AH44: x | AI44: x | AJ44: x | AK44: x | AL44: x | AM44: x | AN44: x | AO44: x | AP44: x | AQ44: x | AR44: x | AS44: x | AT44: x | AU44: x
A45: x | C45: x | D45: x | E45: x | F45: x | G45: x | H45: x | J45: x | K45: x | L45: x | M45: x | N45: x | O45: x | P45: x | Q45: x | R45: x | S45: x | T45: x | U45: x | V45: x | W45: x | X45: x | Y45: x | Z45: x | AA45: x | AB45: x
A46: x | C46: x | D46: x | E46: x | F46: x | G46: x | H46: x | J46: x | K46: x | L46: x | M46: x | N46: x | O46: x | P46: x | Q46: x | R46: x | S46: x | T46: x | U46: x | V46: x | W46: x | X46: x | Y46: x | Z46: x | AA46: x | AB46: x
A47: x | B47: x | C47: x | D47: x | E47: x | F47: x | G47: x | H47: x | I47: x | J47: x | K47: x | L47: x | M47: x | N47: x | O47: x | P47: x | Q47: x | R47: x | S47: x | T47: x | U47: x | V47: x | W47: x | X47: x | Y47: x | Z47: x | AA47: x | AB47: x | AC47: x | AD47: x | AE47: x | AF47: x | AG47: x | AH47: x | AI47: x | AJ47: x | AK47: x | AL47: x | AM47: x | AN47: x | AO47: x | AP47: x | AQ47: x | AR47: x | AS47: x | AT47: x | AU47: x
A48: x | C48: x | D48: x | E48: x | F48: x | G48: x | H48: x | I48: x | J48: x | K48: x | L48: x | M48: x | N48: x | O48: x | P48: x | Q48: x | R48: x | S48: x | T48: x | U48: x | V48: x | W48: x | X48: x | Y48: x | Z48: x | AA48: x | AB48: x
A49: x | C49: x | D49: x | E49: x | F49: x | G49: x | H49: x | I49: x | J49: x | K49: x | L49: x | M49: x | N49: x | O49: x | P49: x | Q49: x | R49: x | S49: x | T49: x | U49: x | V49: x | W49: x | X49: x | Y49: x | Z49: x | AA49: x | AB49: x
A50: x | B50: x | C50: x | D50: x | E50: x | F50: x | G50: x | H50: x | I50: x | J50: x | K50: x | L50: x | M50: x | N50: x | O50: x | P50: x | Q50: x | R50: x | S50: x | T50: x | U50: x | V50: x | W50: x | X50: x | Y50: x | Z50: x | AA50: x | AB50: x | AC50: x | AD50: x | AE50: x | AF50: x | AG50: x | AH50: x | AI50: x | AJ50: x | AK50: x | AL50: x | AM50: x | AN50: x | AO50: x | AP50: x | AQ50: x | AR50: x | AS50: x | AT50: x | AU50: x
A51: x | C51: x | D51: x | E51: x | F51: x | G51: x | H51: x | I51: x | J51: x | K51: x | L51: x | M51: x | N51: x | O51: x | P51: x | Q51: x | R51: x | S51: x | T51: x | U51: x | V51: x | W51: x | X51: x | Y51: x | Z51: x | AA51: x | AB51: x
A52: x | C52: x | D52: x | E52: x | F52: x | G52: x | H52: x | I52: x | J52: x | K52: x | L52: x | M52: x | N52: x | O52: x | P52: x | Q52: x | R52: x | S52: x | T52: x | U52: x | V52: x | W52: x | X52: x | Y52: x | Z52: x | AA52: x | AB52: x
A53: x | C53: x | D53: x | E53: x | F53: x | G53: x | H53: x | I53: x | J53: x | K53: x | L53: x | M53: x | N53: x | O53: x | P53: x | Q53: x | R53: x | S53: x | T53: x | U53: x | V53: x | W53: x | X53: x | Y53: x | Z53: x | AA53: x | AB53: x
A54: x | B54: x | C54: x | D54: x | E54: x | F54: x | G54: x | H54: x | I54: x | J54: x | K54: x | L54: x | M54: x | N54: x | O54: x | P54: x | Q54: x | R54: x | S54: x | T54: x | U54: x | V54: x | W54: x | X54: x | Y54: x | Z54: x | AA54: x | AB54: x | AC54: x | AD54: x | AE54: x | AF54: x | AG54: x | AH54: x | AI54: x | AJ54: x | AK54: x | AL54: x | AM54: x | AN54: x | AO54: x | AP54: x | AQ54: x | AR54: x | AS54: x | AT54: x | AU54: x
A55: x | C55: x | D55: x | E55: x | F55: x | G55: x | H55: x | I55: x | J55: x | K55: x | L55: x | M55: x | N55: x | O55: x | P55: x | Q55: x | R55: x | S55: x | T55: x | U55: x | V55: x | W55: x | X55: x | Y55: x | Z55: x | AA55: x | AB55: x
A56: x | C56: x | D56: x | E56: x | F56: x | G56: x | H56: x | I56: x | J56: x | K56: x | L56: x | M56: x | N56: x | O56: x | P56: x | Q56: x | R56: x | S56: x | T56: x | U56: x | V56: x | W56: x | X56: x | Y56: x | Z56: x | AA56: x | AB56: x
A57: x | C57: x | D57: x | E57: x | F57: x | G57: x | H57: x | I57: x | J57: x | K57: x | L57: x | M57: x | N57: x | O57: x | P57: x | Q57: x | R57: x | S57: x | T57: x | U57: x | V57: x | W57: x | X57: x | Y57: x | Z57: x | AA57: x | AB57: x
A58: x | C58: x | D58: x | E58: x | F58: x | G58: x | H58: x | I58: x | J58: x | K58: x | L58: x | M58: x | N58: x | O58: x | P58: x | Q58: x | R58: x | S58: x | T58: x | U58: x | V58: x | W58: x | X58: x | Y58: x | Z58: x | AA58: x | AB58: x
A59: x | C59: x | D59: x | E59: x | F59: x | G59: x | H59: x | I59: x | J59: x | K59: x | L59: x | M59: x | N59: x | O59: x | P59: x | Q59: x | R59: x | S59: x | T59: x | U59: x | V59: x | W59: x | X59: x | Y59: x | Z59: x | AA59: x | AB59: x
A60: x | B60: x | C60: x | D60: x | E60: x | F60: x | G60: x | H60: x | I60: x | J60: x | K60: x | L60: x | M60: x | N60: x | O60: x | P60: x | Q60: x | R60: x | S60: x | T60: x | U60: x | V60: x | W60: x | X60: x | Y60: x | Z60: x | AA60: x | AB60: x | AC60: x | AD60: x | AE60: x | AF60: x | AG60: x | AH60: x | AI60: x | AJ60: x | AK60: x | AL60: x | AM60: x | AN60: x | AO60: x | AP60: x | AQ60: x | AR60: x | AS60: x | AT60: x | AU60: x
A61: x | C61: x | D61: x | E61: x | F61: x | G61: x | H61: x | I61: x | J61: x | K61: x | L61: x | M61: x | N61: x | O61: x | P61: x | Q61: x | R61: x | S61: x | T61: x | U61: x | V61: x | W61: x | X61: x | Y61: x | Z61: x | AA61: x | AB61: x
A62: x | C62: x | D62: x | E62: x | F62: x | G62: x | H62: x | I62: x | J62: x | K62: x | L62: x | M62: x | N62: x | O62: x | P62: x | Q62: x | R62: x | S62: x | T62: x | U62: x | V62: x | W62: x | X62: x | Y62: x | Z62: x | AA62: x | AB62: x
A63: x | C63: x | D63: x | E63: x | F63: x | G63: x | H63: x | I63: x | J63: x | K63: x | L63: x | M63: x | N63: x | O63: x | P63: x | Q63: x | R63: x | S63: x | T63: x | U63: x | V63: x | W63: x | X63: x | Y63: x | Z63: x | AA63: x | AB63: x
A64: x | C64: x | D64: x | E64: x | F64: x | G64: x | H64: x | I64: x | J64: x | K64: x | L64: x | M64: x | N64: x | O64: x | P64: x | Q64: x | R64: x | S64: x | T64: x | U64: x | V64: x | W64: x | X64: x | Y64: x | Z64: x | AA64: x | AB64: x
A65: x | C65: x | D65: x | E65: x | F65: x | G65: x | H65: x | I65: x | J65: x | K65: x | L65: x | M65: x | N65: x | O65: x | P65: x | Q65: x | R65: x | S65: x | T65: x | U65: x | V65: x | W65: x | X65: x | Y65: x | Z65: x | AA65: x | AB65: x
A66: x | C66: x | D66: x | E66: x | F66: x | G66: x | H66: x | I66: x | J66: x | K66: x | L66: x | M66: x | N66: x | O66: x | P66: x | Q66: x | R66: x | S66: x | T66: x | U66: x | V66: x | W66: x | X66: x | Y66: x | Z66: x | AA66: x | AB66: x
A67: x | C67: x | D67: x | E67: x | F67: x | G67: x | H67: x | I67: x | J67: x | K67: x | L67: x | M67: x | N67: x | O67: x | P67: x | Q67: x | R67: x | S67: x | T67: x | U67: x | V67: x | W67: x | X67: x | Y67: x | Z67: x | AA67: x | AB67: x
A68: x | C68: x | D68: x | E68: x | F68: x | G68: x | H68: x | I68: x | J68: x | K68: x | L68: x | M68: x | N68: x | O68: x | P68: x | Q68: x | R68: x | S68: x | T68: x | U68: x | V68: x | W68: x | X68: x | Y68: x | Z68: x | AA68: x | AB68: x
A69: x | C69: x | D69: x | E69: x | F69: x | G69: x | H69: x | I69: x | J69: x | K69: x | L69: x | M69: x | N69: x | O69: x | P69: x | Q69: x | R69: x | S69: x | T69: x | U69: x | V69: x | W69: x | X69: x | Y69: x | Z69: x | AA69: x | AB69: x
A70: x | C70: x | D70: x | E70: x | F70: x | G70: x | H70: x | I70: x | J70: x | K70: x | L70: x | M70: x | N70: x | O70: x | P70: x | Q70: x | R70: x | S70: x | T70: x | U70: x | V70: x | W70: x | X70: x | Y70: x | Z70: x | AA70: x | AB70: x
A71: x | C71: x | D71: x | E71: x | F71: x | G71: x | H71: x | I71: x | J71: x | K71: x | L71: x | M71: x | N71: x | O71: x | P71: x | Q71: x | R71: x | S71: x | T71: x | U71: x | V71: x | W71: x | X71: x | Y71: x | Z71: x | AA71: x | AB71: x
A72: x | C72: x | D72: x | E72: x | F72: x | G72: x | H72: x | I72: x | J72: x | K72: x | L72: x | M72: x | N72: x | O72: x | P72: x | Q72: x | R72: x | S72: x | T72: x | U72: x | V72: x | W72: x | X72: x | Y72: x | Z72: x | AA72: x | AB72: x
A73: x | C73: x | D73: x | E73: x | F73: x | G73: x | H73: x | I73: x | J73: x | K73: x | L73: x | M73: x | N73: x | O73: x | P73: x | Q73: x | R73: x | S73: x | T73: x | U73: x | V73: x | W73: x | X73: x | Y73: x | Z73: x | AA73: x | AB73: x
A74: x | C74: x | D74: x | E74: x | F74: x | G74: x | H74: x | I74: x | J74: x | K74: x | L74: x | M74: x | N74: x | O74: x | P74: x | Q74: x | R74: x | S74: x | T74: x | U74: x | V74: x | W74: x | X74: x | Y74: x | Z74: x | AA74: x | AB74: x
A75: x | C75: x | D75: x | E75: x | G75: x | H75: x | I75: x | J75: x | K75: x | L75: x | M75: x | N75: x | O75: x | P75: x | Q75: x | R75: x | S75: x | T75: x | U75: x | V75: x | W75: x | X75: x | Y75: x | Z75: x | AA75: x | AB75: x
A76: x | C76: x | D76: x | E76: x | G76: x | H76: x | I76: x | J76: x | K76: x | L76: x | M76: x | N76: x | O76: x | P76: x | Q76: x | R76: x | S76: x | T76: x | U76: x | V76: x | W76: x | X76: x | Y76: x | Z76: x | AA76: x | AB76: x
A77: x | C77: x | D77: x | E77: x | G77: x | H77: x | I77: x | J77: x | K77: x | L77: x | M77: x | N77: x | O77: x | P77: x | Q77: x | R77: x | S77: x | T77: x | U77: x | V77: x | W77: x | X77: x | Y77: x | Z77: x | AA77: x | AB77: x
A78: x | C78: x | D78: x | E78: x | G78: x | H78: x | I78: x | J78: x | K78: x | L78: x | M78: x | N78: x | O78: x | P78: x | Q78: x | R78: x | S78: x | T78: x | U78: x | V78: x | W78: x | X78: x | Y78: x | Z78: x | AA78: x | AB78: x
A79: x | C79: x | D79: x | E79: x | G79: x | H79: x | I79: x | J79: x | K79: x | L79: x | M79: x | N79: x | O79: x | P79: x | Q79: x | R79: x | S79: x | T79: x | U79: x | V79: x | W79: x | X79: x | Y79: x | Z79: x | AA79: x | AB79: x
A80: x | C80: x | D80: x | E80: x | G80: x | H80: x | I80: x | J80: x | K80: x | L80: x | M80: x | N80: x | O80: x | P80: x | Q80: x | R80: x | S80: x | T80: x | U80: x | V80: x | W80: x | X80: x | Y80: x | Z80: x | AA80: x | AB80: x
A81: x | C81: x | D81: x | E81: x | G81: x | H81: x | I81: x | J81: x | K81: x | L81: x | M81: x | N81: x | O81: x | P81: x | Q81: x | R81: x | S81: x | T81: x | U81: x | V81: x | W81: x | X81: x | Y81: x | Z81: x | AA81: x | AB81: x
A82: x | C82: x | D82: x | E82: x | G82: x | H82: x | I82: x | J82: x | K82: x | L82: x | M82: x | N82: x | O82: x | P82: x | Q82: x | R82: x | S82: x | T82: x | U82: x | V82: x | W82: x | X82: x | Y82: x | Z82: x | AA82: x | AB82: x
A83: x | B83: x | C83: x | D83: x | E83: x | F83: x | G83: x | H83: x | I83: x | J83: x | K83: x | L83: x | M83: x | N83: x | P83: x | Q83: x | R83: x | S83: x | T83: x | U83: x | V83: x | W83: x | X83: x | Y83: x | Z83: x | AA83: x | AB83: x | AC83: x | AD83: x | AE83: x | AF83: x | AG83: x | AH83: x | AI83: x | AJ83: x | AK83: x | AL83: x | AM83: x | AN83: x | AO83: x | AP83: x | AQ83: x | AR83: x | AS83: x | AT83: x | AU83: x
A84: x | C84: x | D84: x | E84: x | F84: x | G84: x | H84: x | I84: x | J84: x | K84: x | L84: x | M84: x | N84: x | P84: x | Q84: x | R84: x | S84: x | T84: x | U84: x | V84: x | W84: x | X84: x | Y84: x | Z84: x | AA84: x | AB84: x
A85: x | C85: x | D85: x | E85: x | F85: x | G85: x | H85: x | I85: x | J85: x | K85: x | L85: x | M85: x | N85: x | P85: x | Q85: x | R85: x | S85: x | T85: x | U85: x | V85: x | W85: x | X85: x | Y85: x | Z85: x | AA85: x | AB85: x
A86: x | C86: x | D86: x | E86: x | F86: x | G86: x | H86: x | I86: x | J86: x | K86: x | L86: x | M86: x | N86: x | P86: x | Q86: x | R86: x | S86: x | T86: x | U86: x | V86: x | W86: x | X86: x | Y86: x | Z86: x | AA86: x | AB86: x
A87: x | C87: x | D87: x | E87: x | F87: x | G87: x | H87: x | I87: x | J87: x | K87: x | L87: x | M87: x | N87: x | P87: x | Q87: x | R87: x | S87: x | T87: x | U87: x | V87: x | W87: x | X87: x | Y87: x | Z87: x | AA87: x | AB87: x
A88: x | C88: x | D88: x | E88: x | F88: x | G88: x | H88: x | I88: x | J88: x | K88: x | L88: x | M88: x | N88: x | P88: x | Q88: x | R88: x | S88: x | T88: x | U88: x | V88: x | W88: x | X88: x | Y88: x | Z88: x | AA88: x | AB88: x
A89: x | C89: x | D89: x | E89: x | F89: x | G89: x | H89: x | I89: x | J89: x | K89: x | L89: x | M89: x | N89: x | P89: x | Q89: x | R89: x | S89: x | T89: x | U89: x | V89: x | W89: x | X89: x | Y89: x | Z89: x | AA89: x | AB89: x
A90: x | B90: x | C90: x | D90: x | E90: x | F90: x | G90: x | H90: x | I90: x | J90: x | K90: x | L90: x | M90: x | N90: x | O90: x | P90: x | Q90: x | R90: x | S90: x | T90: x | U90: x | V90: x | W90: x | X90: x | Y90: x | Z90: x | AA90: x | AB90: x | AC90: x | AD90: x | AE90: x | AF90: x | AG90: x | AH90: x | AI90: x | AJ90: x | AK90: x | AL90: x | AM90: x | AN90: x | AO90: x | AP90: x | AQ90: x | AR90: x | AS90: x | AT90: x | AU90: x
A91: x | C91: x | D91: x | E91: x | F91: x | G91: x | H91: x | I91: x | J91: x | K91: x | L91: x | M91: x | N91: x | O91: x | P91: x | Q91: x | R91: x | S91: x | T91: x | U91: x | V91: x | W91: x | X91: x | Y91: x | Z91: x | AA91: x | AB91: x | AE91: x
A92: x | C92: x | D92: x | E92: x | F92: x | G92: x | H92: x | I92: x | J92: x | K92: x | L92: x | M92: x | N92: x | O92: x | P92: x | Q92: x | R92: x | S92: x | T92: x | U92: x | V92: x | W92: x | X92: x | Y92: x | Z92: x | AA92: x | AB92: x | AE92: x
A93: x | C93: x | D93: x | E93: x | F93: x | G93: x | H93: x | I93: x | J93: x | K93: x | L93: x | M93: x | N93: x | O93: x | P93: x | Q93: x | R93: x | S93: x | T93: x | U93: x | V93: x | W93: x | X93: x | Y93: x | Z93: x | AA93: x | AB93: x | AE93: x
A94: x | C94: x | D94: x | E94: x | F94: x | G94: x | H94: x | I94: x | J94: x | K94: x | L94: x | M94: x | N94: x | O94: x | P94: x | Q94: x | R94: x | S94: x | T94: x | U94: x | V94: x | W94: x | X94: x | Y94: x | Z94: x | AA94: x | AB94: x | AE94: x
A95: x | C95: x | D95: x | E95: x | F95: x | G95: x | H95: x | I95: x | J95: x | K95: x | L95: x | M95: x | N95: x | O95: x | P95: x | Q95: x | R95: x | S95: x | T95: x | U95: x | V95: x | W95: x | X95: x | Y95: x | Z95: x | AA95: x | AB95: x | AE95: x
A96: x | C96: x | D96: x | E96: x | F96: x | G96: x | H96: x | I96: x | J96: x | K96: x | L96: x | M96: x | N96: x | O96: x | P96: x | Q96: x | R96: x | S96: x | T96: x | U96: x | V96: x | W96: x | X96: x | Y96: x | Z96: x | AA96: x | AB96: x | AE96: x
A97: x | C97: x | D97: x | E97: x | F97: x | G97: x | H97: x | I97: x | J97: x | K97: x | L97: x | M97: x | N97: x | O97: x | P97: x | Q97: x | R97: x | S97: x | T97: x | U97: x | V97: x | W97: x | X97: x | Y97: x | Z97: x | AA97: x | AB97: x | AE97: x
A98: x | C98: x | D98: x | E98: x | F98: x | G98: x | H98: x | I98: x | J98: x | K98: x | L98: x | M98: x | N98: x | O98: x | P98: x | Q98: x | R98: x | S98: x | T98: x | U98: x | V98: x | W98: x | X98: x | Y98: x | Z98: x | AA98: x | AB98: x | AE98: x
A99: x | C99: x | D99: x | E99: x | F99: x | G99: x | H99: x | I99: x | J99: x | K99: x | L99: x | M99: x | N99: x | O99: x | P99: x | Q99: x | R99: x | S99: x | T99: x | U99: x | V99: x | W99: x | X99: x | Y99: x | Z99: x | AA99: x | AB99: x | AE99: x
A100: x | C100: x | D100: x | E100: x | F100: x | G100: x | H100: x | I100: x | J100: x | K100: x | L100: x | M100: x | N100: x | O100: x | P100: x | Q100: x | R100: x | S100: x | T100: x | U100: x | V100: x | W100: x | X100: x | Y100: x | Z100: x | AA100: x | AB100: x | AE100: x
A101: x | C101: x | D101: x | E101: x | F101: x | G101: x | H101: x | I101: x | J101: x | K101: x | L101: x | M101: x | N101: x | O101: x | P101: x | Q101: x | R101: x | S101: x | T101: x | U101: x | V101: x | W101: x | X101: x | Y101: x | Z101: x | AA101: x | AB101: x | AE101: x
A102: x | C102: x | D102: x | E102: x | F102: x | G102: x | H102: x | I102: x | J102: x | K102: x | L102: x | M102: x | N102: x | O102: x | P102: x | Q102: x | R102: x | S102: x | T102: x | U102: x | V102: x | W102: x | X102: x | Y102: x | Z102: x | AA102: x | AB102: x | AE102: x
A103: x | C103: x | D103: x | E103: x | F103: x | G103: x | H103: x | I103: x | J103: x | K103: x | L103: x | M103: x | N103: x | O103: x | P103: x | Q103: x | R103: x | S103: x | T103: x | U103: x | V103: x | W103: x | X103: x | Y103: x | Z103: x | AA103: x | AB103: x | AE103: x
A104: x | C104: x | D104: x | E104: x | F104: x | G104: x | H104: x | I104: x | J104: x | K104: x | L104: x | M104: x | N104: x | O104: x | P104: x | Q104: x | R104: x | S104: x | T104: x | U104: x | V104: x | W104: x | X104: x | Y104: x | Z104: x | AA104: x | AB104: x | AE104: x
A105: x | C105: x | D105: x | E105: x | F105: x | G105: x | H105: x | I105: x | J105: x | K105: x | L105: x | M105: x | N105: x | O105: x | P105: x | Q105: x | R105: x | S105: x | T105: x | U105: x | V105: x | W105: x | X105: x | Y105: x | Z105: x | AA105: x | AB105: x | AE105: x
A106: x | B106: x | C106: x | D106: x | E106: x | F106: x | G106: x | H106: x | I106: x | J106: x | K106: x | L106: x | M106: x | N106: x | O106: x | P106: x | Q106: x | R106: x | S106: x | T106: x | U106: x | V106: x | W106: x | X106: x | Y106: x | Z106: x | AA106: x | AB106: x | AC106: x | AD106: x | AE106: x | AF106: x | AG106: x | AH106: x | AI106: x | AJ106: x | AK106: x | AL106: x | AM106: x | AN106: x | AO106: x | AP106: x | AQ106: x | AR106: x | AS106: x | AT106: x | AU106: x
A107: x | C107: x | D107: x | E107: x | F107: x | G107: x | H107: x | I107: x | J107: x | K107: x | L107: x | M107: x | N107: x | O107: x | P107: x | Q107: x | R107: x | S107: x | T107: x | U107: x | V107: x | W107: x | X107: x | Y107: x | Z107: x | AA107: x | AB107: x
A108: x | B108: x | C108: x | D108: x | E108: x | F108: x | G108: x | H108: x | I108: x | J108: x | K108: x | L108: x | M108: x | N108: x | O108: x | P108: x | Q108: x | R108: x | S108: x | T108: x | U108: x | V108: x | W108: x | X108: x | Y108: x | Z108: x | AA108: x | AB108: x | AC108: x | AD108: x | AE108: x | AF108: x | AG108: x | AH108: x | AI108: x | AJ108: x | AK108: x | AL108: x | AM108: x | AN108: x | AO108: x | AP108: x | AQ108: x | AR108: x | AS108: x | AT108: x | AU108: x
A109: x | C109: x | D109: x | E109: x | F109: x | G109: x | H109: x | I109: x | J109: x | K109: x | L109: x | M109: x | N109: x | O109: x | P109: x | Q109: x | R109: x | S109: x | T109: x | U109: x | V109: x | W109: x | X109: x | Y109: x | Z109: x | AA109: x | AB109: x
A110: x | C110: x | D110: x | E110: x | F110: x | G110: x | H110: x | I110: x | J110: x | K110: x | L110: x | M110: x | N110: x | O110: x | P110: x | Q110: x | R110: x | S110: x | T110: x | U110: x | V110: x | W110: x | X110: x | Y110: x | Z110: x | AA110: x | AB110: x
A111: x | C111: x | D111: x | E111: x | F111: x | G111: x | H111: x | I111: x | J111: x | K111: x | L111: x | M111: x | N111: x | O111: x | P111: x | Q111: x | R111: x | S111: x | T111: x | U111: x | V111: x | W111: x | X111: x | Y111: x | Z111: x | AA111: x | AB111: x
A112: x | C112: x | D112: x | E112: x | F112: x | G112: x | H112: x | I112: x | J112: x | K112: x | L112: x | M112: x | N112: x | O112: x | P112: x | Q112: x | R112: x | S112: x | T112: x | U112: x | V112: x | W112: x | X112: x | Y112: x | Z112: x | AA112: x | AB112: x
A113: x | C113: x | D113: x | E113: x | F113: x | G113: x | H113: x | I113: x | J113: x | K113: x | L113: x | M113: x | N113: x | O113: x | P113: x | Q113: x | R113: x | S113: x | T113: x | U113: x | V113: x | W113: x | X113: x | Y113: x | Z113: x | AA113: x | AB113: x
A114: x | C114: x | D114: x | E114: x | F114: x | G114: x | H114: x | I114: x | J114: x | K114: x | L114: x | M114: x | N114: x | O114: x | P114: x | Q114: x | R114: x | S114: x | T114: x | U114: x | V114: x | W114: x | X114: x | Y114: x | Z114: x | AA114: x | AB114: x
A115: x | C115: x | D115: x | E115: x | F115: x | G115: x | H115: x | I115: x | J115: x | K115: x | L115: x | M115: x | N115: x | O115: x | P115: x | Q115: x | R115: x | S115: x | T115: x | U115: x | V115: x | W115: x | X115: x | Y115: x | Z115: x | AA115: x | AB115: x
A116: x | C116: x | D116: x | E116: x | F116: x | G116: x | H116: x | I116: x | J116: x | K116: x | L116: x | M116: x | N116: x | O116: x | P116: x | Q116: x | R116: x | S116: x | T116: x | U116: x | V116: x | W116: x | X116: x | Y116: x | Z116: x | AA116: x | AB116: x
A117: x | C117: x | D117: x | E117: x | F117: x | G117: x | H117: x | I117: x | J117: x | K117: x | L117: x | M117: x | N117: x | O117: x | P117: x | Q117: x | R117: x | S117: x | T117: x | U117: x | V117: x | W117: x | X117: x | Y117: x | Z117: x | AA117: x | AB117: x
A118: x | C118: x | D118: x | E118: x | F118: x | G118: x | H118: x | I118: x | J118: x | K118: x | L118: x | M118: x | N118: x | O118: x | P118: x | Q118: x | R118: x | S118: x | T118: x | U118: x | V118: x | W118: x | X118: x | Y118: x | Z118: x | AA118: x | AB118: x
A119: x | C119: x | D119: x | E119: x | F119: x | G119: x | H119: x | I119: x | J119: x | K119: x | L119: x | M119: x | N119: x | O119: x | P119: x | Q119: x | R119: x | S119: x | T119: x | U119: x | V119: x | W119: x | X119: x | Y119: x | Z119: x | AA119: x | AB119: x
A120: x | C120: x | D120: x | E120: x | F120: x | G120: x | H120: x | I120: x | J120: x | K120: x | L120: x | M120: x | N120: x | O120: x | P120: x | Q120: x | R120: x | S120: x | T120: x | U120: x | V120: x | W120: x | X120: x | Y120: x | Z120: x | AA120: x | AB120: x
A121: x | C121: x | D121: x | E121: x | F121: x | G121: x | H121: x | I121: x | J121: x | K121: x | L121: x | M121: x | N121: x | O121: x | P121: x | Q121: x | R121: x | S121: x | T121: x | U121: x | V121: x | W121: x | X121: x | Y121: x | Z121: x | AA121: x | AB121: x
A122: x | C122: x | D122: x | E122: x | F122: x | G122: x | H122: x | I122: x | J122: x | K122: x | L122: x | M122: x | N122: x | O122: x | P122: x | Q122: x | R122: x | S122: x | T122: x | U122: x | V122: x | W122: x | X122: x | Y122: x | Z122: x | AA122: x | AB122: x
A123: x | B123: x | C123: x | D123: x | E123: x | F123: x | G123: x | H123: x | I123: x | J123: x | K123: x | L123: x | M123: x | N123: x | O123: x | P123: x | Q123: x | R123: x | S123: x | T123: x | U123: x | V123: x | W123: x | X123: x | Y123: x | Z123: x | AA123: x | AB123: x | AC123: x | AD123: x | AE123: x | AF123: x | AG123: x | AH123: x | AI123: x | AJ123: x | AK123: x | AL123: x | AM123: x | AN123: x | AO123: x | AP123: x | AQ123: x | AR123: x | AS123: x | AT123: x | AU123: x
A124: x | C124: x | D124: x | E124: x | F124: x | G124: x | H124: x | I124: x | J124: x | K124: x | L124: x | M124: x | N124: x | O124: x | P124: x | Q124: x | R124: x | S124: x | T124: x | U124: x | V124: x | W124: x | X124: x | Y124: x | Z124: x | AA124: x | AB124: x
A125: x | C125: x | D125: x | E125: x | F125: x | G125: x | H125: x | I125: x | J125: x | K125: x | L125: x | M125: x | N125: x | O125: x | P125: x | Q125: x | R125: x | S125: x | T125: x | U125: x | V125: x | W125: x | X125: x | Y125: x | Z125: x | AA125: x | AB125: x
A126: x | B126: x | C126: x | D126: x | E126: x | F126: x | G126: x | H126: x | I126: x | J126: x | K126: x | L126: x | M126: x | N126: x | O126: x | P126: x | Q126: x | R126: x | S126: x | T126: x | U126: x | V126: x | W126: x | X126: x | Y126: x | Z126: x | AA126: x | AB126: x | AC126: x | AD126: x | AE126: x | AF126: x | AG126: x | AH126: x | AI126: x | AJ126: x | AK126: x | AL126: x | AM126: x | AN126: x | AO126: x | AP126: x | AQ126: x | AR126: x | AS126: x | AT126: x | AU126: x
A127: x | C127: x | D127: x | E127: x | F127: x | G127: x | H127: x | I127: x | J127: x | K127: x | L127: x | M127: x | N127: x | O127: x | P127: x | Q127: x | R127: x | S127: x | T127: x | U127: x | V127: x | W127: x | X127: x | Y127: x | Z127: x | AA127: x | AB127: x
A128: x | B128: x | C128: x | D128: x | E128: x | F128: x | G128: x | H128: x | I128: x | J128: x | K128: x | L128: x | M128: x | N128: x | O128: x | P128: x | Q128: x | R128: x | S128: x | T128: x | U128: x | V128: x | W128: x | X128: x | Y128: x | Z128: x | AA128: x | AB128: x | AC128: x | AD128: x | AE128: x | AF128: x | AG128: x | AH128: x | AI128: x | AJ128: x | AK128: x | AL128: x | AM128: x | AN128: x | AO128: x | AP128: x | AQ128: x | AR128: x | AS128: x | AT128: x | AU128: x
A129: x | C129: x | D129: x | E129: x | F129: x | G129: x | H129: x | I129: x | J129: x | K129: x | L129: x | M129: x | N129: x | O129: x | Q129: x | R129: x | S129: x | T129: x | U129: x | V129: x | W129: x | X129: x | Y129: x | Z129: x | AA129: x | AB129: x | AF129: x
A130: x | C130: x | D130: x | E130: x | F130: x | G130: x | H130: x | I130: x | J130: x | K130: x | L130: x | M130: x | N130: x | O130: x | Q130: x | R130: x | S130: x | T130: x | U130: x | V130: x | W130: x | X130: x | Y130: x | Z130: x | AA130: x | AB130: x | AF130: x
A131: x | C131: x | D131: x | E131: x | F131: x | G131: x | H131: x | I131: x | J131: x | K131: x | L131: x | M131: x | N131: x | O131: x | Q131: x | R131: x | S131: x | T131: x | U131: x | V131: x | W131: x | X131: x | Y131: x | Z131: x | AA131: x | AB131: x | AF131: x
A132: x | C132: x | D132: x | E132: x | F132: x | G132: x | H132: x | I132: x | J132: x | K132: x | L132: x | M132: x | N132: x | O132: x | Q132: x | R132: x | S132: x | T132: x | U132: x | V132: x | W132: x | X132: x | Y132: x | Z132: x | AA132: x | AB132: x | AF132: x
A133: x | C133: x | D133: x | E133: x | F133: x | G133: x | H133: x | I133: x | J133: x | K133: x | L133: x | M133: x | N133: x | O133: x | Q133: x | R133: x | S133: x | T133: x | U133: x | V133: x | W133: x | X133: x | Y133: x | Z133: x | AA133: x | AB133: x | AF133: x
A134: x | B134: x | C134: x | D134: x | E134: x | F134: x | G134: x | H134: x | I134: x | J134: x | K134: x | L134: x | M134: x | N134: x | O134: x | P134: x | Q134: x | R134: x | S134: x | T134: x | U134: x | V134: x | W134: x | X134: x | Y134: x | Z134: x | AA134: x | AB134: x | AC134: x | AD134: x | AE134: x | AF134: x | AG134: x | AH134: x | AI134: x | AJ134: x | AK134: x | AL134: x | AM134: x | AN134: x | AO134: x | AP134: x | AQ134: x | AR134: x | AS134: x | AT134: x | AU134: x
A135: x | C135: x | D135: x | E135: x | F135: x | G135: x | H135: x | I135: x | J135: x | K135: x | L135: x | M135: x | N135: x | O135: x | P135: x | R135: x | S135: x | T135: x | U135: x | V135: x | W135: x | X135: x | Y135: x | Z135: x | AA135: x | AB135: x | AG135: x
A136: x | C136: x | D136: x | E136: x | F136: x | G136: x | H136: x | I136: x | J136: x | K136: x | L136: x | M136: x | N136: x | O136: x | P136: x | R136: x | S136: x | T136: x | U136: x | V136: x | W136: x | X136: x | Y136: x | Z136: x | AA136: x | AB136: x | AG136: x
A137: x | C137: x | D137: x | E137: x | F137: x | G137: x | H137: x | I137: x | J137: x | K137: x | L137: x | M137: x | N137: x | O137: x | P137: x | R137: x | S137: x | T137: x | U137: x | V137: x | W137: x | X137: x | Y137: x | Z137: x | AA137: x | AB137: x | AG137: x
A138: x | C138: x | D138: x | E138: x | F138: x | G138: x | H138: x | I138: x | J138: x | K138: x | L138: x | M138: x | N138: x | O138: x | P138: x | R138: x | S138: x | T138: x | U138: x | V138: x | W138: x | X138: x | Y138: x | Z138: x | AA138: x | AB138: x | AG138: x
A139: x | C139: x | D139: x | E139: x | F139: x | G139: x | H139: x | I139: x | J139: x | K139: x | L139: x | M139: x | N139: x | O139: x | P139: x | R139: x | S139: x | T139: x | U139: x | V139: x | W139: x | X139: x | Y139: x | Z139: x | AA139: x | AB139: x | AG139: x
A140: x | B140: x | C140: x | D140: x | E140: x | F140: x | G140: x | H140: x | I140: x | J140: x | K140: x | L140: x | M140: x | N140: x | O140: x | P140: x | Q140: x | S140: x | T140: x | U140: x | V140: x | W140: x | X140: x | Y140: x | Z140: x | AA140: x | AB140: x | AC140: x | AD140: x | AE140: x | AF140: x | AG140: x | AH140: x | AI140: x | AJ140: x | AK140: x | AL140: x | AM140: x | AN140: x | AO140: x | AP140: x | AQ140: x | AR140: x | AS140: x | AT140: x | AU140: x
A141: x | C141: x | D141: x | E141: x | F141: x | G141: x | H141: x | I141: x | J141: x | K141: x | L141: x | M141: x | N141: x | O141: x | P141: x | Q141: x | S141: x | T141: x | U141: x | V141: x | W141: x | X141: x | Y141: x | Z141: x | AA141: x | AB141: x | AH141: x
A142: x | C142: x | D142: x | E142: x | F142: x | G142: x | H142: x | I142: x | J142: x | K142: x | L142: x | M142: x | N142: x | O142: x | P142: x | Q142: x | S142: x | T142: x | U142: x | V142: x | W142: x | X142: x | Y142: x | Z142: x | AA142: x | AB142: x | AH142: x
A143: x | B143: x | C143: x | D143: x | E143: x | F143: x | G143: x | H143: x | I143: x | J143: x | K143: x | L143: x | M143: x | N143: x | O143: x | P143: x | Q143: x | R143: x | S143: x | T143: x | U143: x | V143: x | W143: x | X143: x | Y143: x | Z143: x | AA143: x | AB143: x | AC143: x | AD143: x | AE143: x | AF143: x | AG143: x | AH143: x | AI143: x | AJ143: x | AK143: x | AL143: x | AM143: x | AN143: x | AO143: x | AP143: x | AQ143: x | AR143: x | AS143: x | AT143: x | AU143: x
A144: x | C144: x | D144: x | E144: x | F144: x | G144: x | H144: x | I144: x | J144: x | K144: x | L144: x | M144: x | N144: x | O144: x | P144: x | Q144: x | R144: x | S144: x | T144: x | U144: x | V144: x | W144: x | X144: x | Y144: x | Z144: x | AA144: x | AB144: x | AF144: x | AG144: x
A145: x | C145: x | D145: x | E145: x | F145: x | G145: x | H145: x | I145: x | J145: x | K145: x | L145: x | M145: x | N145: x | O145: x | P145: x | Q145: x | R145: x | S145: x | T145: x | U145: x | V145: x | W145: x | X145: x | Y145: x | Z145: x | AA145: x | AB145: x | AF145: x | AG145: x
A146: x | C146: x | D146: x | E146: x | F146: x | G146: x | H146: x | I146: x | J146: x | K146: x | L146: x | M146: x | N146: x | O146: x | P146: x | Q146: x | R146: x | S146: x | T146: x | U146: x | V146: x | W146: x | X146: x | Y146: x | Z146: x | AA146: x | AB146: x | AF146: x | AG146: x
A147: x | C147: x | D147: x | E147: x | F147: x | G147: x | H147: x | I147: x | J147: x | K147: x | L147: x | M147: x | N147: x | O147: x | P147: x | Q147: x | R147: x | S147: x | T147: x | U147: x | V147: x | W147: x | X147: x | Y147: x | Z147: x | AA147: x | AB147: x | AF147: x | AG147: x
A148: x | B148: x | C148: x | D148: x | E148: x | F148: x | G148: x | H148: x | I148: x | J148: x | K148: x | L148: x | M148: x | N148: x | O148: x | P148: x | Q148: x | R148: x | S148: x | T148: x | U148: x | V148: x | W148: x | X148: x | Y148: x | Z148: x | AA148: x | AB148: x | AC148: x | AD148: x | AE148: x | AF148: x | AG148: x | AH148: x | AI148: x | AJ148: x | AK148: x | AL148: x | AM148: x | AN148: x | AO148: x | AP148: x | AQ148: x | AR148: x | AS148: x | AT148: x | AU148: x
A149: x | C149: x | D149: x | E149: x | F149: x | G149: x | H149: x | I149: x | J149: x | K149: x | L149: x | M149: x | N149: x | O149: x | P149: x | Q149: x | R149: x | T149: x | U149: x | V149: x | W149: x | X149: x | Y149: x | Z149: x | AA149: x | AB149: x
A150: x | C150: x | D150: x | E150: x | F150: x | G150: x | H150: x | I150: x | J150: x | K150: x | L150: x | M150: x | N150: x | O150: x | P150: x | Q150: x | R150: x | T150: x | U150: x | V150: x | W150: x | X150: x | Y150: x | Z150: x | AA150: x | AB150: x
A151: x | B151: x | C151: x | D151: x | E151: x | F151: x | G151: x | H151: x | I151: x | J151: x | K151: x | L151: x | M151: x | N151: x | O151: x | P151: x | Q151: x | R151: x | S151: x | T151: x | U151: x | V151: x | W151: x | X151: x | Y151: x | Z151: x | AA151: x | AB151: x | AC151: x | AD151: x | AE151: x | AF151: x | AG151: x | AH151: x | AI151: x | AJ151: x | AK151: x | AL151: x | AM151: x | AN151: x | AO151: x | AP151: x | AQ151: x | AR151: x | AS151: x | AT151: x | AU151: x
A152: x | C152: x | D152: x | E152: x | F152: x | G152: x | H152: x | I152: x | J152: x | K152: x | L152: x | M152: x | N152: x | O152: x | P152: x | Q152: x | R152: x | S152: x | T152: x | U152: x | V152: x | W152: x | X152: x | Y152: x | Z152: x | AA152: x | AB152: x
A153: x | C153: x | D153: x | E153: x | F153: x | G153: x | H153: x | I153: x | J153: x | K153: x | L153: x | M153: x | N153: x | O153: x | P153: x | Q153: x | R153: x | S153: x | T153: x | U153: x | V153: x | W153: x | X153: x | Y153: x | Z153: x | AA153: x | AB153: x
A154: x | B154: x | C154: x | D154: x | E154: x | F154: x | G154: x | H154: x | I154: x | J154: x | K154: x | L154: x | M154: x | N154: x | O154: x | P154: x | Q154: x | R154: x | S154: x | T154: x | U154: x | V154: x | W154: x | X154: x | Y154: x | Z154: x | AA154: x | AB154: x | AC154: x | AD154: x | AE154: x | AF154: x | AG154: x | AH154: x | AI154: x | AJ154: x | AK154: x | AL154: x | AM154: x | AN154: x | AO154: x | AP154: x | AQ154: x | AR154: x | AS154: x | AT154: x | AU154: x
A155: x | C155: x | D155: x | E155: x | F155: x | H155: x | I155: x | J155: x | K155: x | L155: x | M155: x | N155: x | O155: x | P155: x | Q155: x | R155: x | S155: x | T155: x | U155: x | V155: x | W155: x | X155: x | Y155: x | Z155: x | AA155: x | AB155: x
A156: x | C156: x | D156: x | E156: x | F156: x | H156: x | I156: x | J156: x | K156: x | L156: x | M156: x | N156: x | O156: x | P156: x | Q156: x | R156: x | S156: x | T156: x | U156: x | V156: x | W156: x | X156: x | Y156: x | Z156: x | AA156: x | AB156: x
A157: x | C157: x | D157: x | E157: x | F157: x | H157: x | I157: x | J157: x | K157: x | L157: x | M157: x | N157: x | O157: x | P157: x | Q157: x | R157: x | S157: x | T157: x | U157: x | V157: x | W157: x | X157: x | Y157: x | Z157: x | AA157: x | AB157: x
A158: x | C158: x | D158: x | E158: x | F158: x | H158: x | I158: x | J158: x | K158: x | L158: x | M158: x | N158: x | O158: x | P158: x | Q158: x | R158: x | S158: x | T158: x | U158: x | V158: x | W158: x | X158: x | Y158: x | Z158: x | AA158: x | AB158: x
A159: x | B159: x | C159: x | D159: x | E159: x | F159: x | G159: x | H159: x | I159: x | J159: x | K159: x | L159: x | M159: x | N159: x | O159: x | P159: x | Q159: x | R159: x | S159: x | T159: x | U159: x | V159: x | W159: x | X159: x | Y159: x | Z159: x | AA159: x | AB159: x | AC159: x | AD159: x | AE159: x | AF159: x | AG159: x | AH159: x | AI159: x | AJ159: x | AK159: x | AL159: x | AM159: x | AN159: x | AO159: x | AP159: x | AQ159: x | AR159: x | AS159: x | AT159: x | AU159: x
A160: x | C160: x | D160: x | E160: x | F160: x | G160: x | H160: x | I160: x | J160: x | K160: x | L160: x | M160: x | N160: x | O160: x | P160: x | Q160: x | R160: x | S160: x | T160: x | U160: x | V160: x | W160: x | X160: x | Y160: x | Z160: x | AA160: x | AB160: x
A161: x | C161: x | D161: x | E161: x | F161: x | G161: x | H161: x | I161: x | J161: x | K161: x | L161: x | M161: x | N161: x | O161: x | P161: x | Q161: x | R161: x | S161: x | T161: x | U161: x | V161: x | W161: x | X161: x | Y161: x | Z161: x | AA161: x | AB161: x
A162: x | C162: x | D162: x | E162: x | F162: x | G162: x | H162: x | I162: x | J162: x | K162: x | L162: x | M162: x | N162: x | O162: x | P162: x | Q162: x | R162: x | S162: x | T162: x | U162: x | V162: x | W162: x | X162: x | Y162: x | Z162: x | AA162: x | AB162: x
A163: x | C163: x | D163: x | E163: x | F163: x | G163: x | H163: x | I163: x | J163: x | K163: x | L163: x | M163: x | N163: x | O163: x | P163: x | Q163: x | R163: x | S163: x | T163: x | U163: x | V163: x | W163: x | X163: x | Y163: x | Z163: x | AA163: x | AB163: x
A164: x | C164: x | D164: x | E164: x | F164: x | G164: x | H164: x | I164: x | J164: x | K164: x | L164: x | M164: x | N164: x | O164: x | P164: x | Q164: x | R164: x | S164: x | T164: x | U164: x | V164: x | W164: x | X164: x | Y164: x | Z164: x | AA164: x | AB164: x
A165: x | C165: x | D165: x | E165: x | F165: x | G165: x | H165: x | I165: x | J165: x | K165: x | L165: x | M165: x | N165: x | O165: x | P165: x | Q165: x | R165: x | S165: x | T165: x | U165: x | V165: x | W165: x | X165: x | Y165: x | Z165: x | AA165: x | AB165: x
A166: x | C166: x | D166: x | E166: x | F166: x | G166: x | H166: x | I166: x | J166: x | K166: x | L166: x | M166: x | N166: x | O166: x | P166: x | Q166: x | R166: x | S166: x | T166: x | U166: x | V166: x | W166: x | X166: x | Y166: x | Z166: x | AA166: x | AB166: x
A167: x | C167: x | D167: x | E167: x | F167: x | G167: x | H167: x | I167: x | J167: x | K167: x | L167: x | M167: x | N167: x | O167: x | P167: x | Q167: x | R167: x | S167: x | T167: x | U167: x | V167: x | W167: x | X167: x | Y167: x | Z167: x | AA167: x | AB167: x
A168: x | B168: x | C168: x | D168: x | E168: x | F168: x | G168: x | H168: x | I168: x | J168: x | K168: x | L168: x | M168: x | N168: x | O168: x | P168: x | Q168: x | R168: x | S168: x | T168: x | U168: x | V168: x | W168: x | X168: x | Y168: x | Z168: x | AA168: x | AB168: x | AC168: x | AD168: x | AE168: x | AF168: x | AG168: x | AH168: x | AI168: x | AJ168: x | AK168: x | AL168: x | AM168: x | AN168: x | AO168: x | AP168: x | AQ168: x | AR168: x | AS168: x | AT168: x | AU168: x
A169: x | B169: x | C169: x | D169: x | E169: x | F169: x | G169: x | H169: x | I169: x | J169: x | K169: x | L169: x | M169: x | N169: x | O169: x | P169: x | Q169: x | R169: x | S169: x | T169: x | U169: x | V169: x | W169: x | X169: x | Y169: x | Z169: x | AA169: x | AB169: x | AC169: x | AD169: x | AE169: x | AF169: x | AG169: x | AH169: x | AI169: x | AJ169: x | AK169: x | AL169: x | AM169: x | AN169: x | AO169: x | AP169: x | AQ169: x | AR169: x | AS169: x | AT169: x | AU169: x
A170: x | C170: x | D170: x | E170: x | F170: x | G170: x | H170: x | I170: x | J170: x | K170: x | L170: x | M170: x | N170: x | O170: x | P170: x | Q170: x | R170: x | S170: x | T170: x | U170: x | V170: x | W170: x | X170: x | Y170: x | Z170: x | AA170: x | AB170: x
A171: x | C171: x | D171: x | E171: x | F171: x | G171: x | H171: x | I171: x | J171: x | K171: x | L171: x | M171: x | N171: x | O171: x | P171: x | Q171: x | R171: x | S171: x | T171: x | U171: x | V171: x | W171: x | X171: x | Y171: x | Z171: x | AA171: x | AB171: x
A172: x | C172: x | D172: x | E172: x | F172: x | G172: x | H172: x | I172: x | J172: x | K172: x | L172: x | M172: x | N172: x | O172: x | P172: x | Q172: x | R172: x | S172: x | T172: x | U172: x | V172: x | W172: x | X172: x | Y172: x | Z172: x | AA172: x | AB172: x
A173: x | C173: x | D173: x | E173: x | F173: x | G173: x | H173: x | I173: x | J173: x | K173: x | L173: x | M173: x | N173: x | O173: x | P173: x | Q173: x | R173: x | S173: x | T173: x | U173: x | V173: x | W173: x | X173: x | Y173: x | Z173: x | AA173: x | AB173: x
A174: x | C174: x | D174: x | E174: x | F174: x | G174: x | H174: x | I174: x | J174: x | K174: x | L174: x | M174: x | N174: x | O174: x | P174: x | Q174: x | R174: x | S174: x | T174: x | U174: x | V174: x | W174: x | X174: x | Y174: x | Z174: x | AA174: x | AB174: x
A175: x | D175: x | E175: x | F175: x | G175: x | H175: x | I175: x | J175: x | K175: x | L175: x | M175: x | N175: x | O175: x | P175: x | Q175: x | R175: x | S175: x | T175: x | U175: x | V175: x | W175: x | X175: x | Y175: x | Z175: x | AA175: x | AB175: x | AD175: x
A176: x | B176: x | C176: x | D176: x | E176: x | F176: x | G176: x | H176: x | I176: x | J176: x | K176: x | L176: x | M176: x | N176: x | O176: x | P176: x | Q176: x | R176: x | S176: x | T176: x | U176: x | V176: x | W176: x | X176: x | Y176: x | Z176: x | AA176: x | AB176: x | AC176: x | AD176: x | AE176: x | AF176: x | AG176: x | AH176: x | AI176: x | AJ176: x | AK176: x | AL176: x | AM176: x | AN176: x | AO176: x | AP176: x | AQ176: x | AR176: x | AS176: x | AT176: x | AU176: x
A177: x | C177: x | D177: x | E177: x | F177: x | G177: x | H177: x | I177: x | J177: x | K177: x | L177: x | M177: x | N177: x | O177: x | P177: x | Q177: x | R177: x | S177: x | T177: x | U177: x | V177: x | W177: x | X177: x | Y177: x | Z177: x | AA177: x | AB177: x
A178: x | C178: x | D178: x | E178: x | F178: x | G178: x | H178: x | I178: x | J178: x | K178: x | L178: x | M178: x | N178: x | O178: x | P178: x | Q178: x | R178: x | S178: x | T178: x | U178: x | V178: x | W178: x | X178: x | Y178: x | Z178: x | AA178: x | AB178: x
A179: x | C179: x | D179: x | E179: x | F179: x | G179: x | H179: x | I179: x | J179: x | K179: x | L179: x | M179: x | N179: x | O179: x | P179: x | Q179: x | R179: x | S179: x | T179: x | U179: x | V179: x | W179: x | X179: x | Y179: x | Z179: x | AA179: x | AB179: x
A180: x | C180: x | D180: x | E180: x | F180: x | G180: x | H180: x | I180: x | J180: x | K180: x | L180: x | M180: x | N180: x | O180: x | P180: x | Q180: x | R180: x | S180: x | T180: x | U180: x | V180: x | W180: x | X180: x | Y180: x | Z180: x | AA180: x | AB180: x
A181: x | C181: x | D181: x | E181: x | F181: x | G181: x | H181: x | I181: x | J181: x | K181: x | L181: x | M181: x | N181: x | O181: x | P181: x | Q181: x | R181: x | S181: x | T181: x | U181: x | V181: x | W181: x | X181: x | Y181: x | Z181: x | AA181: x | AB181: x
A182: x | C182: x | D182: x | E182: x | F182: x | G182: x | H182: x | I182: x | J182: x | K182: x | L182: x | M182: x | N182: x | O182: x | P182: x | Q182: x | R182: x | S182: x | T182: x | U182: x | V182: x | W182: x | X182: x | Y182: x | Z182: x | AA182: x | AB182: x
A183: x | C183: x | D183: x | E183: x | F183: x | G183: x | H183: x | I183: x | J183: x | K183: x | L183: x | M183: x | N183: x | O183: x | P183: x | Q183: x | R183: x | S183: x | T183: x | U183: x | V183: x | W183: x | X183: x | Y183: x | Z183: x | AA183: x | AB183: x
A184: x | C184: x | D184: x | E184: x | F184: x | G184: x | H184: x | I184: x | J184: x | K184: x | L184: x | M184: x | N184: x | O184: x | P184: x | Q184: x | R184: x | S184: x | T184: x | U184: x | V184: x | W184: x | X184: x | Y184: x | Z184: x | AA184: x | AB184: x
A185: x | C185: x | D185: x | E185: x | F185: x | G185: x | H185: x | I185: x | J185: x | K185: x | L185: x | M185: x | N185: x | O185: x | P185: x | Q185: x | R185: x | S185: x | T185: x | U185: x | V185: x | W185: x | X185: x | Y185: x | Z185: x | AA185: x | AB185: x
A186: x | C186: x | D186: x | E186: x | F186: x | G186: x | H186: x | I186: x | J186: x | K186: x | L186: x | M186: x | N186: x | O186: x | P186: x | Q186: x | R186: x | S186: x | T186: x | U186: x | V186: x | W186: x | X186: x | Y186: x | Z186: x | AA186: x | AB186: x
A187: x | B187: x | C187: x | D187: x | E187: x | F187: x | G187: x | H187: x | I187: x | J187: x | K187: x | L187: x | M187: x | N187: x | O187: x | P187: x | Q187: x | R187: x | S187: x | T187: x | U187: x | V187: x | W187: x | X187: x | Y187: x | Z187: x | AA187: x | AB187: x | AC187: x | AD187: x | AE187: x | AF187: x | AG187: x | AH187: x | AI187: x | AJ187: x | AK187: x | AL187: x | AM187: x | AN187: x | AO187: x | AP187: x | AQ187: x | AR187: x | AS187: x | AT187: x | AU187: x
A188: x | C188: x | D188: x | E188: x | F188: x | G188: x | H188: x | I188: x | J188: x | K188: x | L188: x | M188: x | N188: x | O188: x | P188: x | Q188: x | R188: x | S188: x | T188: x | U188: x | V188: x | W188: x | X188: x | Y188: x | Z188: x | AA188: x | AB188: x
A189: x | C189: x | D189: x | E189: x | F189: x | G189: x | H189: x | I189: x | J189: x | K189: x | L189: x | M189: x | N189: x | O189: x | P189: x | Q189: x | R189: x | S189: x | T189: x | U189: x | V189: x | W189: x | X189: x | Y189: x | Z189: x | AA189: x | AB189: x
A190: x | B190: x | C190: x | D190: x | E190: x | F190: x | G190: x | H190: x | I190: x | J190: x | K190: x | L190: x | M190: x | N190: x | O190: x | P190: x | Q190: x | R190: x | S190: x | T190: x | U190: x | V190: x | W190: x | X190: x | Y190: x | Z190: x | AA190: x | AB190: x | AC190: x | AD190: x | AE190: x | AF190: x | AG190: x | AH190: x | AI190: x | AJ190: x | AK190: x | AL190: x | AM190: x | AN190: x | AO190: x | AP190: x | AQ190: x | AR190: x | AS190: x | AT190: x | AU190: x
A191: x | C191: x | D191: x | E191: x | F191: x | G191: x | H191: x | I191: x | J191: x | K191: x | L191: x | M191: x | N191: x | O191: x | P191: x | Q191: x | R191: x | S191: x | T191: x | U191: x | V191: x | W191: x | X191: x | Y191: x | Z191: x | AA191: x | AB191: x | AI191: x
A192: x | C192: x | D192: x | E192: x | F192: x | G192: x | H192: x | I192: x | J192: x | K192: x | L192: x | M192: x | N192: x | O192: x | P192: x | Q192: x | R192: x | S192: x | T192: x | U192: x | V192: x | W192: x | X192: x | Y192: x | Z192: x | AA192: x | AB192: x | AI192: x
A193: x | B193: x | C193: x | D193: x | E193: x | F193: x | G193: x | H193: x | I193: x | J193: x | K193: x | L193: x | M193: x | N193: x | O193: x | P193: x | Q193: x | R193: x | S193: x | T193: x | U193: x | V193: x | W193: x | X193: x | Y193: x | Z193: x | AA193: x | AB193: x | AC193: x | AD193: x | AE193: x | AF193: x | AG193: x | AH193: x | AI193: x | AJ193: x | AK193: x | AL193: x | AM193: x | AN193: x | AO193: x | AP193: x | AQ193: x | AR193: x | AS193: x | AT193: x | AU193: x
A194: x | C194: x | D194: x | E194: x | F194: x | G194: x | H194: x | I194: x | J194: x | K194: x | L194: x | M194: x | N194: x | O194: x | P194: x | Q194: x | R194: x | S194: x | T194: x | U194: x | V194: x | W194: x | X194: x | Y194: x | Z194: x | AA194: x | AB194: x | AI194: x
A195: x | C195: x | D195: x | E195: x | F195: x | G195: x | H195: x | I195: x | J195: x | K195: x | L195: x | M195: x | N195: x | O195: x | P195: x | Q195: x | R195: x | S195: x | T195: x | U195: x | V195: x | W195: x | X195: x | Y195: x | Z195: x | AA195: x | AB195: x | AI195: x
A196: x | C196: x | D196: x | E196: x | F196: x | G196: x | H196: x | I196: x | J196: x | K196: x | L196: x | M196: x | N196: x | O196: x | P196: x | Q196: x | R196: x | S196: x | T196: x | U196: x | V196: x | W196: x | X196: x | Y196: x | Z196: x | AA196: x | AB196: x | AI196: x
A197: x | C197: x | D197: x | E197: x | F197: x | G197: x | H197: x | I197: x | J197: x | K197: x | L197: x | M197: x | N197: x | O197: x | P197: x | Q197: x | R197: x | S197: x | T197: x | U197: x | V197: x | W197: x | X197: x | Y197: x | Z197: x | AA197: x | AB197: x | AI197: x
A198: x | C198: x | D198: x | E198: x | F198: x | G198: x | H198: x | I198: x | J198: x | K198: x | L198: x | M198: x | N198: x | O198: x | P198: x | Q198: x | R198: x | S198: x | T198: x | U198: x | V198: x | W198: x | X198: x | Y198: x | Z198: x | AA198: x | AB198: x | AI198: x
A199: x | D199: x | E199: x | F199: x | G199: x | H199: x | I199: x | J199: x | K199: x | L199: x | M199: x | N199: x | O199: x | P199: x | Q199: x | R199: x | S199: x | T199: x | U199: x | V199: x | W199: x | X199: x | Y199: x | Z199: x | AA199: x | AB199: x | AD199: x | AI199: x
A200: x | B200: x | C200: x | D200: x | E200: x | F200: x | G200: x | H200: x | I200: x | J200: x | K200: x | L200: x | M200: x | N200: x | O200: x | P200: x | Q200: x | R200: x | S200: x | T200: x | U200: x | V200: x | W200: x | X200: x | Y200: x | Z200: x | AA200: x | AB200: x | AC200: x | AD200: x | AE200: x | AF200: x | AG200: x | AH200: x | AI200: x | AJ200: x | AK200: x | AL200: x | AM200: x | AN200: x | AO200: x | AP200: x | AQ200: x | AR200: x | AS200: x | AT200: x | AU200: x
... 445 more rows

Sheet sjekkliste_formelle_matrix (hidden)
A1: F0 | B1: E0 | C1: ="F"&COLUMN(A1) -> F1 | D1: ="F"&COLUMN(B1) -> F2 | E1: F3 | F1: F4 | G1: F5 | H1: F6 | I1: F7 | J1: F8 | K1: F9 | L1: F10 | M1: F9F10 | N1: F11 | O1: F12 | P1: F13 | Q1: F14 | R1: F15 | S1: F16 | T1: F17 | U1: F18 | V1: F19 | W1: F20 | X1: F21 | Y1: F22 | Z1: F23 | AA1: F24 | AB1: F25 | AC1: E1 | AD1: E2 | AE1: E3 | AF1: E4 | AG1: E5 | AH1: E6 | AI1: E7 | AJ1: E8 | AK1: E9 | AL1: E10 | AM1: E11 | AN1: E12 | AO1: E13 | AP1: E14 | AQ1: E15 | AR1: E16 | AS1: E17 | AT1: E18 | AU1: E19
A2: x | B2: x | C2: x | D2: x | E2: x | F2: x | G2: x | H2: x | I2: x | J2: x | K2: x | L2: x | M2: x | N2: x | O2: x | P2: x | Q2: x | R2: x | S2: x | T2: x | U2: x | V2: x | W2: x | X2: x | Y2: x | Z2: x | AA2: x | AB2: x | AC2: x | AD2: x | AE2: x | AF2: x | AG2: x | AH2: x | AI2: x | AJ2: x | AK2: x | AL2: x | AM2: x | AN2: x | AO2: x | AP2: x | AQ2: x | AR2: x | AS2: x | AT2: x | AU2: x
A3: x | B3: x | C3: x | D3: x | E3: x | F3: x | G3: x | H3: x | I3: x | J3: x | K3: x | L3: x | M3: x | N3: x | O3: x | P3: x | Q3: x | R3: x | S3: x | T3: x | U3: x | V3: x | W3: x | X3: x | Y3: x | Z3: x | AA3: x | AB3: x | AC3: x | AD3: x | AE3: x | AF3: x | AG3: x | AH3: x | AI3: x | AJ3: x | AK3: x | AL3: x | AM3: x | AN3: x | AO3: x | AP3: x | AQ3: x | AR3: x | AS3: x | AT3: x | AU3: x
A4: x | B4: x | C4: x | D4: x | E4: x | F4: x | G4: x | H4: x | I4: x | J4: x | K4: x | L4: x | M4: x | N4: x | O4: x | P4: x | Q4: x | R4: x | S4: x | T4: x | U4: x | V4: x | W4: x | X4: x | Y4: x | Z4: x | AA4: x | AB4: x | AC4: x | AD4: x | AE4: x | AF4: x | AG4: x | AH4: x | AI4: x | AJ4: x | AK4: x | AL4: x | AM4: x | AN4: x | AO4: x | AP4: x | AQ4: x | AR4: x | AS4: x | AT4: x | AU4: x
A5: x | B5: x | C5: x | D5: x | E5: x | F5: x | G5: x | H5: x | I5: x | J5: x | K5: x | L5: x | M5: x | N5: x | O5: x | P5: x | Q5: x | R5: x | S5: x | T5: x | U5: x | V5: x | W5: x | X5: x | Y5: x | Z5: x | AA5: x | AB5: x | AC5: x | AD5: x | AE5: x | AF5: x | AG5: x | AH5: x | AI5: x | AJ5: x | AK5: x | AL5: x | AM5: x | AN5: x | AO5: x | AP5: x | AQ5: x | AR5: x | AS5: x | AT5: x | AU5: x
A6: x | B6: x | C6: x | D6: x | E6: x | F6: x | G6: x | H6: x | I6: x | J6: x | K6: x | L6: x | M6: x | N6: x | O6: x | P6: x | Q6: x | R6: x | S6: x | T6: x | U6: x | V6: x | W6: x | X6: x | Y6: x | Z6: x | AA6: x | AB6: x | AC6: x | AD6: x | AE6: x | AF6: x | AG6: x | AH6: x | AI6: x | AJ6: x | AK6: x | AL6: x | AM6: x | AN6: x | AO6: x | AP6: x | AQ6: x | AR6: x | AS6: x | AT6: x | AU6: x
A7: x | B7: x | C7: x | D7: x | E7: x | F7: x | G7: x | H7: x | I7: x | J7: x | K7: x | L7: x | M7: x | N7: x | O7: x | P7: x | Q7: x | R7: x | S7: x | T7: x | U7: x | V7: x | W7: x | X7: x | Y7: x | Z7: x | AA7: x | AB7: x | AC7: x | AD7: x | AE7: x | AF7: x | AG7: x | AH7: x | AI7: x | AJ7: x | AK7: x | AL7: x | AM7: x | AN7: x | AO7: x | AP7: x | AQ7: x | AR7: x | AS7: x | AT7: x | AU7: x
A8: x | C8: x | D8: x | E8: x | F8: x | G8: x | H8: x | I8: x | J8: x | K8: x | L8: x | M8: x | N8: x | O8: x | P8: x | Q8: x | R8: x | S8: x | T8: x | U8: x | V8: x | W8: x | X8: x | Y8: x | Z8: x | AA8: x | AB8: x
A9: x | C9: x | D9: x | E9: x | F9: x | G9: x | H9: x | I9: x | J9: x | K9: x | L9: x | M9: x | N9: x | O9: x | P9: x | Q9: x | R9: x | S9: x | T9: x | U9: x | V9: x | W9: x | X9: x | Y9: x | Z9: x | AA9: x | AB9: x
A10: x | C10: x | D10: x | E10: x | F10: x | G10: x | H10: x | I10: x | J10: x | K10: x | L10: x | M10: x | N10: x | O10: x | P10: x | Q10: x | R10: x | S10: x | T10: x | U10: x | V10: x | W10: x | X10: x | Y10: x | Z10: x | AA10: x | AB10: x
A11: x | C11: x | D11: x | E11: x | F11: x | G11: x | H11: x | I11: x | J11: x | K11: x | L11: x | M11: x | N11: x | O11: x | P11: x | Q11: x | R11: x | S11: x | T11: x | U11: x | V11: x | W11: x | X11: x | Y11: x | Z11: x | AA11: x | AB11: x
A12: x | C12: x | D12: x | E12: x | F12: x | G12: x | H12: x | I12: x | J12: x | K12: x | L12: x | M12: x | N12: x | O12: x | P12: x | Q12: x | R12: x | S12: x | T12: x | U12: x | V12: x | W12: x | X12: x | Y12: x | Z12: x | AA12: x | AB12: x
A13: x | C13: x | D13: x | E13: x | F13: x | G13: x | H13: x | I13: x | J13: x | K13: x | L13: x | M13: x | N13: x | O13: x | P13: x | Q13: x | R13: x | S13: x | T13: x | U13: x | V13: x | W13: x | X13: x | Y13: x | Z13: x | AA13: x | AB13: x
A14: x | C14: x | D14: x | E14: x | F14: x | G14: x | H14: x | I14: x | J14: x | K14: x | L14: x | M14: x | N14: x | O14: x | P14: x | Q14: x | R14: x | S14: x | T14: x | U14: x | V14: x | W14: x | X14: x | Y14: x | Z14: x | AA14: x | AB14: x
A15: x | C15: x | D15: x | E15: x | F15: x | G15: x | H15: x | I15: x | J15: x | K15: x | L15: x | M15: x | N15: x | O15: x | P15: x | Q15: x | R15: x | S15: x | T15: x | U15: x | V15: x | W15: x | X15: x | Y15: x | Z15: x | AA15: x | AB15: x
A16: x | C16: x | D16: x | E16: x | F16: x | G16: x | H16: x | I16: x | J16: x | K16: x | L16: x | M16: x | N16: x | O16: x | P16: x | Q16: x | R16: x | S16: x | T16: x | U16: x | V16: x | W16: x | X16: x | Y16: x | Z16: x | AA16: x | AB16: x
A17: x | C17: x | D17: x | E17: x | F17: x | G17: x | H17: x | I17: x | J17: x | K17: x | L17: x | M17: x | N17: x | O17: x | P17: x | Q17: x | R17: x | S17: x | T17: x | U17: x | V17: x | W17: x | X17: x | Y17: x | Z17: x | AA17: x | AB17: x
A18: x | D18: x | E18: x | F18: x | G18: x | H18: x | I18: x | J18: x | K18: x | L18: x | M18: x | N18: x | O18: x | P18: x | Q18: x | R18: x | S18: x | T18: x | U18: x | V18: x | W18: x | X18: x | Y18: x | Z18: x | AA18: x | AB18: x
A19: x | D19: x | E19: x | F19: x | G19: x | H19: x | I19: x | J19: x | K19: x | L19: x | M19: x | N19: x | O19: x | P19: x | Q19: x | R19: x | S19: x | T19: x | U19: x | V19: x | W19: x | X19: x | Y19: x | Z19: x | AA19: x | AB19: x
A20: x | B20: x | C20: x | D20: x | E20: x | F20: x | G20: x | H20: x | I20: x | J20: x | K20: x | L20: x | M20: x | N20: x | O20: x | P20: x | Q20: x | R20: x | S20: x | T20: x | U20: x | V20: x | W20: x | X20: x | Y20: x | Z20: x | AA20: x | AB20: x | AC20: x | AD20: x | AE20: x | AF20: x | AG20: x | AH20: x | AI20: x | AJ20: x | AK20: x | AL20: x | AM20: x | AN20: x | AO20: x | AP20: x | AQ20: x | AR20: x | AS20: x | AT20: x | AU20: x
A21: x | C21: x | D21: x | E21: x | F21: x | G21: x | H21: x | I21: x | J21: x | K21: x | L21: x | M21: x | N21: x | O21: x | P21: x | Q21: x | R21: x | S21: x | T21: x | U21: x | V21: x | W21: x | X21: x | Y21: x | Z21: x | AA21: x | AB21: x
A22: x | C22: x | D22: x | E22: x | F22: x | G22: x | H22: x | I22: x | J22: x | K22: x | L22: x | M22: x | N22: x | O22: x | P22: x | Q22: x | R22: x | S22: x | T22: x | U22: x | V22: x | W22: x | X22: x | Y22: x | Z22: x | AA22: x | AB22: x
A23: x | C23: x | D23: x | E23: x | F23: x | G23: x | H23: x | I23: x | J23: x | K23: x | L23: x | M23: x | N23: x | O23: x | P23: x | Q23: x | R23: x | S23: x | T23: x | U23: x | V23: x | W23: x | X23: x | Y23: x | Z23: x | AA23: x | AB23: x
A24: x | B24: x | C24: x | D24: x | E24: x | F24: x | G24: x | H24: x | I24: x | J24: x | K24: x | L24: x | M24: x | N24: x | O24: x | P24: x | Q24: x | R24: x | S24: x | T24: x | U24: x | V24: x | W24: x | X24: x | Y24: x | Z24: x | AA24: x | AB24: x | AC24: x | AD24: x | AE24: x | AF24: x | AG24: x | AH24: x | AI24: x | AJ24: x | AK24: x | AL24: x | AM24: x | AN24: x | AO24: x | AP24: x | AQ24: x | AR24: x | AS24: x | AT24: x | AU24: x
A25: x | C25: x | D25: x | E25: x | F25: x | G25: x | H25: x | I25: x | J25: x | K25: x | L25: x | M25: x | N25: x | O25: x | P25: x | Q25: x | R25: x | S25: x | T25: x | U25: x | V25: x | W25: x | X25: x | Y25: x | Z25: x | AA25: x | AB25: x
A26: x | C26: x | D26: x | E26: x | F26: x | G26: x | H26: x | I26: x | J26: x | K26: x | L26: x | M26: x | N26: x | O26: x | P26: x | Q26: x | R26: x | S26: x | T26: x | U26: x | V26: x | W26: x | X26: x | Y26: x | Z26: x | AA26: x | AB26: x
A27: x | C27: x | D27: x | E27: x | F27: x | G27: x | H27: x | I27: x | J27: x | K27: x | L27: x | M27: x | N27: x | O27: x | P27: x | Q27: x | R27: x | S27: x | T27: x | U27: x | V27: x | W27: x | X27: x | Y27: x | Z27: x | AA27: x | AB27: x
A28: x | C28: x | D28: x | E28: x | F28: x | G28: x | H28: x | I28: x | J28: x | K28: x | L28: x | M28: x | N28: x | O28: x | P28: x | Q28: x | R28: x | S28: x | T28: x | U28: x | V28: x | W28: x | X28: x | Y28: x | Z28: x | AA28: x | AB28: x
A29: x | C29: x | D29: x | E29: x | F29: x | G29: x | H29: x | I29: x | J29: x | K29: x | L29: x | M29: x | N29: x | O29: x | P29: x | Q29: x | R29: x | S29: x | T29: x | U29: x | V29: x | W29: x | X29: x | Y29: x | Z29: x | AA29: x | AB29: x
A30: x | B30: x | C30: x | D30: x | E30: x | F30: x | G30: x | H30: x | I30: x | J30: x | K30: x | L30: x | M30: x | N30: x | O30: x | P30: x | Q30: x | R30: x | S30: x | T30: x | U30: x | V30: x | W30: x | X30: x | Y30: x | Z30: x | AA30: x | AB30: x | AC30: x | AD30: x | AE30: x | AF30: x | AG30: x | AH30: x | AI30: x | AJ30: x | AK30: x | AL30: x | AM30: x | AN30: x | AO30: x | AP30: x | AQ30: x | AR30: x | AS30: x | AT30: x | AU30: x
A31: x | C31: x | D31: x | E31: x | F31: x | G31: x | H31: x | I31: x | J31: x | K31: x | L31: x | M31: x | N31: x | O31: x | P31: x | Q31: x | R31: x | S31: x | T31: x | U31: x | V31: x | W31: x | X31: x | Y31: x | Z31: x | AA31: x | AB31: x
A32: x | C32: x | D32: x | E32: x | F32: x | G32: x | H32: x | I32: x | J32: x | K32: x | L32: x | M32: x | N32: x | O32: x | P32: x | Q32: x | R32: x | S32: x | T32: x | U32: x | V32: x | W32: x | X32: x | Y32: x | Z32: x | AA32: x | AB32: x
A33: x | C33: x | D33: x | E33: x | F33: x | G33: x | H33: x | I33: x | J33: x | K33: x | L33: x | M33: x | N33: x | O33: x | P33: x | Q33: x | R33: x | S33: x | T33: x | U33: x | V33: x | W33: x | X33: x | Y33: x | Z33: x | AA33: x | AB33: x
A34: x | C34: x | D34: x | E34: x | F34: x | G34: x | H34: x | I34: x | J34: x | K34: x | L34: x | M34: x | N34: x | O34: x | P34: x | Q34: x | R34: x | S34: x | T34: x | U34: x | V34: x | W34: x | X34: x | Y34: x | Z34: x | AA34: x | AB34: x
A35: x | C35: x | D35: x | E35: x | F35: x | G35: x | H35: x | I35: x | J35: x | K35: x | L35: x | M35: x | N35: x | O35: x | P35: x | Q35: x | R35: x | S35: x | T35: x | U35: x | V35: x | W35: x | X35: x | Y35: x | Z35: x | AA35: x | AB35: x
A36: x | C36: x | D36: x | E36: x | F36: x | G36: x | H36: x | I36: x | J36: x | K36: x | L36: x | M36: x | N36: x | O36: x | P36: x | Q36: x | R36: x | S36: x | T36: x | U36: x | V36: x | W36: x | X36: x | Y36: x | Z36: x | AA36: x | AB36: x
A37: x | C37: x | D37: x | E37: x | F37: x | G37: x | H37: x | I37: x | J37: x | K37: x | L37: x | M37: x | N37: x | O37: x | P37: x | Q37: x | R37: x | S37: x | T37: x | U37: x | V37: x | W37: x | X37: x | Y37: x | Z37: x | AA37: x | AB37: x
A38: x | C38: x | D38: x | E38: x | F38: x | G38: x | H38: x | I38: x | J38: x | K38: x | L38: x | M38: x | N38: x | O38: x | P38: x | Q38: x | R38: x | S38: x | T38: x | U38: x | V38: x | W38: x | X38: x | Y38: x | Z38: x | AA38: x | AB38: x
A39: x | B39: x | C39: x | D39: x | E39: x | F39: x | G39: x | H39: x | I39: x | J39: x | K39: x | L39: x | M39: x | N39: x | O39: x | P39: x | Q39: x | R39: x | S39: x | T39: x | U39: x | V39: x | W39: x | X39: x | Y39: x | Z39: x | AA39: x | AB39: x | AC39: x | AD39: x | AE39: x | AF39: x | AG39: x | AH39: x | AI39: x | AJ39: x | AK39: x | AL39: x | AM39: x | AN39: x | AO39: x | AP39: x | AQ39: x | AR39: x | AS39: x | AT39: x | AU39: x
A40: x | C40: x | D40: x | E40: x | F40: x | G40: x | H40: x | I40: x | J40: x | K40: x | L40: x | M40: x | N40: x | O40: x | P40: x | Q40: x | R40: x | S40: x | T40: x | U40: x | V40: x | W40: x | X40: x | Y40: x | Z40: x | AA40: x | AB40: x
A41: x | C41: x | D41: x | E41: x | F41: x | G41: x | H41: x | I41: x | J41: x | K41: x | L41: x | M41: x | N41: x | O41: x | P41: x | Q41: x | R41: x | S41: x | T41: x | U41: x | V41: x | W41: x | X41: x | Y41: x | Z41: x | AA41: x | AB41: x
A42: x | C42: x | D42: x | E42: x | F42: x | G42: x | H42: x | I42: x | J42: x | K42: x | L42: x | M42: x | N42: x | O42: x | P42: x | Q42: x | R42: x | S42: x | T42: x | U42: x | V42: x | W42: x | X42: x | Y42: x | Z42: x | AA42: x | AB42: x
A43: x | B43: x | C43: x | D43: x | E43: x | F43: x | G43: x | H43: x | I43: x | J43: x | K43: x | L43: x | M43: x | N43: x | O43: x | P43: x | Q43: x | R43: x | S43: x | T43: x | U43: x | V43: x | W43: x | X43: x | Y43: x | Z43: x | AA43: x | AB43: x | AC43: x | AD43: x | AE43: x | AF43: x | AG43: x | AH43: x | AI43: x | AJ43: x | AK43: x | AL43: x | AM43: x | AN43: x | AO43: x | AP43: x | AQ43: x | AR43: x | AS43: x | AT43: x | AU43: x
A44: x | C44: x | D44: x | E44: x | F44: x | G44: x | H44: x | I44: x | J44: x | K44: x | L44: x | M44: x | N44: x | O44: x | P44: x | Q44: x | R44: x | S44: x | T44: x | U44: x | V44: x | W44: x | X44: x | Y44: x | Z44: x | AA44: x | AB44: x
A45: x | C45: x | D45: x | E45: x | F45: x | G45: x | H45: x | I45: x | J45: x | K45: x | L45: x | M45: x | N45: x | O45: x | P45: x | Q45: x | R45: x | S45: x | T45: x | U45: x | V45: x | W45: x | X45: x | Y45: x | Z45: x | AA45: x | AB45: x
A46: x | C46: x | D46: x | E46: x | F46: x | G46: x | H46: x | I46: x | J46: x | K46: x | L46: x | M46: x | N46: x | O46: x | P46: x | Q46: x | R46: x | S46: x | T46: x | U46: x | V46: x | W46: x | X46: x | Y46: x | Z46: x | AA46: x | AB46: x
A47: x | C47: x | D47: x | E47: x | F47: x | G47: x | H47: x | I47: x | J47: x | K47: x | L47: x | M47: x | N47: x | O47: x | P47: x | Q47: x | R47: x | S47: x | T47: x | U47: x | V47: x | W47: x | X47: x | Y47: x | Z47: x | AA47: x | AB47: x
A48: x | B48: x | C48: x | D48: x | E48: x | F48: x | G48: x | H48: x | I48: x | J48: x | K48: x | L48: x | M48: x | N48: x | O48: x | P48: x | Q48: x | R48: x | S48: x | T48: x | U48: x | V48: x | W48: x | X48: x | Y48: x | Z48: x | AA48: x | AB48: x | AC48: x | AD48: x | AE48: x | AF48: x | AG48: x | AH48: x | AI48: x | AJ48: x | AK48: x | AL48: x | AM48: x | AN48: x | AO48: x | AP48: x | AQ48: x | AR48: x | AS48: x | AT48: x | AU48: x
A49: x | C49: x | D49: x | E49: x | F49: x | G49: x | H49: x | I49: x | J49: x | K49: x | L49: x | M49: x | N49: x | O49: x | P49: x | Q49: x | R49: x | S49: x | T49: x | U49: x | V49: x | W49: x | X49: x | Y49: x | Z49: x | AA49: x | AB49: x
A50: x | C50: x | D50: x | E50: x | F50: x | G50: x | H50: x | I50: x | J50: x | K50: x | L50: x | M50: x | N50: x | O50: x | P50: x | Q50: x | R50: x | S50: x | T50: x | U50: x | V50: x | W50: x | X50: x | Y50: x | Z50: x | AA50: x | AB50: x
A51: x | C51: x | D51: x | E51: x | F51: x | G51: x | H51: x | I51: x | J51: x | K51: x | L51: x | M51: x | N51: x | O51: x | P51: x | Q51: x | R51: x | S51: x | T51: x | U51: x | V51: x | W51: x | X51: x | Y51: x | Z51: x | AA51: x | AB51: x
A52: x | C52: x | D52: x | E52: x | F52: x | G52: x | H52: x | I52: x | J52: x | K52: x | L52: x | M52: x | N52: x | O52: x | P52: x | Q52: x | R52: x | S52: x | T52: x | U52: x | V52: x | W52: x | X52: x | Y52: x | Z52: x | AA52: x | AB52: x
A53: x | C53: x | D53: x | E53: x | F53: x | G53: x | H53: x | I53: x | J53: x | K53: x | L53: x | M53: x | N53: x | O53: x | P53: x | Q53: x | R53: x | S53: x | T53: x | U53: x | V53: x | W53: x | X53: x | Y53: x | Z53: x | AA53: x | AB53: x
A54: x | B54: x | C54: x | D54: x | E54: x | F54: x | G54: x | H54: x | I54: x | J54: x | K54: x | L54: x | M54: x | N54: x | O54: x | P54: x | Q54: x | R54: x | S54: x | T54: x | U54: x | V54: x | W54: x | X54: x | Y54: x | Z54: x | AA54: x | AB54: x | AC54: x | AD54: x | AE54: x | AF54: x | AG54: x | AH54: x | AI54: x | AJ54: x | AK54: x | AL54: x | AM54: x | AN54: x | AO54: x | AP54: x | AQ54: x | AR54: x | AS54: x | AT54: x | AU54: x
A55: x | C55: x | D55: x | E55: x | F55: x | G55: x | H55: x | I55: x | J55: x | K55: x | L55: x | M55: x | N55: x | O55: x | P55: x | Q55: x | R55: x | S55: x | T55: x | U55: x | V55: x | W55: x | X55: x | Y55: x | Z55: x | AA55: x | AB55: x
A56: x | C56: x | D56: x | E56: x | F56: x | G56: x | H56: x | I56: x | J56: x | K56: x | L56: x | M56: x | N56: x | O56: x | P56: x | Q56: x | R56: x | S56: x | T56: x | U56: x | V56: x | W56: x | X56: x | Y56: x | Z56: x | AA56: x | AB56: x
A57: x | C57: x | D57: x | E57: x | F57: x | G57: x | H57: x | I57: x | J57: x | K57: x | L57: x | M57: x | N57: x | O57: x | P57: x | Q57: x | R57: x | S57: x | T57: x | U57: x | V57: x | W57: x | X57: x | Y57: x | Z57: x | AA57: x | AB57: x
A58: x | C58: x | D58: x | E58: x | F58: x | G58: x | H58: x | I58: x | J58: x | K58: x | L58: x | M58: x | N58: x | O58: x | P58: x | Q58: x | R58: x | S58: x | T58: x | U58: x | V58: x | W58: x | X58: x | Y58: x | Z58: x | AA58: x | AB58: x
A59: x | C59: x | D59: x | E59: x | F59: x | G59: x | H59: x | I59: x | J59: x | K59: x | L59: x | M59: x | N59: x | O59: x | P59: x | Q59: x | R59: x | S59: x | T59: x | U59: x | V59: x | W59: x | X59: x | Y59: x | Z59: x | AA59: x | AB59: x
A60: x | B60: x | C60: x | D60: x | E60: x | F60: x | G60: x | H60: x | I60: x | J60: x | K60: x | L60: x | M60: x | N60: x | O60: x | P60: x | Q60: x | R60: x | S60: x | T60: x | U60: x | V60: x | W60: x | X60: x | Y60: x | Z60: x | AA60: x | AB60: x | AC60: x | AD60: x | AE60: x | AF60: x | AG60: x | AH60: x | AI60: x | AJ60: x | AK60: x | AL60: x | AM60: x | AN60: x | AO60: x | AP60: x | AQ60: x | AR60: x | AS60: x | AT60: x | AU60: x
A61: x | C61: x | D61: x | E61: x | F61: x | G61: x | H61: x | J61: x | K61: x | L61: x | M61: x | N61: x | O61: x | P61: x | Q61: x | R61: x | S61: x | T61: x | U61: x | V61: x | W61: x | X61: x | Y61: x | Z61: x | AA61: x | AB61: x
A62: x | C62: x | D62: x | E62: x | F62: x | G62: x | H62: x | J62: x | K62: x | L62: x | M62: x | N62: x | O62: x | P62: x | Q62: x | R62: x | S62: x | T62: x | U62: x | V62: x | W62: x | X62: x | Y62: x | Z62: x | AA62: x | AB62: x
A63: x | C63: x | D63: x | E63: x | F63: x | G63: x | H63: x | J63: x | K63: x | L63: x | M63: x | N63: x | O63: x | P63: x | Q63: x | R63: x | S63: x | T63: x | U63: x | V63: x | W63: x | X63: x | Y63: x | Z63: x | AA63: x | AB63: x
A64: x | C64: x | D64: x | E64: x | F64: x | G64: x | H64: x | J64: x | K64: x | L64: x | M64: x | N64: x | O64: x | P64: x | Q64: x | R64: x | S64: x | T64: x | U64: x | V64: x | W64: x | X64: x | Y64: x | Z64: x | AA64: x | AB64: x
A65: x | C65: x | D65: x | E65: x | F65: x | G65: x | H65: x | J65: x | K65: x | L65: x | M65: x | N65: x | O65: x | P65: x | Q65: x | R65: x | S65: x | T65: x | U65: x | V65: x | W65: x | X65: x | Y65: x | Z65: x | AA65: x | AB65: x
A66: x | C66: x | D66: x | E66: x | F66: x | G66: x | H66: x | J66: x | K66: x | L66: x | M66: x | N66: x | O66: x | P66: x | Q66: x | R66: x | S66: x | T66: x | U66: x | V66: x | W66: x | X66: x | Y66: x | Z66: x | AA66: x | AB66: x
A67: x | C67: x | D67: x | E67: x | F67: x | G67: x | H67: x | J67: x | K67: x | L67: x | M67: x | N67: x | O67: x | P67: x | Q67: x | R67: x | S67: x | T67: x | U67: x | V67: x | W67: x | X67: x | Y67: x | Z67: x | AA67: x | AB67: x
A68: x | C68: x | D68: x | E68: x | F68: x | G68: x | H68: x | J68: x | K68: x | L68: x | M68: x | N68: x | O68: x | P68: x | Q68: x | R68: x | S68: x | T68: x | U68: x | V68: x | W68: x | X68: x | Y68: x | Z68: x | AA68: x | AB68: x
A69: x | C69: x | D69: x | E69: x | F69: x | G69: x | H69: x | J69: x | K69: x | L69: x | M69: x | N69: x | O69: x | P69: x | Q69: x | R69: x | S69: x | T69: x | U69: x | V69: x | W69: x | X69: x | Y69: x | Z69: x | AA69: x | AB69: x
A70: x | C70: x | D70: x | E70: x | F70: x | G70: x | H70: x | J70: x | K70: x | L70: x | M70: x | N70: x | O70: x | P70: x | Q70: x | R70: x | S70: x | T70: x | U70: x | V70: x | W70: x | X70: x | Y70: x | Z70: x | AA70: x | AB70: x
A71: x | C71: x | D71: x | E71: x | F71: x | G71: x | H71: x | J71: x | K71: x | L71: x | M71: x | N71: x | O71: x | P71: x | Q71: x | R71: x | S71: x | T71: x | U71: x | V71: x | W71: x | X71: x | Y71: x | Z71: x | AA71: x | AB71: x
A72: x | C72: x | D72: x | E72: x | F72: x | G72: x | H72: x | J72: x | K72: x | L72: x | M72: x | N72: x | O72: x | P72: x | Q72: x | R72: x | S72: x | T72: x | U72: x | V72: x | W72: x | X72: x | Y72: x | Z72: x | AA72: x | AB72: x
A73: x | C73: x | D73: x | E73: x | F73: x | G73: x | H73: x | J73: x | K73: x | L73: x | M73: x | N73: x | O73: x | P73: x | Q73: x | R73: x | S73: x | T73: x | U73: x | V73: x | W73: x | X73: x | Y73: x | Z73: x | AA73: x | AB73: x
A74: x | C74: x | D74: x | E74: x | F74: x | G74: x | H74: x | J74: x | K74: x | L74: x | M74: x | N74: x | O74: x | P74: x | Q74: x | R74: x | S74: x | T74: x | U74: x | V74: x | W74: x | X74: x | Y74: x | Z74: x | AA74: x | AB74: x
A75: x | C75: x | D75: x | E75: x | F75: x | G75: x | H75: x | J75: x | K75: x | L75: x | M75: x | N75: x | O75: x | P75: x | Q75: x | R75: x | S75: x | T75: x | U75: x | V75: x | W75: x | X75: x | Y75: x | Z75: x | AA75: x | AB75: x
A76: x | C76: x | D76: x | E76: x | F76: x | G76: x | H76: x | J76: x | K76: x | L76: x | M76: x | N76: x | O76: x | P76: x | Q76: x | R76: x | S76: x | T76: x | U76: x | V76: x | W76: x | X76: x | Y76: x | Z76: x | AA76: x | AB76: x
A77: x | B77: x | C77: x | D77: x | E77: x | F77: x | G77: x | H77: x | I77: x | J77: x | K77: x | L77: x | M77: x | N77: x | O77: x | P77: x | Q77: x | R77: x | S77: x | T77: x | U77: x | V77: x | W77: x | X77: x | Y77: x | Z77: x | AA77: x | AB77: x | AC77: x | AD77: x | AE77: x | AF77: x | AG77: x | AH77: x | AI77: x | AJ77: x | AK77: x | AL77: x | AM77: x | AN77: x | AO77: x | AP77: x | AQ77: x | AR77: x | AS77: x | AT77: x | AU77: x
A78: x | C78: x | D78: x | E78: x | F78: x | G78: x | H78: x | I78: x | J78: x | K78: x | L78: x | M78: x | N78: x | O78: x | P78: x | Q78: x | R78: x | S78: x | T78: x | U78: x | W78: x | X78: x | Y78: x | Z78: x | AA78: x | AB78: x | AO78: x
A79: x | C79: x | D79: x | E79: x | F79: x | G79: x | H79: x | I79: x | J79: x | K79: x | L79: x | M79: x | N79: x | O79: x | P79: x | Q79: x | R79: x | S79: x | T79: x | U79: x | W79: x | X79: x | Y79: x | Z79: x | AA79: x | AB79: x | AO79: x
A80: x | B80: x | C80: x | D80: x | E80: x | F80: x | G80: x | H80: x | I80: x | J80: x | K80: x | L80: x | M80: x | N80: x | O80: x | P80: x | Q80: x | R80: x | S80: x | T80: x | U80: x | V80: x | W80: x | X80: x | Y80: x | Z80: x | AA80: x | AB80: x | AC80: x | AD80: x | AE80: x | AF80: x | AG80: x | AH80: x | AI80: x | AJ80: x | AK80: x | AL80: x | AM80: x | AN80: x | AO80: x | AP80: x | AQ80: x | AR80: x | AS80: x | AT80: x | AU80: x
A81: x | C81: x | D81: x | E81: x | F81: x | G81: x | H81: x | I81: x | J81: x | K81: x | L81: x | M81: x | N81: x | O81: x | P81: x | Q81: x | R81: x | S81: x | T81: x | U81: x | V81: x | X81: x | Y81: x | Z81: x | AA81: x | AB81: x | AP81: x
A82: x | B82: x | C82: x | D82: x | E82: x | F82: x | G82: x | H82: x | I82: x | J82: x | K82: x | L82: x | M82: x | N82: x | O82: x | P82: x | Q82: x | R82: x | S82: x | T82: x | U82: x | V82: x | W82: x | X82: x | Y82: x | Z82: x | AA82: x | AB82: x | AC82: x | AD82: x | AE82: x | AF82: x | AG82: x | AH82: x | AI82: x | AJ82: x | AK82: x | AL82: x | AM82: x | AN82: x | AO82: x | AP82: x | AQ82: x | AR82: x | AS82: x | AT82: x | AU82: x
A83: x | C83: x | D83: x | E83: x | F83: x | G83: x | H83: x | I83: x | J83: x | K83: x | L83: x | M83: x | N83: x | O83: x | P83: x | Q83: x | R83: x | S83: x | T83: x | U83: x | V83: x | W83: x | Y83: x | Z83: x | AA83: x | AB83: x | AQ83: x
A84: x | B84: x | C84: x | D84: x | E84: x | F84: x | G84: x | H84: x | I84: x | J84: x | K84: x | L84: x | M84: x | N84: x | O84: x | P84: x | Q84: x | R84: x | S84: x | T84: x | U84: x | V84: x | W84: x | X84: x | Y84: x | Z84: x | AA84: x | AB84: x | AC84: x | AD84: x | AE84: x | AF84: x | AG84: x | AH84: x | AI84: x | AJ84: x | AK84: x | AL84: x | AM84: x | AN84: x | AO84: x | AP84: x | AQ84: x | AR84: x | AS84: x | AT84: x | AU84: x
A85: x | C85: x | D85: x | E85: x | F85: x | G85: x | H85: x | I85: x | J85: x | K85: x | L85: x | M85: x | N85: x | O85: x | P85: x | Q85: x | R85: x | S85: x | T85: x | U85: x | V85: x | W85: x | X85: x | Z85: x | AA85: x | AB85: x | AR85: x
A86: x | B86: x | C86: x | D86: x | E86: x | F86: x | G86: x | H86: x | I86: x | J86: x | K86: x | L86: x | M86: x | N86: x | O86: x | P86: x | Q86: x | R86: x | S86: x | T86: x | U86: x | V86: x | W86: x | X86: x | Y86: x | Z86: x | AA86: x | AB86: x | AC86: x | AD86: x | AE86: x | AF86: x | AG86: x | AH86: x | AI86: x | AJ86: x | AK86: x | AL86: x | AM86: x | AN86: x | AO86: x | AP86: x | AQ86: x | AR86: x | AS86: x | AT86: x | AU86: x
A87: x | C87: x | D87: x | E87: x | F87: x | G87: x | H87: x | I87: x | J87: x | K87: x | L87: x | M87: x | N87: x | O87: x | P87: x | Q87: x | R87: x | S87: x | T87: x | U87: x | V87: x | W87: x | X87: x | Y87: x | AA87: x | AB87: x | AS87: x
A88: x | C88: x | D88: x | E88: x | F88: x | G88: x | H88: x | I88: x | J88: x | K88: x | L88: x | M88: x | N88: x | O88: x | P88: x | Q88: x | R88: x | S88: x | T88: x | U88: x | V88: x | W88: x | X88: x | Y88: x | AA88: x | AB88: x | AS88: x
A89: x | C89: x | D89: x | E89: x | F89: x | G89: x | H89: x | I89: x | J89: x | K89: x | L89: x | M89: x | N89: x | O89: x | P89: x | Q89: x | R89: x | S89: x | T89: x | U89: x | V89: x | W89: x | X89: x | Y89: x | AA89: x | AB89: x | AS89: x
A90: x | C90: x | D90: x | E90: x | F90: x | G90: x | H90: x | I90: x | J90: x | K90: x | L90: x | M90: x | N90: x | O90: x | P90: x | Q90: x | R90: x | S90: x | T90: x | U90: x | V90: x | W90: x | X90: x | Y90: x | AA90: x | AB90: x | AS90: x
A91: x | C91: x | D91: x | E91: x | F91: x | G91: x | H91: x | I91: x | J91: x | K91: x | L91: x | M91: x | N91: x | O91: x | P91: x | Q91: x | R91: x | S91: x | T91: x | U91: x | V91: x | W91: x | X91: x | Y91: x | AA91: x | AB91: x | AS91: x
A92: x | B92: x | C92: x | D92: x | E92: x | F92: x | G92: x | H92: x | I92: x | J92: x | K92: x | L92: x | M92: x | N92: x | O92: x | P92: x | Q92: x | R92: x | S92: x | T92: x | U92: x | V92: x | W92: x | X92: x | Y92: x | Z92: x | AA92: x | AB92: x | AC92: x | AD92: x | AE92: x | AF92: x | AG92: x | AH92: x | AI92: x | AJ92: x | AK92: x | AL92: x | AM92: x | AN92: x | AO92: x | AP92: x | AQ92: x | AR92: x | AS92: x | AT92: x | AU92: x
A93: x | C93: x | D93: x | E93: x | F93: x | G93: x | H93: x | I93: x | J93: x | K93: x | L93: x | M93: x | N93: x | O93: x | P93: x | Q93: x | R93: x | S93: x | T93: x | U93: x | V93: x | W93: x | X93: x | Y93: x | Z93: x | AB93: x | AT93: x
A94: x | C94: x | D94: x | E94: x | F94: x | G94: x | H94: x | I94: x | J94: x | K94: x | L94: x | M94: x | N94: x | O94: x | P94: x | Q94: x | R94: x | S94: x | T94: x | U94: x | V94: x | W94: x | X94: x | Y94: x | Z94: x | AB94: x | AT94: x
A95: x | C95: x | D95: x | E95: x | F95: x | G95: x | H95: x | I95: x | J95: x | K95: x | L95: x | M95: x | N95: x | O95: x | P95: x | Q95: x | R95: x | S95: x | T95: x | U95: x | V95: x | W95: x | X95: x | Y95: x | Z95: x | AB95: x | AT95: x
A96: x | C96: x | D96: x | E96: x | F96: x | G96: x | H96: x | I96: x | J96: x | K96: x | L96: x | M96: x | N96: x | O96: x | P96: x | Q96: x | R96: x | S96: x | T96: x | U96: x | V96: x | W96: x | X96: x | Y96: x | Z96: x | AB96: x | AT96: x
A97: x | C97: x | D97: x | E97: x | F97: x | G97: x | H97: x | I97: x | J97: x | K97: x | L97: x | M97: x | N97: x | O97: x | P97: x | Q97: x | R97: x | S97: x | T97: x | U97: x | V97: x | W97: x | X97: x | Y97: x | Z97: x | AB97: x | AT97: x
A98: x | C98: x | D98: x | E98: x | F98: x | G98: x | H98: x | I98: x | J98: x | K98: x | L98: x | M98: x | N98: x | O98: x | P98: x | Q98: x | R98: x | S98: x | T98: x | U98: x | V98: x | W98: x | X98: x | Y98: x | Z98: x | AB98: x | AT98: x
A99: x | C99: x | D99: x | E99: x | F99: x | G99: x | H99: x | I99: x | J99: x | K99: x | L99: x | M99: x | N99: x | O99: x | P99: x | Q99: x | R99: x | S99: x | T99: x | U99: x | V99: x | W99: x | X99: x | Y99: x | Z99: x | AB99: x | AT99: x
A100: x | C100: x | D100: x | E100: x | F100: x | G100: x | H100: x | I100: x | J100: x | K100: x | L100: x | M100: x | N100: x | O100: x | P100: x | Q100: x | R100: x | S100: x | T100: x | U100: x | V100: x | W100: x | X100: x | Y100: x | Z100: x | AB100: x | AT100: x
A101: x | C101: x | D101: x | E101: x | F101: x | G101: x | H101: x | I101: x | J101: x | K101: x | L101: x | M101: x | N101: x | O101: x | P101: x | Q101: x | R101: x | S101: x | T101: x | U101: x | V101: x | W101: x | X101: x | Y101: x | Z101: x | AB101: x | AT101: x
A102: x | B102: x | C102: x | D102: x | E102: x | F102: x | G102: x | H102: x | I102: x | J102: x | K102: x | L102: x | M102: x | N102: x | O102: x | P102: x | Q102: x | R102: x | S102: x | T102: x | U102: x | V102: x | W102: x | X102: x | Y102: x | Z102: x | AA102: x | AB102: x | AC102: x | AD102: x | AE102: x | AF102: x | AG102: x | AH102: x | AI102: x | AJ102: x | AK102: x | AL102: x | AM102: x | AN102: x | AO102: x | AP102: x | AQ102: x | AR102: x | AS102: x | AT102: x | AU102: x
A103: x | C103: x | D103: x | E103: x | F103: x | G103: x | H103: x | I103: x | J103: x | K103: x | L103: x | M103: x | N103: x | O103: x | P103: x | Q103: x | R103: x | S103: x | T103: x | U103: x | V103: x | W103: x | X103: x | Y103: x | Z103: x | AA103: x | AU103: x
A104: x | C104: x | D104: x | E104: x | F104: x | G104: x | H104: x | I104: x | J104: x | K104: x | L104: x | M104: x | N104: x | O104: x | P104: x | Q104: x | R104: x | S104: x | T104: x | U104: x | V104: x | W104: x | X104: x | Y104: x | Z104: x | AA104: x | AU104: x
A105: x | C105: x | D105: x | E105: x | F105: x | G105: x | H105: x | I105: x | J105: x | K105: x | L105: x | M105: x | N105: x | O105: x | P105: x | Q105: x | R105: x | S105: x | T105: x | U105: x | V105: x | W105: x | X105: x | Y105: x | Z105: x | AA105: x | AU105: x
A106: x | C106: x | D106: x | E106: x | F106: x | G106: x | H106: x | I106: x | J106: x | K106: x | L106: x | M106: x | N106: x | O106: x | P106: x | Q106: x | R106: x | S106: x | T106: x | U106: x | V106: x | W106: x | X106: x | Y106: x | Z106: x | AA106: x | AU106: x
A107: x | C107: x | D107: x | E107: x | F107: x | G107: x | H107: x | I107: x | J107: x | K107: x | L107: x | M107: x | N107: x | O107: x | P107: x | Q107: x | R107: x | S107: x | T107: x | U107: x | V107: x | W107: x | X107: x | Y107: x | Z107: x | AA107: x | AU107: x
A108: x | C108: x | D108: x | E108: x | F108: x | G108: x | H108: x | I108: x | J108: x | K108: x | L108: x | M108: x | N108: x | O108: x | P108: x | Q108: x | R108: x | S108: x | T108: x | U108: x | V108: x | W108: x | X108: x | Y108: x | Z108: x | AA108: x | AU108: x
A109: x | C109: x | D109: x | E109: x | F109: x | G109: x | H109: x | I109: x | J109: x | K109: x | L109: x | M109: x | N109: x | O109: x | P109: x | Q109: x | R109: x | S109: x | T109: x | U109: x | V109: x | W109: x | X109: x | Y109: x | Z109: x | AA109: x | AU109: x
A110: x | C110: x | D110: x | E110: x | F110: x | G110: x | H110: x | I110: x | J110: x | K110: x | L110: x | M110: x | N110: x | O110: x | P110: x | Q110: x | R110: x | S110: x | T110: x | U110: x | V110: x | W110: x | X110: x | Y110: x | Z110: x | AA110: x | AU110: x

Sheet meta_data (hidden)
A1: Key | B1: Beskrivelse | C1: trigger_code | D1: Indicates wether the algo shall loop through the matrix on releated column
A2: F0 | B2: Full | C2: FALSE | E2: trigger code har jeg ikke kontroll på her, på key får jeg heller ikke til koden, så har bare lagt det inn manuelt
A3: E0 | B3: Endring | C3: TRUE
A4: F1 | B4: stort foretak | C4: TRUE
A5: F2 | B5: Har selskapet ansatte | C5: TRUE
A6: F3 | B6: ytelsespensjon | C6: FALSE
A7: F4 | B7: FOU | C7: FALSE
A8: F5 | B8: langs. Tilvirkningskontrakter | C8: FALSE
A9: F6 | B9: Datterselskap | C9: FALSE
A10: F7 | B10: Konsernregnskap | C10: FALSE
A11: F8 | B11: Restrukturering nei | C11: FALSE
A12: F9 | B12: Fusjon | C12: TRUE
A13: F10 | B13: Fisjon | C13: TRUE
A14: F9F10 | B14: Fusjon og fisjon | C14: TRUE
A15: F11 | B15: Samvirkeforetak | C15: FALSE
A16: F12 | B16: Goodwill | C16: FALSE
A17: F13 | B17: Datter | C17: FALSE
A18: F14 | B18: TS | C18: FALSE
A19: F15 | B19: FKV | C19: FALSE
A20: F16 | B20: Andre aksjer | C20: FALSE
A21: F17 | B21: Utvinner | C21: FALSE
A22: F18 | B22: Rederi | C22: FALSE
A23: F19 | B23: Borettslag | C23: FALSE
A24: F20 | B24: Betalingsforetak | C24: FALSE
A25: F21 | B25: E-pengeforetak | C25: FALSE
A26: F22 | B26: Eiendomsmegler | C26: FALSE
A27: F23 | B27: Inkassovirksomhet | C27: FALSE
A28: F24 | B28: Verdipapirforetak | C28: FALSE
A29: F25 | B29: Verdipapirfond | C29: FALSE
A30: E1 | B30: Policy | C30: TRUE
A31: E2 | B31: stort foretak | C31: FALSE
A32: E3 | B32: Driftsmidler | C32: FALSE
A33: E4 | B33: Datter | C33: FALSE
A34: E5 | B34: TS | C34: FALSE
A35: E6 | B35: FKV | C35: FALSE
A36: E7 | B36: Fordring mm | C36: FALSE
A37: E8 | B37: Pensjon | C37: FALSE
A38: E9 | B38: Ytelser | C38: FALSE
A39: E10 | B39: Regnskaprinsipper | C39: FALSE
A40: E11 | B40: Utvinner | C40: FALSE
A41: E12 | B41: Rederi | C41: FALSE
A42: E13 | B42: Borettslag | C42: FALSE
A43: E14 | B43: Betalingsforetak | C43: FALSE
A44: E15 | B44: E-pengeforetak | C44: FALSE
A45: E16 | B45: Eiendomsmegler | C45: FALSE
A46: E17 | B46: Inkassovirksomhet | C46: FALSE
A47: E18 | B47: Verdipapirforetak | C47: FALSE
A48: E19 | B48: Verdipapirfond | C48: FALSE

Sheet Sjekkliste noter
A1: Noteopplysninger - store og øvrige foretak | D1: Utfylt:
A2: Klient: | D2: Review: | J2: Ikke besvart: | K2: =+Forside!B9 -> 1
A3: År: | B3: =+Forside!B3 -> 2021 | J3: Ja-svar: | K3: =+Forside!C9 -> 0
A4: Enkelte selskaper har tilleggskrav ihht regnskapsloven eller forskrifter til regnskapsloven, disse fremgår nederst i denne sjekklisten. Vær oppmerksom på at denne sjekklisten ikke skal brukes på pensjonsforetak, bank og forsikring, det er utarbeidet separate sjekklister for disse bransjene. | J4: Nei-svar: | K4: =+Forside!D9 -> 0
J5: IA-svar: | K5: =+Forside!E9 -> 432
B6: Spørsmål | C6: Ref. | D6: Ekskludering: | E6: Ja | F6: Nei | G6: I/A | H6: Kommentar | J6: Sum: | K6: =SUM(K2:K5) -> 433
A7: Generell innledning
B8: Noteopplysningene nedenfor skal som utgangspunkt alltid tas med, men kan utelates dersom de ikke er av betydning for å bedømme selskapets stilling og resultat. Disse kan tas bort fra sjekklisten ved å bruke ”hide/show” funksjonen. Enkelte notekrav er imidlertid pliktige, og kan aldri utelates. | C8: rskl § 7-1, 1. ledd
C9: rskl § 7-1, 3. ledd
B10: Det kan også være aktuelt å gi andre/ytterligere opplysninger enn de som dekkes av kravene ovenfor. Ytterligere opplysninger må gis dersom de er nødvendige for å bedømme selskapets stilling og resultat. | C10: rskl § 7-1, 2. ledd
B11: Det skal gis tilleggsopplysninger hvis anvendelsen av bestemmelsene i regnskapsloven ikke er tiltrekkelig for å gi et rettvisende bilde av den regnskapspliktiges eiendeler, gjeld, finansielle stilling og resultat. | C11: rskl § 7-1, 4. ledd
C12: rskl § 3-2a
B13: Dersom foretaket er engasjert i aktiviteter med vesentlig risiko eller vesentlige fordeler som ikke er innregnet i balansen, skal tilleggsopplysningene etter fjerde ledd omfatte en beskrivelse av aktivitetenes finansielle virkning og formålet med dem. | C13: rskl § 7-1, 5. ledd
B14: Iflg rskl § 3-2a, 2. ledd skal bestemmelsene i rskl kap. 4 til 7 i særlige unntakstilfeller fravikes, dersom dette er nødvendig for å gi et rettvisende bilde av den regnskapspliktiges eiendeler og gjeld, finansielle stilling og resultat. Ethvert slikt fravik skal angis og begrunnes konkret og fullstendig med opplysningen om betydningen fraviket har for den regnskapspliktiges og konsernets eiendeler og gjeld, finansielle stilling og resultat. | C14: rskl § 7-1, 6. ledd
A15: Regnskapsprinsipper
A16: Regnskapsprinsipper | B16: Det skal gis opplysninger om anvendte regnskapsprinsipper. Se også notemal. | C16: rskl § 7-2
A17: 1 | B17: Er det gitt opplysninger om anvendte regnskapsprinsipper, herunder prinsipper for inntektsføring? | C17: rskl § 7-2 | J17: =IF(F17<>"","Du har satt X for at forholdet ikke er avklart. Gi en nærmere foklaring i kommentarfeltet.","") -> 
B18: Valuta
A19: =+A17+1 -> 2 | B19: Er det gitt opplysninger om prinsipper for omregning av utenlandsk valuta? | C19: rskl § 7-2 | J19: =IF(F19<>"","Du har satt X for at forholdet ikke er avklart. Gi en nærmere foklaring i kommentarfeltet.","") -> 
A20: =+A19+1 -> 3 | B20: Dersom årsregnskapet presenteres i en annen valuta enn regnskapsvalutaen, er regnskapsvalutaen og omregningskurser opplyst? | C20: rskl § 7-2a | J20: =IF(F20<>"","Du har satt X for at forholdet ikke er avklart. Gi en nærmere foklaring i kommentarfeltet.","") -> 
A21: 4 | B21: Er det opplyst hvordan transaksjoner og balanseposter i utenlandsk valuta er målt? | C21: NRS 20 Transaksjoner og regnskap i utenlandsk valuta
A22: 5 | B22: Er det opplyst om eventuelle praktiske tilnærmingsmetoder for anvendelse av valutakurs ihht NRS 20 Transaksjoner og regnskap i utenlandsk valuta pkt 14 og 20?
A23: 6 | B23: Er det opplyst om hvordan valutakursdifferanser og omregningsdifferanser er presentert i finansregnskapet?
A24: 7 | B24: Dersom valutakursdifferanser presenteres som annet enn finansinntekt eller -kostnad, er dette begrunnet?
A25: Regnskapsprinsipper | B25: Annet
A26: =+A24+1 -> 8 | B26: Er det gitt opplysninger om og begrunnelse for eventuell sikringsvurdering? | C26: rskl § 7-2
C27: jf. rskl § 4-1 nr. 5
A28: =+A26+1 -> 9 | B28: Er det gitt opplysninger om og begrunnelse for eventuell porteføljevurdering? | C28: rskl § 7-2
A29: 10 | B29: Er evt. kontinuitet ved regnskapsføring av fusjon opplyst og begrunnet? | C29: rskl § 7-2
A30: 11 | B30: Er det opplyst om anvendte prinsipper for vurdering / regnskapsføring av varelager, herunder metode for tilordning av anskaffelseskost? | C30: NRS 1 Varer
A31: 12 | B31: Er det opplyst om hovedprinsippene for beregning av fullføringsgraden for anleggskontrakter? | C31: NRS 2 Anleggs-kontrakter
A32: 13 | B32: Er det opplyst om avskrivningsmetode for alle poster under anleggsmidler? | C32: rskl § 7-13
A33: 14 | B33: Er det opplyst om prinsipper for regnskapsføring av leasingkontrakter, både finansielle og operasjonelle? | C33: NRS 14 Leieavtaler
A34: 15 | B34: Er det opplyst om de regnskapsprinsipper som er anvendt for utgifter til egen forskning og utvikling? | C34: NRS 19 Immaterielle eiendeler
A35: 16 | B35: Er det opplyst om metode (prinsipp) for regnskapsføring av investeringer i DS/TS/FKV, andre aksjer og andeler? | C35: rskl § 7-2
C36: jf. rskl § 4-1 nr. 5
C37: NRS (F) Investering i TS og deltagelse i FKV punkt 3.10
A38: =+A35+1 -> 17 | B38: Er det opplyst om metode og prinsipper for regnskapsføring av pensjonsforpliktelse, herunder vurdering av pensjonsmidler og aktuartekniske beregninger? | C38: NRS 6 Pensjons-kostnader
A39: 18 | B39: Er det opplyst om prinsipper for beregning av skatt, utsatt skattefordel og -forpliktelse, herunder begrunnelse for skattesatsen ved beregning av utsatt skatt ved oppkjøp? | C39: NRS (F) Resultatskatt
A40: =+A39+1 -> 19 | B40: Er det opplyst om prinsippene for behandling av fjerningskostnader og periodisk vedlikehold? | C40: NRS 13 Usikre forpliktelser og betingede eiendeler
A41: 20 | B41: Er det opplyst om prinsippene for klassifisering av kontanter og kontantekvivalenter? | C41: NRS (F) Kontantstrøm-oppstilling
A42: 21 | B42: Er det opplyst om anvendte regnskapsprinsipper for andre vesentlige regnskapsposter? | C42: rskl § 7-1
A43: 22 | B43: Er alle de regnskapsprinsipper som er omtalt i notene aktuelle for selskapet? | C43: rskl § 7-1
A44: Konsolideringsprinsipper
A45: =+A43+1 -> 23 | B45: Er det i note til konsernregnskapet opplyst om konsolideringsprinsipper, herunder - mer- og mindreverdier - goodwill og negativ goodwill med plan for avskrivning eller inntektsføring - transaksjoner mellom konsernselskaper - minoritetsinteresser - utgang datterselskap - trinnvis oppkjøp | C45: NRS 17 Virksomhetskjøp og konsernregnskap
A46: =+A45+1 -> 24 | B46: Er det opplyst og begrunnet dersom det er forskjellig prinsippanvendelse i selskapsregnskapet og konsernregnskapet? | C46: NRS 17 Virksomhetskjøp og konsernregnskap
A47: Endringer i regnskapsprinsipper mm.
A48: =+A46+1 -> 25 | B48: Er det opplyst om virkningen av endring av regnskapsprinsipp? | C48: rskl § 7-3
A49: =+A48+1 -> 26 | B49: Er endring av regnskapsprinsipp begrunnet? | C49: rskl § 7-3
A50: Omarbeiding av sammenligningstall
B51: Sammenligningstallene skal være sammenlignbare, med mindre annet følger av god regnskapsskikk. Sammenligningstallene og omarbeiding av disse skal forklares. | C51: rskl § 6-6
C52: rskl § 7-3
A53: =+A49+1 -> 27 | B53: Er sammenligningstall og omarbeiding av disse forklart? | C53: rskl § 7-3
A54: Andre opplysninger
A55: =+A53+1 -> 28 | B55: Dersom årsregnskapet presenteres i en annen valuta enn regnskapsvalutaen, er tilsvarende omregningskurser til NOK opplyst? | C55: rskl § 7-2a | J55: =IF(F55<>"","Du har satt X for at forholdet ikke er avklart. Gi en nærmere foklaring i kommentarfeltet.","") -> 
A56: =+A55+1 -> 29 | B56: Er det opplyst om store enkelttransaksjoner? | C56: rskl § 7-6
A57: =+A56+1 -> 30 | B57: Er det opplyst om omklassifiseringer? | C57: rskl § 7-3 | J57: =IF(F57<>"","Du har satt X for at forholdet ikke er avklart. Gi en nærmere foklaring i kommentarfeltet.","") -> 
A58: =+A57+1 -> 31 | B58: Er poster som er sammenslått iht. § 6-3 spesifisert? | C58: rskl § 7-7
A59: =+A58+1 -> 32 | B59: Er sammenligningstall som er sammenslått iht. § 6-3 tilsvarende spesifisert? | C59: rskl § 7-7
A60: Immaterielle eiendeler
B61: Immaterielle eiendeler omfatter: • Egen FoU • Konsesjoner/patenter/lisenser, varemerke mm • Goodwill | C61: rskl § 6-2
B62: For hver post, er det opplyst om: | C62: rskl § 7-12
C63: rskl § 7-14
C64: NRS 19 Immaterielle eiendeler
A65: =+A59+1 -> 33 | B65: • anskaffelseskost med spesifikasjon av eventuelt balanseførte lånekostnader knyttet til egentilvirkede immaterielle eiendeler?
A66: =+A65+1 -> 34 | B66: • tilgang og avgang i løpet av regnskapsåret?
A67: 35 | B67: • samlede avskrivninger, nedskrivninger og reversering av nedskrivninger?
A68: 36 | B68: • årets avskrivninger, nedskrivninger og reversering av nedskrivninger?
A69: 37 | B69: • økonomisk levetid og valg av avskrivningsplan?
A70: 38 | B70: • endringer i avskrivningsplan/metode og økonomisk levetid?
A71: 39 | B71: Er det gitt opplysninger om hvilke forutsetninger som er lagt til grunn for nedskrivning og reversering av nedskrivning, herunder hvorledes vurderingsenhet og gjennvinnbart beløp er fastsatt? | C71: NRS (F) Nedskrivning av anleggsmidler | J71: =IF(F71<>"","Du har satt X for at forholdet ikke er avklart. Gi en nærmere foklaring i kommentarfeltet.","") -> 
A72: 40 | B72: Er det opplyst om størrelsen på nedskrivning i perioden fordelt på ulike klasser av anleggsmidler, dersom dette ikke fremkommer av resultatregnskapet? | C72: rskl § 7-13 | J72: =IF(F72<>"","Du har satt X for at forholdet ikke er avklart. Gi en nærmere foklaring i kommentarfeltet.","") -> 
C73: NRS (F) Nedskrivning av anleggsmidler
A74: =+A72+1 -> 41 | B74: Er det opplyst om størrelsen på reversering i perioden fordelt på ulike klasser av anleggsmidler? | C74: NRS (F) Nedskrivning av anleggsmidler | J74: =IF(F74<>"","Du har satt X for at forholdet ikke er avklart. Gi en nærmere foklaring i kommentarfeltet.","") -> 
B75: Er det gitt følgende tilleggsopplysninger om Forskning og Utvikling (FoU)? | C75: rskl § 7-14
C76: NRS 19 Immaterielle eiendeler
A77: =+A74+1 -> 42 | B77: • arten av forskning og utvikling som drives?
A78: =+A77+1 -> 43 | B78: • samlede utgifter medgått til FoU i løpet av regnskapsåret?
A79: =+A78+1 -> 44 | B79: • Er det opplyst om forventet samlet inntjening av pågående FoU motsvarer medgåtte samlede utgifter?
B80: Med ”medgåtte samlede utgifter” menes akkumulerte utgifter knyttet til prosjekter som er igangværende ved regnskapsårets utgang. Notekravet gjelder utgifter til FoU som kunne vært balanseført. | J80: =IF(F80<>"","Du har satt X for at forholdet ikke er avklart. Gi en nærmere foklaring i kommentarfeltet.","") -> 
A81: =+A79+1 -> 45 | B81: Dersom det er vesentlig for forståelsen av regnskapet, er det opplyst om de regnskapsprinsipper som er anvendt for utgifter til egen forskning og utvikling? | C81: NRS 19 Immaterielle eiendeler
A82: =+A81+1 -> 46 | B82: Er vesentlige pågående FoU-aktiviteter beskrevet i note til årsregnskapet? | C82: NRS 19 Immaterielle eiendeler
A83: Tilleggsopplysninger om goodwill | C83: Rskl § 7-14 | H83: =IF(F83<>"","Du har satt X for at forholdet ikke er avklart. Gi en nærmere foklaring i kommentarfeltet.","") -> 
A84: =+A82+1 -> 47 | B84: Er avskrivningsplan lenger enn 5 år begrunnet? | C84: rskl § 7-14
C85: NRS 17 Virksomhetskjøp og konsernregnskap
A86: =+A84+1 -> 48 | B86: Er goodwill spesifisert for hvert enkelt virksomhetskjøp? | C86: rskl § 7-14
A87: =+A86+1 -> 49 | B87: Er det gitt opplysninger om hvilke forutsetninger som er lagt til grunn for nedskrivning, herunder hvorledes vurderingsenhet og gjenvinnbart beløp er fastsatt? | C87: NRS (F) Nedskrivning av anleggsmidler | J87: =IF(F87<>"","Du har satt X for at forholdet ikke er avklart. Gi en nærmere foklaring i kommentarfeltet.","") -> 
A88: =+A87+1 -> 50 | B88: Er det opplyst om størrelsen på nedskrivning i perioden fordelt på ulike klasser av anleggsmidler, dersom dette ikke fremkommer av resultatregnskapet? | C88: rskl § 7-13
C89: NRS (F) Nedskrivning av anleggsmidler
A90: Varige driftsmidler
B91: Inndelingen i regnskapsloven • Tomter, bygninger og annen fast eiendom • Maskiner og anlegg • Skip, rigger, fly o.l. • Driftsløsøre, inventar, verktøy, kontormaskiner og lignende
B92: Er det for hver post opplyst om: | C92: rskl § 7-12
C93: rskl § 7-13
A94: =+A88+1 -> 51 | B94: • Anskaffelseskost med spesifikasjon av eventuelle balanseførte lånekostnader knyttet til egentilvirkede anleggsmidler? | C94: rskl § 7-12
A95: =+A94+1 -> 52 | B95: • Tilgang og avgang i løpet av regnskapsåret? | C95: rskl § 7-12
A96: =+A95+1 -> 53 | B96: • Årets tilgang av egentilvirkede driftsmidler? | C96: rskl § 7-12
A97: 54 | B97: • Samlede avskrivninger, nedskrivninger og reversering av nedskrivninger | C97: rskl § 7-12
A98: 55 | B98: • Året avskrivninger, nedskrivninger og reversering av nedskrivninger i regnskapsåret? | C98: rskl § 7-12
A99: 56 | B99: • Hvilke forutsetninger som er lagt til grunn for nedskrivning og reversering av nedskrivning, herunder hvorledes vurderingsenhet og gjennvinnbart beløp er fastsatt? | C99: rskl § 7-13
C100: NRS (F) Nedskrivning av anleggsmidler
A101: =+A99+1 -> 57 | B101: • Størrelsen på reversering i perioden fordelt på ulike klasser av anleggsmidler? | C101: NRS (F) Nedskrivning av anleggsmidler
A102: 58 | B102: • Størrelsen på nedskrivning i perioden fordelt på ulike klasser av anleggsmidler, dersom dette ikke fremkommer av resultatregnskapet? | C102: rskl § 7-13
C103: NRS (F) Nedskrivning av anleggsmidler
A104: =+A102+1 -> 59 | B104: • Økonomisk levetid og valg av avskrivningsplan? | C104: rskl § 7-13
A105: 60 | B105: • Endringer i avskrivningsplan? | C105: rskl § 7-12
A106: Leasing/Leieavtaler
A107: =+A105+1 -> 61 | B107: Er det for alle vesentlige leieavtaler, både finansielle og operasjonelle, opplyst om årlig leie samt leieavtalens varighet? | C107: NRS 14 Leieavtaler
A108: Balanseførte leieavtaler
A109: =+A107+1 -> 62 | B109: Er det for hver post opplyst om balanseført verdi av leieavtaler? | C109: rskl § 7-13
C110: NRS 14 Leieavtaler
A111: =+A109+1 -> 63 | B111: Er det for vesentlige balanseførte leieavtaler opplyst om hvordan eventuell variabel leie er fastsatt? | C111: rskl § 7-13 | D111: =IF(E111<>"",1,0) -> 0
C112: NRS 14 Leieavtaler
A113: =+A111+1 -> 64 | B113: Er det for vesentlige balanseførte leieavtaler opplyst om variabel leie som er kostnadsført i perioden? | C113: rskl § 7-13 | D113: =IF(E113<>"",1,0) -> 0
C114: NRS 14 Leieavtaler
A115: =+A113+1 -> 65 | B115: Er det for vesentlige balanseførte leieavtaler opplyst om hvorvidt det eksisterer rett til forlenget leie eller kjøp av eiendelen samt andre utvidelsesklausuler og betingelsene til avtalene? | C115: rskl § 7-13 | D115: =IF(E115<>"",1,0) -> 0
C116: NRS 14 Leieavtaler
B117: Dersom balanseførte leieavtaler er vesentlige bør også årets avskrivning opplyses. Leasede eiendeler kan presenteres på samme linje som egne eiendeler, men det bør da opplyses i note hvor stor andel som er leaset. | C117: NRS 14 Leieavtaler
A118: =+A115+1 -> 66 | B118: Er forpliktelsen knyttet til leieavtalen opplyst i note? | C118: NRS 14 Leieavtaler | D118: =IF(E118<>"",1,0) -> 0
C119: jf rskl § 7-21
A120: =+A118+1 -> 67 | B120: Er det opplyst om sum resterende estimerte leieinnbetalinger og nåverdien av disse? | C120: NRS 14 Leieavtaler
A121: =+A120+1 -> 68 | B121: Er estimert leiebetaling som forfaller henholdsvis i løpet av ett år, to til fem år og mer enn fem år fram i tid spesifisert både med nominelt beløp og nåverdi? | C121: NRS 14 Leieavtaler
A122: =+A121+1 -> 69 | B122: Er det opplyst om vesentlige leieavtaler som medfører restriksjoner knyttet til utbytteutdeling, gjeldsopptak og ytterligere inngåelse av leieavtaler? | C122: NRS 14 Leieavtaler
A123: Ikke balanseførte leieavtaler
A124: =+A122+1 -> 70 | B124: Ved leie av varig driftsmiddel som ikke er balanseført, er det opplyst om årlig leie og leieavtalens varighet med tilsvarende spesifikasjon som i oppstillingsplanen for balansen? | C124: rskl § 7-13
C125: NRS 14 Leieavtaler
A126: Finansielle anleggsmidler
B127: Finansielle anleggsmidler omfatter: • Investeringer i datterselskap (DS), tilknyttet selskap (TS), felles kontrollert virksomhet (FKV) og andre foretak i samme konsern. • Lån til foretak i samme konsern, TS og FKV • Investeringer i andre aksjer og andeler • Langsiktige obligasjoner og andre langsiktige fordringer (se obligasjon og fordringer, eget pkt. i sjekklisten)
A128: Investering i datterselskap
A129: =+A124+1 -> 71 | B129: Er det opplyst om; • Foretaksnavn • Forretningskontor • Eierandel og stemmeandel | C129: rskl § 7-15
A130: =+A129+1 -> 72 | B130: Dersom datterselskapet er utelatt fra konsolidering etter rskl § 3-8, er dette opplyst og begrunnet? | C130: rskl § 7-15
A131: =+A130+1 -> 73 | B131: For datterselskap som regnskapsføres etter kostmetoden og som ikke konsolideres, er det gitt opplysning om egenkapital og resultat ifølge siste årsregnskap? | C131: rskl § 7-15
A132: =+A131+1 -> 74 | B132: Er det i konsernregnskapet opplyst om navnet på foretak der den regnskapspliktige selv eller gjennom datterselskaper eier så mange aksjer eller andeler at de representerer flertallet av stemmene i foretaket, men som ikke er datterselskap fordi det klart kan påvises at slikt eierskap likevel ikke gir bestemmernde innflytelse jr rskl § 1-3, 2. ledd nr. 1? | C132: rskl § 7-15
A133: =+A132+1 -> 75 | B133: Er det opplyst om evt. nedskrivning av investeringer i datterselskap? | C133: NRS (F) Nedskrivning av anleggsmidler
A134: Investering i tilknyttet selskap (TS) og deltakelse i felles kontrollert virksomhet (FKV)
A135: =+A133+1 -> 76 | B135: For hver enkelt investering, er det opplyst om • Navn • Forretningskontor • Eierandel og stemmeandel | C135: rskl § 7-15
C136: NRS (F) Investering i TS/FKV
A137: =+A135+1 -> 77 | B137: Er det for hver enkelt investering opplyst om egenkapital og resultat ifølge siste årsregnskap (gjelder ikke TS som er regnskapsført etter egenkapitalmetoden) | C137: rskl § 7-15 | D137: =IF(E137<>"",1,0) -> 0
C138: NRS (F) Investering i TS/FKV
A139: =+A137+1 -> 78 | B139: Er det opplyst om evt. nedskrivning av investeringer i tilknyttet selskap eller felleskontrollert virksomhet? | C139: NRS (F) Nedskrivning av anleggsmidler
A140: Tilleggsopplysninger for deltakelse i FKV (kun dersom deltakelsen er vesentlig for deltaker):
A141: =+A139+1 -> 79 | B141: Er det opplyst om innbetalt kapital, skyldig innskudd, andel av resultat dersom resultatandelen avviker vesentlig fra eierandel og spesifikasjonsmåte i deltakers regnskap? | C141: NRS (F) Investering i TS/FKV | J141: =IF(F141<>"","Du har satt X for at forholdet ikke er avklart. Gi en nærmere foklaring i kommentarfeltet.","") -> 
A142: =+A141+1 -> 80 | B142: Dersom deltaker innarbeider sin andel linje for linje, er samlet andel i FKV spesifisert for hver hovedgruppe i regnskapet? | C142: NRS (F) Investering i TS/FKV | J142: =IF(F142<>"","Du har satt X for at forholdet ikke er avklart. Gi en nærmere foklaring i kommentarfeltet.","") -> 
A143: Investering som føres etter egenkapitalmetoden | J143: =IF(F143<>"","Du har satt X for at forholdet ikke er avklart. Gi en nærmere foklaring i kommentarfeltet.","") -> 
A144: =+A142+1 -> 81 | B144: Er det for hver vesentlig investering og samlet opplyst om: • anskaffelseskost • balanseført egenkapital på anskaffelsestidspunktet • inngående balanse • inntektsført resultat • andre endringer i løpet av året • utgående balanse • merverdier og goodwill inkl avskrivninger på disse • aggregerte midlertidige forskjeller på de selskap det ikke er regnskapsført utsatt skatt på | C144: rskl § 7-16 | D144: =IF(E144<>"",1,0) -> 0
C145: NRS (F) Investering i TS/FKV
A146: =+A144+1 -> 82 | B146: Er det opplyst om eventuelle avvikende regnskapsår? | C146: NRS (F) Investering i TS/FKV
A147: =+A146+1 -> 83 | B147: Er det opplyst om eventuell forskjellig prinsippanvendelse? | C147: NRS (F) Investering i TS/FKV
A148: Aksjer og andeler | J148: =IF(F148<>"","Du har satt X for at forholdet ikke er avklart. Gi en nærmere foklaring i kommentarfeltet.","") -> 
A149: =+A147+1 -> 84 | B149: Er investeringer i aksjer/andeler hvor foretaket eier mer enn 10 % eller hvor investeringen utgjør mer enn 50 % av den regnskapspliktiges egenkapital, spesifisert etter selskap? Dette kravet gjelder ikke investeringer som omfattes av rskl §§ 7-15 eller 7-16 (DS, TS, FKV og investeringer bokført etter egenkapitalmetoden) | C149: rskl § 7-18 | J149: =IF(F149<>"","Du har satt X for at forholdet ikke er avklart. Gi en nærmere foklaring i kommentarfeltet.","") -> 
A150: =+A149+1 -> 85 | B150: Er det for hvert selskap opplyst om; o Balanseført verdi o Eventuell markedsverdi o Eierandel | C150: rskl § 7-18 | J150: =IF(F150<>"","Du har satt X for at forholdet ikke er avklart. Gi en nærmere foklaring i kommentarfeltet.","") -> 
A151: Virkelig verdi av finansielle anleggsmidler
A152: =+A150+1 -> 86 | B152: For finansielle anleggsmidler som vurderes etter § 5-3 der balanseført verdi er større enn virkelig verdi, er det opplyst om balanseført verdi og virkelig verdi av den enkelt eiendel eller en hensiktsmessig gruppering av dem? | C152: rskl § 7-17
A153: =+A152+1 -> 87 | B153: Er det gitt en begrunnelse for hvorfor nedskrivning ikke er foretatt, og inkluderer denne holdepunkter for at verdifallet ikke er forbigående? | C153: rskl § 7-17
A154: LANGSIKTIGE TILVIRKNINGSKONTRAKTER/ ANLEGGSKONTRAKTER
A155: =+A153+1 -> 88 | B155: Er det opplyst om igangværende langsiktige tilvirkningskontrakter. | C155: rskl § 7-9
A156: =+A155+1 -> 89 | B156: Er det opplyst følgende om igangværende langsiktige tilvirkningskontrakter; • Hovedprinsippene for beregning av fullføringsgraden (eksempelvis påløpte kostnader/estimerte totalkostnader) • Omfang av igangværende kontrakter (total utført produksjon, påløpte kostnader og estimert fortjeneste) • Gjenværende produksjon på tapsprosjekter. | C156: NRS 2 Anleggs-kontrakter
B157: Foretak som kun er involvert i et fåtall anleggskontrakter kan unnlate å opplyse om omfanget av igangværende kontrakter samt gjenværende produksjon av tapsprosjekter, dersom dette åpenbart er berettiget ut fra konkurransemessige hensyn. | C157: NRS 2 Anleggs-kontrakter
A158: =+A156+1 -> 90 | B158: Dersom det ikke er foretatt spesifikasjon i balansen, er følgende tilleggsopplysninger gitt i noter: • Andel av utestående fordringer holdt tilbake av kunde iht. kontrakt • Opptjente, ikke fakturerte inntekter som er inkludert i kundefordringene • Forskuddsfakturert produksjon | C158: NRS 2 Anleggs-kontrakter
A159: Varer | J159: =IF(F159<>"","Du har satt X for at forholdet ikke er avklart. Gi en nærmere foklaring i kommentarfeltet.","") -> 
A160: =+A158+1 -> 91 | B160: Er det opplyst om balanseført verdi av varelager fordelt på råvarer, varer under tilvirkning, egenutviklede ferdigvarer og handelsvarer sammen med tilsvarende tall for foregående år? | C160: rskl § 7-10 | D160: =IF(E160<>"",1,0) -> 0
C161: NRS 1 Varer
A162: =+A160+1 -> 92 | B162: Er det vist tilsvarende sammenligningstall? | C162: rskl § 7-10
B163: NRS 1 Varer gjelder også produksjonsmateriell og reservedeler. Dersom dette tas inn i varebeholdingen bør fordelingen ihht rskl § 7-10 utvides slik at disse kategoriene også spesifiseres. | C163: NRS 1 Varer | J163: =IF(F163<>"","Du har satt X for at forholdet ikke er avklart. Gi en nærmere foklaring i kommentarfeltet.","") -> 
A164: =+A162+1 -> 93 | B164: Er det opplyst om balanseført verdi av samlet varelager fordelt på den delen som er vurdert til anskaffelseskost og den delen som er vurdert til virkelig verdi? | C164: NRS 1 Varer
B165: Det er altså ikke påkrevd å opplyse om nedskrivningsbeløpet, men dette bør vurderes ut fra informasjonskvaliteten i noteopplysningene.
A166: =+A164+1 -> 94 | B166: Er det opplyst om periodens resultatførte reverseringer av tidligere perioders nedskrivning og begrunnelse for slik reversering? | C166: NRS 1 Varer
A167: =+A166+1 -> 95 | B167: Er det opplyst om balanseført verdi av varelager som er stillet til sikkerhet for forpliktelser? | C167: NRS 1 Varer
A168: Finansielle instrumenter og derivater
B169: Derivater
A170: =+A167+1 -> 96 | B170: Dersom derivater er vurdert til virkelig verdi basert på § 5-8, er det for hver kategori gitt opplysning om anskaffelseskost, virkelig verdi og periodens resultatførte verdiendring? | C170: rskl § 7-17
A171: =+A170+1 -> 97 | B171: Er det også opplyst om vesentlige forutsetninger som ligger til grunn for vurderingen? | C171: rskl § 7-17
A172: =+A171+1 -> 98 | B172: For derivater som ikke er vurdert etter virkelig verdi, er det opplyst om virkelig verdi såfremt denne kan fastsettes etter merkedsverdi eller med rimelig tilnærming til denne? | C172: rskl § 7-17
A173: =+A172+1 -> 99 | B173: Er opplysningene gitt separat for hver klasse av finansielle derivater? | C173: rskl § 7-17
A174: =+A173+1 -> 100 | B174: Er det opplyst om vesentlige betingelser og forhold som kan påvirke beløpsstørrelse, tidfesting og usikkerhet ved fremtidige kontantstrømmer, fordelt på klasser av derivater? | C174: rskl § 7-5
A175: =+A174+1 -> 101 | B175: Store foretak: Er det gitt opplysninger om finansiell markedsrisiko fordelt på arter av risiko? | C175: rskl § 7-5
B176: Sikring
B177: Ved regnskapsmessig sikring, har foretaket i note minst gitt informasjon om følgende: | C177: NRS 18 Finansielle eiendeler og forpliktelser
A178: =+A175+1 -> 102 | B178: • Hvilken eller hvilke typer sikring foretaket benytter
A179: =+A178+1 -> 103 | B179: • Hvordan regnskapsmessig sikring er reflektert i regnskapet
A180: =+A179+1 -> 104 | B180: • Hvilke finansielle instrumenter eller varederivater som inngår i sikringsrelasjonene og instrumentenes balanseførte verdier
A181: 105 | B181: • Hvordan periodens resultat er påvirket av regnskapsmessig sikring og hvilke resultatlinjer som er påvirket
A182: 106 | B182: • Beløp som er ført mot egenkapitalen i perioden, og akkumulert beløp som ikke er reversert fra egenkapitalen
A183: 107 | B183: • Varigheten av foretakets sikringer
A184: 108 | B184: • Hvordan virkelig verdi er fastsatt for sikringsinstrumenter og sikringsobjekter som er balanseført til virkelig verdi
A185: 109 | B185: • Dersom sikring reflekteres i samsvar med NRS 18 paragraf A15, er det opplyst om periodens og akkumulerte gevinster og tap som ikke er resultatført? A15 sier at sikring skal reflekteres som følger: Kontantstrømsikring: realiserte og urealiserte gevinster og tap på sikringsinstrumentet skal ikke resultatføres før det underliggende sikringsobjektet påvirker resultatregnskapet. Verdisikring - to alternativer: I - Sikringsinstrumentet vurderes til virkelig verdi, og verdiendring knyttet til sikret risiko justerer balanseført verdi av sikringsobjektet. Verdiendringene skal resultatføres løpende. II - Verdiendring på sikringsinstrumentet regnskapsføres ikke før sikringsinstrumentet realiseres og sikringsobjektet balanseføres til den verdi som reflekterer effekten av sikringen.
A186: 110 | B186: • For sikringsrelasjoner som er ført som sikring i samsvar med IAS 39 etter NRS 18 paragraf 20, 2. ledd, er det i tillegg gitt noteopplysninger om sikring som kreves av IFRS 7?
A187: Finansielle eiendeler og forpliktelser
A188: =+A186+1 -> 111 | B188: Når finansielle eiendeler og forpliktelser er balanseført til virkelig verdi, herunder eiendeler som er nedskrevet til virkelig verdi, er det opplyst om hvordan virkelig verdi er fastsatt? | C188: NRS 18 Finansielle eiendeler og forpliktelser
A189: =+A188+1 -> 112 | B189: Dersom foretaket ikke har nedskrevet en finansiell eiendel til virkelig verdi fordi verdifallet forventes å være forbigående, er det begrunnet hvorfor verdifallet anses forbigående? | C189: NRS 18 Finansielle eiendeler og forpliktelser
A190: Fordringer
A191: =+A189+1 -> 113 | B191: Er det for hver post under eiendeler opplyst om fordringer som forfaller senere enn ett år etter regnskapsårets slutt? | C191: rskl § 7-19
A192: =+A191+1 -> 114 | B192: Er det vist tilsvarende sammenligningstall? | C192: rskl § 7-19
A193: Gjeld
A194: =+A192+1 -> 115 | B194: For hver post innledet med arabertall under gjeld, er den delen av gjeld som forfaller til betaling mer enn fem år etter regnskapsårets slutt spesifisert? | C194: rskl § 7-21
A195: =+A194+1 -> 116 | B195: Er det vist tilsvarende sammenligningstall? | C195: rskl § 7-21
A196: =+A195+1 -> 117 | B196: Er det opplyst om gjeld sikret ved pant og lignende og balanseført verdi av pantsatte eiendeler? | C196: rskl § 7-21
A197: =+A196+1 -> 118 | B197: Dersom det er tatt utlegg i noen av selskapets eiendeler, er dette angitt særskilt? | C197: rskl § 7-21 | J197: =IF(F197<>"","Du har satt X for at forholdet ikke er avklart. Gi en nærmere foklaring i kommentarfeltet.","") -> 
A198: =+A197+1 -> 119 | B198: Er det opplyst om hvilke forpliktelser som er dekket av andre avsetninger som nevnt i rskl § 6-2 D I nr.3? | C198: rskl § 7-21
A199: =+A198+1 -> 120 | B199: Store foretak: Er det for obligasjonslån, konvertible lån og langsiktig gjeld til kredittinstitusjoner opplyst om; - avdragsstruktur - gjennomsnittlig rente - særlige vilkår ("covenants" ol) | C199: rskl § 7-21
A200: Mellomværende med konsernselskap, tilknyttede selskaper og felleskontrollerte virksomheter
... 441 more rows

Sheet N_Ubesv. (hidden)
A1: Ubesvart | B1: =+Forside!B2 -> 0 | C1: =+Forside!B3 -> 2021 | D1: Kommentarer
A2: 1 | B2: Er det gitt opplysninger om anvendte regnskapsprinsipper, herunder prinsipper for inntektsføring?
A3: 2 | B3: Er det gitt opplysninger om prinsipper for omregning av utenlandsk valuta?
A4: 3 | B4: Dersom årsregnskapet presenteres i en annen valuta enn regnskapsvalutaen, er regnskapsvalutaen og omregningskurser opplyst?
A5: 4 | B5: Er det opplyst hvordan transaksjoner og balanseposter i utenlandsk valuta er målt?
A6: 5 | B6: Er det opplyst om eventuelle praktiske tilnærmingsmetoder for anvendelse av valutakurs ihht NRS 20 Transaksjoner og regnskap i utenlandsk valuta pkt 14 og 20?
A7: 6 | B7: Er det opplyst om hvordan valutakursdifferanser og omregningsdifferanser er presentert i finansregnskapet?
A8: 7 | B8: Dersom valutakursdifferanser presenteres som annet enn finansinntekt eller -kostnad, er dette begrunnet?
A9: 8 | B9: Er det gitt opplysninger om og begrunnelse for eventuell sikringsvurdering?
A10: 9 | B10: Er det gitt opplysninger om og begrunnelse for eventuell porteføljevurdering?
A11: 10 | B11: Er evt. kontinuitet ved regnskapsføring av fusjon opplyst og begrunnet?
A12: 11 | B12: Er det opplyst om anvendte prinsipper for vurdering / regnskapsføring av varelager, herunder metode for tilordning av anskaffelseskost?
A13: 12 | B13: Er det opplyst om hovedprinsippene for beregning av fullføringsgraden for anleggskontrakter?
A14: 13 | B14: Er det opplyst om avskrivningsmetode for alle poster under anleggsmidler?
A15: 14 | B15: Er det opplyst om prinsipper for regnskapsføring av leasingkontrakter, både finansielle og operasjonelle?
A16: 15 | B16: Er det opplyst om de regnskapsprinsipper som er anvendt for utgifter til egen forskning og utvikling?
A17: 16 | B17: Er det opplyst om metode (prinsipp) for regnskapsføring av investeringer i DS/TS/FKV, andre aksjer og andeler?
A18: 17 | B18: Er det opplyst om metode og prinsipper for regnskapsføring av pensjonsforpliktelse, herunder vurdering av pensjonsmidler og aktuartekniske beregninger?
A19: 18 | B19: Er det opplyst om prinsipper for beregning av skatt, utsatt skattefordel og -forpliktelse, herunder begrunnelse for skattesatsen ved beregning av utsatt skatt ved oppkjøp?
A20: 19 | B20: Er det opplyst om prinsippene for behandling av fjerningskostnader og periodisk vedlikehold?
A21: 20 | B21: Er det opplyst om prinsippene for klassifisering av kontanter og kontantekvivalenter?
A22: 21 | B22: Er det opplyst om anvendte regnskapsprinsipper for andre vesentlige regnskapsposter?
A23: 22 | B23: Er alle de regnskapsprinsipper som er omtalt i notene aktuelle for selskapet?
A24: 23 | B24: Er det i note til konsernregnskapet opplyst om konsolideringsprinsipper, herunder - mer- og mindreverdier - goodwill og negativ goodwill med plan for avskrivning eller inntektsføring - transaksjoner mellom konsernselskaper - minoritetsinteresser - utgang datterselskap - trinnvis oppkjøp
A25: 24 | B25: Er det opplyst og begrunnet dersom det er forskjellig prinsippanvendelse i selskapsregnskapet og konsernregnskapet?
A26: 25 | B26: Er det opplyst om virkningen av endring av regnskapsprinsipp?
A27: 26 | B27: Er endring av regnskapsprinsipp begrunnet?
A28: 27 | B28: Er sammenligningstall og omarbeiding av disse forklart?
A29: 28 | B29: Dersom årsregnskapet presenteres i en annen valuta enn regnskapsvalutaen, er tilsvarende omregningskurser til NOK opplyst?
A30: 29 | B30: Er det opplyst om store enkelttransaksjoner?
A31: 30 | B31: Er det opplyst om omklassifiseringer?
A32: 31 | B32: Er poster som er sammenslått iht. § 6-3 spesifisert?
A33: 32 | B33: Er sammenligningstall som er sammenslått iht. § 6-3 tilsvarende spesifisert?
A34: 33 | B34: • anskaffelseskost med spesifikasjon av eventuelt balanseførte lånekostnader knyttet til egentilvirkede immaterielle eiendeler?
A35: 34 | B35: • tilgang og avgang i løpet av regnskapsåret?
A36: 35 | B36: • samlede avskrivninger, nedskrivninger og reversering av nedskrivninger?
A37: 36 | B37: • årets avskrivninger, nedskrivninger og reversering av nedskrivninger?
A38: 37 | B38: • økonomisk levetid og valg av avskrivningsplan?
A39: 38 | B39: • endringer i avskrivningsplan/metode og økonomisk levetid?
A40: 39 | B40: Er det gitt opplysninger om hvilke forutsetninger som er lagt til grunn for nedskrivning og reversering av nedskrivning, herunder hvorledes vurderingsenhet og gjennvinnbart beløp er fastsatt?
A41: 40 | B41: Er det opplyst om størrelsen på nedskrivning i perioden fordelt på ulike klasser av anleggsmidler, dersom dette ikke fremkommer av resultatregnskapet?
A42: 41 | B42: Er det opplyst om størrelsen på reversering i perioden fordelt på ulike klasser av anleggsmidler?
A43: 42 | B43: • arten av forskning og utvikling som drives?
A44: 43 | B44: • samlede utgifter medgått til FoU i løpet av regnskapsåret?
A45: 44 | B45: • Er det opplyst om forventet samlet inntjening av pågående FoU motsvarer medgåtte samlede utgifter?
A46: 45 | B46: Dersom det er vesentlig for forståelsen av regnskapet, er det opplyst om de regnskapsprinsipper som er anvendt for utgifter til egen forskning og utvikling?
A47: 46 | B47: Er vesentlige pågående FoU-aktiviteter beskrevet i note til årsregnskapet?
A48: 47 | B48: Er avskrivningsplan lenger enn 5 år begrunnet?
A49: 48 | B49: Er goodwill spesifisert for hvert enkelt virksomhetskjøp?
A50: 49 | B50: Er det gitt opplysninger om hvilke forutsetninger som er lagt til grunn for nedskrivning, herunder hvorledes vurderingsenhet og gjenvinnbart beløp er fastsatt?
A51: 50 | B51: Er det opplyst om størrelsen på nedskrivning i perioden fordelt på ulike klasser av anleggsmidler, dersom dette ikke fremkommer av resultatregnskapet?
A52: 51 | B52: • Anskaffelseskost med spesifikasjon av eventuelle balanseførte lånekostnader knyttet til egentilvirkede anleggsmidler?
A53: 52 | B53: • Tilgang og avgang i løpet av regnskapsåret?
A54: 53 | B54: • Årets tilgang av egentilvirkede driftsmidler?
A55: 54 | B55: • Samlede avskrivninger, nedskrivninger og reversering av nedskrivninger
A56: 55 | B56: • Året avskrivninger, nedskrivninger og reversering av nedskrivninger i regnskapsåret?
A57: 56 | B57: • Hvilke forutsetninger som er lagt til grunn for nedskrivning og reversering av nedskrivning, herunder hvorledes vurderingsenhet og gjennvinnbart beløp er fastsatt?
A58: 57 | B58: • Størrelsen på reversering i perioden fordelt på ulike klasser av anleggsmidler?
A59: 58 | B59: • Størrelsen på nedskrivning i perioden fordelt på ulike klasser av anleggsmidler, dersom dette ikke fremkommer av resultatregnskapet?
A60: 59 | B60: • Økonomisk levetid og valg av avskrivningsplan?
A61: 60 | B61: • Endringer i avskrivningsplan?
A62: 61 | B62: Er det for alle vesentlige leieavtaler, både finansielle og operasjonelle, opplyst om årlig leie samt leieavtalens varighet?
A63: 62 | B63: Er det for hver post opplyst om balanseført verdi av leieavtaler?
A64: 63 | B64: Er det for vesentlige balanseførte leieavtaler opplyst om hvordan eventuell variabel leie er fastsatt?
A65: 64 | B65: Er det for vesentlige balanseførte leieavtaler opplyst om variabel leie som er kostnadsført i perioden?
A66: 65 | B66: Er det for vesentlige balanseførte leieavtaler opplyst om hvorvidt det eksisterer rett til forlenget leie eller kjøp av eiendelen samt andre utvidelsesklausuler og betingelsene til avtalene?
A67: 66 | B67: Er forpliktelsen knyttet til leieavtalen opplyst i note?
A68: 67 | B68: Er det opplyst om sum resterende estimerte leieinnbetalinger og nåverdien av disse?
A69: 68 | B69: Er estimert leiebetaling som forfaller henholdsvis i løpet av ett år, to til fem år og mer enn fem år fram i tid spesifisert både med nominelt beløp og nåverdi?
A70: 69 | B70: Er det opplyst om vesentlige leieavtaler som medfører restriksjoner knyttet til utbytteutdeling, gjeldsopptak og ytterligere inngåelse av leieavtaler?
A71: 70 | B71: Ved leie av varig driftsmiddel som ikke er balanseført, er det opplyst om årlig leie og leieavtalens varighet med tilsvarende spesifikasjon som i oppstillingsplanen for balansen?
A72: 71 | B72: Er det opplyst om; • Foretaksnavn • Forretningskontor • Eierandel og stemmeandel
A73: 72 | B73: Dersom datterselskapet er utelatt fra konsolidering etter rskl § 3-8, er dette opplyst og begrunnet?
A74: 73 | B74: For datterselskap som regnskapsføres etter kostmetoden og som ikke konsolideres, er det gitt opplysning om egenkapital og resultat ifølge siste årsregnskap?
A75: 74 | B75: Er det i konsernregnskapet opplyst om navnet på foretak der den regnskapspliktige selv eller gjennom datterselskaper eier så mange aksjer eller andeler at de representerer flertallet av stemmene i foretaket, men som ikke er datterselskap fordi det klart kan påvises at slikt eierskap likevel ikke gir bestemmernde innflytelse jr rskl § 1-3, 2. ledd nr. 1?
A76: 75 | B76: Er det opplyst om evt. nedskrivning av investeringer i datterselskap?
A77: 76 | B77: For hver enkelt investering, er det opplyst om • Navn • Forretningskontor • Eierandel og stemmeandel
A78: 77 | B78: Er det for hver enkelt investering opplyst om egenkapital og resultat ifølge siste årsregnskap (gjelder ikke TS som er regnskapsført etter egenkapitalmetoden)
A79: 78 | B79: Er det opplyst om evt. nedskrivning av investeringer i tilknyttet selskap eller felleskontrollert virksomhet?
A80: 79 | B80: Er det opplyst om innbetalt kapital, skyldig innskudd, andel av resultat dersom resultatandelen avviker vesentlig fra eierandel og spesifikasjonsmåte i deltakers regnskap?
A81: 80 | B81: Dersom deltaker innarbeider sin andel linje for linje, er samlet andel i FKV spesifisert for hver hovedgruppe i regnskapet?
A82: 81 | B82: Er det for hver vesentlig investering og samlet opplyst om: • anskaffelseskost • balanseført egenkapital på anskaffelsestidspunktet • inngående balanse • inntektsført resultat • andre endringer i løpet av året • utgående balanse • merverdier og goodwill inkl avskrivninger på disse • aggregerte midlertidige forskjeller på de selskap det ikke er regnskapsført utsatt skatt på
A83: 82 | B83: Er det opplyst om eventuelle avvikende regnskapsår?
A84: 83 | B84: Er det opplyst om eventuell forskjellig prinsippanvendelse?
A85: 84 | B85: Er investeringer i aksjer/andeler hvor foretaket eier mer enn 10 % eller hvor investeringen utgjør mer enn 50 % av den regnskapspliktiges egenkapital, spesifisert etter selskap? Dette kravet gjelder ikke investeringer som omfattes av rskl §§ 7-15 eller 7-16 (DS, TS, FKV og investeringer bokført etter egenkapitalmetoden)
A86: 85 | B86: Er det for hvert selskap opplyst om; o Balanseført verdi o Eventuell markedsverdi o Eierandel
A87: 86 | B87: For finansielle anleggsmidler som vurderes etter § 5-3 der balanseført verdi er større enn virkelig verdi, er det opplyst om balanseført verdi og virkelig verdi av den enkelt eiendel eller en hensiktsmessig gruppering av dem?
A88: 87 | B88: Er det gitt en begrunnelse for hvorfor nedskrivning ikke er foretatt, og inkluderer denne holdepunkter for at verdifallet ikke er forbigående?
A89: 88 | B89: Er det opplyst om igangværende langsiktige tilvirkningskontrakter.
A90: 89 | B90: Er det opplyst følgende om igangværende langsiktige tilvirkningskontrakter; • Hovedprinsippene for beregning av fullføringsgraden (eksempelvis påløpte kostnader/estimerte totalkostnader) • Omfang av igangværende kontrakter (total utført produksjon, påløpte kostnader og estimert fortjeneste) • Gjenværende produksjon på tapsprosjekter.
A91: 90 | B91: Dersom det ikke er foretatt spesifikasjon i balansen, er følgende tilleggsopplysninger gitt i noter: • Andel av utestående fordringer holdt tilbake av kunde iht. kontrakt • Opptjente, ikke fakturerte inntekter som er inkludert i kundefordringene • Forskuddsfakturert produksjon
A92: 91 | B92: Er det opplyst om balanseført verdi av varelager fordelt på råvarer, varer under tilvirkning, egenutviklede ferdigvarer og handelsvarer sammen med tilsvarende tall for foregående år?
A93: 92 | B93: Er det vist tilsvarende sammenligningstall?
A94: 93 | B94: Er det opplyst om balanseført verdi av samlet varelager fordelt på den delen som er vurdert til anskaffelseskost og den delen som er vurdert til virkelig verdi?
A95: 94 | B95: Er det opplyst om periodens resultatførte reverseringer av tidligere perioders nedskrivning og begrunnelse for slik reversering?
A96: 95 | B96: Er det opplyst om balanseført verdi av varelager som er stillet til sikkerhet for forpliktelser?
A97: 96 | B97: Dersom derivater er vurdert til virkelig verdi basert på § 5-8, er det for hver kategori gitt opplysning om anskaffelseskost, virkelig verdi og periodens resultatførte verdiendring?
A98: 97 | B98: Er det også opplyst om vesentlige forutsetninger som ligger til grunn for vurderingen?
A99: 98 | B99: For derivater som ikke er vurdert etter virkelig verdi, er det opplyst om virkelig verdi såfremt denne kan fastsettes etter merkedsverdi eller med rimelig tilnærming til denne?
A100: 99 | B100: Er opplysningene gitt separat for hver klasse av finansielle derivater?
A101: 100 | B101: Er det opplyst om vesentlige betingelser og forhold som kan påvirke beløpsstørrelse, tidfesting og usikkerhet ved fremtidige kontantstrømmer, fordelt på klasser av derivater?
A102: 101 | B102: Store foretak: Er det gitt opplysninger om finansiell markedsrisiko fordelt på arter av risiko?
A103: 102 | B103: • Hvilken eller hvilke typer sikring foretaket benytter
A104: 103 | B104: • Hvordan regnskapsmessig sikring er reflektert i regnskapet
A105: 104 | B105: • Hvilke finansielle instrumenter eller varederivater som inngår i sikringsrelasjonene og instrumentenes balanseførte verdier
A106: 105 | B106: • Hvordan periodens resultat er påvirket av regnskapsmessig sikring og hvilke resultatlinjer som er påvirket
A107: 106 | B107: • Beløp som er ført mot egenkapitalen i perioden, og akkumulert beløp som ikke er reversert fra egenkapitalen
A108: 107 | B108: • Varigheten av foretakets sikringer
A109: 108 | B109: • Hvordan virkelig verdi er fastsatt for sikringsinstrumenter og sikringsobjekter som er balanseført til virkelig verdi
A110: 109 | B110: • Dersom sikring reflekteres i samsvar med NRS 18 paragraf A15, er det opplyst om periodens og akkumulerte gevinster og tap som ikke er resultatført? A15 sier at sikring skal reflekteres som følger: Kontantstrømsikring: realiserte og urealiserte gevinster og tap på sikringsinstrumentet skal ikke resultatføres før det underliggende sikringsobjektet påvirker resultatregnskapet. Verdisikring - to alternativer: I - Sikringsinstrumentet vurderes til virkelig verdi, og verdiendring knyttet til sikret risiko justerer balanseført verdi av sikringsobjektet. Verdiendringene skal resultatføres løpende. II - Verdiendring på sikringsinstrumentet regnskapsføres ikke før sikringsinstrumentet realiseres og sikringsobjektet balanseføres til den verdi som reflekterer effekten av sikringen.
A111: 110 | B111: • For sikringsrelasjoner som er ført som sikring i samsvar med IAS 39 etter NRS 18 paragraf 20, 2. ledd, er det i tillegg gitt noteopplysninger om sikring som kreves av IFRS 7?
A112: 111 | B112: Når finansielle eiendeler og forpliktelser er balanseført til virkelig verdi, herunder eiendeler som er nedskrevet til virkelig verdi, er det opplyst om hvordan virkelig verdi er fastsatt?
A113: 112 | B113: Dersom foretaket ikke har nedskrevet en finansiell eiendel til virkelig verdi fordi verdifallet forventes å være forbigående, er det begrunnet hvorfor verdifallet anses forbigående?
A114: 113 | B114: Er det for hver post under eiendeler opplyst om fordringer som forfaller senere enn ett år etter regnskapsårets slutt?
A115: 114 | B115: Er det vist tilsvarende sammenligningstall?
A116: 115 | B116: For hver post innledet med arabertall under gjeld, er den delen av gjeld som forfaller til betaling mer enn fem år etter regnskapsårets slutt spesifisert?
A117: 116 | B117: Er det vist tilsvarende sammenligningstall?
A118: 117 | B118: Er det opplyst om gjeld sikret ved pant og lignende og balanseført verdi av pantsatte eiendeler?
A119: 118 | B119: Dersom det er tatt utlegg i noen av selskapets eiendeler, er dette angitt særskilt?
A120: 119 | B120: Er det opplyst om hvilke forpliktelser som er dekket av andre avsetninger som nevnt i rskl § 6-2 D I nr.3?
A121: 120 | B121: Store foretak: Er det for obligasjonslån, konvertible lån og langsiktig gjeld til kredittinstitusjoner opplyst om; - avdragsstruktur - gjennomsnittlig rente - særlige vilkår ("covenants" ol)
A122: 121 | B122: Er det for hver regnskapspost det er aktuelt opplyst om fordringer på og gjeld til henholdsvis konsernselskaper, tilknyttede selskaper og felles kontrollert virksomhet?
A123: 122 | B123: Er det opplyst om tilsvarende sammenligningstall fra foregående årsregnskap?
A124: 123 | B124: Er det opplyst om samlet forpliktelse i form av pantstillelse, annen sikkerhetsstillelse og garantier til fordel for foretak i samme konsern?
A125: 124 | B125: Er nedskrivning av konsernmellomværende opplyst?
A126: 125 | B126: Er obligasjoner spesifisert etter debitorkategori og pålydende valuta?
A127: 126 | B127: Er det opplyst om balanseført verdi og markedsverdi?
A128: 127 | B128: Store foretak: Har foretaket gitt en oversikt over rentereguleringstidspunkter og gjennomsnittlig rente?
A129: 128 | B129: Er det for hver kategori av finansielle instrumenter og varederivater som er vurdert etter RL § 5-8 (markedsverdi) opplyst om: • anskaffelseskost • virkelig verdi • periodens resultatførte verdiendringer
A130: 129 | B130: Er det opplyst om vesentlige forutsetninger som ligger til grunn for vurderingen?
A131: 130 | B131: Er det for finansielle derivater som ikke er vurdert til virkelig verdi etter Rskl § 5-8 opplyst om virkelig verdi, såfremt verdien kan fastsettes etter en markedsverdi eller en rimelig tilnærming til markedsverdien?
A132: 131 | B132: • Er det opplyst om ubenyttet del av kassekreditt eller andre trekkrettigheter, og restriksjoner på bruken av disse?
A133: 132 | B133: • Er det opplyst om bundne bankinnskudd, herunder skattetrekk?
A134: 133 | B134: Er opptjent egenkapital spesifisert?
A135: 134 | B135: Er det opplyst om endringer i løpet av året, med spesifikasjon av innholdet i hver enkelt transaksjon, herunder utbytte, avgitt konsernbidrag, ekstraordinært utbytte, emisjon, kapitalnedsettelse o.a?
A136: 135 | B136: Er det opplyst om virkning av feil i tidligere årsregnskap og korrigering av slike feil?
A137: 136 | B137: Er det opplyst om vesentlige feil i tidligere årsregnskap som er ført direkte mot egenkapitalen?
A138: 137 | B138: Er det opplyst om: • Aksjekapitalens størrelse • Aksjenes pålydende (fordelt på hver aksjeklasse hvis det er flere aksjeklasser) • Vedtektsbestemmelser om stemmerett hvis ikke alle aksjene har samme rett • Alle rettigheter som kan medføre at det blir utstedt nye aksjer med angivelse av hovedtrekkene i vilkår som gjelder for retten • Selskapets 20 største aksjeeiere og deres eierandeler (kan utelate aksjeeiere som eier mindre enn 1 %)
A139: 138 | B139: Er det opplyst om aksjer/andeler og rettigheter til aksjer/andeler som eies av: • daglig leder • medlemmer av styret • medlemmer av bedriftsforsamling
A140: 139 | B140: Er det opplyst om aksjer/andeler og rettigheter til aksjer/andeler som eies av hver enkelt ledende ansatte og deres personlig nærstående samt hvert enkelt medlem av styret og deres personlig nærstående?
A141: 140 | B141: For regnskapspliktige som er utstedere med Norge som hjemstat etter vphl § 5-4, er det opplyst om vesentlige indirekte aksjebesittelser i selskapet?
A142: 141 | B142: Dersom egne aksjer ikke vises på egen linje under selskapskapitalen i balansen eller i oppstilling av endringer i egenkapitalen, er spesifikasjon gitt i note?
A143: 142 | B143: Dersom selskapet har en beholdning av egne aksjer etter aksjeloven kapittel 9, er det opplyst om antallet, aksjenes pålydende verdi og den andel aksjene utgjør av aksjekapitalen?
A144: 143 | B144: Dersom det har vært endringer i beholdning av egne aksjer og datterselskapenes beholdning av aksjer i morselskapet i løpet av regnskapsåret, er det minst opplyst om følgende: • bakgrunn for erverv som har funnet sted • antall aksjer som er ervervet, vederlag for disse og den andel de utgjør av aksjekapitalen • antall aksjer som er avhendet, vederlaget for disse og den andel de utgjør av aksjekapitalen?
A145: 144 | B145: Har samvirkeforetak som har medlemskapitalkonti i samsvar med lov om samvirkeforetak § 29, gitt opplysninger om årets utbetaling og avsetning?
A146: 145 | B146: Er det opplyst om eventuelle vedtektsbestemmelser og årsmøtevedtak eller forslag til vedtak knyttet til medlemskapitalkonti?
A147: 146 | B147: Er det opplyst om beregning av pensjonskostnader og pensjonsforpliktelser?
A148: 147 | B148: Er det gitt opplysninger om foretakets pensjonsordninger?
A149: 148 | B149: Er det gitt opplysninger om antall personer som er omfattet?
A150: 149 | B150: Er det opplyst om regnskapsprinsipper, herunder metode for vurdering av pensjonsmidlene og aktuartekniske beregninger?
A151: 150 | B151: Er det opplyst om viktige økonomiske og aktuarmessige forutsetninger?
A152: 151 | B152: Er sammensetningen av netto pensjonskostnad vist, herunder eventuelle effekter av oppgjør eller avkorting av pensjonsplan? Kostnadsført arbeidsgiveravift kan presenteres som separat element i spesifikasjonen av sammensetningen av pensjonskostnaden.
A153: 152 | B153: Er det opplyst om faktisk avkastning på og sammensetningen av pensjonsmidler?
A154: 153 | B154: Er det satt opp en avstemming mellom faktisk netto pensjonsforpliktelse og balanseført netto pensjonsforpliktelse som viser; - størrelse av utsatt resultatføring av virkning av estimatendringer - avvik mellom faktisk og forventet avkastning på pensjonsmidler - virkning av endringer i pensjonsplaner - overgangsbeløp som ennå ikke er resultatført Periodisert arbeidsgiveravgift kan presenteres som separat element i spesifikasjonen av sammensetningen av pensjonsforpliktelsen
A155: 154 | B155: Er det opplyst om metode for regnskapsføring av arbeidsgiveravgift?
A156: 155 | B156: For foretak som anvender prinsipp om innregning av aktuarielle gevinster og tap i perioden de oppstår, er det gitt opplysning om det akkumulerte beløpet av aktuarielle gevinster og tap som er innregnet direkte i annen egenkapital samt årets beløp innregnet direkte i annen egenkapital?
A157: 156 | B157: Er det opplyst om årets beløp som er innregnet i resultatregnskapet?
A158: 157 | B158: For flerforetaksplan som er ytelsesplan, men som regnskapsføres som innskuddsbasert pensjonsplan, er det gitt følgende opplysninger • at planen er en ytelsesbasert pensjonsplan • grunnen til at det ikke finnes tilstrekkelig informasjon til å gjøre foretaket i stand til å regnskapsføre planen som en ytelsesbasert pensjonsplan
A159: 158 | B159: Hvis overskudd/underskudd i flerforetaksplanen kan påvirke størrelsen på framtidige innskudd, er det i tillegg opplyst om • eventuell tilgjengelig informasjon om overskudd/underskudd • grunnlaget for å fastsette overskudd/underskudd • eventuelle konsekvenser for foretaket
A160: 159 | B160: Er det opplyst om beregningen av skattekostnad og utsatt skatt/skattefordel?
A161: 160 | B161: Er det opplyst om skatteeffekten av midlertidige forskjeller og underskudd til fremføring som har gitt opphav til utsatt skatt og utsatte fordeler spesifisert på typer av midlertidige forskjeller?
A162: 161 | B162: Er det opplyst om balanseført utsatt skattefordel som er sannsynliggjort gjennom fremtidig inntjening?
A163: 162 | B163: Er det opplyst om utsatt skattefordel som ikke er balanseført?
A164: 163 | B164: Er det opplyst om aggregerte midlertidige forskjeller knyttet til investering i tilknyttet selskap og datterselskap og felles kontrollert virksomhet som det ikke er regnskapsført utsatt skatt på?
A165: 164 | B165: Er det opplyst om størrelsen på betalbar og utsatt skatt knyttet til poster som er ført direkte mot egenkapitalen?
A166: 165 | B166: Er det satt opp en avstemming som viser sammenhengen mellom skattekostnaden og skatt beregnet som gjennomsnittlig nominell skattesats på resultat før skatt? Oppstillingen kan utarbeides med utgangspunkt i prosentsammenligning eller kronesammenligning.
A167: 166 | B167: Er skattekostnad fordelt på norsk og utenlandsk del?
A168: 167 | B168: Er det opplyst om virkningen av endring i skatteregler og skattestatus på periodens skattekostnad?
A169: 168 | B169: Er det opplyst om summen av garantiforpliktelser som ikke er regnskapsført?
A170: 169 | B170: Er det opplyst særskilt dersom slike garantiforpliktelser er sikret ved pant?
A171: 170 | B171: Er det opplyst om andre forpliktelser enn garantiforpliktelser som ikke er regnskapsført?
A172: 171 | B172: Er det opplyst særskilt dersom slike forpliktelser er sikret ved pant?
A173: 172 | B173: Er avsetninger for usikre forpliktelser delt inn i klasser som gir meningsfylt informasjon mht type avsetning?
A174: 173 | B174: Er det for hver klasse av avsetninger gitt informasjon om inngående og utgående balanse?
A175: 174 | B175: Er avsetninger for usikre forpliktelser delt inn i klasser som gir meningsfylt informasjon mht type avsetning.
A176: 175 | B176: Inngående og utgående balanse.
A177: 176 | B177: Periodens tillegg i avsetning og ny avsetning
A178: 177 | B178: Oppgjør som er motregnet mot avsetning i perioden.
A179: 178 | B179: Reversering i perioden (annet enn motregning av oppgjør som avsetningen skal dekke)
A180: 179 | B180: Økning i avsetning i perioden som skyldes renteeffekten av neddiskontering.
A181: 180 | B181: En kort beskrivelse av forpliktelsens art og antatt oppgjørstidspunkt.
A182: 181 | B182: En karakteristikk av usikkerhet med hensyn til oppgjørstidspunkt og størrelse. Når beregningene er særlig knyttet til forutsetninger om fremtidige hendelser, skal forutsetningene fremgå. Dersom det er tatt hensyn til forventet gevinst på salg av eiendel ved beregning av oppgjørsverdi, skal dette særskilt opplyses.
A183: 182 | B183: Mulig regressrett, med særskilt angivelse av hvor mye av slik regressrett som er tatt hensyn til i regnskapsføringen.
A184: 183 | B184: Er det opplyst om usikre forpliktelser som ikke er regnskapsført?
A185: 184 | B185: Er det opplyst særskilt dersom slike forpliktelser er sikret ved pant?
A186: 185 | B186: En kort beskrivelse av hver klasse av usikre forpliktelser på balansedagen.
A187: 186 | B187: Et anslag på virkning i resultatregnskap og balanse av at forpliktelsen var blitt regnskapsført og oppgjørsverdien var blitt målt ved beste estimat på balansedagen. Dersom det ikke regnes som praktisk mulig å gi et slikt anslag, skal grunnene til det oppgis.
A188: 187 | B188: En indikasjon på usikkerheten i tidspunkt og beløp for oppgjøret.
A189: 188 | B189: Muligheten for regress.
A190: 189 | B190: Hvis det er mer enn 50% sannsynlighet for at selskapet vil motta et oppgjør knyttet til betingede eiendeler, er det gitt noteopplysning om disse?
A191: 190 | B191: Er det gitt en kort beskrivelse av den betingende eiendelen på balansedagen?
A192: 191 | B192: Er det, når den betingede eiendelen ikke er regnskapsført, gitt et anslag på effekt på resultat og balanse dersom den betingede eiendelen hadde blitt regnskapsført?
A193: 192 | B193: Dersom det ikke er praktisk mulig å gi et anslag, er dette begrunnet?
A194: 193 | B194: • (ikke kostnadsførte) betingede tap som er mindre sannsynlig
A195: 194 | B195: • (ikke kostnadsførte) betingede tap som er sannsynlige, men ikke kvantifiserbare
A196: 195 | B196: • (ikke kostnadsførte) lite sannsynlige betingede tap som kan få store konsekvenser
A197: 196 | B197: • Forhold og beregninger som ligger til grunn for avsetning til betingede tap eller informasjon om betingede tap
A198: 197 | B198: Er salgsinntekter spesifisert på virksomhetsområde og geografisk marked?
A199: 198 | B199: Hvis resultatregnskapet er presentert etter funksjon, er det i note vist en oppstilling over driftskostnadene etter art?
A200: 199 | B200: Er det vist tilsvarende sammenligningstall?
... 234 more rows

Sheet N_Ja (hidden)
C1: =COUNTIF(C2:C43,"=1") -> 0 | D1: Ja-svar | E1: =+Forside!B2 -> 0 | F1: =+Forside!B3 -> 2021 | G1: Kommentarer
A2: ='Sjekkliste noter'!A17 -> 1 | B2: =IF('Sjekkliste noter'!E17<>"",1,0) -> 0 | C2: =SUM(B2:B2) -> 0 | D2: =IF($C2=1,'Sjekkliste noter'!A17,"") ->  | E2: =IF($C2=1,'Sjekkliste noter'!B17,"") ->  | G2: =IF($C2=1,'Sjekkliste noter'!H17,"") -> 
A3: ='Sjekkliste noter'!A19 -> 2 | B3: =IF('Sjekkliste noter'!E19<>"",1,0) -> 0 | C3: 0 | D3: =IF($C3=1,'Sjekkliste noter'!A19,"") ->  | E3: =IF($C3=1,'Sjekkliste noter'!B19,"") ->  | G3: =IF($C3=1,'Sjekkliste noter'!H19,"") -> 
A4: ='Sjekkliste noter'!A20 -> 3 | B4: =IF('Sjekkliste noter'!E20<>"",1,0) -> 0 | C4: 0 | D4: =IF($C4=1,'Sjekkliste noter'!A20,"") ->  | E4: =IF($C4=1,'Sjekkliste noter'!B20,"") ->  | G4: =IF($C4=1,'Sjekkliste noter'!H20,"") -> 
A5: ='Sjekkliste noter'!A21 -> 4 | B5: =IF('Sjekkliste noter'!E21<>"",1,0) -> 0 | C5: 0 | D5: =IF($C5=1,'Sjekkliste noter'!A21,"") ->  | E5: =IF($C5=1,'Sjekkliste noter'!B21,"") ->  | G5: =IF($C5=1,'Sjekkliste noter'!H21,"") -> 
A6: ='Sjekkliste noter'!A22 -> 5 | B6: =IF('Sjekkliste noter'!E22<>"",1,0) -> 0 | C6: 0 | D6: =IF($C6=1,'Sjekkliste noter'!A22,"") ->  | E6: =IF($C6=1,'Sjekkliste noter'!B22,"") ->  | G6: =IF($C6=1,'Sjekkliste noter'!H22,"") -> 
A7: ='Sjekkliste noter'!A23 -> 6 | B7: =IF('Sjekkliste noter'!E23<>"",1,0) -> 0 | C7: 0 | D7: =IF($C7=1,'Sjekkliste noter'!A23,"") ->  | E7: =IF($C7=1,'Sjekkliste noter'!B23,"") ->  | G7: =IF($C7=1,'Sjekkliste noter'!H23,"") -> 
A8: ='Sjekkliste noter'!A24 -> 7 | B8: =IF('Sjekkliste noter'!E24<>"",1,0) -> 0 | C8: 0 | D8: =IF($C8=1,'Sjekkliste noter'!A24,"") ->  | E8: =IF($C8=1,'Sjekkliste noter'!B24,"") ->  | G8: =IF($C8=1,'Sjekkliste noter'!H24,"") -> 
A9: ='Sjekkliste noter'!A26 -> 8 | B9: =IF('Sjekkliste noter'!E26<>"",1,0) -> 0 | C9: 0 | D9: =IF($C9=1,'Sjekkliste noter'!A26,"") ->  | E9: =IF($C9=1,'Sjekkliste noter'!B26,"") ->  | G9: =IF($C9=1,'Sjekkliste noter'!H26,"") -> 
A10: ='Sjekkliste noter'!A28 -> 9 | B10: =IF('Sjekkliste noter'!E28<>"",1,0) -> 0 | C10: 0 | D10: =IF($C10=1,'Sjekkliste noter'!A28,"") ->  | E10: =IF($C10=1,'Sjekkliste noter'!B28,"") ->  | G10: =IF($C10=1,'Sjekkliste noter'!H28,"") -> 
A11: ='Sjekkliste noter'!A29 -> 10 | B11: =IF('Sjekkliste noter'!E29<>"",1,0) -> 0 | C11: 0 | D11: =IF($C11=1,'Sjekkliste noter'!A29,"") ->  | E11: =IF($C11=1,'Sjekkliste noter'!B29,"") ->  | G11: =IF($C11=1,'Sjekkliste noter'!H29,"") -> 
A12: ='Sjekkliste noter'!A30 -> 11 | B12: =IF('Sjekkliste noter'!E30<>"",1,0) -> 0 | C12: 0 | D12: =IF($C12=1,'Sjekkliste noter'!A30,"") ->  | E12: =IF($C12=1,'Sjekkliste noter'!B30,"") ->  | G12: =IF($C12=1,'Sjekkliste noter'!H30,"") -> 
A13: ='Sjekkliste noter'!A31 -> 12 | B13: =IF('Sjekkliste noter'!E31<>"",1,0) -> 0 | C13: 0 | D13: =IF($C13=1,'Sjekkliste noter'!A31,"") ->  | E13: =IF($C13=1,'Sjekkliste noter'!B31,"") ->  | G13: =IF($C13=1,'Sjekkliste noter'!H31,"") -> 
A14: ='Sjekkliste noter'!A32 -> 13 | B14: =IF('Sjekkliste noter'!E32<>"",1,0) -> 0 | C14: 0 | D14: =IF($C14=1,'Sjekkliste noter'!A32,"") ->  | E14: =IF($C14=1,'Sjekkliste noter'!B32,"") ->  | G14: =IF($C14=1,'Sjekkliste noter'!H32,"") -> 
A15: ='Sjekkliste noter'!A33 -> 14 | B15: =IF('Sjekkliste noter'!E33<>"",1,0) -> 0 | C15: 0 | D15: =IF($C15=1,'Sjekkliste noter'!A33,"") ->  | E15: =IF($C15=1,'Sjekkliste noter'!B33,"") ->  | G15: =IF($C15=1,'Sjekkliste noter'!H33,"") -> 
A16: ='Sjekkliste noter'!A34 -> 15 | B16: =IF('Sjekkliste noter'!E34<>"",1,0) -> 0 | C16: 0 | D16: =IF($C16=1,'Sjekkliste noter'!A34,"") ->  | E16: =IF($C16=1,'Sjekkliste noter'!B34,"") ->  | G16: =IF($C16=1,'Sjekkliste noter'!H34,"") -> 
A17: ='Sjekkliste noter'!A35 -> 16 | B17: =IF('Sjekkliste noter'!E35<>"",1,0) -> 0 | C17: 0 | D17: =IF($C17=1,'Sjekkliste noter'!A35,"") ->  | E17: =IF($C17=1,'Sjekkliste noter'!B35,"") ->  | G17: =IF($C17=1,'Sjekkliste noter'!H35,"") -> 
A18: ='Sjekkliste noter'!A38 -> 17 | B18: =IF('Sjekkliste noter'!E38<>"",1,0) -> 0 | C18: 0 | D18: =IF($C18=1,'Sjekkliste noter'!A38,"") ->  | E18: =IF($C18=1,'Sjekkliste noter'!B38,"") ->  | G18: =IF($C18=1,'Sjekkliste noter'!H38,"") -> 
A19: ='Sjekkliste noter'!A39 -> 18 | B19: =IF('Sjekkliste noter'!E39<>"",1,0) -> 0 | C19: 0 | D19: =IF($C19=1,'Sjekkliste noter'!A39,"") ->  | E19: =IF($C19=1,'Sjekkliste noter'!B39,"") ->  | G19: =IF($C19=1,'Sjekkliste noter'!H39,"") -> 
A20: ='Sjekkliste noter'!A40 -> 19 | B20: =IF('Sjekkliste noter'!E40<>"",1,0) -> 0 | C20: 0 | D20: =IF($C20=1,'Sjekkliste noter'!A40,"") ->  | E20: =IF($C20=1,'Sjekkliste noter'!B40,"") ->  | G20: =IF($C20=1,'Sjekkliste noter'!H40,"") -> 
A21: ='Sjekkliste noter'!A41 -> 20 | B21: =IF('Sjekkliste noter'!E41<>"",1,0) -> 0 | C21: 0 | D21: =IF($C21=1,'Sjekkliste noter'!A41,"") ->  | E21: =IF($C21=1,'Sjekkliste noter'!B41,"") ->  | G21: =IF($C21=1,'Sjekkliste noter'!H41,"") -> 
A22: ='Sjekkliste noter'!A42 -> 21 | B22: =IF('Sjekkliste noter'!E42<>"",1,0) -> 0 | C22: 0 | D22: =IF($C22=1,'Sjekkliste noter'!A42,"") ->  | E22: =IF($C22=1,'Sjekkliste noter'!B42,"") ->  | G22: =IF($C22=1,'Sjekkliste noter'!H42,"") -> 
A23: ='Sjekkliste noter'!A43 -> 22 | B23: =IF('Sjekkliste noter'!E43<>"",1,0) -> 0 | C23: 0 | D23: =IF($C23=1,'Sjekkliste noter'!A43,"") ->  | E23: =IF($C23=1,'Sjekkliste noter'!B43,"") ->  | G23: =IF($C23=1,'Sjekkliste noter'!H43,"") -> 
A24: ='Sjekkliste noter'!A45 -> 23 | B24: =IF('Sjekkliste noter'!E45<>"",1,0) -> 0 | C24: 0 | D24: =IF($C24=1,'Sjekkliste noter'!A45,"") ->  | E24: =IF($C24=1,'Sjekkliste noter'!B45,"") ->  | G24: =IF($C24=1,'Sjekkliste noter'!H45,"") -> 
A25: ='Sjekkliste noter'!A46 -> 24 | B25: =IF('Sjekkliste noter'!E46<>"",1,0) -> 0 | C25: 0 | D25: =IF($C25=1,'Sjekkliste noter'!A46,"") ->  | E25: =IF($C25=1,'Sjekkliste noter'!B46,"") ->  | G25: =IF($C25=1,'Sjekkliste noter'!H46,"") -> 
A26: ='Sjekkliste noter'!A48 -> 25 | B26: =IF('Sjekkliste noter'!E48<>"",1,0) -> 0 | C26: 0 | D26: =IF($C26=1,'Sjekkliste noter'!A48,"") ->  | E26: =IF($C26=1,'Sjekkliste noter'!B48,"") ->  | G26: =IF($C26=1,'Sjekkliste noter'!H48,"") -> 
A27: ='Sjekkliste noter'!A49 -> 26 | B27: =IF('Sjekkliste noter'!E49<>"",1,0) -> 0 | C27: 0 | D27: =IF($C27=1,'Sjekkliste noter'!A49,"") ->  | E27: =IF($C27=1,'Sjekkliste noter'!B49,"") ->  | G27: =IF($C27=1,'Sjekkliste noter'!H49,"") -> 
A28: ='Sjekkliste noter'!A53 -> 27 | B28: =IF('Sjekkliste noter'!E53<>"",1,0) -> 0 | C28: 0 | D28: =IF($C28=1,'Sjekkliste noter'!A53,"") ->  | E28: =IF($C28=1,'Sjekkliste noter'!B53,"") ->  | G28: =IF($C28=1,'Sjekkliste noter'!H53,"") -> 
A29: ='Sjekkliste noter'!A55 -> 28 | B29: =IF('Sjekkliste noter'!E55<>"",1,0) -> 0 | C29: 0 | D29: =IF($C29=1,'Sjekkliste noter'!A55,"") ->  | E29: =IF($C29=1,'Sjekkliste noter'!B55,"") ->  | G29: =IF($C29=1,'Sjekkliste noter'!H55,"") -> 
A30: ='Sjekkliste noter'!A56 -> 29 | B30: =IF('Sjekkliste noter'!E56<>"",1,0) -> 0 | C30: 0 | D30: =IF($C30=1,'Sjekkliste noter'!A56,"") ->  | E30: =IF($C30=1,'Sjekkliste noter'!B56,"") ->  | G30: =IF($C30=1,'Sjekkliste noter'!H56,"") -> 
A31: ='Sjekkliste noter'!A57 -> 30 | B31: =IF('Sjekkliste noter'!E57<>"",1,0) -> 0 | C31: 0 | D31: =IF($C31=1,'Sjekkliste noter'!A57,"") ->  | E31: =IF($C31=1,'Sjekkliste noter'!B57,"") ->  | G31: =IF($C31=1,'Sjekkliste noter'!H57,"") -> 
A32: ='Sjekkliste noter'!A58 -> 31 | B32: =IF('Sjekkliste noter'!E58<>"",1,0) -> 0 | C32: 0 | D32: =IF($C32=1,'Sjekkliste noter'!A58,"") ->  | E32: =IF($C32=1,'Sjekkliste noter'!B58,"") ->  | G32: =IF($C32=1,'Sjekkliste noter'!H58,"") -> 
A33: ='Sjekkliste noter'!A59 -> 32 | B33: =IF('Sjekkliste noter'!E59<>"",1,0) -> 0 | C33: 0 | D33: =IF($C33=1,'Sjekkliste noter'!A59,"") ->  | E33: =IF($C33=1,'Sjekkliste noter'!B59,"") ->  | G33: =IF($C33=1,'Sjekkliste noter'!H59,"") -> 
A34: ='Sjekkliste noter'!A65 -> 33 | B34: =IF('Sjekkliste noter'!E65<>"",1,0) -> 0 | C34: 0 | D34: =IF($C34=1,'Sjekkliste noter'!A65,"") ->  | E34: =IF($C34=1,'Sjekkliste noter'!B65,"") ->  | G34: =IF($C34=1,'Sjekkliste noter'!H65,"") -> 
A35: ='Sjekkliste noter'!A66 -> 34 | B35: =IF('Sjekkliste noter'!E66<>"",1,0) -> 0 | C35: 0 | D35: =IF($C35=1,'Sjekkliste noter'!A66,"") ->  | E35: =IF($C35=1,'Sjekkliste noter'!B66,"") ->  | G35: =IF($C35=1,'Sjekkliste noter'!H66,"") -> 
A36: ='Sjekkliste noter'!A67 -> 35 | B36: =IF('Sjekkliste noter'!E67<>"",1,0) -> 0 | C36: 0 | D36: =IF($C36=1,'Sjekkliste noter'!A67,"") ->  | E36: =IF($C36=1,'Sjekkliste noter'!B67,"") ->  | G36: =IF($C36=1,'Sjekkliste noter'!H67,"") -> 
A37: ='Sjekkliste noter'!A68 -> 36 | B37: =IF('Sjekkliste noter'!E68<>"",1,0) -> 0 | C37: 0 | D37: =IF($C37=1,'Sjekkliste noter'!A68,"") ->  | E37: =IF($C37=1,'Sjekkliste noter'!B68,"") ->  | G37: =IF($C37=1,'Sjekkliste noter'!H68,"") -> 
A38: ='Sjekkliste noter'!A69 -> 37 | B38: =IF('Sjekkliste noter'!E69<>"",1,0) -> 0 | C38: 0 | D38: =IF($C38=1,'Sjekkliste noter'!A69,"") ->  | E38: =IF($C38=1,'Sjekkliste noter'!B69,"") ->  | G38: =IF($C38=1,'Sjekkliste noter'!H69,"") -> 
A39: ='Sjekkliste noter'!A70 -> 38 | B39: =IF('Sjekkliste noter'!E70<>"",1,0) -> 0 | C39: 0 | D39: =IF($C39=1,'Sjekkliste noter'!A70,"") ->  | E39: =IF($C39=1,'Sjekkliste noter'!B70,"") ->  | G39: =IF($C39=1,'Sjekkliste noter'!H70,"") -> 
A40: ='Sjekkliste noter'!A71 -> 39 | B40: =IF('Sjekkliste noter'!E71<>"",1,0) -> 0 | C40: 0 | D40: =IF($C40=1,'Sjekkliste noter'!A71,"") ->  | E40: =IF($C40=1,'Sjekkliste noter'!B71,"") ->  | G40: =IF($C40=1,'Sjekkliste noter'!H71,"") -> 
A41: ='Sjekkliste noter'!A72 -> 40 | B41: =IF('Sjekkliste noter'!E72<>"",1,0) -> 0 | C41: 0 | D41: =IF($C41=1,'Sjekkliste noter'!A72,"") ->  | E41: =IF($C41=1,'Sjekkliste noter'!B72,"") ->  | G41: =IF($C41=1,'Sjekkliste noter'!H72,"") -> 
A42: ='Sjekkliste noter'!A74 -> 41 | B42: =IF('Sjekkliste noter'!E74<>"",1,0) -> 0 | C42: 0 | D42: =IF($C42=1,'Sjekkliste noter'!A74,"") ->  | E42: =IF($C42=1,'Sjekkliste noter'!B74,"") ->  | G42: =IF($C42=1,'Sjekkliste noter'!H74,"") -> 
A43: ='Sjekkliste noter'!A77 -> 42 | B43: =IF('Sjekkliste noter'!E77<>"",1,0) -> 0 | C43: 0 | D43: =IF($C43=1,'Sjekkliste noter'!A77,"") ->  | E43: =IF($C43=1,'Sjekkliste noter'!B77,"") ->  | G43: =IF($C43=1,'Sjekkliste noter'!H77,"") -> 
A44: ='Sjekkliste noter'!A78 -> 43 | B44: =IF('Sjekkliste noter'!E78<>"",1,0) -> 0 | C44: 0 | D44: =IF($C44=1,'Sjekkliste noter'!A78,"") ->  | E44: =IF($C44=1,'Sjekkliste noter'!B78,"") ->  | G44: =IF($C44=1,'Sjekkliste noter'!H78,"") -> 
A45: ='Sjekkliste noter'!A79 -> 44 | B45: =IF('Sjekkliste noter'!E79<>"",1,0) -> 0 | C45: 0 | D45: =IF($C45=1,'Sjekkliste noter'!A79,"") ->  | E45: =IF($C45=1,'Sjekkliste noter'!B79,"") ->  | G45: =IF($C45=1,'Sjekkliste noter'!H79,"") -> 
A46: ='Sjekkliste noter'!A81 -> 45 | B46: =IF('Sjekkliste noter'!E81<>"",1,0) -> 0 | C46: 0 | D46: =IF($C46=1,'Sjekkliste noter'!A81,"") ->  | E46: =IF($C46=1,'Sjekkliste noter'!B81,"") ->  | G46: =IF($C46=1,'Sjekkliste noter'!H81,"") -> 
A47: ='Sjekkliste noter'!A82 -> 46 | B47: =IF('Sjekkliste noter'!E82<>"",1,0) -> 0 | C47: 0 | D47: =IF($C47=1,'Sjekkliste noter'!A82,"") ->  | E47: =IF($C47=1,'Sjekkliste noter'!B82,"") ->  | G47: =IF($C47=1,'Sjekkliste noter'!H82,"") -> 
A48: ='Sjekkliste noter'!A84 -> 47 | B48: =IF('Sjekkliste noter'!E84<>"",1,0) -> 0 | C48: 0 | D48: =IF($C48=1,'Sjekkliste noter'!A84,"") ->  | E48: =IF($C48=1,'Sjekkliste noter'!B84,"") ->  | G48: =IF($C48=1,'Sjekkliste noter'!H84,"") -> 
A49: ='Sjekkliste noter'!A86 -> 48 | B49: =IF('Sjekkliste noter'!E86<>"",1,0) -> 0 | C49: 0 | D49: =IF($C49=1,'Sjekkliste noter'!A86,"") ->  | E49: =IF($C49=1,'Sjekkliste noter'!B86,"") ->  | G49: =IF($C49=1,'Sjekkliste noter'!H86,"") -> 
A50: ='Sjekkliste noter'!A87 -> 49 | B50: =IF('Sjekkliste noter'!E87<>"",1,0) -> 0 | C50: 0 | D50: =IF($C50=1,'Sjekkliste noter'!A87,"") ->  | E50: =IF($C50=1,'Sjekkliste noter'!B87,"") ->  | G50: =IF($C50=1,'Sjekkliste noter'!H87,"") -> 
A51: ='Sjekkliste noter'!A88 -> 50 | B51: =IF('Sjekkliste noter'!E88<>"",1,0) -> 0 | C51: 0 | D51: =IF($C51=1,'Sjekkliste noter'!A88,"") ->  | E51: =IF($C51=1,'Sjekkliste noter'!B88,"") ->  | G51: =IF($C51=1,'Sjekkliste noter'!H88,"") -> 
A52: ='Sjekkliste noter'!A94 -> 51 | B52: =IF('Sjekkliste noter'!E94<>"",1,0) -> 0 | C52: 0 | D52: =IF($C52=1,'Sjekkliste noter'!A94,"") ->  | E52: =IF($C52=1,'Sjekkliste noter'!B94,"") ->  | G52: =IF($C52=1,'Sjekkliste noter'!H94,"") -> 
A53: ='Sjekkliste noter'!A95 -> 52 | B53: =IF('Sjekkliste noter'!E95<>"",1,0) -> 0 | C53: 0 | D53: =IF($C53=1,'Sjekkliste noter'!A95,"") ->  | E53: =IF($C53=1,'Sjekkliste noter'!B95,"") ->  | G53: =IF($C53=1,'Sjekkliste noter'!H95,"") -> 
A54: ='Sjekkliste noter'!A96 -> 53 | B54: =IF('Sjekkliste noter'!E96<>"",1,0) -> 0 | C54: 0 | D54: =IF($C54=1,'Sjekkliste noter'!A96,"") ->  | E54: =IF($C54=1,'Sjekkliste noter'!B96,"") ->  | G54: =IF($C54=1,'Sjekkliste noter'!H96,"") -> 
A55: ='Sjekkliste noter'!A97 -> 54 | B55: =IF('Sjekkliste noter'!E97<>"",1,0) -> 0 | C55: 0 | D55: =IF($C55=1,'Sjekkliste noter'!A97,"") ->  | E55: =IF($C55=1,'Sjekkliste noter'!B97,"") ->  | G55: =IF($C55=1,'Sjekkliste noter'!H97,"") -> 
A56: ='Sjekkliste noter'!A98 -> 55 | B56: =IF('Sjekkliste noter'!E98<>"",1,0) -> 0 | C56: 0 | D56: =IF($C56=1,'Sjekkliste noter'!A98,"") ->  | E56: =IF($C56=1,'Sjekkliste noter'!B98,"") ->  | G56: =IF($C56=1,'Sjekkliste noter'!H98,"") -> 
A57: ='Sjekkliste noter'!A99 -> 56 | B57: =IF('Sjekkliste noter'!E99<>"",1,0) -> 0 | C57: 0 | D57: =IF($C57=1,'Sjekkliste noter'!A99,"") ->  | E57: =IF($C57=1,'Sjekkliste noter'!B99,"") ->  | G57: =IF($C57=1,'Sjekkliste noter'!H99,"") -> 
A58: ='Sjekkliste noter'!A101 -> 57 | B58: =IF('Sjekkliste noter'!E101<>"",1,0) -> 0 | C58: 0 | D58: =IF($C58=1,'Sjekkliste noter'!A101,"") ->  | E58: =IF($C58=1,'Sjekkliste noter'!B101,"") ->  | G58: =IF($C58=1,'Sjekkliste noter'!H101,"") -> 
A59: ='Sjekkliste noter'!A102 -> 58 | B59: =IF('Sjekkliste noter'!E102<>"",1,0) -> 0 | C59: 0 | D59: =IF($C59=1,'Sjekkliste noter'!A102,"") ->  | E59: =IF($C59=1,'Sjekkliste noter'!B102,"") ->  | G59: =IF($C59=1,'Sjekkliste noter'!H102,"") -> 
A60: ='Sjekkliste noter'!A104 -> 59 | B60: =IF('Sjekkliste noter'!E104<>"",1,0) -> 0 | C60: 0 | D60: =IF($C60=1,'Sjekkliste noter'!A104,"") ->  | E60: =IF($C60=1,'Sjekkliste noter'!B104,"") ->  | G60: =IF($C60=1,'Sjekkliste noter'!H104,"") -> 
A61: ='Sjekkliste noter'!A105 -> 60 | B61: =IF('Sjekkliste noter'!E105<>"",1,0) -> 0 | C61: 0 | D61: =IF($C61=1,'Sjekkliste noter'!A105,"") ->  | E61: =IF($C61=1,'Sjekkliste noter'!B105,"") ->  | G61: =IF($C61=1,'Sjekkliste noter'!H105,"") -> 
A62: ='Sjekkliste noter'!A107 -> 61 | B62: =IF('Sjekkliste noter'!E107<>"",1,0) -> 0 | C62: 0 | D62: =IF($C62=1,'Sjekkliste noter'!A107,"") ->  | E62: =IF($C62=1,'Sjekkliste noter'!B107,"") ->  | G62: =IF($C62=1,'Sjekkliste noter'!H107,"") -> 
A63: ='Sjekkliste noter'!A109 -> 62 | B63: =IF('Sjekkliste noter'!E109<>"",1,0) -> 0 | C63: 0 | D63: =IF($C63=1,'Sjekkliste noter'!A109,"") ->  | E63: =IF($C63=1,'Sjekkliste noter'!B109,"") ->  | G63: =IF($C63=1,'Sjekkliste noter'!H109,"") -> 
A64: ='Sjekkliste noter'!A111 -> 63 | B64: =IF('Sjekkliste noter'!E111<>"",1,0) -> 0 | C64: 0 | D64: =IF($C64=1,'Sjekkliste noter'!A111,"") ->  | E64: =IF($C64=1,'Sjekkliste noter'!B111,"") ->  | G64: =IF($C64=1,'Sjekkliste noter'!H111,"") -> 
A65: ='Sjekkliste noter'!A113 -> 64 | B65: =IF('Sjekkliste noter'!E113<>"",1,0) -> 0 | C65: 0 | D65: =IF($C65=1,'Sjekkliste noter'!A113,"") ->  | E65: =IF($C65=1,'Sjekkliste noter'!B113,"") ->  | G65: =IF($C65=1,'Sjekkliste noter'!H113,"") -> 
A66: ='Sjekkliste noter'!A115 -> 65 | B66: =IF('Sjekkliste noter'!E115<>"",1,0) -> 0 | C66: =SUM(B66:B66) -> 0 | D66: =IF($C66=1,'Sjekkliste noter'!A115,"") ->  | E66: =IF($C66=1,'Sjekkliste noter'!B115,"") ->  | G66: =IF($C66=1,'Sjekkliste noter'!H115,"") -> 
A67: ='Sjekkliste noter'!A118 -> 66 | B67: =IF('Sjekkliste noter'!E118<>"",1,0) -> 0 | C67: 0 | D67: =IF($C67=1,'Sjekkliste noter'!A118,"") ->  | E67: =IF($C67=1,'Sjekkliste noter'!B118,"") ->  | G67: =IF($C67=1,'Sjekkliste noter'!H118,"") -> 
A68: ='Sjekkliste noter'!A120 -> 67 | B68: =IF('Sjekkliste noter'!E120<>"",1,0) -> 0 | C68: 0 | D68: =IF($C68=1,'Sjekkliste noter'!A120,"") ->  | E68: =IF($C68=1,'Sjekkliste noter'!B120,"") ->  | G68: =IF($C68=1,'Sjekkliste noter'!H120,"") -> 
A69: ='Sjekkliste noter'!A121 -> 68 | B69: =IF('Sjekkliste noter'!E121<>"",1,0) -> 0 | C69: 0 | D69: =IF($C69=1,'Sjekkliste noter'!A121,"") ->  | E69: =IF($C69=1,'Sjekkliste noter'!B121,"") ->  | G69: =IF($C69=1,'Sjekkliste noter'!H121,"") -> 
A70: ='Sjekkliste noter'!A122 -> 69 | B70: =IF('Sjekkliste noter'!E122<>"",1,0) -> 0 | C70: 0 | D70: =IF($C70=1,'Sjekkliste noter'!A122,"") ->  | E70: =IF($C70=1,'Sjekkliste noter'!B122,"") ->  | G70: =IF($C70=1,'Sjekkliste noter'!H122,"") -> 
A71: ='Sjekkliste noter'!A124 -> 70 | B71: =IF('Sjekkliste noter'!E124<>"",1,0) -> 0 | C71: 0 | D71: =IF($C71=1,'Sjekkliste noter'!A124,"") ->  | E71: =IF($C71=1,'Sjekkliste noter'!B124,"") ->  | G71: =IF($C71=1,'Sjekkliste noter'!H124,"") -> 
A72: ='Sjekkliste noter'!A129 -> 71 | B72: =IF('Sjekkliste noter'!E129<>"",1,0) -> 0 | C72: 0 | D72: =IF($C72=1,'Sjekkliste noter'!A129,"") ->  | E72: =IF($C72=1,'Sjekkliste noter'!B129,"") ->  | G72: =IF($C72=1,'Sjekkliste noter'!H129,"") -> 
A73: ='Sjekkliste noter'!A130 -> 72 | B73: =IF('Sjekkliste noter'!E130<>"",1,0) -> 0 | C73: 0 | D73: =IF($C73=1,'Sjekkliste noter'!A130,"") ->  | E73: =IF($C73=1,'Sjekkliste noter'!B130,"") ->  | G73: =IF($C73=1,'Sjekkliste noter'!H130,"") -> 
A74: ='Sjekkliste noter'!A131 -> 73 | B74: =IF('Sjekkliste noter'!E131<>"",1,0) -> 0 | C74: 0 | D74: =IF($C74=1,'Sjekkliste noter'!A131,"") ->  | E74: =IF($C74=1,'Sjekkliste noter'!B131,"") ->  | G74: =IF($C74=1,'Sjekkliste noter'!H131,"") -> 
A75: ='Sjekkliste noter'!A132 -> 74 | B75: =IF('Sjekkliste noter'!E132<>"",1,0) -> 0 | C75: 0 | D75: =IF($C75=1,'Sjekkliste noter'!A132,"") ->  | E75: =IF($C75=1,'Sjekkliste noter'!B132,"") ->  | G75: =IF($C75=1,'Sjekkliste noter'!H132,"") -> 
A76: ='Sjekkliste noter'!A133 -> 75 | B76: =IF('Sjekkliste noter'!E133<>"",1,0) -> 0 | C76: 0 | D76: =IF($C76=1,'Sjekkliste noter'!A133,"") ->  | E76: =IF($C76=1,'Sjekkliste noter'!B133,"") ->  | G76: =IF($C76=1,'Sjekkliste noter'!H133,"") -> 
A77: ='Sjekkliste noter'!A135 -> 76 | B77: =IF('Sjekkliste noter'!E135<>"",1,0) -> 0 | C77: 0 | D77: =IF($C77=1,'Sjekkliste noter'!A135,"") ->  | E77: =IF($C77=1,'Sjekkliste noter'!B135,"") ->  | G77: =IF($C77=1,'Sjekkliste noter'!H135,"") -> 
A78: ='Sjekkliste noter'!A137 -> 77 | B78: =IF('Sjekkliste noter'!E137<>"",1,0) -> 0 | C78: 0 | D78: =IF($C78=1,'Sjekkliste noter'!A137,"") ->  | E78: =IF($C78=1,'Sjekkliste noter'!B137,"") ->  | G78: =IF($C78=1,'Sjekkliste noter'!H137,"") -> 
A79: ='Sjekkliste noter'!A139 -> 78 | B79: =IF('Sjekkliste noter'!E139<>"",1,0) -> 0 | C79: 0 | D79: =IF($C79=1,'Sjekkliste noter'!A139,"") ->  | E79: =IF($C79=1,'Sjekkliste noter'!B139,"") ->  | G79: =IF($C79=1,'Sjekkliste noter'!H139,"") -> 
A80: ='Sjekkliste noter'!A141 -> 79 | B80: =IF('Sjekkliste noter'!E141<>"",1,0) -> 0 | C80: 0 | D80: =IF($C80=1,'Sjekkliste noter'!A141,"") ->  | E80: =IF($C80=1,'Sjekkliste noter'!B141,"") ->  | G80: =IF($C80=1,'Sjekkliste noter'!H141,"") -> 
A81: ='Sjekkliste noter'!A142 -> 80 | B81: =IF('Sjekkliste noter'!E142<>"",1,0) -> 0 | C81: 0 | D81: =IF($C81=1,'Sjekkliste noter'!A142,"") ->  | E81: =IF($C81=1,'Sjekkliste noter'!B142,"") ->  | G81: =IF($C81=1,'Sjekkliste noter'!H142,"") -> 
A82: ='Sjekkliste noter'!A144 -> 81 | B82: =IF('Sjekkliste noter'!E144<>"",1,0) -> 0 | C82: 0 | D82: =IF($C82=1,'Sjekkliste noter'!A144,"") ->  | E82: =IF($C82=1,'Sjekkliste noter'!B144,"") ->  | G82: =IF($C82=1,'Sjekkliste noter'!H144,"") -> 
A83: ='Sjekkliste noter'!A146 -> 82 | B83: =IF('Sjekkliste noter'!E146<>"",1,0) -> 0 | C83: 0 | D83: =IF($C83=1,'Sjekkliste noter'!A146,"") ->  | E83: =IF($C83=1,'Sjekkliste noter'!B146,"") ->  | G83: =IF($C83=1,'Sjekkliste noter'!H146,"") -> 
A84: ='Sjekkliste noter'!A147 -> 83 | B84: =IF('Sjekkliste noter'!E147<>"",1,0) -> 0 | C84: 0 | D84: =IF($C84=1,'Sjekkliste noter'!A147,"") ->  | E84: =IF($C84=1,'Sjekkliste noter'!B147,"") ->  | G84: =IF($C84=1,'Sjekkliste noter'!H147,"") -> 
A85: ='Sjekkliste noter'!A149 -> 84 | B85: =IF('Sjekkliste noter'!E149<>"",1,0) -> 0 | C85: 0 | D85: =IF($C85=1,'Sjekkliste noter'!A149,"") ->  | E85: =IF($C85=1,'Sjekkliste noter'!B149,"") ->  | G85: =IF($C85=1,'Sjekkliste noter'!H149,"") -> 
A86: ='Sjekkliste noter'!A150 -> 85 | B86: =IF('Sjekkliste noter'!E150<>"",1,0) -> 0 | C86: 0 | D86: =IF($C86=1,'Sjekkliste noter'!A150,"") ->  | E86: =IF($C86=1,'Sjekkliste noter'!B150,"") ->  | G86: =IF($C86=1,'Sjekkliste noter'!H150,"") -> 
A87: ='Sjekkliste noter'!A152 -> 86 | B87: =IF('Sjekkliste noter'!E152<>"",1,0) -> 0 | C87: 0 | D87: =IF($C87=1,'Sjekkliste noter'!A152,"") ->  | E87: =IF($C87=1,'Sjekkliste noter'!B152,"") ->  | G87: =IF($C87=1,'Sjekkliste noter'!H152,"") -> 
A88: ='Sjekkliste noter'!A153 -> 87 | B88: =IF('Sjekkliste noter'!E153<>"",1,0) -> 0 | C88: 0 | D88: =IF($C88=1,'Sjekkliste noter'!A153,"") ->  | E88: =IF($C88=1,'Sjekkliste noter'!B153,"") ->  | G88: =IF($C88=1,'Sjekkliste noter'!H153,"") -> 
A89: ='Sjekkliste noter'!A155 -> 88 | B89: =IF('Sjekkliste noter'!E155<>"",1,0) -> 0 | C89: 0 | D89: =IF($C89=1,'Sjekkliste noter'!A155,"") ->  | E89: =IF($C89=1,'Sjekkliste noter'!B155,"") ->  | G89: =IF($C89=1,'Sjekkliste noter'!H155,"") -> 
A90: ='Sjekkliste noter'!A156 -> 89 | B90: =IF('Sjekkliste noter'!E156<>"",1,0) -> 0 | C90: 0 | D90: =IF($C90=1,'Sjekkliste noter'!A156,"") ->  | E90: =IF($C90=1,'Sjekkliste noter'!B156,"") ->  | G90: =IF($C90=1,'Sjekkliste noter'!H156,"") -> 
A91: ='Sjekkliste noter'!A158 -> 90 | B91: =IF('Sjekkliste noter'!E158<>"",1,0) -> 0 | C91: 0 | D91: =IF($C91=1,'Sjekkliste noter'!A158,"") ->  | E91: =IF($C91=1,'Sjekkliste noter'!B158,"") ->  | G91: =IF($C91=1,'Sjekkliste noter'!H158,"") -> 
A92: ='Sjekkliste noter'!A160 -> 91 | B92: =IF('Sjekkliste noter'!E160<>"",1,0) -> 0 | C92: 0 | D92: =IF($C92=1,'Sjekkliste noter'!A160,"") ->  | E92: =IF($C92=1,'Sjekkliste noter'!B160,"") ->  | G92: =IF($C92=1,'Sjekkliste noter'!H160,"") -> 
A93: ='Sjekkliste noter'!A162 -> 92 | B93: =IF('Sjekkliste noter'!E162<>"",1,0) -> 0 | C93: 0 | D93: =IF($C93=1,'Sjekkliste noter'!A162,"") ->  | E93: =IF($C93=1,'Sjekkliste noter'!B162,"") ->  | G93: =IF($C93=1,'Sjekkliste noter'!H162,"") -> 
A94: ='Sjekkliste noter'!A164 -> 93 | B94: =IF('Sjekkliste noter'!E164<>"",1,0) -> 0 | C94: 0 | D94: =IF($C94=1,'Sjekkliste noter'!A164,"") ->  | E94: =IF($C94=1,'Sjekkliste noter'!B164,"") ->  | G94: =IF($C94=1,'Sjekkliste noter'!H164,"") -> 
A95: ='Sjekkliste noter'!A166 -> 94 | B95: =IF('Sjekkliste noter'!E166<>"",1,0) -> 0 | C95: 0 | D95: =IF($C95=1,'Sjekkliste noter'!A166,"") ->  | E95: =IF($C95=1,'Sjekkliste noter'!B166,"") ->  | G95: =IF($C95=1,'Sjekkliste noter'!H166,"") -> 
A96: ='Sjekkliste noter'!A167 -> 95 | B96: =IF('Sjekkliste noter'!E167<>"",1,0) -> 0 | C96: 0 | D96: =IF($C96=1,'Sjekkliste noter'!A167,"") ->  | E96: =IF($C96=1,'Sjekkliste noter'!B167,"") ->  | G96: =IF($C96=1,'Sjekkliste noter'!H167,"") -> 
A97: ='Sjekkliste noter'!A170 -> 96 | B97: =IF('Sjekkliste noter'!E170<>"",1,0) -> 0 | C97: 0 | D97: =IF($C97=1,'Sjekkliste noter'!A170,"") ->  | E97: =IF($C97=1,'Sjekkliste noter'!B170,"") ->  | G97: =IF($C97=1,'Sjekkliste noter'!H170,"") -> 
A98: ='Sjekkliste noter'!A171 -> 97 | B98: =IF('Sjekkliste noter'!E171<>"",1,0) -> 0 | C98: 0 | D98: =IF($C98=1,'Sjekkliste noter'!A171,"") ->  | E98: =IF($C98=1,'Sjekkliste noter'!B171,"") ->  | G98: =IF($C98=1,'Sjekkliste noter'!H171,"") -> 
A99: ='Sjekkliste noter'!A172 -> 98 | B99: =IF('Sjekkliste noter'!E172<>"",1,0) -> 0 | C99: 0 | D99: =IF($C99=1,'Sjekkliste noter'!A172,"") ->  | E99: =IF($C99=1,'Sjekkliste noter'!B172,"") ->  | G99: =IF($C99=1,'Sjekkliste noter'!H172,"") -> 
A100: ='Sjekkliste noter'!A173 -> 99 | B100: =IF('Sjekkliste noter'!E173<>"",1,0) -> 0 | C100: 0 | D100: =IF($C100=1,'Sjekkliste noter'!A173,"") ->  | E100: =IF($C100=1,'Sjekkliste noter'!B173,"") ->  | G100: =IF($C100=1,'Sjekkliste noter'!H173,"") -> 
A101: ='Sjekkliste noter'!A174 -> 100 | B101: =IF('Sjekkliste noter'!E174<>"",1,0) -> 0 | C101: 0 | D101: =IF($C101=1,'Sjekkliste noter'!A174,"") ->  | E101: =IF($C101=1,'Sjekkliste noter'!B174,"") ->  | G101: =IF($C101=1,'Sjekkliste noter'!H174,"") -> 
A102: ='Sjekkliste noter'!A175 -> 101 | B102: =IF('Sjekkliste noter'!E175<>"",1,0) -> 0 | C102: 0 | D102: =IF($C102=1,'Sjekkliste noter'!A175,"") ->  | E102: =IF($C102=1,'Sjekkliste noter'!B175,"") ->  | G102: =IF($C102=1,'Sjekkliste noter'!H175,"") -> 
A103: ='Sjekkliste noter'!A178 -> 102 | B103: =IF('Sjekkliste noter'!E178<>"",1,0) -> 0 | C103: 0 | D103: =IF($C103=1,'Sjekkliste noter'!A178,"") ->  | E103: =IF($C103=1,'Sjekkliste noter'!B178,"") ->  | G103: =IF($C103=1,'Sjekkliste noter'!H178,"") -> 
A104: ='Sjekkliste noter'!A179 -> 103 | B104: =IF('Sjekkliste noter'!E179<>"",1,0) -> 0 | C104: 0 | D104: =IF($C104=1,'Sjekkliste noter'!A179,"") ->  | E104: =IF($C104=1,'Sjekkliste noter'!B179,"") ->  | G104: =IF($C104=1,'Sjekkliste noter'!H179,"") -> 
A105: ='Sjekkliste noter'!A180 -> 104 | B105: =IF('Sjekkliste noter'!E180<>"",1,0) -> 0 | C105: 0 | D105: =IF($C105=1,'Sjekkliste noter'!A180,"") ->  | E105: =IF($C105=1,'Sjekkliste noter'!B180,"") ->  | G105: =IF($C105=1,'Sjekkliste noter'!H180,"") -> 
A106: ='Sjekkliste noter'!A181 -> 105 | B106: =IF('Sjekkliste noter'!E181<>"",1,0) -> 0 | C106: 0 | D106: =IF($C106=1,'Sjekkliste noter'!A181,"") ->  | E106: =IF($C106=1,'Sjekkliste noter'!B181,"") ->  | G106: =IF($C106=1,'Sjekkliste noter'!H181,"") -> 
A107: ='Sjekkliste noter'!A182 -> 106 | B107: =IF('Sjekkliste noter'!E182<>"",1,0) -> 0 | C107: 0 | D107: =IF($C107=1,'Sjekkliste noter'!A182,"") ->  | E107: =IF($C107=1,'Sjekkliste noter'!B182,"") ->  | G107: =IF($C107=1,'Sjekkliste noter'!H182,"") -> 
A108: ='Sjekkliste noter'!A183 -> 107 | B108: =IF('Sjekkliste noter'!E183<>"",1,0) -> 0 | C108: 0 | D108: =IF($C108=1,'Sjekkliste noter'!A183,"") ->  | E108: =IF($C108=1,'Sjekkliste noter'!B183,"") ->  | G108: =IF($C108=1,'Sjekkliste noter'!H183,"") -> 
A109: ='Sjekkliste noter'!A184 -> 108 | B109: =IF('Sjekkliste noter'!E184<>"",1,0) -> 0 | C109: 0 | D109: =IF($C109=1,'Sjekkliste noter'!A184,"") ->  | E109: =IF($C109=1,'Sjekkliste noter'!B184,"") ->  | G109: =IF($C109=1,'Sjekkliste noter'!H184,"") -> 
A110: ='Sjekkliste noter'!A185 -> 109 | B110: =IF('Sjekkliste noter'!E185<>"",1,0) -> 0 | C110: 0 | D110: =IF($C110=1,'Sjekkliste noter'!A185,"") ->  | E110: =IF($C110=1,'Sjekkliste noter'!B185,"") ->  | G110: =IF($C110=1,'Sjekkliste noter'!H185,"") -> 
A111: ='Sjekkliste noter'!A186 -> 110 | B111: =IF('Sjekkliste noter'!E186<>"",1,0) -> 0 | C111: 0 | D111: =IF($C111=1,'Sjekkliste noter'!A186,"") ->  | E111: =IF($C111=1,'Sjekkliste noter'!B186,"") ->  | G111: =IF($C111=1,'Sjekkliste noter'!H186,"") -> 
A112: ='Sjekkliste noter'!A188 -> 111 | B112: =IF('Sjekkliste noter'!E188<>"",1,0) -> 0 | C112: 0 | D112: =IF($C112=1,'Sjekkliste noter'!A188,"") ->  | E112: =IF($C112=1,'Sjekkliste noter'!B188,"") ->  | G112: =IF($C112=1,'Sjekkliste noter'!H188,"") -> 
A113: ='Sjekkliste noter'!A189 -> 112 | B113: =IF('Sjekkliste noter'!E189<>"",1,0) -> 0 | C113: 0 | D113: =IF($C113=1,'Sjekkliste noter'!A189,"") ->  | E113: =IF($C113=1,'Sjekkliste noter'!B189,"") ->  | G113: =IF($C113=1,'Sjekkliste noter'!H189,"") -> 
A114: ='Sjekkliste noter'!A191 -> 113 | B114: =IF('Sjekkliste noter'!E191<>"",1,0) -> 0 | C114: 0 | D114: =IF($C114=1,'Sjekkliste noter'!A191,"") ->  | E114: =IF($C114=1,'Sjekkliste noter'!B191,"") ->  | G114: =IF($C114=1,'Sjekkliste noter'!H191,"") -> 
A115: ='Sjekkliste noter'!A192 -> 114 | B115: =IF('Sjekkliste noter'!E192<>"",1,0) -> 0 | C115: 0 | D115: =IF($C115=1,'Sjekkliste noter'!A192,"") ->  | E115: =IF($C115=1,'Sjekkliste noter'!B192,"") ->  | G115: =IF($C115=1,'Sjekkliste noter'!H192,"") -> 
A116: ='Sjekkliste noter'!A194 -> 115 | B116: =IF('Sjekkliste noter'!E194<>"",1,0) -> 0 | C116: 0 | D116: =IF($C116=1,'Sjekkliste noter'!A194,"") ->  | E116: =IF($C116=1,'Sjekkliste noter'!B194,"") ->  | G116: =IF($C116=1,'Sjekkliste noter'!H194,"") -> 
A117: ='Sjekkliste noter'!A195 -> 116 | B117: =IF('Sjekkliste noter'!E195<>"",1,0) -> 0 | C117: 0 | D117: =IF($C117=1,'Sjekkliste noter'!A195,"") ->  | E117: =IF($C117=1,'Sjekkliste noter'!B195,"") ->  | G117: =IF($C117=1,'Sjekkliste noter'!H195,"") -> 
A118: ='Sjekkliste noter'!A196 -> 117 | B118: =IF('Sjekkliste noter'!E196<>"",1,0) -> 0 | C118: 0 | D118: =IF($C118=1,'Sjekkliste noter'!A196,"") ->  | E118: =IF($C118=1,'Sjekkliste noter'!B196,"") ->  | G118: =IF($C118=1,'Sjekkliste noter'!H196,"") -> 
A119: ='Sjekkliste noter'!A197 -> 118 | B119: =IF('Sjekkliste noter'!E197<>"",1,0) -> 0 | C119: 0 | D119: =IF($C119=1,'Sjekkliste noter'!A197,"") ->  | E119: =IF($C119=1,'Sjekkliste noter'!B197,"") ->  | G119: =IF($C119=1,'Sjekkliste noter'!H197,"") -> 
A120: ='Sjekkliste noter'!A198 -> 119 | B120: =IF('Sjekkliste noter'!E198<>"",1,0) -> 0 | C120: 0 | D120: =IF($C120=1,'Sjekkliste noter'!A198,"") ->  | E120: =IF($C120=1,'Sjekkliste noter'!B198,"") ->  | G120: =IF($C120=1,'Sjekkliste noter'!H198,"") -> 
A121: ='Sjekkliste noter'!A199 -> 120 | B121: =IF('Sjekkliste noter'!E199<>"",1,0) -> 0 | C121: 0 | D121: =IF($C121=1,'Sjekkliste noter'!A199,"") ->  | E121: =IF($C121=1,'Sjekkliste noter'!B199,"") ->  | G121: =IF($C121=1,'Sjekkliste noter'!H199,"") -> 
A122: ='Sjekkliste noter'!A203 -> 121 | B122: =IF('Sjekkliste noter'!E203<>"",1,0) -> 0 | C122: 0 | D122: =IF($C122=1,'Sjekkliste noter'!A203,"") ->  | E122: =IF($C122=1,'Sjekkliste noter'!B203,"") ->  | G122: =IF($C122=1,'Sjekkliste noter'!H203,"") -> 
A123: ='Sjekkliste noter'!A204 -> 122 | B123: =IF('Sjekkliste noter'!E204<>"",1,0) -> 0 | C123: 0 | D123: =IF($C123=1,'Sjekkliste noter'!A204,"") ->  | E123: =IF($C123=1,'Sjekkliste noter'!B204,"") ->  | G123: =IF($C123=1,'Sjekkliste noter'!H204,"") -> 
A124: ='Sjekkliste noter'!A205 -> 123 | B124: =IF('Sjekkliste noter'!E205<>"",1,0) -> 0 | C124: 0 | D124: =IF($C124=1,'Sjekkliste noter'!A205,"") ->  | E124: =IF($C124=1,'Sjekkliste noter'!B205,"") ->  | G124: =IF($C124=1,'Sjekkliste noter'!H205,"") -> 
A125: ='Sjekkliste noter'!A206 -> 124 | B125: =IF('Sjekkliste noter'!E206<>"",1,0) -> 0 | C125: 0 | D125: =IF($C125=1,'Sjekkliste noter'!A206,"") ->  | E125: =IF($C125=1,'Sjekkliste noter'!B206,"") ->  | G125: =IF($C125=1,'Sjekkliste noter'!H206,"") -> 
A126: ='Sjekkliste noter'!A208 -> 125 | B126: =IF('Sjekkliste noter'!E208<>"",1,0) -> 0 | C126: 0 | D126: =IF($C126=1,'Sjekkliste noter'!A208,"") ->  | E126: =IF($C126=1,'Sjekkliste noter'!B208,"") ->  | G126: =IF($C126=1,'Sjekkliste noter'!H208,"") -> 
A127: ='Sjekkliste noter'!A209 -> 126 | B127: =IF('Sjekkliste noter'!E209<>"",1,0) -> 0 | C127: 0 | D127: =IF($C127=1,'Sjekkliste noter'!A209,"") ->  | E127: =IF($C127=1,'Sjekkliste noter'!B209,"") ->  | G127: =IF($C127=1,'Sjekkliste noter'!H209,"") -> 
A128: ='Sjekkliste noter'!A210 -> 127 | B128: =IF('Sjekkliste noter'!E210<>"",1,0) -> 0 | C128: 0 | D128: =IF($C128=1,'Sjekkliste noter'!A210,"") ->  | E128: =IF($C128=1,'Sjekkliste noter'!B210,"") ->  | G128: =IF($C128=1,'Sjekkliste noter'!H210,"") -> 
A129: ='Sjekkliste noter'!A212 -> 128 | B129: =IF('Sjekkliste noter'!E212<>"",1,0) -> 0 | C129: 0 | D129: =IF($C129=1,'Sjekkliste noter'!A212,"") ->  | E129: =IF($C129=1,'Sjekkliste noter'!B212,"") ->  | G129: =IF($C129=1,'Sjekkliste noter'!H212,"") -> 
A130: ='Sjekkliste noter'!A213 -> 129 | B130: =IF('Sjekkliste noter'!E213<>"",1,0) -> 0 | C130: =SUM(B130:B130) -> 0 | D130: =IF($C130=1,'Sjekkliste noter'!A213,"") ->  | E130: =IF($C130=1,'Sjekkliste noter'!B213,"") ->  | G130: =IF($C130=1,'Sjekkliste noter'!H213,"") -> 
A131: ='Sjekkliste noter'!A214 -> 130 | B131: =IF('Sjekkliste noter'!E214<>"",1,0) -> 0 | C131: 0 | D131: =IF($C131=1,'Sjekkliste noter'!A214,"") ->  | E131: =IF($C131=1,'Sjekkliste noter'!B214,"") ->  | G131: =IF($C131=1,'Sjekkliste noter'!H214,"") -> 
A132: ='Sjekkliste noter'!A217 -> 131 | B132: =IF('Sjekkliste noter'!E217<>"",1,0) -> 0 | C132: 0 | D132: =IF($C132=1,'Sjekkliste noter'!A217,"") ->  | E132: =IF($C132=1,'Sjekkliste noter'!B217,"") ->  | G132: =IF($C132=1,'Sjekkliste noter'!H217,"") -> 
A133: ='Sjekkliste noter'!A218 -> 132 | B133: =IF('Sjekkliste noter'!E218<>"",1,0) -> 0 | C133: 0 | D133: =IF($C133=1,'Sjekkliste noter'!A218,"") ->  | E133: =IF($C133=1,'Sjekkliste noter'!B218,"") ->  | G133: =IF($C133=1,'Sjekkliste noter'!H218,"") -> 
A134: ='Sjekkliste noter'!A220 -> 133 | B134: =IF('Sjekkliste noter'!E220<>"",1,0) -> 0 | C134: 0 | D134: =IF($C134=1,'Sjekkliste noter'!A220,"") ->  | E134: =IF($C134=1,'Sjekkliste noter'!B220,"") ->  | G134: =IF($C134=1,'Sjekkliste noter'!H220,"") -> 
A135: ='Sjekkliste noter'!A221 -> 134 | B135: =IF('Sjekkliste noter'!E221<>"",1,0) -> 0 | C135: 0 | D135: =IF($C135=1,'Sjekkliste noter'!A221,"") ->  | E135: =IF($C135=1,'Sjekkliste noter'!B221,"") ->  | G135: =IF($C135=1,'Sjekkliste noter'!H221,"") -> 
A136: ='Sjekkliste noter'!A224 -> 135 | B136: =IF('Sjekkliste noter'!E224<>"",1,0) -> 0 | C136: 0 | D136: =IF($C136=1,'Sjekkliste noter'!A224,"") ->  | E136: =IF($C136=1,'Sjekkliste noter'!B224,"") ->  | G136: =IF($C136=1,'Sjekkliste noter'!H224,"") -> 
A137: ='Sjekkliste noter'!A225 -> 136 | B137: =IF('Sjekkliste noter'!E225<>"",1,0) -> 0 | C137: 0 | D137: =IF($C137=1,'Sjekkliste noter'!A225,"") ->  | E137: =IF($C137=1,'Sjekkliste noter'!B225,"") ->  | G137: =IF($C137=1,'Sjekkliste noter'!H225,"") -> 
A138: ='Sjekkliste noter'!A227 -> 137 | B138: =IF('Sjekkliste noter'!E227<>"",1,0) -> 0 | C138: 0 | D138: =IF($C138=1,'Sjekkliste noter'!A227,"") ->  | E138: =IF($C138=1,'Sjekkliste noter'!B227,"") ->  | G138: =IF($C138=1,'Sjekkliste noter'!H227,"") -> 
A139: ='Sjekkliste noter'!A228 -> 138 | B139: =IF('Sjekkliste noter'!E228<>"",1,0) -> 0 | C139: 0 | D139: =IF($C139=1,'Sjekkliste noter'!A228,"") ->  | E139: =IF($C139=1,'Sjekkliste noter'!B228,"") ->  | G139: =IF($C139=1,'Sjekkliste noter'!H228,"") -> 
A140: ='Sjekkliste noter'!A230 -> 139 | B140: =IF('Sjekkliste noter'!E230<>"",1,0) -> 0 | C140: 0 | D140: =IF($C140=1,'Sjekkliste noter'!A230,"") ->  | E140: =IF($C140=1,'Sjekkliste noter'!B230,"") ->  | G140: =IF($C140=1,'Sjekkliste noter'!H230,"") -> 
A141: ='Sjekkliste noter'!A232 -> 140 | B141: =IF('Sjekkliste noter'!E232<>"",1,0) -> 0 | C141: 0 | D141: =IF($C141=1,'Sjekkliste noter'!A232,"") ->  | E141: =IF($C141=1,'Sjekkliste noter'!B232,"") ->  | G141: =IF($C141=1,'Sjekkliste noter'!H232,"") -> 
A142: ='Sjekkliste noter'!A235 -> 141 | B142: =IF('Sjekkliste noter'!E235<>"",1,0) -> 0 | C142: 0 | D142: =IF($C142=1,'Sjekkliste noter'!A235,"") ->  | E142: =IF($C142=1,'Sjekkliste noter'!B235,"") ->  | G142: =IF($C142=1,'Sjekkliste noter'!H235,"") -> 
A143: ='Sjekkliste noter'!A236 -> 142 | B143: =IF('Sjekkliste noter'!E236<>"",1,0) -> 0 | C143: 0 | D143: =IF($C143=1,'Sjekkliste noter'!A236,"") ->  | E143: =IF($C143=1,'Sjekkliste noter'!B236,"") ->  | G143: =IF($C143=1,'Sjekkliste noter'!H236,"") -> 
A144: ='Sjekkliste noter'!A237 -> 143 | B144: =IF('Sjekkliste noter'!E237<>"",1,0) -> 0 | C144: 0 | D144: =IF($C144=1,'Sjekkliste noter'!A237,"") ->  | E144: =IF($C144=1,'Sjekkliste noter'!B237,"") ->  | G144: =IF($C144=1,'Sjekkliste noter'!H237,"") -> 
A145: ='Sjekkliste noter'!A239 -> 144 | B145: =IF('Sjekkliste noter'!E239<>"",1,0) -> 0 | C145: 0 | D145: =IF($C145=1,'Sjekkliste noter'!A239,"") ->  | E145: =IF($C145=1,'Sjekkliste noter'!B239,"") ->  | G145: =IF($C145=1,'Sjekkliste noter'!H239,"") -> 
A146: ='Sjekkliste noter'!A240 -> 145 | B146: =IF('Sjekkliste noter'!E240<>"",1,0) -> 0 | C146: 0 | D146: =IF($C146=1,'Sjekkliste noter'!A240,"") ->  | E146: =IF($C146=1,'Sjekkliste noter'!B240,"") ->  | G146: =IF($C146=1,'Sjekkliste noter'!H240,"") -> 
A147: ='Sjekkliste noter'!A242 -> 146 | B147: =IF('Sjekkliste noter'!E242<>"",1,0) -> 0 | C147: 0 | D147: =IF($C147=1,'Sjekkliste noter'!A242,"") ->  | E147: =IF($C147=1,'Sjekkliste noter'!B242,"") ->  | G147: =IF($C147=1,'Sjekkliste noter'!H242,"") -> 
A148: ='Sjekkliste noter'!A243 -> 147 | B148: =IF('Sjekkliste noter'!E243<>"",1,0) -> 0 | C148: 0 | D148: =IF($C148=1,'Sjekkliste noter'!A243,"") ->  | E148: =IF($C148=1,'Sjekkliste noter'!B243,"") ->  | G148: =IF($C148=1,'Sjekkliste noter'!H243,"") -> 
A149: ='Sjekkliste noter'!A244 -> 148 | B149: =IF('Sjekkliste noter'!E244<>"",1,0) -> 0 | C149: 0 | D149: =IF($C149=1,'Sjekkliste noter'!A244,"") ->  | E149: =IF($C149=1,'Sjekkliste noter'!B244,"") ->  | G149: =IF($C149=1,'Sjekkliste noter'!H244,"") -> 
A150: ='Sjekkliste noter'!A246 -> 149 | B150: =IF('Sjekkliste noter'!E246<>"",1,0) -> 0 | C150: 0 | D150: =IF($C150=1,'Sjekkliste noter'!A246,"") ->  | E150: =IF($C150=1,'Sjekkliste noter'!B246,"") ->  | G150: =IF($C150=1,'Sjekkliste noter'!H246,"") -> 
A151: ='Sjekkliste noter'!A247 -> 150 | B151: =IF('Sjekkliste noter'!E247<>"",1,0) -> 0 | C151: 0 | D151: =IF($C151=1,'Sjekkliste noter'!A247,"") ->  | E151: =IF($C151=1,'Sjekkliste noter'!B247,"") ->  | G151: =IF($C151=1,'Sjekkliste noter'!H247,"") -> 
A152: ='Sjekkliste noter'!A248 -> 151 | B152: =IF('Sjekkliste noter'!E248<>"",1,0) -> 0 | C152: 0 | D152: =IF($C152=1,'Sjekkliste noter'!A248,"") ->  | E152: =IF($C152=1,'Sjekkliste noter'!B248,"") ->  | G152: =IF($C152=1,'Sjekkliste noter'!H248,"") -> 
A153: ='Sjekkliste noter'!A249 -> 152 | B153: =IF('Sjekkliste noter'!E249<>"",1,0) -> 0 | C153: 0 | D153: =IF($C153=1,'Sjekkliste noter'!A249,"") ->  | E153: =IF($C153=1,'Sjekkliste noter'!B249,"") ->  | G153: =IF($C153=1,'Sjekkliste noter'!H249,"") -> 
A154: ='Sjekkliste noter'!A250 -> 153 | B154: =IF('Sjekkliste noter'!E250<>"",1,0) -> 0 | C154: 0 | D154: =IF($C154=1,'Sjekkliste noter'!A250,"") ->  | E154: =IF($C154=1,'Sjekkliste noter'!B250,"") ->  | G154: =IF($C154=1,'Sjekkliste noter'!H250,"") -> 
A155: ='Sjekkliste noter'!A251 -> 154 | B155: =IF('Sjekkliste noter'!E251<>"",1,0) -> 0 | C155: 0 | D155: =IF($C155=1,'Sjekkliste noter'!A251,"") ->  | E155: =IF($C155=1,'Sjekkliste noter'!B251,"") ->  | G155: =IF($C155=1,'Sjekkliste noter'!H251,"") -> 
A156: ='Sjekkliste noter'!A252 -> 155 | B156: =IF('Sjekkliste noter'!E252<>"",1,0) -> 0 | C156: 0 | D156: =IF($C156=1,'Sjekkliste noter'!A252,"") ->  | E156: =IF($C156=1,'Sjekkliste noter'!B252,"") ->  | G156: =IF($C156=1,'Sjekkliste noter'!H252,"") -> 
A157: ='Sjekkliste noter'!A254 -> 156 | B157: =IF('Sjekkliste noter'!E254<>"",1,0) -> 0 | C157: 0 | D157: =IF($C157=1,'Sjekkliste noter'!A254,"") ->  | E157: =IF($C157=1,'Sjekkliste noter'!B254,"") ->  | G157: =IF($C157=1,'Sjekkliste noter'!H254,"") -> 
A158: ='Sjekkliste noter'!A255 -> 157 | B158: =IF('Sjekkliste noter'!E255<>"",1,0) -> 0 | C158: 0 | D158: =IF($C158=1,'Sjekkliste noter'!A255,"") ->  | E158: =IF($C158=1,'Sjekkliste noter'!B255,"") ->  | G158: =IF($C158=1,'Sjekkliste noter'!H255,"") -> 
A159: ='Sjekkliste noter'!A256 -> 158 | B159: =IF('Sjekkliste noter'!E256<>"",1,0) -> 0 | C159: 0 | D159: =IF($C159=1,'Sjekkliste noter'!A256,"") ->  | E159: =IF($C159=1,'Sjekkliste noter'!B256,"") ->  | G159: =IF($C159=1,'Sjekkliste noter'!H256,"") -> 
A160: ='Sjekkliste noter'!A258 -> 159 | B160: =IF('Sjekkliste noter'!E258<>"",1,0) -> 0 | C160: 0 | D160: =IF($C160=1,'Sjekkliste noter'!A258,"") ->  | E160: =IF($C160=1,'Sjekkliste noter'!B258,"") ->  | G160: =IF($C160=1,'Sjekkliste noter'!H258,"") -> 
A161: ='Sjekkliste noter'!A259 -> 160 | B161: =IF('Sjekkliste noter'!E259<>"",1,0) -> 0 | C161: 0 | D161: =IF($C161=1,'Sjekkliste noter'!A259,"") ->  | E161: =IF($C161=1,'Sjekkliste noter'!B259,"") ->  | G161: =IF($C161=1,'Sjekkliste noter'!H259,"") -> 
A162: ='Sjekkliste noter'!A260 -> 161 | B162: =IF('Sjekkliste noter'!E260<>"",1,0) -> 0 | C162: 0 | D162: =IF($C162=1,'Sjekkliste noter'!A260,"") ->  | E162: =IF($C162=1,'Sjekkliste noter'!B260,"") ->  | G162: =IF($C162=1,'Sjekkliste noter'!H260,"") -> 
A163: ='Sjekkliste noter'!A261 -> 162 | B163: =IF('Sjekkliste noter'!E261<>"",1,0) -> 0 | C163: 0 | D163: =IF($C163=1,'Sjekkliste noter'!A261,"") ->  | E163: =IF($C163=1,'Sjekkliste noter'!B261,"") ->  | G163: =IF($C163=1,'Sjekkliste noter'!H261,"") -> 
A164: ='Sjekkliste noter'!A262 -> 163 | B164: =IF('Sjekkliste noter'!E262<>"",1,0) -> 0 | C164: 0 | D164: =IF($C164=1,'Sjekkliste noter'!A262,"") ->  | E164: =IF($C164=1,'Sjekkliste noter'!B262,"") ->  | G164: =IF($C164=1,'Sjekkliste noter'!H262,"") -> 
A165: ='Sjekkliste noter'!A263 -> 164 | B165: =IF('Sjekkliste noter'!E263<>"",1,0) -> 0 | C165: 0 | D165: =IF($C165=1,'Sjekkliste noter'!A263,"") ->  | E165: =IF($C165=1,'Sjekkliste noter'!B263,"") ->  | G165: =IF($C165=1,'Sjekkliste noter'!H263,"") -> 
A166: ='Sjekkliste noter'!A264 -> 165 | B166: =IF('Sjekkliste noter'!E264<>"",1,0) -> 0 | C166: 0 | D166: =IF($C166=1,'Sjekkliste noter'!A264,"") ->  | E166: =IF($C166=1,'Sjekkliste noter'!B264,"") ->  | G166: =IF($C166=1,'Sjekkliste noter'!H264,"") -> 
A167: ='Sjekkliste noter'!A265 -> 166 | B167: =IF('Sjekkliste noter'!E265<>"",1,0) -> 0 | C167: 0 | D167: =IF($C167=1,'Sjekkliste noter'!A265,"") ->  | E167: =IF($C167=1,'Sjekkliste noter'!B265,"") ->  | G167: =IF($C167=1,'Sjekkliste noter'!H265,"") -> 
A168: ='Sjekkliste noter'!A266 -> 167 | B168: =IF('Sjekkliste noter'!E266<>"",1,0) -> 0 | C168: 0 | D168: =IF($C168=1,'Sjekkliste noter'!A266,"") ->  | E168: =IF($C168=1,'Sjekkliste noter'!B266,"") ->  | G168: =IF($C168=1,'Sjekkliste noter'!H266,"") -> 
A169: ='Sjekkliste noter'!A268 -> 168 | B169: =IF('Sjekkliste noter'!E268<>"",1,0) -> 0 | C169: 0 | D169: =IF($C169=1,'Sjekkliste noter'!A268,"") ->  | E169: =IF($C169=1,'Sjekkliste noter'!B268,"") ->  | G169: =IF($C169=1,'Sjekkliste noter'!H268,"") -> 
A170: ='Sjekkliste noter'!A269 -> 169 | B170: =IF('Sjekkliste noter'!E269<>"",1,0) -> 0 | C170: 0 | D170: =IF($C170=1,'Sjekkliste noter'!A269,"") ->  | E170: =IF($C170=1,'Sjekkliste noter'!B269,"") ->  | G170: =IF($C170=1,'Sjekkliste noter'!H269,"") -> 
A171: ='Sjekkliste noter'!A271 -> 170 | B171: =IF('Sjekkliste noter'!E271<>"",1,0) -> 0 | C171: 0 | D171: =IF($C171=1,'Sjekkliste noter'!A271,"") ->  | E171: =IF($C171=1,'Sjekkliste noter'!B271,"") ->  | G171: =IF($C171=1,'Sjekkliste noter'!H271,"") -> 
A172: ='Sjekkliste noter'!A272 -> 171 | B172: =IF('Sjekkliste noter'!E272<>"",1,0) -> 0 | C172: 0 | D172: =IF($C172=1,'Sjekkliste noter'!A272,"") ->  | E172: =IF($C172=1,'Sjekkliste noter'!B272,"") ->  | G172: =IF($C172=1,'Sjekkliste noter'!H272,"") -> 
A173: ='Sjekkliste noter'!A275 -> 172 | B173: =IF('Sjekkliste noter'!E275<>"",1,0) -> 0 | C173: 0 | D173: =IF($C173=1,'Sjekkliste noter'!A275,"") ->  | E173: =IF($C173=1,'Sjekkliste noter'!B275,"") ->  | G173: =IF($C173=1,'Sjekkliste noter'!H275,"") -> 
A174: ='Sjekkliste noter'!A276 -> 173 | B174: =IF('Sjekkliste noter'!E276<>"",1,0) -> 0 | C174: 0 | D174: =IF($C174=1,'Sjekkliste noter'!A276,"") ->  | E174: =IF($C174=1,'Sjekkliste noter'!B276,"") ->  | G174: =IF($C174=1,'Sjekkliste noter'!H276,"") -> 
A175: ='Sjekkliste noter'!A278 -> 174 | B175: =IF('Sjekkliste noter'!E278<>"",1,0) -> 0 | C175: 0 | D175: =IF($C175=1,'Sjekkliste noter'!A278,"") ->  | E175: =IF($C175=1,'Sjekkliste noter'!B278,"") ->  | G175: =IF($C175=1,'Sjekkliste noter'!H278,"") -> 
A176: ='Sjekkliste noter'!A280 -> 175 | B176: =IF('Sjekkliste noter'!E280<>"",1,0) -> 0 | C176: 0 | D176: =IF($C176=1,'Sjekkliste noter'!A280,"") ->  | E176: =IF($C176=1,'Sjekkliste noter'!B280,"") ->  | G176: =IF($C176=1,'Sjekkliste noter'!H280,"") -> 
A177: ='Sjekkliste noter'!A281 -> 176 | B177: =IF('Sjekkliste noter'!E281<>"",1,0) -> 0 | C177: 0 | D177: =IF($C177=1,'Sjekkliste noter'!A281,"") ->  | E177: =IF($C177=1,'Sjekkliste noter'!B281,"") ->  | G177: =IF($C177=1,'Sjekkliste noter'!H281,"") -> 
A178: ='Sjekkliste noter'!A282 -> 177 | B178: =IF('Sjekkliste noter'!E282<>"",1,0) -> 0 | C178: 0 | D178: =IF($C178=1,'Sjekkliste noter'!A282,"") ->  | E178: =IF($C178=1,'Sjekkliste noter'!B282,"") ->  | G178: =IF($C178=1,'Sjekkliste noter'!H282,"") -> 
A179: ='Sjekkliste noter'!A283 -> 178 | B179: =IF('Sjekkliste noter'!E283<>"",1,0) -> 0 | C179: 0 | D179: =IF($C179=1,'Sjekkliste noter'!A283,"") ->  | E179: =IF($C179=1,'Sjekkliste noter'!B283,"") ->  | G179: =IF($C179=1,'Sjekkliste noter'!H283,"") -> 
A180: ='Sjekkliste noter'!A284 -> 179 | B180: =IF('Sjekkliste noter'!E284<>"",1,0) -> 0 | C180: 0 | D180: =IF($C180=1,'Sjekkliste noter'!A284,"") ->  | E180: =IF($C180=1,'Sjekkliste noter'!B284,"") ->  | G180: =IF($C180=1,'Sjekkliste noter'!H284,"") -> 
A181: ='Sjekkliste noter'!A285 -> 180 | B181: =IF('Sjekkliste noter'!E285<>"",1,0) -> 0 | C181: 0 | D181: =IF($C181=1,'Sjekkliste noter'!A285,"") ->  | E181: =IF($C181=1,'Sjekkliste noter'!B285,"") ->  | G181: =IF($C181=1,'Sjekkliste noter'!H285,"") -> 
A182: ='Sjekkliste noter'!A286 -> 181 | B182: =IF('Sjekkliste noter'!E286<>"",1,0) -> 0 | C182: 0 | D182: =IF($C182=1,'Sjekkliste noter'!A286,"") ->  | E182: =IF($C182=1,'Sjekkliste noter'!B286,"") ->  | G182: =IF($C182=1,'Sjekkliste noter'!H286,"") -> 
A183: ='Sjekkliste noter'!A287 -> 182 | B183: =IF('Sjekkliste noter'!E287<>"",1,0) -> 0 | C183: 0 | D183: =IF($C183=1,'Sjekkliste noter'!A287,"") ->  | E183: =IF($C183=1,'Sjekkliste noter'!B287,"") ->  | G183: =IF($C183=1,'Sjekkliste noter'!H287,"") -> 
A184: ='Sjekkliste noter'!A290 -> 183 | B184: =IF('Sjekkliste noter'!E290<>"",1,0) -> 0 | C184: 0 | D184: =IF($C184=1,'Sjekkliste noter'!A290,"") ->  | E184: =IF($C184=1,'Sjekkliste noter'!B290,"") ->  | G184: =IF($C184=1,'Sjekkliste noter'!H290,"") -> 
A185: ='Sjekkliste noter'!A291 -> 184 | B185: =IF('Sjekkliste noter'!E291<>"",1,0) -> 0 | C185: 0 | D185: =IF($C185=1,'Sjekkliste noter'!A291,"") ->  | E185: =IF($C185=1,'Sjekkliste noter'!B291,"") ->  | G185: =IF($C185=1,'Sjekkliste noter'!H291,"") -> 
A186: ='Sjekkliste noter'!A295 -> 185 | B186: =IF('Sjekkliste noter'!E295<>"",1,0) -> 0 | C186: 0 | D186: =IF($C186=1,'Sjekkliste noter'!A295,"") ->  | E186: =IF($C186=1,'Sjekkliste noter'!B295,"") ->  | G186: =IF($C186=1,'Sjekkliste noter'!H295,"") -> 
A187: ='Sjekkliste noter'!A296 -> 186 | B187: =IF('Sjekkliste noter'!E296<>"",1,0) -> 0 | C187: 0 | D187: =IF($C187=1,'Sjekkliste noter'!A296,"") ->  | E187: =IF($C187=1,'Sjekkliste noter'!B296,"") ->  | G187: =IF($C187=1,'Sjekkliste noter'!H296,"") -> 
A188: ='Sjekkliste noter'!A297 -> 187 | B188: =IF('Sjekkliste noter'!E297<>"",1,0) -> 0 | C188: 0 | D188: =IF($C188=1,'Sjekkliste noter'!A297,"") ->  | E188: =IF($C188=1,'Sjekkliste noter'!B297,"") ->  | G188: =IF($C188=1,'Sjekkliste noter'!H297,"") -> 
A189: ='Sjekkliste noter'!A298 -> 188 | B189: =IF('Sjekkliste noter'!E298<>"",1,0) -> 0 | C189: 0 | D189: =IF($C189=1,'Sjekkliste noter'!A298,"") ->  | E189: =IF($C189=1,'Sjekkliste noter'!B298,"") ->  | G189: =IF($C189=1,'Sjekkliste noter'!H298,"") -> 
A190: ='Sjekkliste noter'!A301 -> 189 | B190: =IF('Sjekkliste noter'!E301<>"",1,0) -> 0 | C190: 0 | D190: =IF($C190=1,'Sjekkliste noter'!A301,"") ->  | E190: =IF($C190=1,'Sjekkliste noter'!B301,"") ->  | G190: =IF($C190=1,'Sjekkliste noter'!H301,"") -> 
A191: ='Sjekkliste noter'!A302 -> 190 | B191: =IF('Sjekkliste noter'!E302<>"",1,0) -> 0 | C191: 0 | D191: =IF($C191=1,'Sjekkliste noter'!A302,"") ->  | E191: =IF($C191=1,'Sjekkliste noter'!B302,"") ->  | G191: =IF($C191=1,'Sjekkliste noter'!H302,"") -> 
A192: ='Sjekkliste noter'!A303 -> 191 | B192: =IF('Sjekkliste noter'!E303<>"",1,0) -> 0 | C192: 0 | D192: =IF($C192=1,'Sjekkliste noter'!A303,"") ->  | E192: =IF($C192=1,'Sjekkliste noter'!B303,"") ->  | G192: =IF($C192=1,'Sjekkliste noter'!H303,"") -> 
A193: ='Sjekkliste noter'!A304 -> 192 | B193: =IF('Sjekkliste noter'!E304<>"",1,0) -> 0 | C193: 0 | D193: =IF($C193=1,'Sjekkliste noter'!A304,"") ->  | E193: =IF($C193=1,'Sjekkliste noter'!B304,"") ->  | G193: =IF($C193=1,'Sjekkliste noter'!H304,"") -> 
A194: ='Sjekkliste noter'!A308 -> 193 | B194: =IF('Sjekkliste noter'!E308<>"",1,0) -> 0 | C194: =SUM(B194:B194) -> 0 | D194: =IF($C194=1,'Sjekkliste noter'!A308,"") ->  | E194: =IF($C194=1,'Sjekkliste noter'!B308,"") ->  | G194: =IF($C194=1,'Sjekkliste noter'!H308,"") -> 
A195: ='Sjekkliste noter'!A309 -> 194 | B195: =IF('Sjekkliste noter'!E309<>"",1,0) -> 0 | C195: 0 | D195: =IF($C195=1,'Sjekkliste noter'!A309,"") ->  | E195: =IF($C195=1,'Sjekkliste noter'!B309,"") ->  | G195: =IF($C195=1,'Sjekkliste noter'!H309,"") -> 
A196: ='Sjekkliste noter'!A310 -> 195 | B196: =IF('Sjekkliste noter'!E310<>"",1,0) -> 0 | C196: 0 | D196: =IF($C196=1,'Sjekkliste noter'!A310,"") ->  | E196: =IF($C196=1,'Sjekkliste noter'!B310,"") ->  | G196: =IF($C196=1,'Sjekkliste noter'!H310,"") -> 
A197: ='Sjekkliste noter'!A311 -> 196 | B197: =IF('Sjekkliste noter'!E311<>"",1,0) -> 0 | C197: 0 | D197: =IF($C197=1,'Sjekkliste noter'!A311,"") ->  | E197: =IF($C197=1,'Sjekkliste noter'!B311,"") ->  | G197: =IF($C197=1,'Sjekkliste noter'!H311,"") -> 
A198: ='Sjekkliste noter'!A313 -> 197 | B198: =IF('Sjekkliste noter'!E313<>"",1,0) -> 0 | C198: 0 | D198: =IF($C198=1,'Sjekkliste noter'!A313,"") ->  | E198: =IF($C198=1,'Sjekkliste noter'!B313,"") ->  | G198: =IF($C198=1,'Sjekkliste noter'!H313,"") -> 
A199: ='Sjekkliste noter'!A315 -> 198 | B199: =IF('Sjekkliste noter'!E315<>"",1,0) -> 0 | C199: 0 | D199: =IF($C199=1,'Sjekkliste noter'!A315,"") ->  | E199: =IF($C199=1,'Sjekkliste noter'!B315,"") ->  | G199: =IF($C199=1,'Sjekkliste noter'!H315,"") -> 
A200: ='Sjekkliste noter'!A316 -> 199 | B200: =IF('Sjekkliste noter'!E316<>"",1,0) -> 0 | C200: 0 | D200: =IF($C200=1,'Sjekkliste noter'!A316,"") ->  | E200: =IF($C200=1,'Sjekkliste noter'!B316,"") ->  | G200: =IF($C200=1,'Sjekkliste noter'!H316,"") -> 
... 233 more rows

Sheet N_Nei (hidden)
C1: =COUNTIF(C2:C2,"=1") -> 0 | D1: Nei-svar | E1: =+Forside!B2 -> 0 | F1: =+Forside!B3 -> 2021 | G1: Kommentarer
A2: =+'Sjekkliste noter'!A17 -> 1 | B2: =IF('Sjekkliste noter'!F17<>"",1,0) -> 0 | C2: =SUM(B2:B2) -> 0 | D2: =IF($C2=1,'Sjekkliste noter'!A17,"") ->  | E2: =IF($C2=1,'Sjekkliste noter'!B17,"") ->  | G2: =IF($C2=1,'Sjekkliste noter'!H17,"") -> 
A3: =+'Sjekkliste noter'!A19 -> 2 | B3: =IF('Sjekkliste noter'!F19<>"",1,0) -> 0 | C3: 0 | D3: =IF($C3=1,'Sjekkliste noter'!A19,"") ->  | E3: =IF($C3=1,'Sjekkliste noter'!B19,"") ->  | G3: =IF($C3=1,'Sjekkliste noter'!H19,"") -> 
A4: =+'Sjekkliste noter'!A20 -> 3 | B4: =IF('Sjekkliste noter'!F20<>"",1,0) -> 0 | C4: 0 | D4: =IF($C4=1,'Sjekkliste noter'!A20,"") ->  | E4: =IF($C4=1,'Sjekkliste noter'!B20,"") ->  | G4: =IF($C4=1,'Sjekkliste noter'!H20,"") -> 
A5: =+'Sjekkliste noter'!A21 -> 4 | B5: =IF('Sjekkliste noter'!F21<>"",1,0) -> 0 | C5: 0 | D5: =IF($C5=1,'Sjekkliste noter'!A21,"") ->  | E5: =IF($C5=1,'Sjekkliste noter'!B21,"") ->  | G5: =IF($C5=1,'Sjekkliste noter'!H21,"") -> 
A6: =+'Sjekkliste noter'!A22 -> 5 | B6: =IF('Sjekkliste noter'!F22<>"",1,0) -> 0 | C6: 0 | D6: =IF($C6=1,'Sjekkliste noter'!A22,"") ->  | E6: =IF($C6=1,'Sjekkliste noter'!B22,"") ->  | G6: =IF($C6=1,'Sjekkliste noter'!H22,"") -> 
A7: =+'Sjekkliste noter'!A23 -> 6 | B7: =IF('Sjekkliste noter'!F23<>"",1,0) -> 0 | C7: 0 | D7: =IF($C7=1,'Sjekkliste noter'!A23,"") ->  | E7: =IF($C7=1,'Sjekkliste noter'!B23,"") ->  | G7: =IF($C7=1,'Sjekkliste noter'!H23,"") -> 
A8: =+'Sjekkliste noter'!A24 -> 7 | B8: =IF('Sjekkliste noter'!F24<>"",1,0) -> 0 | C8: 0 | D8: =IF($C8=1,'Sjekkliste noter'!A24,"") ->  | E8: =IF($C8=1,'Sjekkliste noter'!B24,"") ->  | G8: =IF($C8=1,'Sjekkliste noter'!H24,"") -> 
A9: =+'Sjekkliste noter'!A26 -> 8 | B9: =IF('Sjekkliste noter'!F26<>"",1,0) -> 0 | C9: 0 | D9: =IF($C9=1,'Sjekkliste noter'!A26,"") ->  | E9: =IF($C9=1,'Sjekkliste noter'!B26,"") ->  | G9: =IF($C9=1,'Sjekkliste noter'!H26,"") -> 
A10: =+'Sjekkliste noter'!A28 -> 9 | B10: =IF('Sjekkliste noter'!F28<>"",1,0) -> 0 | C10: 0 | D10: =IF($C10=1,'Sjekkliste noter'!A28,"") ->  | E10: =IF($C10=1,'Sjekkliste noter'!B28,"") ->  | G10: =IF($C10=1,'Sjekkliste noter'!H28,"") -> 
A11: =+'Sjekkliste noter'!A29 -> 10 | B11: =IF('Sjekkliste noter'!F29<>"",1,0) -> 0 | C11: 0 | D11: =IF($C11=1,'Sjekkliste noter'!A29,"") ->  | E11: =IF($C11=1,'Sjekkliste noter'!B29,"") ->  | G11: =IF($C11=1,'Sjekkliste noter'!H29,"") -> 
A12: =+'Sjekkliste noter'!A30 -> 11 | B12: =IF('Sjekkliste noter'!F30<>"",1,0) -> 0 | C12: 0 | D12: =IF($C12=1,'Sjekkliste noter'!A30,"") ->  | E12: =IF($C12=1,'Sjekkliste noter'!B30,"") ->  | G12: =IF($C12=1,'Sjekkliste noter'!H30,"") -> 
A13: =+'Sjekkliste noter'!A31 -> 12 | B13: =IF('Sjekkliste noter'!F31<>"",1,0) -> 0 | C13: 0 | D13: =IF($C13=1,'Sjekkliste noter'!A31,"") ->  | E13: =IF($C13=1,'Sjekkliste noter'!B31,"") ->  | G13: =IF($C13=1,'Sjekkliste noter'!H31,"") -> 
A14: =+'Sjekkliste noter'!A32 -> 13 | B14: =IF('Sjekkliste noter'!F32<>"",1,0) -> 0 | C14: 0 | D14: =IF($C14=1,'Sjekkliste noter'!A32,"") ->  | E14: =IF($C14=1,'Sjekkliste noter'!B32,"") ->  | G14: =IF($C14=1,'Sjekkliste noter'!H32,"") -> 
A15: =+'Sjekkliste noter'!A33 -> 14 | B15: =IF('Sjekkliste noter'!F33<>"",1,0) -> 0 | C15: 0 | D15: =IF($C15=1,'Sjekkliste noter'!A33,"") ->  | E15: =IF($C15=1,'Sjekkliste noter'!B33,"") ->  | G15: =IF($C15=1,'Sjekkliste noter'!H33,"") -> 
A16: =+'Sjekkliste noter'!A34 -> 15 | B16: =IF('Sjekkliste noter'!F34<>"",1,0) -> 0 | C16: 0 | D16: =IF($C16=1,'Sjekkliste noter'!A34,"") ->  | E16: =IF($C16=1,'Sjekkliste noter'!B34,"") ->  | G16: =IF($C16=1,'Sjekkliste noter'!H34,"") -> 
A17: =+'Sjekkliste noter'!A35 -> 16 | B17: =IF('Sjekkliste noter'!F35<>"",1,0) -> 0 | C17: 0 | D17: =IF($C17=1,'Sjekkliste noter'!A35,"") ->  | E17: =IF($C17=1,'Sjekkliste noter'!B35,"") ->  | G17: =IF($C17=1,'Sjekkliste noter'!H35,"") -> 
A18: =+'Sjekkliste noter'!A38 -> 17 | B18: =IF('Sjekkliste noter'!F38<>"",1,0) -> 0 | C18: 0 | D18: =IF($C18=1,'Sjekkliste noter'!A38,"") ->  | E18: =IF($C18=1,'Sjekkliste noter'!B38,"") ->  | G18: =IF($C18=1,'Sjekkliste noter'!H38,"") -> 
A19: =+'Sjekkliste noter'!A39 -> 18 | B19: =IF('Sjekkliste noter'!F39<>"",1,0) -> 0 | C19: 0 | D19: =IF($C19=1,'Sjekkliste noter'!A39,"") ->  | E19: =IF($C19=1,'Sjekkliste noter'!B39,"") ->  | G19: =IF($C19=1,'Sjekkliste noter'!H39,"") -> 
A20: =+'Sjekkliste noter'!A40 -> 19 | B20: =IF('Sjekkliste noter'!F40<>"",1,0) -> 0 | C20: 0 | D20: =IF($C20=1,'Sjekkliste noter'!A40,"") ->  | E20: =IF($C20=1,'Sjekkliste noter'!B40,"") ->  | G20: =IF($C20=1,'Sjekkliste noter'!H40,"") -> 
A21: =+'Sjekkliste noter'!A41 -> 20 | B21: =IF('Sjekkliste noter'!F41<>"",1,0) -> 0 | C21: 0 | D21: =IF($C21=1,'Sjekkliste noter'!A41,"") ->  | E21: =IF($C21=1,'Sjekkliste noter'!B41,"") ->  | G21: =IF($C21=1,'Sjekkliste noter'!H41,"") -> 
A22: =+'Sjekkliste noter'!A42 -> 21 | B22: =IF('Sjekkliste noter'!F42<>"",1,0) -> 0 | C22: 0 | D22: =IF($C22=1,'Sjekkliste noter'!A42,"") ->  | E22: =IF($C22=1,'Sjekkliste noter'!B42,"") ->  | G22: =IF($C22=1,'Sjekkliste noter'!H42,"") -> 
A23: =+'Sjekkliste noter'!A43 -> 22 | B23: =IF('Sjekkliste noter'!F43<>"",1,0) -> 0 | C23: 0 | D23: =IF($C23=1,'Sjekkliste noter'!A43,"") ->  | E23: =IF($C23=1,'Sjekkliste noter'!B43,"") ->  | G23: =IF($C23=1,'Sjekkliste noter'!H43,"") -> 
A24: =+'Sjekkliste noter'!A45 -> 23 | B24: =IF('Sjekkliste noter'!F45<>"",1,0) -> 0 | C24: 0 | D24: =IF($C24=1,'Sjekkliste noter'!A45,"") ->  | E24: =IF($C24=1,'Sjekkliste noter'!B45,"") ->  | G24: =IF($C24=1,'Sjekkliste noter'!H45,"") -> 
A25: =+'Sjekkliste noter'!A46 -> 24 | B25: =IF('Sjekkliste noter'!F46<>"",1,0) -> 0 | C25: 0 | D25: =IF($C25=1,'Sjekkliste noter'!A46,"") ->  | E25: =IF($C25=1,'Sjekkliste noter'!B46,"") ->  | G25: =IF($C25=1,'Sjekkliste noter'!H46,"") -> 
A26: =+'Sjekkliste noter'!A48 -> 25 | B26: =IF('Sjekkliste noter'!F48<>"",1,0) -> 0 | C26: 0 | D26: =IF($C26=1,'Sjekkliste noter'!A48,"") ->  | E26: =IF($C26=1,'Sjekkliste noter'!B48,"") ->  | G26: =IF($C26=1,'Sjekkliste noter'!H48,"") -> 
A27: =+'Sjekkliste noter'!A49 -> 26 | B27: =IF('Sjekkliste noter'!F49<>"",1,0) -> 0 | C27: 0 | D27: =IF($C27=1,'Sjekkliste noter'!A49,"") ->  | E27: =IF($C27=1,'Sjekkliste noter'!B49,"") ->  | G27: =IF($C27=1,'Sjekkliste noter'!H49,"") -> 
A28: =+'Sjekkliste noter'!A53 -> 27 | B28: =IF('Sjekkliste noter'!F53<>"",1,0) -> 0 | C28: 0 | D28: =IF($C28=1,'Sjekkliste noter'!A53,"") ->  | E28: =IF($C28=1,'Sjekkliste noter'!B53,"") ->  | G28: =IF($C28=1,'Sjekkliste noter'!H53,"") -> 
A29: =+'Sjekkliste noter'!A55 -> 28 | B29: =IF('Sjekkliste noter'!F55<>"",1,0) -> 0 | C29: 0 | D29: =IF($C29=1,'Sjekkliste noter'!A55,"") ->  | E29: =IF($C29=1,'Sjekkliste noter'!B55,"") ->  | G29: =IF($C29=1,'Sjekkliste noter'!H55,"") -> 
A30: =+'Sjekkliste noter'!A56 -> 29 | B30: =IF('Sjekkliste noter'!F56<>"",1,0) -> 0 | C30: 0 | D30: =IF($C30=1,'Sjekkliste noter'!A56,"") ->  | E30: =IF($C30=1,'Sjekkliste noter'!B56,"") ->  | G30: =IF($C30=1,'Sjekkliste noter'!H56,"") -> 
A31: =+'Sjekkliste noter'!A57 -> 30 | B31: =IF('Sjekkliste noter'!F57<>"",1,0) -> 0 | C31: 0 | D31: =IF($C31=1,'Sjekkliste noter'!A57,"") ->  | E31: =IF($C31=1,'Sjekkliste noter'!B57,"") ->  | G31: =IF($C31=1,'Sjekkliste noter'!H57,"") -> 
A32: =+'Sjekkliste noter'!A58 -> 31 | B32: =IF('Sjekkliste noter'!F58<>"",1,0) -> 0 | C32: 0 | D32: =IF($C32=1,'Sjekkliste noter'!A58,"") ->  | E32: =IF($C32=1,'Sjekkliste noter'!B58,"") ->  | G32: =IF($C32=1,'Sjekkliste noter'!H58,"") -> 
A33: =+'Sjekkliste noter'!A59 -> 32 | B33: =IF('Sjekkliste noter'!F59<>"",1,0) -> 0 | C33: 0 | D33: =IF($C33=1,'Sjekkliste noter'!A59,"") ->  | E33: =IF($C33=1,'Sjekkliste noter'!B59,"") ->  | G33: =IF($C33=1,'Sjekkliste noter'!H59,"") -> 
A34: =+'Sjekkliste noter'!A65 -> 33 | B34: =IF('Sjekkliste noter'!F65<>"",1,0) -> 0 | C34: 0 | D34: =IF($C34=1,'Sjekkliste noter'!A65,"") ->  | E34: =IF($C34=1,'Sjekkliste noter'!B65,"") ->  | G34: =IF($C34=1,'Sjekkliste noter'!H65,"") -> 
A35: =+'Sjekkliste noter'!A66 -> 34 | B35: =IF('Sjekkliste noter'!F66<>"",1,0) -> 0 | C35: 0 | D35: =IF($C35=1,'Sjekkliste noter'!A66,"") ->  | E35: =IF($C35=1,'Sjekkliste noter'!B66,"") ->  | G35: =IF($C35=1,'Sjekkliste noter'!H66,"") -> 
A36: =+'Sjekkliste noter'!A67 -> 35 | B36: =IF('Sjekkliste noter'!F67<>"",1,0) -> 0 | C36: 0 | D36: =IF($C36=1,'Sjekkliste noter'!A67,"") ->  | E36: =IF($C36=1,'Sjekkliste noter'!B67,"") ->  | G36: =IF($C36=1,'Sjekkliste noter'!H67,"") -> 
A37: =+'Sjekkliste noter'!A68 -> 36 | B37: =IF('Sjekkliste noter'!F68<>"",1,0) -> 0 | C37: 0 | D37: =IF($C37=1,'Sjekkliste noter'!A68,"") ->  | E37: =IF($C37=1,'Sjekkliste noter'!B68,"") ->  | G37: =IF($C37=1,'Sjekkliste noter'!H68,"") -> 
A38: =+'Sjekkliste noter'!A69 -> 37 | B38: =IF('Sjekkliste noter'!F69<>"",1,0) -> 0 | C38: 0 | D38: =IF($C38=1,'Sjekkliste noter'!A69,"") ->  | E38: =IF($C38=1,'Sjekkliste noter'!B69,"") ->  | G38: =IF($C38=1,'Sjekkliste noter'!H69,"") -> 
A39: =+'Sjekkliste noter'!A70 -> 38 | B39: =IF('Sjekkliste noter'!F70<>"",1,0) -> 0 | C39: 0 | D39: =IF($C39=1,'Sjekkliste noter'!A70,"") ->  | E39: =IF($C39=1,'Sjekkliste noter'!B70,"") ->  | G39: =IF($C39=1,'Sjekkliste noter'!H70,"") -> 
A40: =+'Sjekkliste noter'!A71 -> 39 | B40: =IF('Sjekkliste noter'!F71<>"",1,0) -> 0 | C40: 0 | D40: =IF($C40=1,'Sjekkliste noter'!A71,"") ->  | E40: =IF($C40=1,'Sjekkliste noter'!B71,"") ->  | G40: =IF($C40=1,'Sjekkliste noter'!H71,"") -> 
A41: =+'Sjekkliste noter'!A72 -> 40 | B41: =IF('Sjekkliste noter'!F72<>"",1,0) -> 0 | C41: 0 | D41: =IF($C41=1,'Sjekkliste noter'!A72,"") ->  | E41: =IF($C41=1,'Sjekkliste noter'!B72,"") ->  | G41: =IF($C41=1,'Sjekkliste noter'!H72,"") -> 
A42: =+'Sjekkliste noter'!A74 -> 41 | B42: =IF('Sjekkliste noter'!F74<>"",1,0) -> 0 | C42: 0 | D42: =IF($C42=1,'Sjekkliste noter'!A74,"") ->  | E42: =IF($C42=1,'Sjekkliste noter'!B74,"") ->  | G42: =IF($C42=1,'Sjekkliste noter'!H74,"") -> 
A43: =+'Sjekkliste noter'!A77 -> 42 | B43: =IF('Sjekkliste noter'!F77<>"",1,0) -> 0 | C43: 0 | D43: =IF($C43=1,'Sjekkliste noter'!A77,"") ->  | E43: =IF($C43=1,'Sjekkliste noter'!B77,"") ->  | G43: =IF($C43=1,'Sjekkliste noter'!H77,"") -> 
A44: =+'Sjekkliste noter'!A78 -> 43 | B44: =IF('Sjekkliste noter'!F78<>"",1,0) -> 0 | C44: 0 | D44: =IF($C44=1,'Sjekkliste noter'!A78,"") ->  | E44: =IF($C44=1,'Sjekkliste noter'!B78,"") ->  | G44: =IF($C44=1,'Sjekkliste noter'!H78,"") -> 
A45: =+'Sjekkliste noter'!A79 -> 44 | B45: =IF('Sjekkliste noter'!F79<>"",1,0) -> 0 | C45: 0 | D45: =IF($C45=1,'Sjekkliste noter'!A79,"") ->  | E45: =IF($C45=1,'Sjekkliste noter'!B79,"") ->  | G45: =IF($C45=1,'Sjekkliste noter'!H79,"") -> 
A46: =+'Sjekkliste noter'!A81 -> 45 | B46: =IF('Sjekkliste noter'!F81<>"",1,0) -> 0 | C46: 0 | D46: =IF($C46=1,'Sjekkliste noter'!A81,"") ->  | E46: =IF($C46=1,'Sjekkliste noter'!B81,"") ->  | G46: =IF($C46=1,'Sjekkliste noter'!H81,"") -> 
A47: =+'Sjekkliste noter'!A82 -> 46 | B47: =IF('Sjekkliste noter'!F82<>"",1,0) -> 0 | C47: 0 | D47: =IF($C47=1,'Sjekkliste noter'!A82,"") ->  | E47: =IF($C47=1,'Sjekkliste noter'!B82,"") ->  | G47: =IF($C47=1,'Sjekkliste noter'!H82,"") -> 
A48: =+'Sjekkliste noter'!A84 -> 47 | B48: =IF('Sjekkliste noter'!F84<>"",1,0) -> 0 | C48: 0 | D48: =IF($C48=1,'Sjekkliste noter'!A84,"") ->  | E48: =IF($C48=1,'Sjekkliste noter'!B84,"") ->  | G48: =IF($C48=1,'Sjekkliste noter'!H84,"") -> 
A49: =+'Sjekkliste noter'!A86 -> 48 | B49: =IF('Sjekkliste noter'!F86<>"",1,0) -> 0 | C49: 0 | D49: =IF($C49=1,'Sjekkliste noter'!A86,"") ->  | E49: =IF($C49=1,'Sjekkliste noter'!B86,"") ->  | G49: =IF($C49=1,'Sjekkliste noter'!H86,"") -> 
A50: =+'Sjekkliste noter'!A87 -> 49 | B50: =IF('Sjekkliste noter'!F87<>"",1,0) -> 0 | C50: 0 | D50: =IF($C50=1,'Sjekkliste noter'!A87,"") ->  | E50: =IF($C50=1,'Sjekkliste noter'!B87,"") ->  | G50: =IF($C50=1,'Sjekkliste noter'!H87,"") -> 
A51: =+'Sjekkliste noter'!A88 -> 50 | B51: =IF('Sjekkliste noter'!F88<>"",1,0) -> 0 | C51: 0 | D51: =IF($C51=1,'Sjekkliste noter'!A88,"") ->  | E51: =IF($C51=1,'Sjekkliste noter'!B88,"") ->  | G51: =IF($C51=1,'Sjekkliste noter'!H88,"") -> 
A52: =+'Sjekkliste noter'!A94 -> 51 | B52: =IF('Sjekkliste noter'!F94<>"",1,0) -> 0 | C52: 0 | D52: =IF($C52=1,'Sjekkliste noter'!A94,"") ->  | E52: =IF($C52=1,'Sjekkliste noter'!B94,"") ->  | G52: =IF($C52=1,'Sjekkliste noter'!H94,"") -> 
A53: =+'Sjekkliste noter'!A95 -> 52 | B53: =IF('Sjekkliste noter'!F95<>"",1,0) -> 0 | C53: 0 | D53: =IF($C53=1,'Sjekkliste noter'!A95,"") ->  | E53: =IF($C53=1,'Sjekkliste noter'!B95,"") ->  | G53: =IF($C53=1,'Sjekkliste noter'!H95,"") -> 
A54: =+'Sjekkliste noter'!A96 -> 53 | B54: =IF('Sjekkliste noter'!F96<>"",1,0) -> 0 | C54: 0 | D54: =IF($C54=1,'Sjekkliste noter'!A96,"") ->  | E54: =IF($C54=1,'Sjekkliste noter'!B96,"") ->  | G54: =IF($C54=1,'Sjekkliste noter'!H96,"") -> 
A55: =+'Sjekkliste noter'!A97 -> 54 | B55: =IF('Sjekkliste noter'!F97<>"",1,0) -> 0 | C55: 0 | D55: =IF($C55=1,'Sjekkliste noter'!A97,"") ->  | E55: =IF($C55=1,'Sjekkliste noter'!B97,"") ->  | G55: =IF($C55=1,'Sjekkliste noter'!H97,"") -> 
A56: =+'Sjekkliste noter'!A98 -> 55 | B56: =IF('Sjekkliste noter'!F98<>"",1,0) -> 0 | C56: 0 | D56: =IF($C56=1,'Sjekkliste noter'!A98,"") ->  | E56: =IF($C56=1,'Sjekkliste noter'!B98,"") ->  | G56: =IF($C56=1,'Sjekkliste noter'!H98,"") -> 
A57: =+'Sjekkliste noter'!A99 -> 56 | B57: =IF('Sjekkliste noter'!F99<>"",1,0) -> 0 | C57: 0 | D57: =IF($C57=1,'Sjekkliste noter'!A99,"") ->  | E57: =IF($C57=1,'Sjekkliste noter'!B99,"") ->  | G57: =IF($C57=1,'Sjekkliste noter'!H99,"") -> 
A58: =+'Sjekkliste noter'!A101 -> 57 | B58: =IF('Sjekkliste noter'!F101<>"",1,0) -> 0 | C58: 0 | D58: =IF($C58=1,'Sjekkliste noter'!A101,"") ->  | E58: =IF($C58=1,'Sjekkliste noter'!B101,"") ->  | G58: =IF($C58=1,'Sjekkliste noter'!H101,"") -> 
A59: =+'Sjekkliste noter'!A102 -> 58 | B59: =IF('Sjekkliste noter'!F102<>"",1,0) -> 0 | C59: 0 | D59: =IF($C59=1,'Sjekkliste noter'!A102,"") ->  | E59: =IF($C59=1,'Sjekkliste noter'!B102,"") ->  | G59: =IF($C59=1,'Sjekkliste noter'!H102,"") -> 
A60: =+'Sjekkliste noter'!A104 -> 59 | B60: =IF('Sjekkliste noter'!F104<>"",1,0) -> 0 | C60: 0 | D60: =IF($C60=1,'Sjekkliste noter'!A104,"") ->  | E60: =IF($C60=1,'Sjekkliste noter'!B104,"") ->  | G60: =IF($C60=1,'Sjekkliste noter'!H104,"") -> 
A61: =+'Sjekkliste noter'!A105 -> 60 | B61: =IF('Sjekkliste noter'!F105<>"",1,0) -> 0 | C61: 0 | D61: =IF($C61=1,'Sjekkliste noter'!A105,"") ->  | E61: =IF($C61=1,'Sjekkliste noter'!B105,"") ->  | G61: =IF($C61=1,'Sjekkliste noter'!H105,"") -> 
A62: =+'Sjekkliste noter'!A107 -> 61 | B62: =IF('Sjekkliste noter'!F107<>"",1,0) -> 0 | C62: 0 | D62: =IF($C62=1,'Sjekkliste noter'!A107,"") ->  | E62: =IF($C62=1,'Sjekkliste noter'!B107,"") ->  | G62: =IF($C62=1,'Sjekkliste noter'!H107,"") -> 
A63: =+'Sjekkliste noter'!A109 -> 62 | B63: =IF('Sjekkliste noter'!F109<>"",1,0) -> 0 | C63: 0 | D63: =IF($C63=1,'Sjekkliste noter'!A109,"") ->  | E63: =IF($C63=1,'Sjekkliste noter'!B109,"") ->  | G63: =IF($C63=1,'Sjekkliste noter'!H109,"") -> 
A64: =+'Sjekkliste noter'!A111 -> 63 | B64: =IF('Sjekkliste noter'!F111<>"",1,0) -> 0 | C64: 0 | D64: =IF($C64=1,'Sjekkliste noter'!A111,"") ->  | E64: =IF($C64=1,'Sjekkliste noter'!B111,"") ->  | G64: =IF($C64=1,'Sjekkliste noter'!H111,"") -> 
A65: =+'Sjekkliste noter'!A113 -> 64 | B65: =IF('Sjekkliste noter'!F113<>"",1,0) -> 0 | C65: 0 | D65: =IF($C65=1,'Sjekkliste noter'!A113,"") ->  | E65: =IF($C65=1,'Sjekkliste noter'!B113,"") ->  | G65: =IF($C65=1,'Sjekkliste noter'!H113,"") -> 
A66: =+'Sjekkliste noter'!A115 -> 65 | B66: =IF('Sjekkliste noter'!F115<>"",1,0) -> 0 | C66: =SUM(B66:B66) -> 0 | D66: =IF($C66=1,'Sjekkliste noter'!A115,"") ->  | E66: =IF($C66=1,'Sjekkliste noter'!B115,"") ->  | G66: =IF($C66=1,'Sjekkliste noter'!H115,"") -> 
A67: =+'Sjekkliste noter'!A118 -> 66 | B67: =IF('Sjekkliste noter'!F118<>"",1,0) -> 0 | C67: 0 | D67: =IF($C67=1,'Sjekkliste noter'!A118,"") ->  | E67: =IF($C67=1,'Sjekkliste noter'!B118,"") ->  | G67: =IF($C67=1,'Sjekkliste noter'!H118,"") -> 
A68: =+'Sjekkliste noter'!A120 -> 67 | B68: =IF('Sjekkliste noter'!F120<>"",1,0) -> 0 | C68: 0 | D68: =IF($C68=1,'Sjekkliste noter'!A120,"") ->  | E68: =IF($C68=1,'Sjekkliste noter'!B120,"") ->  | G68: =IF($C68=1,'Sjekkliste noter'!H120,"") -> 
A69: =+'Sjekkliste noter'!A121 -> 68 | B69: =IF('Sjekkliste noter'!F121<>"",1,0) -> 0 | C69: 0 | D69: =IF($C69=1,'Sjekkliste noter'!A121,"") ->  | E69: =IF($C69=1,'Sjekkliste noter'!B121,"") ->  | G69: =IF($C69=1,'Sjekkliste noter'!H121,"") -> 
A70: =+'Sjekkliste noter'!A122 -> 69 | B70: =IF('Sjekkliste noter'!F122<>"",1,0) -> 0 | C70: 0 | D70: =IF($C70=1,'Sjekkliste noter'!A122,"") ->  | E70: =IF($C70=1,'Sjekkliste noter'!B122,"") ->  | G70: =IF($C70=1,'Sjekkliste noter'!H122,"") -> 
A71: =+'Sjekkliste noter'!A124 -> 70 | B71: =IF('Sjekkliste noter'!F124<>"",1,0) -> 0 | C71: 0 | D71: =IF($C71=1,'Sjekkliste noter'!A124,"") ->  | E71: =IF($C71=1,'Sjekkliste noter'!B124,"") ->  | G71: =IF($C71=1,'Sjekkliste noter'!H124,"") -> 
A72: =+'Sjekkliste noter'!A129 -> 71 | B72: =IF('Sjekkliste noter'!F129<>"",1,0) -> 0 | C72: 0 | D72: =IF($C72=1,'Sjekkliste noter'!A129,"") ->  | E72: =IF($C72=1,'Sjekkliste noter'!B129,"") ->  | G72: =IF($C72=1,'Sjekkliste noter'!H129,"") -> 
A73: =+'Sjekkliste noter'!A130 -> 72 | B73: =IF('Sjekkliste noter'!F130<>"",1,0) -> 0 | C73: 0 | D73: =IF($C73=1,'Sjekkliste noter'!A130,"") ->  | E73: =IF($C73=1,'Sjekkliste noter'!B130,"") ->  | G73: =IF($C73=1,'Sjekkliste noter'!H130,"") -> 
A74: =+'Sjekkliste noter'!A131 -> 73 | B74: =IF('Sjekkliste noter'!F131<>"",1,0) -> 0 | C74: 0 | D74: =IF($C74=1,'Sjekkliste noter'!A131,"") ->  | E74: =IF($C74=1,'Sjekkliste noter'!B131,"") ->  | G74: =IF($C74=1,'Sjekkliste noter'!H131,"") -> 
A75: =+'Sjekkliste noter'!A132 -> 74 | B75: =IF('Sjekkliste noter'!F132<>"",1,0) -> 0 | C75: 0 | D75: =IF($C75=1,'Sjekkliste noter'!A132,"") ->  | E75: =IF($C75=1,'Sjekkliste noter'!B132,"") ->  | G75: =IF($C75=1,'Sjekkliste noter'!H132,"") -> 
A76: =+'Sjekkliste noter'!A133 -> 75 | B76: =IF('Sjekkliste noter'!F133<>"",1,0) -> 0 | C76: 0 | D76: =IF($C76=1,'Sjekkliste noter'!A133,"") ->  | E76: =IF($C76=1,'Sjekkliste noter'!B133,"") ->  | G76: =IF($C76=1,'Sjekkliste noter'!H133,"") -> 
A77: =+'Sjekkliste noter'!A135 -> 76 | B77: =IF('Sjekkliste noter'!F135<>"",1,0) -> 0 | C77: 0 | D77: =IF($C77=1,'Sjekkliste noter'!A135,"") ->  | E77: =IF($C77=1,'Sjekkliste noter'!B135,"") ->  | G77: =IF($C77=1,'Sjekkliste noter'!H135,"") -> 
A78: =+'Sjekkliste noter'!A137 -> 77 | B78: =IF('Sjekkliste noter'!F137<>"",1,0) -> 0 | C78: 0 | D78: =IF($C78=1,'Sjekkliste noter'!A137,"") ->  | E78: =IF($C78=1,'Sjekkliste noter'!B137,"") ->  | G78: =IF($C78=1,'Sjekkliste noter'!H137,"") -> 
A79: =+'Sjekkliste noter'!A139 -> 78 | B79: =IF('Sjekkliste noter'!F139<>"",1,0) -> 0 | C79: 0 | D79: =IF($C79=1,'Sjekkliste noter'!A139,"") ->  | E79: =IF($C79=1,'Sjekkliste noter'!B139,"") ->  | G79: =IF($C79=1,'Sjekkliste noter'!H139,"") -> 
A80: =+'Sjekkliste noter'!A141 -> 79 | B80: =IF('Sjekkliste noter'!F141<>"",1,0) -> 0 | C80: 0 | D80: =IF($C80=1,'Sjekkliste noter'!A141,"") ->  | E80: =IF($C80=1,'Sjekkliste noter'!B141,"") ->  | G80: =IF($C80=1,'Sjekkliste noter'!H141,"") -> 
A81: =+'Sjekkliste noter'!A142 -> 80 | B81: =IF('Sjekkliste noter'!F142<>"",1,0) -> 0 | C81: 0 | D81: =IF($C81=1,'Sjekkliste noter'!A142,"") ->  | E81: =IF($C81=1,'Sjekkliste noter'!B142,"") ->  | G81: =IF($C81=1,'Sjekkliste noter'!H142,"") -> 
A82: =+'Sjekkliste noter'!A144 -> 81 | B82: =IF('Sjekkliste noter'!F144<>"",1,0) -> 0 | C82: 0 | D82: =IF($C82=1,'Sjekkliste noter'!A144,"") ->  | E82: =IF($C82=1,'Sjekkliste noter'!B144,"") ->  | G82: =IF($C82=1,'Sjekkliste noter'!H144,"") -> 
A83: =+'Sjekkliste noter'!A146 -> 82 | B83: =IF('Sjekkliste noter'!F146<>"",1,0) -> 0 | C83: 0 | D83: =IF($C83=1,'Sjekkliste noter'!A146,"") ->  | E83: =IF($C83=1,'Sjekkliste noter'!B146,"") ->  | G83: =IF($C83=1,'Sjekkliste noter'!H146,"") -> 
A84: =+'Sjekkliste noter'!A147 -> 83 | B84: =IF('Sjekkliste noter'!F147<>"",1,0) -> 0 | C84: 0 | D84: =IF($C84=1,'Sjekkliste noter'!A147,"") ->  | E84: =IF($C84=1,'Sjekkliste noter'!B147,"") ->  | G84: =IF($C84=1,'Sjekkliste noter'!H147,"") -> 
A85: =+'Sjekkliste noter'!A149 -> 84 | B85: =IF('Sjekkliste noter'!F149<>"",1,0) -> 0 | C85: 0 | D85: =IF($C85=1,'Sjekkliste noter'!A149,"") ->  | E85: =IF($C85=1,'Sjekkliste noter'!B149,"") ->  | G85: =IF($C85=1,'Sjekkliste noter'!H149,"") -> 
A86: =+'Sjekkliste noter'!A150 -> 85 | B86: =IF('Sjekkliste noter'!F150<>"",1,0) -> 0 | C86: 0 | D86: =IF($C86=1,'Sjekkliste noter'!A150,"") ->  | E86: =IF($C86=1,'Sjekkliste noter'!B150,"") ->  | G86: =IF($C86=1,'Sjekkliste noter'!H150,"") -> 
A87: =+'Sjekkliste noter'!A152 -> 86 | B87: =IF('Sjekkliste noter'!F152<>"",1,0) -> 0 | C87: 0 | D87: =IF($C87=1,'Sjekkliste noter'!A152,"") ->  | E87: =IF($C87=1,'Sjekkliste noter'!B152,"") ->  | G87: =IF($C87=1,'Sjekkliste noter'!H152,"") -> 
A88: =+'Sjekkliste noter'!A153 -> 87 | B88: =IF('Sjekkliste noter'!F153<>"",1,0) -> 0 | C88: 0 | D88: =IF($C88=1,'Sjekkliste noter'!A153,"") ->  | E88: =IF($C88=1,'Sjekkliste noter'!B153,"") ->  | G88: =IF($C88=1,'Sjekkliste noter'!H153,"") -> 
A89: =+'Sjekkliste noter'!A155 -> 88 | B89: =IF('Sjekkliste noter'!F155<>"",1,0) -> 0 | C89: 0 | D89: =IF($C89=1,'Sjekkliste noter'!A155,"") ->  | E89: =IF($C89=1,'Sjekkliste noter'!B155,"") ->  | G89: =IF($C89=1,'Sjekkliste noter'!H155,"") -> 
A90: =+'Sjekkliste noter'!A156 -> 89 | B90: =IF('Sjekkliste noter'!F156<>"",1,0) -> 0 | C90: 0 | D90: =IF($C90=1,'Sjekkliste noter'!A156,"") ->  | E90: =IF($C90=1,'Sjekkliste noter'!B156,"") ->  | G90: =IF($C90=1,'Sjekkliste noter'!H156,"") -> 
A91: =+'Sjekkliste noter'!A158 -> 90 | B91: =IF('Sjekkliste noter'!F158<>"",1,0) -> 0 | C91: 0 | D91: =IF($C91=1,'Sjekkliste noter'!A158,"") ->  | E91: =IF($C91=1,'Sjekkliste noter'!B158,"") ->  | G91: =IF($C91=1,'Sjekkliste noter'!H158,"") -> 
A92: =+'Sjekkliste noter'!A160 -> 91 | B92: =IF('Sjekkliste noter'!F160<>"",1,0) -> 0 | C92: 0 | D92: =IF($C92=1,'Sjekkliste noter'!A160,"") ->  | E92: =IF($C92=1,'Sjekkliste noter'!B160,"") ->  | G92: =IF($C92=1,'Sjekkliste noter'!H160,"") -> 
A93: =+'Sjekkliste noter'!A162 -> 92 | B93: =IF('Sjekkliste noter'!F162<>"",1,0) -> 0 | C93: 0 | D93: =IF($C93=1,'Sjekkliste noter'!A162,"") ->  | E93: =IF($C93=1,'Sjekkliste noter'!B162,"") ->  | G93: =IF($C93=1,'Sjekkliste noter'!H162,"") -> 
A94: =+'Sjekkliste noter'!A164 -> 93 | B94: =IF('Sjekkliste noter'!F164<>"",1,0) -> 0 | C94: 0 | D94: =IF($C94=1,'Sjekkliste noter'!A164,"") ->  | E94: =IF($C94=1,'Sjekkliste noter'!B164,"") ->  | G94: =IF($C94=1,'Sjekkliste noter'!H164,"") -> 
A95: =+'Sjekkliste noter'!A166 -> 94 | B95: =IF('Sjekkliste noter'!F166<>"",1,0) -> 0 | C95: 0 | D95: =IF($C95=1,'Sjekkliste noter'!A166,"") ->  | E95: =IF($C95=1,'Sjekkliste noter'!B166,"") ->  | G95: =IF($C95=1,'Sjekkliste noter'!H166,"") -> 
A96: =+'Sjekkliste noter'!A167 -> 95 | B96: =IF('Sjekkliste noter'!F167<>"",1,0) -> 0 | C96: 0 | D96: =IF($C96=1,'Sjekkliste noter'!A167,"") ->  | E96: =IF($C96=1,'Sjekkliste noter'!B167,"") ->  | G96: =IF($C96=1,'Sjekkliste noter'!H167,"") -> 
A97: =+'Sjekkliste noter'!A170 -> 96 | B97: =IF('Sjekkliste noter'!F170<>"",1,0) -> 0 | C97: 0 | D97: =IF($C97=1,'Sjekkliste noter'!A170,"") ->  | E97: =IF($C97=1,'Sjekkliste noter'!B170,"") ->  | G97: =IF($C97=1,'Sjekkliste noter'!H170,"") -> 
A98: =+'Sjekkliste noter'!A171 -> 97 | B98: =IF('Sjekkliste noter'!F171<>"",1,0) -> 0 | C98: 0 | D98: =IF($C98=1,'Sjekkliste noter'!A171,"") ->  | E98: =IF($C98=1,'Sjekkliste noter'!B171,"") ->  | G98: =IF($C98=1,'Sjekkliste noter'!H171,"") -> 
A99: =+'Sjekkliste noter'!A172 -> 98 | B99: =IF('Sjekkliste noter'!F172<>"",1,0) -> 0 | C99: 0 | D99: =IF($C99=1,'Sjekkliste noter'!A172,"") ->  | E99: =IF($C99=1,'Sjekkliste noter'!B172,"") ->  | G99: =IF($C99=1,'Sjekkliste noter'!H172,"") -> 
A100: =+'Sjekkliste noter'!A173 -> 99 | B100: =IF('Sjekkliste noter'!F173<>"",1,0) -> 0 | C100: 0 | D100: =IF($C100=1,'Sjekkliste noter'!A173,"") ->  | E100: =IF($C100=1,'Sjekkliste noter'!B173,"") ->  | G100: =IF($C100=1,'Sjekkliste noter'!H173,"") -> 
A101: =+'Sjekkliste noter'!A174 -> 100 | B101: =IF('Sjekkliste noter'!F174<>"",1,0) -> 0 | C101: 0 | D101: =IF($C101=1,'Sjekkliste noter'!A174,"") ->  | E101: =IF($C101=1,'Sjekkliste noter'!B174,"") ->  | G101: =IF($C101=1,'Sjekkliste noter'!H174,"") -> 
A102: =+'Sjekkliste noter'!A175 -> 101 | B102: =IF('Sjekkliste noter'!F175<>"",1,0) -> 0 | C102: 0 | D102: =IF($C102=1,'Sjekkliste noter'!A175,"") ->  | E102: =IF($C102=1,'Sjekkliste noter'!B175,"") ->  | G102: =IF($C102=1,'Sjekkliste noter'!H175,"") -> 
A103: =+'Sjekkliste noter'!A178 -> 102 | B103: =IF('Sjekkliste noter'!F178<>"",1,0) -> 0 | C103: 0 | D103: =IF($C103=1,'Sjekkliste noter'!A178,"") ->  | E103: =IF($C103=1,'Sjekkliste noter'!B178,"") ->  | G103: =IF($C103=1,'Sjekkliste noter'!H178,"") -> 
A104: =+'Sjekkliste noter'!A179 -> 103 | B104: =IF('Sjekkliste noter'!F179<>"",1,0) -> 0 | C104: 0 | D104: =IF($C104=1,'Sjekkliste noter'!A179,"") ->  | E104: =IF($C104=1,'Sjekkliste noter'!B179,"") ->  | G104: =IF($C104=1,'Sjekkliste noter'!H179,"") -> 
A105: =+'Sjekkliste noter'!A180 -> 104 | B105: =IF('Sjekkliste noter'!F180<>"",1,0) -> 0 | C105: 0 | D105: =IF($C105=1,'Sjekkliste noter'!A180,"") ->  | E105: =IF($C105=1,'Sjekkliste noter'!B180,"") ->  | G105: =IF($C105=1,'Sjekkliste noter'!H180,"") -> 
A106: =+'Sjekkliste noter'!A181 -> 105 | B106: =IF('Sjekkliste noter'!F181<>"",1,0) -> 0 | C106: 0 | D106: =IF($C106=1,'Sjekkliste noter'!A181,"") ->  | E106: =IF($C106=1,'Sjekkliste noter'!B181,"") ->  | G106: =IF($C106=1,'Sjekkliste noter'!H181,"") -> 
A107: =+'Sjekkliste noter'!A182 -> 106 | B107: =IF('Sjekkliste noter'!F182<>"",1,0) -> 0 | C107: 0 | D107: =IF($C107=1,'Sjekkliste noter'!A182,"") ->  | E107: =IF($C107=1,'Sjekkliste noter'!B182,"") ->  | G107: =IF($C107=1,'Sjekkliste noter'!H182,"") -> 
A108: =+'Sjekkliste noter'!A183 -> 107 | B108: =IF('Sjekkliste noter'!F183<>"",1,0) -> 0 | C108: 0 | D108: =IF($C108=1,'Sjekkliste noter'!A183,"") ->  | E108: =IF($C108=1,'Sjekkliste noter'!B183,"") ->  | G108: =IF($C108=1,'Sjekkliste noter'!H183,"") -> 
A109: =+'Sjekkliste noter'!A184 -> 108 | B109: =IF('Sjekkliste noter'!F184<>"",1,0) -> 0 | C109: 0 | D109: =IF($C109=1,'Sjekkliste noter'!A184,"") ->  | E109: =IF($C109=1,'Sjekkliste noter'!B184,"") ->  | G109: =IF($C109=1,'Sjekkliste noter'!H184,"") -> 
A110: =+'Sjekkliste noter'!A185 -> 109 | B110: =IF('Sjekkliste noter'!F185<>"",1,0) -> 0 | C110: 0 | D110: =IF($C110=1,'Sjekkliste noter'!A185,"") ->  | E110: =IF($C110=1,'Sjekkliste noter'!B185,"") ->  | G110: =IF($C110=1,'Sjekkliste noter'!H185,"") -> 
A111: =+'Sjekkliste noter'!A186 -> 110 | B111: =IF('Sjekkliste noter'!F186<>"",1,0) -> 0 | C111: 0 | D111: =IF($C111=1,'Sjekkliste noter'!A186,"") ->  | E111: =IF($C111=1,'Sjekkliste noter'!B186,"") ->  | G111: =IF($C111=1,'Sjekkliste noter'!H186,"") -> 
A112: =+'Sjekkliste noter'!A188 -> 111 | B112: =IF('Sjekkliste noter'!F188<>"",1,0) -> 0 | C112: 0 | D112: =IF($C112=1,'Sjekkliste noter'!A188,"") ->  | E112: =IF($C112=1,'Sjekkliste noter'!B188,"") ->  | G112: =IF($C112=1,'Sjekkliste noter'!H188,"") -> 
A113: =+'Sjekkliste noter'!A189 -> 112 | B113: =IF('Sjekkliste noter'!F189<>"",1,0) -> 0 | C113: 0 | D113: =IF($C113=1,'Sjekkliste noter'!A189,"") ->  | E113: =IF($C113=1,'Sjekkliste noter'!B189,"") ->  | G113: =IF($C113=1,'Sjekkliste noter'!H189,"") -> 
A114: =+'Sjekkliste noter'!A191 -> 113 | B114: =IF('Sjekkliste noter'!F191<>"",1,0) -> 0 | C114: 0 | D114: =IF($C114=1,'Sjekkliste noter'!A191,"") ->  | E114: =IF($C114=1,'Sjekkliste noter'!B191,"") ->  | G114: =IF($C114=1,'Sjekkliste noter'!H191,"") -> 
A115: =+'Sjekkliste noter'!A192 -> 114 | B115: =IF('Sjekkliste noter'!F192<>"",1,0) -> 0 | C115: 0 | D115: =IF($C115=1,'Sjekkliste noter'!A192,"") ->  | E115: =IF($C115=1,'Sjekkliste noter'!B192,"") ->  | G115: =IF($C115=1,'Sjekkliste noter'!H192,"") -> 
A116: =+'Sjekkliste noter'!A194 -> 115 | B116: =IF('Sjekkliste noter'!F194<>"",1,0) -> 0 | C116: 0 | D116: =IF($C116=1,'Sjekkliste noter'!A194,"") ->  | E116: =IF($C116=1,'Sjekkliste noter'!B194,"") ->  | G116: =IF($C116=1,'Sjekkliste noter'!H194,"") -> 
A117: =+'Sjekkliste noter'!A195 -> 116 | B117: =IF('Sjekkliste noter'!F195<>"",1,0) -> 0 | C117: 0 | D117: =IF($C117=1,'Sjekkliste noter'!A195,"") ->  | E117: =IF($C117=1,'Sjekkliste noter'!B195,"") ->  | G117: =IF($C117=1,'Sjekkliste noter'!H195,"") -> 
A118: =+'Sjekkliste noter'!A196 -> 117 | B118: =IF('Sjekkliste noter'!F196<>"",1,0) -> 0 | C118: 0 | D118: =IF($C118=1,'Sjekkliste noter'!A196,"") ->  | E118: =IF($C118=1,'Sjekkliste noter'!B196,"") ->  | G118: =IF($C118=1,'Sjekkliste noter'!H196,"") -> 
A119: =+'Sjekkliste noter'!A197 -> 118 | B119: =IF('Sjekkliste noter'!F197<>"",1,0) -> 0 | C119: 0 | D119: =IF($C119=1,'Sjekkliste noter'!A197,"") ->  | E119: =IF($C119=1,'Sjekkliste noter'!B197,"") ->  | G119: =IF($C119=1,'Sjekkliste noter'!H197,"") -> 
A120: =+'Sjekkliste noter'!A198 -> 119 | B120: =IF('Sjekkliste noter'!F198<>"",1,0) -> 0 | C120: 0 | D120: =IF($C120=1,'Sjekkliste noter'!A198,"") ->  | E120: =IF($C120=1,'Sjekkliste noter'!B198,"") ->  | G120: =IF($C120=1,'Sjekkliste noter'!H198,"") -> 
A121: =+'Sjekkliste noter'!A199 -> 120 | B121: =IF('Sjekkliste noter'!F199<>"",1,0) -> 0 | C121: 0 | D121: =IF($C121=1,'Sjekkliste noter'!A199,"") ->  | E121: =IF($C121=1,'Sjekkliste noter'!B199,"") ->  | G121: =IF($C121=1,'Sjekkliste noter'!H199,"") -> 
A122: =+'Sjekkliste noter'!A203 -> 121 | B122: =IF('Sjekkliste noter'!F203<>"",1,0) -> 0 | C122: 0 | D122: =IF($C122=1,'Sjekkliste noter'!A203,"") ->  | E122: =IF($C122=1,'Sjekkliste noter'!B203,"") ->  | G122: =IF($C122=1,'Sjekkliste noter'!H203,"") -> 
A123: =+'Sjekkliste noter'!A204 -> 122 | B123: =IF('Sjekkliste noter'!F204<>"",1,0) -> 0 | C123: 0 | D123: =IF($C123=1,'Sjekkliste noter'!A204,"") ->  | E123: =IF($C123=1,'Sjekkliste noter'!B204,"") ->  | G123: =IF($C123=1,'Sjekkliste noter'!H204,"") -> 
A124: =+'Sjekkliste noter'!A205 -> 123 | B124: =IF('Sjekkliste noter'!F205<>"",1,0) -> 0 | C124: 0 | D124: =IF($C124=1,'Sjekkliste noter'!A205,"") ->  | E124: =IF($C124=1,'Sjekkliste noter'!B205,"") ->  | G124: =IF($C124=1,'Sjekkliste noter'!H205,"") -> 
A125: =+'Sjekkliste noter'!A206 -> 124 | B125: =IF('Sjekkliste noter'!F206<>"",1,0) -> 0 | C125: 0 | D125: =IF($C125=1,'Sjekkliste noter'!A206,"") ->  | E125: =IF($C125=1,'Sjekkliste noter'!B206,"") ->  | G125: =IF($C125=1,'Sjekkliste noter'!H206,"") -> 
A126: =+'Sjekkliste noter'!A208 -> 125 | B126: =IF('Sjekkliste noter'!F208<>"",1,0) -> 0 | C126: 0 | D126: =IF($C126=1,'Sjekkliste noter'!A208,"") ->  | E126: =IF($C126=1,'Sjekkliste noter'!B208,"") ->  | G126: =IF($C126=1,'Sjekkliste noter'!H208,"") -> 
A127: =+'Sjekkliste noter'!A209 -> 126 | B127: =IF('Sjekkliste noter'!F209<>"",1,0) -> 0 | C127: 0 | D127: =IF($C127=1,'Sjekkliste noter'!A209,"") ->  | E127: =IF($C127=1,'Sjekkliste noter'!B209,"") ->  | G127: =IF($C127=1,'Sjekkliste noter'!H209,"") -> 
A128: =+'Sjekkliste noter'!A210 -> 127 | B128: =IF('Sjekkliste noter'!F210<>"",1,0) -> 0 | C128: 0 | D128: =IF($C128=1,'Sjekkliste noter'!A210,"") ->  | E128: =IF($C128=1,'Sjekkliste noter'!B210,"") ->  | G128: =IF($C128=1,'Sjekkliste noter'!H210,"") -> 
A129: =+'Sjekkliste noter'!A212 -> 128 | B129: =IF('Sjekkliste noter'!F212<>"",1,0) -> 0 | C129: 0 | D129: =IF($C129=1,'Sjekkliste noter'!A212,"") ->  | E129: =IF($C129=1,'Sjekkliste noter'!B212,"") ->  | G129: =IF($C129=1,'Sjekkliste noter'!H212,"") -> 
A130: =+'Sjekkliste noter'!A213 -> 129 | B130: =IF('Sjekkliste noter'!F213<>"",1,0) -> 0 | C130: =SUM(B130:B130) -> 0 | D130: =IF($C130=1,'Sjekkliste noter'!A213,"") ->  | E130: =IF($C130=1,'Sjekkliste noter'!B213,"") ->  | G130: =IF($C130=1,'Sjekkliste noter'!H213,"") -> 
A131: =+'Sjekkliste noter'!A214 -> 130 | B131: =IF('Sjekkliste noter'!F214<>"",1,0) -> 0 | C131: 0 | D131: =IF($C131=1,'Sjekkliste noter'!A214,"") ->  | E131: =IF($C131=1,'Sjekkliste noter'!B214,"") ->  | G131: =IF($C131=1,'Sjekkliste noter'!H214,"") -> 
A132: =+'Sjekkliste noter'!A217 -> 131 | B132: =IF('Sjekkliste noter'!F217<>"",1,0) -> 0 | C132: 0 | D132: =IF($C132=1,'Sjekkliste noter'!A217,"") ->  | E132: =IF($C132=1,'Sjekkliste noter'!B217,"") ->  | G132: =IF($C132=1,'Sjekkliste noter'!H217,"") -> 
A133: =+'Sjekkliste noter'!A218 -> 132 | B133: =IF('Sjekkliste noter'!F218<>"",1,0) -> 0 | C133: 0 | D133: =IF($C133=1,'Sjekkliste noter'!A218,"") ->  | E133: =IF($C133=1,'Sjekkliste noter'!B218,"") ->  | G133: =IF($C133=1,'Sjekkliste noter'!H218,"") -> 
A134: =+'Sjekkliste noter'!A220 -> 133 | B134: =IF('Sjekkliste noter'!F220<>"",1,0) -> 0 | C134: 0 | D134: =IF($C134=1,'Sjekkliste noter'!A220,"") ->  | E134: =IF($C134=1,'Sjekkliste noter'!B220,"") ->  | G134: =IF($C134=1,'Sjekkliste noter'!H220,"") -> 
A135: =+'Sjekkliste noter'!A221 -> 134 | B135: =IF('Sjekkliste noter'!F221<>"",1,0) -> 0 | C135: 0 | D135: =IF($C135=1,'Sjekkliste noter'!A221,"") ->  | E135: =IF($C135=1,'Sjekkliste noter'!B221,"") ->  | G135: =IF($C135=1,'Sjekkliste noter'!H221,"") -> 
A136: =+'Sjekkliste noter'!A224 -> 135 | B136: =IF('Sjekkliste noter'!F224<>"",1,0) -> 0 | C136: 0 | D136: =IF($C136=1,'Sjekkliste noter'!A224,"") ->  | E136: =IF($C136=1,'Sjekkliste noter'!B224,"") ->  | G136: =IF($C136=1,'Sjekkliste noter'!H224,"") -> 
A137: =+'Sjekkliste noter'!A225 -> 136 | B137: =IF('Sjekkliste noter'!F225<>"",1,0) -> 0 | C137: 0 | D137: =IF($C137=1,'Sjekkliste noter'!A225,"") ->  | E137: =IF($C137=1,'Sjekkliste noter'!B225,"") ->  | G137: =IF($C137=1,'Sjekkliste noter'!H225,"") -> 
A138: =+'Sjekkliste noter'!A227 -> 137 | B138: =IF('Sjekkliste noter'!F227<>"",1,0) -> 0 | C138: 0 | D138: =IF($C138=1,'Sjekkliste noter'!A227,"") ->  | E138: =IF($C138=1,'Sjekkliste noter'!B227,"") ->  | G138: =IF($C138=1,'Sjekkliste noter'!H227,"") -> 
A139: =+'Sjekkliste noter'!A228 -> 138 | B139: =IF('Sjekkliste noter'!F228<>"",1,0) -> 0 | C139: 0 | D139: =IF($C139=1,'Sjekkliste noter'!A228,"") ->  | E139: =IF($C139=1,'Sjekkliste noter'!B228,"") ->  | G139: =IF($C139=1,'Sjekkliste noter'!H228,"") -> 
A140: =+'Sjekkliste noter'!A230 -> 139 | B140: =IF('Sjekkliste noter'!F230<>"",1,0) -> 0 | C140: 0 | D140: =IF($C140=1,'Sjekkliste noter'!A230,"") ->  | E140: =IF($C140=1,'Sjekkliste noter'!B230,"") ->  | G140: =IF($C140=1,'Sjekkliste noter'!H230,"") -> 
A141: =+'Sjekkliste noter'!A232 -> 140 | B141: =IF('Sjekkliste noter'!F232<>"",1,0) -> 0 | C141: 0 | D141: =IF($C141=1,'Sjekkliste noter'!A232,"") ->  | E141: =IF($C141=1,'Sjekkliste noter'!B232,"") ->  | G141: =IF($C141=1,'Sjekkliste noter'!H232,"") -> 
A142: =+'Sjekkliste noter'!A235 -> 141 | B142: =IF('Sjekkliste noter'!F235<>"",1,0) -> 0 | C142: 0 | D142: =IF($C142=1,'Sjekkliste noter'!A235,"") ->  | E142: =IF($C142=1,'Sjekkliste noter'!B235,"") ->  | G142: =IF($C142=1,'Sjekkliste noter'!H235,"") -> 
A143: =+'Sjekkliste noter'!A236 -> 142 | B143: =IF('Sjekkliste noter'!F236<>"",1,0) -> 0 | C143: 0 | D143: =IF($C143=1,'Sjekkliste noter'!A236,"") ->  | E143: =IF($C143=1,'Sjekkliste noter'!B236,"") ->  | G143: =IF($C143=1,'Sjekkliste noter'!H236,"") -> 
A144: =+'Sjekkliste noter'!A237 -> 143 | B144: =IF('Sjekkliste noter'!F237<>"",1,0) -> 0 | C144: 0 | D144: =IF($C144=1,'Sjekkliste noter'!A237,"") ->  | E144: =IF($C144=1,'Sjekkliste noter'!B237,"") ->  | G144: =IF($C144=1,'Sjekkliste noter'!H237,"") -> 
A145: =+'Sjekkliste noter'!A239 -> 144 | B145: =IF('Sjekkliste noter'!F239<>"",1,0) -> 0 | C145: 0 | D145: =IF($C145=1,'Sjekkliste noter'!A239,"") ->  | E145: =IF($C145=1,'Sjekkliste noter'!B239,"") ->  | G145: =IF($C145=1,'Sjekkliste noter'!H239,"") -> 
A146: =+'Sjekkliste noter'!A240 -> 145 | B146: =IF('Sjekkliste noter'!F240<>"",1,0) -> 0 | C146: 0 | D146: =IF($C146=1,'Sjekkliste noter'!A240,"") ->  | E146: =IF($C146=1,'Sjekkliste noter'!B240,"") ->  | G146: =IF($C146=1,'Sjekkliste noter'!H240,"") -> 
A147: =+'Sjekkliste noter'!A242 -> 146 | B147: =IF('Sjekkliste noter'!F242<>"",1,0) -> 0 | C147: 0 | D147: =IF($C147=1,'Sjekkliste noter'!A242,"") ->  | E147: =IF($C147=1,'Sjekkliste noter'!B242,"") ->  | G147: =IF($C147=1,'Sjekkliste noter'!H242,"") -> 
A148: =+'Sjekkliste noter'!A243 -> 147 | B148: =IF('Sjekkliste noter'!F243<>"",1,0) -> 0 | C148: 0 | D148: =IF($C148=1,'Sjekkliste noter'!A243,"") ->  | E148: =IF($C148=1,'Sjekkliste noter'!B243,"") ->  | G148: =IF($C148=1,'Sjekkliste noter'!H243,"") -> 
A149: =+'Sjekkliste noter'!A244 -> 148 | B149: =IF('Sjekkliste noter'!F244<>"",1,0) -> 0 | C149: 0 | D149: =IF($C149=1,'Sjekkliste noter'!A244,"") ->  | E149: =IF($C149=1,'Sjekkliste noter'!B244,"") ->  | G149: =IF($C149=1,'Sjekkliste noter'!H244,"") -> 
A150: =+'Sjekkliste noter'!A246 -> 149 | B150: =IF('Sjekkliste noter'!F246<>"",1,0) -> 0 | C150: 0 | D150: =IF($C150=1,'Sjekkliste noter'!A246,"") ->  | E150: =IF($C150=1,'Sjekkliste noter'!B246,"") ->  | G150: =IF($C150=1,'Sjekkliste noter'!H246,"") -> 
A151: =+'Sjekkliste noter'!A247 -> 150 | B151: =IF('Sjekkliste noter'!F247<>"",1,0) -> 0 | C151: 0 | D151: =IF($C151=1,'Sjekkliste noter'!A247,"") ->  | E151: =IF($C151=1,'Sjekkliste noter'!B247,"") ->  | G151: =IF($C151=1,'Sjekkliste noter'!H247,"") -> 
A152: =+'Sjekkliste noter'!A248 -> 151 | B152: =IF('Sjekkliste noter'!F248<>"",1,0) -> 0 | C152: 0 | D152: =IF($C152=1,'Sjekkliste noter'!A248,"") ->  | E152: =IF($C152=1,'Sjekkliste noter'!B248,"") ->  | G152: =IF($C152=1,'Sjekkliste noter'!H248,"") -> 
A153: =+'Sjekkliste noter'!A249 -> 152 | B153: =IF('Sjekkliste noter'!F249<>"",1,0) -> 0 | C153: 0 | D153: =IF($C153=1,'Sjekkliste noter'!A249,"") ->  | E153: =IF($C153=1,'Sjekkliste noter'!B249,"") ->  | G153: =IF($C153=1,'Sjekkliste noter'!H249,"") -> 
A154: =+'Sjekkliste noter'!A250 -> 153 | B154: =IF('Sjekkliste noter'!F250<>"",1,0) -> 0 | C154: 0 | D154: =IF($C154=1,'Sjekkliste noter'!A250,"") ->  | E154: =IF($C154=1,'Sjekkliste noter'!B250,"") ->  | G154: =IF($C154=1,'Sjekkliste noter'!H250,"") -> 
A155: =+'Sjekkliste noter'!A251 -> 154 | B155: =IF('Sjekkliste noter'!F251<>"",1,0) -> 0 | C155: 0 | D155: =IF($C155=1,'Sjekkliste noter'!A251,"") ->  | E155: =IF($C155=1,'Sjekkliste noter'!B251,"") ->  | G155: =IF($C155=1,'Sjekkliste noter'!H251,"") -> 
A156: =+'Sjekkliste noter'!A252 -> 155 | B156: =IF('Sjekkliste noter'!F252<>"",1,0) -> 0 | C156: 0 | D156: =IF($C156=1,'Sjekkliste noter'!A252,"") ->  | E156: =IF($C156=1,'Sjekkliste noter'!B252,"") ->  | G156: =IF($C156=1,'Sjekkliste noter'!H252,"") -> 
A157: =+'Sjekkliste noter'!A254 -> 156 | B157: =IF('Sjekkliste noter'!F254<>"",1,0) -> 0 | C157: 0 | D157: =IF($C157=1,'Sjekkliste noter'!A254,"") ->  | E157: =IF($C157=1,'Sjekkliste noter'!B254,"") ->  | G157: =IF($C157=1,'Sjekkliste noter'!H254,"") -> 
A158: =+'Sjekkliste noter'!A255 -> 157 | B158: =IF('Sjekkliste noter'!F255<>"",1,0) -> 0 | C158: 0 | D158: =IF($C158=1,'Sjekkliste noter'!A255,"") ->  | E158: =IF($C158=1,'Sjekkliste noter'!B255,"") ->  | G158: =IF($C158=1,'Sjekkliste noter'!H255,"") -> 
A159: =+'Sjekkliste noter'!A256 -> 158 | B159: =IF('Sjekkliste noter'!F256<>"",1,0) -> 0 | C159: 0 | D159: =IF($C159=1,'Sjekkliste noter'!A256,"") ->  | E159: =IF($C159=1,'Sjekkliste noter'!B256,"") ->  | G159: =IF($C159=1,'Sjekkliste noter'!H256,"") -> 
A160: =+'Sjekkliste noter'!A258 -> 159 | B160: =IF('Sjekkliste noter'!F258<>"",1,0) -> 0 | C160: 0 | D160: =IF($C160=1,'Sjekkliste noter'!A258,"") ->  | E160: =IF($C160=1,'Sjekkliste noter'!B258,"") ->  | G160: =IF($C160=1,'Sjekkliste noter'!H258,"") -> 
A161: =+'Sjekkliste noter'!A259 -> 160 | B161: =IF('Sjekkliste noter'!F259<>"",1,0) -> 0 | C161: 0 | D161: =IF($C161=1,'Sjekkliste noter'!A259,"") ->  | E161: =IF($C161=1,'Sjekkliste noter'!B259,"") ->  | G161: =IF($C161=1,'Sjekkliste noter'!H259,"") -> 
A162: =+'Sjekkliste noter'!A260 -> 161 | B162: =IF('Sjekkliste noter'!F260<>"",1,0) -> 0 | C162: 0 | D162: =IF($C162=1,'Sjekkliste noter'!A260,"") ->  | E162: =IF($C162=1,'Sjekkliste noter'!B260,"") ->  | G162: =IF($C162=1,'Sjekkliste noter'!H260,"") -> 
A163: =+'Sjekkliste noter'!A261 -> 162 | B163: =IF('Sjekkliste noter'!F261<>"",1,0) -> 0 | C163: 0 | D163: =IF($C163=1,'Sjekkliste noter'!A261,"") ->  | E163: =IF($C163=1,'Sjekkliste noter'!B261,"") ->  | G163: =IF($C163=1,'Sjekkliste noter'!H261,"") -> 
A164: =+'Sjekkliste noter'!A262 -> 163 | B164: =IF('Sjekkliste noter'!F262<>"",1,0) -> 0 | C164: 0 | D164: =IF($C164=1,'Sjekkliste noter'!A262,"") ->  | E164: =IF($C164=1,'Sjekkliste noter'!B262,"") ->  | G164: =IF($C164=1,'Sjekkliste noter'!H262,"") -> 
A165: =+'Sjekkliste noter'!A263 -> 164 | B165: =IF('Sjekkliste noter'!F263<>"",1,0) -> 0 | C165: 0 | D165: =IF($C165=1,'Sjekkliste noter'!A263,"") ->  | E165: =IF($C165=1,'Sjekkliste noter'!B263,"") ->  | G165: =IF($C165=1,'Sjekkliste noter'!H263,"") -> 
A166: =+'Sjekkliste noter'!A264 -> 165 | B166: =IF('Sjekkliste noter'!F264<>"",1,0) -> 0 | C166: 0 | D166: =IF($C166=1,'Sjekkliste noter'!A264,"") ->  | E166: =IF($C166=1,'Sjekkliste noter'!B264,"") ->  | G166: =IF($C166=1,'Sjekkliste noter'!H264,"") -> 
A167: =+'Sjekkliste noter'!A265 -> 166 | B167: =IF('Sjekkliste noter'!F265<>"",1,0) -> 0 | C167: 0 | D167: =IF($C167=1,'Sjekkliste noter'!A265,"") ->  | E167: =IF($C167=1,'Sjekkliste noter'!B265,"") ->  | G167: =IF($C167=1,'Sjekkliste noter'!H265,"") -> 
A168: =+'Sjekkliste noter'!A266 -> 167 | B168: =IF('Sjekkliste noter'!F266<>"",1,0) -> 0 | C168: 0 | D168: =IF($C168=1,'Sjekkliste noter'!A266,"") ->  | E168: =IF($C168=1,'Sjekkliste noter'!B266,"") ->  | G168: =IF($C168=1,'Sjekkliste noter'!H266,"") -> 
A169: =+'Sjekkliste noter'!A268 -> 168 | B169: =IF('Sjekkliste noter'!F268<>"",1,0) -> 0 | C169: 0 | D169: =IF($C169=1,'Sjekkliste noter'!A268,"") ->  | E169: =IF($C169=1,'Sjekkliste noter'!B268,"") ->  | G169: =IF($C169=1,'Sjekkliste noter'!H268,"") -> 
A170: =+'Sjekkliste noter'!A269 -> 169 | B170: =IF('Sjekkliste noter'!F269<>"",1,0) -> 0 | C170: 0 | D170: =IF($C170=1,'Sjekkliste noter'!A269,"") ->  | E170: =IF($C170=1,'Sjekkliste noter'!B269,"") ->  | G170: =IF($C170=1,'Sjekkliste noter'!H269,"") -> 
A171: =+'Sjekkliste noter'!A271 -> 170 | B171: =IF('Sjekkliste noter'!F271<>"",1,0) -> 0 | C171: 0 | D171: =IF($C171=1,'Sjekkliste noter'!A271,"") ->  | E171: =IF($C171=1,'Sjekkliste noter'!B271,"") ->  | G171: =IF($C171=1,'Sjekkliste noter'!H271,"") -> 
A172: =+'Sjekkliste noter'!A272 -> 171 | B172: =IF('Sjekkliste noter'!F272<>"",1,0) -> 0 | C172: 0 | D172: =IF($C172=1,'Sjekkliste noter'!A272,"") ->  | E172: =IF($C172=1,'Sjekkliste noter'!B272,"") ->  | G172: =IF($C172=1,'Sjekkliste noter'!H272,"") -> 
A173: =+'Sjekkliste noter'!A275 -> 172 | B173: =IF('Sjekkliste noter'!F275<>"",1,0) -> 0 | C173: 0 | D173: =IF($C173=1,'Sjekkliste noter'!A275,"") ->  | E173: =IF($C173=1,'Sjekkliste noter'!B275,"") ->  | G173: =IF($C173=1,'Sjekkliste noter'!H275,"") -> 
A174: =+'Sjekkliste noter'!A276 -> 173 | B174: =IF('Sjekkliste noter'!F276<>"",1,0) -> 0 | C174: 0 | D174: =IF($C174=1,'Sjekkliste noter'!A276,"") ->  | E174: =IF($C174=1,'Sjekkliste noter'!B276,"") ->  | G174: =IF($C174=1,'Sjekkliste noter'!H276,"") -> 
A175: =+'Sjekkliste noter'!A278 -> 174 | B175: =IF('Sjekkliste noter'!F278<>"",1,0) -> 0 | C175: 0 | D175: =IF($C175=1,'Sjekkliste noter'!A278,"") ->  | E175: =IF($C175=1,'Sjekkliste noter'!B278,"") ->  | G175: =IF($C175=1,'Sjekkliste noter'!H278,"") -> 
A176: =+'Sjekkliste noter'!A280 -> 175 | B176: =IF('Sjekkliste noter'!F280<>"",1,0) -> 0 | C176: 0 | D176: =IF($C176=1,'Sjekkliste noter'!A280,"") ->  | E176: =IF($C176=1,'Sjekkliste noter'!B280,"") ->  | G176: =IF($C176=1,'Sjekkliste noter'!H280,"") -> 
A177: =+'Sjekkliste noter'!A281 -> 176 | B177: =IF('Sjekkliste noter'!F281<>"",1,0) -> 0 | C177: 0 | D177: =IF($C177=1,'Sjekkliste noter'!A281,"") ->  | E177: =IF($C177=1,'Sjekkliste noter'!B281,"") ->  | G177: =IF($C177=1,'Sjekkliste noter'!H281,"") -> 
A178: =+'Sjekkliste noter'!A282 -> 177 | B178: =IF('Sjekkliste noter'!F282<>"",1,0) -> 0 | C178: 0 | D178: =IF($C178=1,'Sjekkliste noter'!A282,"") ->  | E178: =IF($C178=1,'Sjekkliste noter'!B282,"") ->  | G178: =IF($C178=1,'Sjekkliste noter'!H282,"") -> 
A179: =+'Sjekkliste noter'!A283 -> 178 | B179: =IF('Sjekkliste noter'!F283<>"",1,0) -> 0 | C179: 0 | D179: =IF($C179=1,'Sjekkliste noter'!A283,"") ->  | E179: =IF($C179=1,'Sjekkliste noter'!B283,"") ->  | G179: =IF($C179=1,'Sjekkliste noter'!H283,"") -> 
A180: =+'Sjekkliste noter'!A284 -> 179 | B180: =IF('Sjekkliste noter'!F284<>"",1,0) -> 0 | C180: 0 | D180: =IF($C180=1,'Sjekkliste noter'!A284,"") ->  | E180: =IF($C180=1,'Sjekkliste noter'!B284,"") ->  | G180: =IF($C180=1,'Sjekkliste noter'!H284,"") -> 
A181: =+'Sjekkliste noter'!A285 -> 180 | B181: =IF('Sjekkliste noter'!F285<>"",1,0) -> 0 | C181: 0 | D181: =IF($C181=1,'Sjekkliste noter'!A285,"") ->  | E181: =IF($C181=1,'Sjekkliste noter'!B285,"") ->  | G181: =IF($C181=1,'Sjekkliste noter'!H285,"") -> 
A182: =+'Sjekkliste noter'!A286 -> 181 | B182: =IF('Sjekkliste noter'!F286<>"",1,0) -> 0 | C182: 0 | D182: =IF($C182=1,'Sjekkliste noter'!A286,"") ->  | E182: =IF($C182=1,'Sjekkliste noter'!B286,"") ->  | G182: =IF($C182=1,'Sjekkliste noter'!H286,"") -> 
A183: =+'Sjekkliste noter'!A287 -> 182 | B183: =IF('Sjekkliste noter'!F287<>"",1,0) -> 0 | C183: 0 | D183: =IF($C183=1,'Sjekkliste noter'!A287,"") ->  | E183: =IF($C183=1,'Sjekkliste noter'!B287,"") ->  | G183: =IF($C183=1,'Sjekkliste noter'!H287,"") -> 
A184: =+'Sjekkliste noter'!A290 -> 183 | B184: =IF('Sjekkliste noter'!F290<>"",1,0) -> 0 | C184: 0 | D184: =IF($C184=1,'Sjekkliste noter'!A290,"") ->  | E184: =IF($C184=1,'Sjekkliste noter'!B290,"") ->  | G184: =IF($C184=1,'Sjekkliste noter'!H290,"") -> 
A185: =+'Sjekkliste noter'!A291 -> 184 | B185: =IF('Sjekkliste noter'!F291<>"",1,0) -> 0 | C185: 0 | D185: =IF($C185=1,'Sjekkliste noter'!A291,"") ->  | E185: =IF($C185=1,'Sjekkliste noter'!B291,"") ->  | G185: =IF($C185=1,'Sjekkliste noter'!H291,"") -> 
A186: =+'Sjekkliste noter'!A295 -> 185 | B186: =IF('Sjekkliste noter'!F295<>"",1,0) -> 0 | C186: 0 | D186: =IF($C186=1,'Sjekkliste noter'!A295,"") ->  | E186: =IF($C186=1,'Sjekkliste noter'!B295,"") ->  | G186: =IF($C186=1,'Sjekkliste noter'!H295,"") -> 
A187: =+'Sjekkliste noter'!A296 -> 186 | B187: =IF('Sjekkliste noter'!F296<>"",1,0) -> 0 | C187: 0 | D187: =IF($C187=1,'Sjekkliste noter'!A296,"") ->  | E187: =IF($C187=1,'Sjekkliste noter'!B296,"") ->  | G187: =IF($C187=1,'Sjekkliste noter'!H296,"") -> 
A188: =+'Sjekkliste noter'!A297 -> 187 | B188: =IF('Sjekkliste noter'!F297<>"",1,0) -> 0 | C188: 0 | D188: =IF($C188=1,'Sjekkliste noter'!A297,"") ->  | E188: =IF($C188=1,'Sjekkliste noter'!B297,"") ->  | G188: =IF($C188=1,'Sjekkliste noter'!H297,"") -> 
A189: =+'Sjekkliste noter'!A298 -> 188 | B189: =IF('Sjekkliste noter'!F298<>"",1,0) -> 0 | C189: 0 | D189: =IF($C189=1,'Sjekkliste noter'!A298,"") ->  | E189: =IF($C189=1,'Sjekkliste noter'!B298,"") ->  | G189: =IF($C189=1,'Sjekkliste noter'!H298,"") -> 
A190: =+'Sjekkliste noter'!A301 -> 189 | B190: =IF('Sjekkliste noter'!F301<>"",1,0) -> 0 | C190: 0 | D190: =IF($C190=1,'Sjekkliste noter'!A301,"") ->  | E190: =IF($C190=1,'Sjekkliste noter'!B301,"") ->  | G190: =IF($C190=1,'Sjekkliste noter'!H301,"") -> 
A191: =+'Sjekkliste noter'!A302 -> 190 | B191: =IF('Sjekkliste noter'!F302<>"",1,0) -> 0 | C191: 0 | D191: =IF($C191=1,'Sjekkliste noter'!A302,"") ->  | E191: =IF($C191=1,'Sjekkliste noter'!B302,"") ->  | G191: =IF($C191=1,'Sjekkliste noter'!H302,"") -> 
A192: =+'Sjekkliste noter'!A303 -> 191 | B192: =IF('Sjekkliste noter'!F303<>"",1,0) -> 0 | C192: 0 | D192: =IF($C192=1,'Sjekkliste noter'!A303,"") ->  | E192: =IF($C192=1,'Sjekkliste noter'!B303,"") ->  | G192: =IF($C192=1,'Sjekkliste noter'!H303,"") -> 
A193: =+'Sjekkliste noter'!A304 -> 192 | B193: =IF('Sjekkliste noter'!F304<>"",1,0) -> 0 | C193: 0 | D193: =IF($C193=1,'Sjekkliste noter'!A304,"") ->  | E193: =IF($C193=1,'Sjekkliste noter'!B304,"") ->  | G193: =IF($C193=1,'Sjekkliste noter'!H304,"") -> 
A194: =+'Sjekkliste noter'!A308 -> 193 | B194: =IF('Sjekkliste noter'!F308<>"",1,0) -> 0 | C194: =SUM(B194:B194) -> 0 | D194: =IF($C194=1,'Sjekkliste noter'!A308,"") ->  | E194: =IF($C194=1,'Sjekkliste noter'!B308,"") ->  | G194: =IF($C194=1,'Sjekkliste noter'!H308,"") -> 
A195: =+'Sjekkliste noter'!A309 -> 194 | B195: =IF('Sjekkliste noter'!F309<>"",1,0) -> 0 | C195: 0 | D195: =IF($C195=1,'Sjekkliste noter'!A309,"") ->  | E195: =IF($C195=1,'Sjekkliste noter'!B309,"") ->  | G195: =IF($C195=1,'Sjekkliste noter'!H309,"") -> 
A196: =+'Sjekkliste noter'!A310 -> 195 | B196: =IF('Sjekkliste noter'!F310<>"",1,0) -> 0 | C196: 0 | D196: =IF($C196=1,'Sjekkliste noter'!A310,"") ->  | E196: =IF($C196=1,'Sjekkliste noter'!B310,"") ->  | G196: =IF($C196=1,'Sjekkliste noter'!H310,"") -> 
A197: =+'Sjekkliste noter'!A311 -> 196 | B197: =IF('Sjekkliste noter'!F311<>"",1,0) -> 0 | C197: 0 | D197: =IF($C197=1,'Sjekkliste noter'!A311,"") ->  | E197: =IF($C197=1,'Sjekkliste noter'!B311,"") ->  | G197: =IF($C197=1,'Sjekkliste noter'!H311,"") -> 
A198: =+'Sjekkliste noter'!A313 -> 197 | B198: =IF('Sjekkliste noter'!F313<>"",1,0) -> 0 | C198: 0 | D198: =IF($C198=1,'Sjekkliste noter'!A313,"") ->  | E198: =IF($C198=1,'Sjekkliste noter'!B313,"") ->  | G198: =IF($C198=1,'Sjekkliste noter'!H313,"") -> 
A199: =+'Sjekkliste noter'!A315 -> 198 | B199: =IF('Sjekkliste noter'!F315<>"",1,0) -> 0 | C199: 0 | D199: =IF($C199=1,'Sjekkliste noter'!A315,"") ->  | E199: =IF($C199=1,'Sjekkliste noter'!B315,"") ->  | G199: =IF($C199=1,'Sjekkliste noter'!H315,"") -> 
A200: =+'Sjekkliste noter'!A316 -> 199 | B200: =IF('Sjekkliste noter'!F316<>"",1,0) -> 0 | C200: 0 | D200: =IF($C200=1,'Sjekkliste noter'!A316,"") ->  | E200: =IF($C200=1,'Sjekkliste noter'!B316,"") ->  | G200: =IF($C200=1,'Sjekkliste noter'!H316,"") -> 
... 233 more rows

Sheet N_IA (hidden)
C1: =COUNTIF(C2:C267,"=1") -> 0 | D1: IA-svar | E1: =+Forside!B2 -> 0 | F1: =+Forside!B3 -> 2021 | G1: Kommentarer
A2: =+'Sjekkliste noter'!A17 -> 1 | B2: =IF('Sjekkliste noter'!G17<>"",1,0) -> 0 | C2: =SUM(B2:B2) -> 0 | D2: =IF($C2=1,'Sjekkliste noter'!A17,"") ->  | E2: =IF($C2=1,'Sjekkliste noter'!B17,"") ->  | G2: =IF($C2=1,'Sjekkliste noter'!H17,"") -> 
A3: =+'Sjekkliste noter'!A19 -> 2 | B3: =IF('Sjekkliste noter'!G19<>"",1,0) -> 0 | C3: 0 | D3: =IF($C3=1,'Sjekkliste noter'!A19,"") ->  | E3: =IF($C3=1,'Sjekkliste noter'!B19,"") ->  | G3: =IF($C3=1,'Sjekkliste noter'!H19,"") -> 
A4: =+'Sjekkliste noter'!A20 -> 3 | B4: =IF('Sjekkliste noter'!G20<>"",1,0) -> 0 | C4: 0 | D4: =IF($C4=1,'Sjekkliste noter'!A20,"") ->  | E4: =IF($C4=1,'Sjekkliste noter'!B20,"") ->  | G4: =IF($C4=1,'Sjekkliste noter'!H20,"") -> 
A5: =+'Sjekkliste noter'!A21 -> 4 | B5: =IF('Sjekkliste noter'!G21<>"",1,0) -> 0 | C5: 0 | D5: =IF($C5=1,'Sjekkliste noter'!A21,"") ->  | E5: =IF($C5=1,'Sjekkliste noter'!B21,"") ->  | G5: =IF($C5=1,'Sjekkliste noter'!H21,"") -> 
A6: =+'Sjekkliste noter'!A22 -> 5 | B6: =IF('Sjekkliste noter'!G22<>"",1,0) -> 0 | C6: 0 | D6: =IF($C6=1,'Sjekkliste noter'!A22,"") ->  | E6: =IF($C6=1,'Sjekkliste noter'!B22,"") ->  | G6: =IF($C6=1,'Sjekkliste noter'!H22,"") -> 
A7: =+'Sjekkliste noter'!A23 -> 6 | B7: =IF('Sjekkliste noter'!G23<>"",1,0) -> 0 | C7: 0 | D7: =IF($C7=1,'Sjekkliste noter'!A23,"") ->  | E7: =IF($C7=1,'Sjekkliste noter'!B23,"") ->  | G7: =IF($C7=1,'Sjekkliste noter'!H23,"") -> 
A8: =+'Sjekkliste noter'!A24 -> 7 | B8: =IF('Sjekkliste noter'!G24<>"",1,0) -> 0 | C8: 0 | D8: =IF($C8=1,'Sjekkliste noter'!A24,"") ->  | E8: =IF($C8=1,'Sjekkliste noter'!B24,"") ->  | G8: =IF($C8=1,'Sjekkliste noter'!H24,"") -> 
A9: =+'Sjekkliste noter'!A26 -> 8 | B9: =IF('Sjekkliste noter'!G26<>"",1,0) -> 0 | C9: 0 | D9: =IF($C9=1,'Sjekkliste noter'!A26,"") ->  | E9: =IF($C9=1,'Sjekkliste noter'!B26,"") ->  | G9: =IF($C9=1,'Sjekkliste noter'!H26,"") -> 
A10: =+'Sjekkliste noter'!A28 -> 9 | B10: =IF('Sjekkliste noter'!G28<>"",1,0) -> 0 | C10: 0 | D10: =IF($C10=1,'Sjekkliste noter'!A28,"") ->  | E10: =IF($C10=1,'Sjekkliste noter'!B28,"") ->  | G10: =IF($C10=1,'Sjekkliste noter'!H28,"") -> 
A11: =+'Sjekkliste noter'!A29 -> 10 | B11: =IF('Sjekkliste noter'!G29<>"",1,0) -> 0 | C11: 0 | D11: =IF($C11=1,'Sjekkliste noter'!A29,"") ->  | E11: =IF($C11=1,'Sjekkliste noter'!B29,"") ->  | G11: =IF($C11=1,'Sjekkliste noter'!H29,"") -> 
A12: =+'Sjekkliste noter'!A30 -> 11 | B12: =IF('Sjekkliste noter'!G30<>"",1,0) -> 0 | C12: 0 | D12: =IF($C12=1,'Sjekkliste noter'!A30,"") ->  | E12: =IF($C12=1,'Sjekkliste noter'!B30,"") ->  | G12: =IF($C12=1,'Sjekkliste noter'!H30,"") -> 
A13: =+'Sjekkliste noter'!A31 -> 12 | B13: =IF('Sjekkliste noter'!G31<>"",1,0) -> 0 | C13: 0 | D13: =IF($C13=1,'Sjekkliste noter'!A31,"") ->  | E13: =IF($C13=1,'Sjekkliste noter'!B31,"") ->  | G13: =IF($C13=1,'Sjekkliste noter'!H31,"") -> 
A14: =+'Sjekkliste noter'!A32 -> 13 | B14: =IF('Sjekkliste noter'!G32<>"",1,0) -> 0 | C14: 0 | D14: =IF($C14=1,'Sjekkliste noter'!A32,"") ->  | E14: =IF($C14=1,'Sjekkliste noter'!B32,"") ->  | G14: =IF($C14=1,'Sjekkliste noter'!H32,"") -> 
A15: =+'Sjekkliste noter'!A33 -> 14 | B15: =IF('Sjekkliste noter'!G33<>"",1,0) -> 0 | C15: 0 | D15: =IF($C15=1,'Sjekkliste noter'!A33,"") ->  | E15: =IF($C15=1,'Sjekkliste noter'!B33,"") ->  | G15: =IF($C15=1,'Sjekkliste noter'!H33,"") -> 
A16: =+'Sjekkliste noter'!A34 -> 15 | B16: =IF('Sjekkliste noter'!G34<>"",1,0) -> 0 | C16: 0 | D16: =IF($C16=1,'Sjekkliste noter'!A34,"") ->  | E16: =IF($C16=1,'Sjekkliste noter'!B34,"") ->  | G16: =IF($C16=1,'Sjekkliste noter'!H34,"") -> 
A17: =+'Sjekkliste noter'!A35 -> 16 | B17: =IF('Sjekkliste noter'!G35<>"",1,0) -> 0 | C17: 0 | D17: =IF($C17=1,'Sjekkliste noter'!A35,"") ->  | E17: =IF($C17=1,'Sjekkliste noter'!B35,"") ->  | G17: =IF($C17=1,'Sjekkliste noter'!H35,"") -> 
A18: =+'Sjekkliste noter'!A38 -> 17 | B18: =IF('Sjekkliste noter'!G38<>"",1,0) -> 0 | C18: 0 | D18: =IF($C18=1,'Sjekkliste noter'!A38,"") ->  | E18: =IF($C18=1,'Sjekkliste noter'!B38,"") ->  | G18: =IF($C18=1,'Sjekkliste noter'!H38,"") -> 
A19: =+'Sjekkliste noter'!A39 -> 18 | B19: =IF('Sjekkliste noter'!G39<>"",1,0) -> 0 | C19: 0 | D19: =IF($C19=1,'Sjekkliste noter'!A39,"") ->  | E19: =IF($C19=1,'Sjekkliste noter'!B39,"") ->  | G19: =IF($C19=1,'Sjekkliste noter'!H39,"") -> 
A20: =+'Sjekkliste noter'!A40 -> 19 | B20: =IF('Sjekkliste noter'!G40<>"",1,0) -> 0 | C20: 0 | D20: =IF($C20=1,'Sjekkliste noter'!A40,"") ->  | E20: =IF($C20=1,'Sjekkliste noter'!B40,"") ->  | G20: =IF($C20=1,'Sjekkliste noter'!H40,"") -> 
A21: =+'Sjekkliste noter'!A41 -> 20 | B21: =IF('Sjekkliste noter'!G41<>"",1,0) -> 0 | C21: 0 | D21: =IF($C21=1,'Sjekkliste noter'!A41,"") ->  | E21: =IF($C21=1,'Sjekkliste noter'!B41,"") ->  | G21: =IF($C21=1,'Sjekkliste noter'!H41,"") -> 
A22: =+'Sjekkliste noter'!A42 -> 21 | B22: =IF('Sjekkliste noter'!G42<>"",1,0) -> 0 | C22: 0 | D22: =IF($C22=1,'Sjekkliste noter'!A42,"") ->  | E22: =IF($C22=1,'Sjekkliste noter'!B42,"") ->  | G22: =IF($C22=1,'Sjekkliste noter'!H42,"") -> 
A23: =+'Sjekkliste noter'!A43 -> 22 | B23: =IF('Sjekkliste noter'!G43<>"",1,0) -> 0 | C23: 0 | D23: =IF($C23=1,'Sjekkliste noter'!A43,"") ->  | E23: =IF($C23=1,'Sjekkliste noter'!B43,"") ->  | G23: =IF($C23=1,'Sjekkliste noter'!H43,"") -> 
A24: =+'Sjekkliste noter'!A45 -> 23 | B24: =IF('Sjekkliste noter'!G45<>"",1,0) -> 0 | C24: 0 | D24: =IF($C24=1,'Sjekkliste noter'!A45,"") ->  | E24: =IF($C24=1,'Sjekkliste noter'!B45,"") ->  | G24: =IF($C24=1,'Sjekkliste noter'!H45,"") -> 
A25: =+'Sjekkliste noter'!A46 -> 24 | B25: =IF('Sjekkliste noter'!G46<>"",1,0) -> 0 | C25: 0 | D25: =IF($C25=1,'Sjekkliste noter'!A46,"") ->  | E25: =IF($C25=1,'Sjekkliste noter'!B46,"") ->  | G25: =IF($C25=1,'Sjekkliste noter'!H46,"") -> 
A26: =+'Sjekkliste noter'!A48 -> 25 | B26: =IF('Sjekkliste noter'!G48<>"",1,0) -> 0 | C26: 0 | D26: =IF($C26=1,'Sjekkliste noter'!A48,"") ->  | E26: =IF($C26=1,'Sjekkliste noter'!B48,"") ->  | G26: =IF($C26=1,'Sjekkliste noter'!H48,"") -> 
A27: =+'Sjekkliste noter'!A49 -> 26 | B27: =IF('Sjekkliste noter'!G49<>"",1,0) -> 0 | C27: 0 | D27: =IF($C27=1,'Sjekkliste noter'!A49,"") ->  | E27: =IF($C27=1,'Sjekkliste noter'!B49,"") ->  | G27: =IF($C27=1,'Sjekkliste noter'!H49,"") -> 
A28: =+'Sjekkliste noter'!A53 -> 27 | B28: =IF('Sjekkliste noter'!G53<>"",1,0) -> 0 | C28: 0 | D28: =IF($C28=1,'Sjekkliste noter'!A53,"") ->  | E28: =IF($C28=1,'Sjekkliste noter'!B53,"") ->  | G28: =IF($C28=1,'Sjekkliste noter'!H53,"") -> 
A29: =+'Sjekkliste noter'!A55 -> 28 | B29: =IF('Sjekkliste noter'!G55<>"",1,0) -> 0 | C29: 0 | D29: =IF($C29=1,'Sjekkliste noter'!A55,"") ->  | E29: =IF($C29=1,'Sjekkliste noter'!B55,"") ->  | G29: =IF($C29=1,'Sjekkliste noter'!H55,"") -> 
A30: =+'Sjekkliste noter'!A56 -> 29 | B30: =IF('Sjekkliste noter'!G56<>"",1,0) -> 0 | C30: 0 | D30: =IF($C30=1,'Sjekkliste noter'!A56,"") ->  | E30: =IF($C30=1,'Sjekkliste noter'!B56,"") ->  | G30: =IF($C30=1,'Sjekkliste noter'!H56,"") -> 
A31: =+'Sjekkliste noter'!A57 -> 30 | B31: =IF('Sjekkliste noter'!G57<>"",1,0) -> 0 | C31: 0 | D31: =IF($C31=1,'Sjekkliste noter'!A57,"") ->  | E31: =IF($C31=1,'Sjekkliste noter'!B57,"") ->  | G31: =IF($C31=1,'Sjekkliste noter'!H57,"") -> 
A32: =+'Sjekkliste noter'!A58 -> 31 | B32: =IF('Sjekkliste noter'!G58<>"",1,0) -> 0 | C32: 0 | D32: =IF($C32=1,'Sjekkliste noter'!A58,"") ->  | E32: =IF($C32=1,'Sjekkliste noter'!B58,"") ->  | G32: =IF($C32=1,'Sjekkliste noter'!H58,"") -> 
A33: =+'Sjekkliste noter'!A59 -> 32 | B33: =IF('Sjekkliste noter'!G59<>"",1,0) -> 0 | C33: 0 | D33: =IF($C33=1,'Sjekkliste noter'!A59,"") ->  | E33: =IF($C33=1,'Sjekkliste noter'!B59,"") ->  | G33: =IF($C33=1,'Sjekkliste noter'!H59,"") -> 
A34: =+'Sjekkliste noter'!A65 -> 33 | B34: =IF('Sjekkliste noter'!G65<>"",1,0) -> 0 | C34: 0 | D34: =IF($C34=1,'Sjekkliste noter'!A65,"") ->  | E34: =IF($C34=1,'Sjekkliste noter'!B65,"") ->  | G34: =IF($C34=1,'Sjekkliste noter'!H65,"") -> 
A35: =+'Sjekkliste noter'!A66 -> 34 | B35: =IF('Sjekkliste noter'!G66<>"",1,0) -> 0 | C35: 0 | D35: =IF($C35=1,'Sjekkliste noter'!A66,"") ->  | E35: =IF($C35=1,'Sjekkliste noter'!B66,"") ->  | G35: =IF($C35=1,'Sjekkliste noter'!H66,"") -> 
A36: =+'Sjekkliste noter'!A67 -> 35 | B36: =IF('Sjekkliste noter'!G67<>"",1,0) -> 0 | C36: 0 | D36: =IF($C36=1,'Sjekkliste noter'!A67,"") ->  | E36: =IF($C36=1,'Sjekkliste noter'!B67,"") ->  | G36: =IF($C36=1,'Sjekkliste noter'!H67,"") -> 
A37: =+'Sjekkliste noter'!A68 -> 36 | B37: =IF('Sjekkliste noter'!G68<>"",1,0) -> 0 | C37: 0 | D37: =IF($C37=1,'Sjekkliste noter'!A68,"") ->  | E37: =IF($C37=1,'Sjekkliste noter'!B68,"") ->  | G37: =IF($C37=1,'Sjekkliste noter'!H68,"") -> 
A38: =+'Sjekkliste noter'!A69 -> 37 | B38: =IF('Sjekkliste noter'!G69<>"",1,0) -> 0 | C38: 0 | D38: =IF($C38=1,'Sjekkliste noter'!A69,"") ->  | E38: =IF($C38=1,'Sjekkliste noter'!B69,"") ->  | G38: =IF($C38=1,'Sjekkliste noter'!H69,"") -> 
A39: =+'Sjekkliste noter'!A70 -> 38 | B39: =IF('Sjekkliste noter'!G70<>"",1,0) -> 0 | C39: 0 | D39: =IF($C39=1,'Sjekkliste noter'!A70,"") ->  | E39: =IF($C39=1,'Sjekkliste noter'!B70,"") ->  | G39: =IF($C39=1,'Sjekkliste noter'!H70,"") -> 
A40: =+'Sjekkliste noter'!A71 -> 39 | B40: =IF('Sjekkliste noter'!G71<>"",1,0) -> 0 | C40: 0 | D40: =IF($C40=1,'Sjekkliste noter'!A71,"") ->  | E40: =IF($C40=1,'Sjekkliste noter'!B71,"") ->  | G40: =IF($C40=1,'Sjekkliste noter'!H71,"") -> 
A41: =+'Sjekkliste noter'!A72 -> 40 | B41: =IF('Sjekkliste noter'!G72<>"",1,0) -> 0 | C41: 0 | D41: =IF($C41=1,'Sjekkliste noter'!A72,"") ->  | E41: =IF($C41=1,'Sjekkliste noter'!B72,"") ->  | G41: =IF($C41=1,'Sjekkliste noter'!H72,"") -> 
A42: =+'Sjekkliste noter'!A74 -> 41 | B42: =IF('Sjekkliste noter'!G74<>"",1,0) -> 0 | C42: 0 | D42: =IF($C42=1,'Sjekkliste noter'!A74,"") ->  | E42: =IF($C42=1,'Sjekkliste noter'!B74,"") ->  | G42: =IF($C42=1,'Sjekkliste noter'!H74,"") -> 
A43: =+'Sjekkliste noter'!A77 -> 42 | B43: =IF('Sjekkliste noter'!G77<>"",1,0) -> 0 | C43: 0 | D43: =IF($C43=1,'Sjekkliste noter'!A77,"") ->  | E43: =IF($C43=1,'Sjekkliste noter'!B77,"") ->  | G43: =IF($C43=1,'Sjekkliste noter'!H77,"") -> 
A44: =+'Sjekkliste noter'!A78 -> 43 | B44: =IF('Sjekkliste noter'!G78<>"",1,0) -> 0 | C44: 0 | D44: =IF($C44=1,'Sjekkliste noter'!A78,"") ->  | E44: =IF($C44=1,'Sjekkliste noter'!B78,"") ->  | G44: =IF($C44=1,'Sjekkliste noter'!H78,"") -> 
A45: =+'Sjekkliste noter'!A79 -> 44 | B45: =IF('Sjekkliste noter'!G79<>"",1,0) -> 0 | C45: 0 | D45: =IF($C45=1,'Sjekkliste noter'!A79,"") ->  | E45: =IF($C45=1,'Sjekkliste noter'!B79,"") ->  | G45: =IF($C45=1,'Sjekkliste noter'!H79,"") -> 
A46: =+'Sjekkliste noter'!A81 -> 45 | B46: =IF('Sjekkliste noter'!G81<>"",1,0) -> 0 | C46: 0 | D46: =IF($C46=1,'Sjekkliste noter'!A81,"") ->  | E46: =IF($C46=1,'Sjekkliste noter'!B81,"") ->  | G46: =IF($C46=1,'Sjekkliste noter'!H81,"") -> 
A47: =+'Sjekkliste noter'!A82 -> 46 | B47: =IF('Sjekkliste noter'!G82<>"",1,0) -> 0 | C47: 0 | D47: =IF($C47=1,'Sjekkliste noter'!A82,"") ->  | E47: =IF($C47=1,'Sjekkliste noter'!B82,"") ->  | G47: =IF($C47=1,'Sjekkliste noter'!H82,"") -> 
A48: =+'Sjekkliste noter'!A84 -> 47 | B48: =IF('Sjekkliste noter'!G84<>"",1,0) -> 0 | C48: 0 | D48: =IF($C48=1,'Sjekkliste noter'!A84,"") ->  | E48: =IF($C48=1,'Sjekkliste noter'!B84,"") ->  | G48: =IF($C48=1,'Sjekkliste noter'!H84,"") -> 
A49: =+'Sjekkliste noter'!A86 -> 48 | B49: =IF('Sjekkliste noter'!G86<>"",1,0) -> 0 | C49: 0 | D49: =IF($C49=1,'Sjekkliste noter'!A86,"") ->  | E49: =IF($C49=1,'Sjekkliste noter'!B86,"") ->  | G49: =IF($C49=1,'Sjekkliste noter'!H86,"") -> 
A50: =+'Sjekkliste noter'!A87 -> 49 | B50: =IF('Sjekkliste noter'!G87<>"",1,0) -> 0 | C50: 0 | D50: =IF($C50=1,'Sjekkliste noter'!A87,"") ->  | E50: =IF($C50=1,'Sjekkliste noter'!B87,"") ->  | G50: =IF($C50=1,'Sjekkliste noter'!H87,"") -> 
A51: =+'Sjekkliste noter'!A88 -> 50 | B51: =IF('Sjekkliste noter'!G88<>"",1,0) -> 0 | C51: 0 | D51: =IF($C51=1,'Sjekkliste noter'!A88,"") ->  | E51: =IF($C51=1,'Sjekkliste noter'!B88,"") ->  | G51: =IF($C51=1,'Sjekkliste noter'!H88,"") -> 
A52: =+'Sjekkliste noter'!A94 -> 51 | B52: =IF('Sjekkliste noter'!G94<>"",1,0) -> 0 | C52: 0 | D52: =IF($C52=1,'Sjekkliste noter'!A94,"") ->  | E52: =IF($C52=1,'Sjekkliste noter'!B94,"") ->  | G52: =IF($C52=1,'Sjekkliste noter'!H94,"") -> 
A53: =+'Sjekkliste noter'!A95 -> 52 | B53: =IF('Sjekkliste noter'!G95<>"",1,0) -> 0 | C53: 0 | D53: =IF($C53=1,'Sjekkliste noter'!A95,"") ->  | E53: =IF($C53=1,'Sjekkliste noter'!B95,"") ->  | G53: =IF($C53=1,'Sjekkliste noter'!H95,"") -> 
A54: =+'Sjekkliste noter'!A96 -> 53 | B54: =IF('Sjekkliste noter'!G96<>"",1,0) -> 0 | C54: 0 | D54: =IF($C54=1,'Sjekkliste noter'!A96,"") ->  | E54: =IF($C54=1,'Sjekkliste noter'!B96,"") ->  | G54: =IF($C54=1,'Sjekkliste noter'!H96,"") -> 
A55: =+'Sjekkliste noter'!A97 -> 54 | B55: =IF('Sjekkliste noter'!G97<>"",1,0) -> 0 | C55: 0 | D55: =IF($C55=1,'Sjekkliste noter'!A97,"") ->  | E55: =IF($C55=1,'Sjekkliste noter'!B97,"") ->  | G55: =IF($C55=1,'Sjekkliste noter'!H97,"") -> 
A56: =+'Sjekkliste noter'!A98 -> 55 | B56: =IF('Sjekkliste noter'!G98<>"",1,0) -> 0 | C56: 0 | D56: =IF($C56=1,'Sjekkliste noter'!A98,"") ->  | E56: =IF($C56=1,'Sjekkliste noter'!B98,"") ->  | G56: =IF($C56=1,'Sjekkliste noter'!H98,"") -> 
A57: =+'Sjekkliste noter'!A99 -> 56 | B57: =IF('Sjekkliste noter'!G99<>"",1,0) -> 0 | C57: 0 | D57: =IF($C57=1,'Sjekkliste noter'!A99,"") ->  | E57: =IF($C57=1,'Sjekkliste noter'!B99,"") ->  | G57: =IF($C57=1,'Sjekkliste noter'!H99,"") -> 
A58: =+'Sjekkliste noter'!A101 -> 57 | B58: =IF('Sjekkliste noter'!G101<>"",1,0) -> 0 | C58: 0 | D58: =IF($C58=1,'Sjekkliste noter'!A101,"") ->  | E58: =IF($C58=1,'Sjekkliste noter'!B101,"") ->  | G58: =IF($C58=1,'Sjekkliste noter'!H101,"") -> 
A59: =+'Sjekkliste noter'!A102 -> 58 | B59: =IF('Sjekkliste noter'!G102<>"",1,0) -> 0 | C59: 0 | D59: =IF($C59=1,'Sjekkliste noter'!A102,"") ->  | E59: =IF($C59=1,'Sjekkliste noter'!B102,"") ->  | G59: =IF($C59=1,'Sjekkliste noter'!H102,"") -> 
A60: =+'Sjekkliste noter'!A104 -> 59 | B60: =IF('Sjekkliste noter'!G104<>"",1,0) -> 0 | C60: 0 | D60: =IF($C60=1,'Sjekkliste noter'!A104,"") ->  | E60: =IF($C60=1,'Sjekkliste noter'!B104,"") ->  | G60: =IF($C60=1,'Sjekkliste noter'!H104,"") -> 
A61: =+'Sjekkliste noter'!A105 -> 60 | B61: =IF('Sjekkliste noter'!G105<>"",1,0) -> 0 | C61: 0 | D61: =IF($C61=1,'Sjekkliste noter'!A105,"") ->  | E61: =IF($C61=1,'Sjekkliste noter'!B105,"") ->  | G61: =IF($C61=1,'Sjekkliste noter'!H105,"") -> 
A62: =+'Sjekkliste noter'!A107 -> 61 | B62: =IF('Sjekkliste noter'!G107<>"",1,0) -> 0 | C62: 0 | D62: =IF($C62=1,'Sjekkliste noter'!A107,"") ->  | E62: =IF($C62=1,'Sjekkliste noter'!B107,"") ->  | G62: =IF($C62=1,'Sjekkliste noter'!H107,"") -> 
A63: =+'Sjekkliste noter'!A109 -> 62 | B63: =IF('Sjekkliste noter'!G109<>"",1,0) -> 0 | C63: 0 | D63: =IF($C63=1,'Sjekkliste noter'!A109,"") ->  | E63: =IF($C63=1,'Sjekkliste noter'!B109,"") ->  | G63: =IF($C63=1,'Sjekkliste noter'!H109,"") -> 
A64: =+'Sjekkliste noter'!A111 -> 63 | B64: =IF('Sjekkliste noter'!G111<>"",1,0) -> 0 | C64: 0 | D64: =IF($C64=1,'Sjekkliste noter'!A111,"") ->  | E64: =IF($C64=1,'Sjekkliste noter'!B111,"") ->  | G64: =IF($C64=1,'Sjekkliste noter'!H111,"") -> 
A65: =+'Sjekkliste noter'!A113 -> 64 | B65: =IF('Sjekkliste noter'!G113<>"",1,0) -> 0 | C65: 0 | D65: =IF($C65=1,'Sjekkliste noter'!A113,"") ->  | E65: =IF($C65=1,'Sjekkliste noter'!B113,"") ->  | G65: =IF($C65=1,'Sjekkliste noter'!H113,"") -> 
A66: =+'Sjekkliste noter'!A115 -> 65 | B66: =IF('Sjekkliste noter'!G115<>"",1,0) -> 0 | C66: =SUM(B66:B66) -> 0 | D66: =IF($C66=1,'Sjekkliste noter'!A115,"") ->  | E66: =IF($C66=1,'Sjekkliste noter'!B115,"") ->  | G66: =IF($C66=1,'Sjekkliste noter'!H115,"") -> 
A67: =+'Sjekkliste noter'!A118 -> 66 | B67: =IF('Sjekkliste noter'!G118<>"",1,0) -> 0 | C67: 0 | D67: =IF($C67=1,'Sjekkliste noter'!A118,"") ->  | E67: =IF($C67=1,'Sjekkliste noter'!B118,"") ->  | G67: =IF($C67=1,'Sjekkliste noter'!H118,"") -> 
A68: =+'Sjekkliste noter'!A120 -> 67 | B68: =IF('Sjekkliste noter'!G120<>"",1,0) -> 0 | C68: 0 | D68: =IF($C68=1,'Sjekkliste noter'!A120,"") ->  | E68: =IF($C68=1,'Sjekkliste noter'!B120,"") ->  | G68: =IF($C68=1,'Sjekkliste noter'!H120,"") -> 
A69: =+'Sjekkliste noter'!A121 -> 68 | B69: =IF('Sjekkliste noter'!G121<>"",1,0) -> 0 | C69: 0 | D69: =IF($C69=1,'Sjekkliste noter'!A121,"") ->  | E69: =IF($C69=1,'Sjekkliste noter'!B121,"") ->  | G69: =IF($C69=1,'Sjekkliste noter'!H121,"") -> 
A70: =+'Sjekkliste noter'!A122 -> 69 | B70: =IF('Sjekkliste noter'!G122<>"",1,0) -> 0 | C70: 0 | D70: =IF($C70=1,'Sjekkliste noter'!A122,"") ->  | E70: =IF($C70=1,'Sjekkliste noter'!B122,"") ->  | G70: =IF($C70=1,'Sjekkliste noter'!H122,"") -> 
A71: =+'Sjekkliste noter'!A124 -> 70 | B71: =IF('Sjekkliste noter'!G124<>"",1,0) -> 0 | C71: 0 | D71: =IF($C71=1,'Sjekkliste noter'!A124,"") ->  | E71: =IF($C71=1,'Sjekkliste noter'!B124,"") ->  | G71: =IF($C71=1,'Sjekkliste noter'!H124,"") -> 
A72: =+'Sjekkliste noter'!A129 -> 71 | B72: =IF('Sjekkliste noter'!G129<>"",1,0) -> 0 | C72: 0 | D72: =IF($C72=1,'Sjekkliste noter'!A129,"") ->  | E72: =IF($C72=1,'Sjekkliste noter'!B129,"") ->  | G72: =IF($C72=1,'Sjekkliste noter'!H129,"") -> 
A73: =+'Sjekkliste noter'!A130 -> 72 | B73: =IF('Sjekkliste noter'!G130<>"",1,0) -> 0 | C73: 0 | D73: =IF($C73=1,'Sjekkliste noter'!A130,"") ->  | E73: =IF($C73=1,'Sjekkliste noter'!B130,"") ->  | G73: =IF($C73=1,'Sjekkliste noter'!H130,"") -> 
A74: =+'Sjekkliste noter'!A131 -> 73 | B74: =IF('Sjekkliste noter'!G131<>"",1,0) -> 0 | C74: 0 | D74: =IF($C74=1,'Sjekkliste noter'!A131,"") ->  | E74: =IF($C74=1,'Sjekkliste noter'!B131,"") ->  | G74: =IF($C74=1,'Sjekkliste noter'!H131,"") -> 
A75: =+'Sjekkliste noter'!A132 -> 74 | B75: =IF('Sjekkliste noter'!G132<>"",1,0) -> 0 | C75: 0 | D75: =IF($C75=1,'Sjekkliste noter'!A132,"") ->  | E75: =IF($C75=1,'Sjekkliste noter'!B132,"") ->  | G75: =IF($C75=1,'Sjekkliste noter'!H132,"") -> 
A76: =+'Sjekkliste noter'!A133 -> 75 | B76: =IF('Sjekkliste noter'!G133<>"",1,0) -> 0 | C76: 0 | D76: =IF($C76=1,'Sjekkliste noter'!A133,"") ->  | E76: =IF($C76=1,'Sjekkliste noter'!B133,"") ->  | G76: =IF($C76=1,'Sjekkliste noter'!H133,"") -> 
A77: =+'Sjekkliste noter'!A135 -> 76 | B77: =IF('Sjekkliste noter'!G135<>"",1,0) -> 0 | C77: 0 | D77: =IF($C77=1,'Sjekkliste noter'!A135,"") ->  | E77: =IF($C77=1,'Sjekkliste noter'!B135,"") ->  | G77: =IF($C77=1,'Sjekkliste noter'!H135,"") -> 
A78: =+'Sjekkliste noter'!A137 -> 77 | B78: =IF('Sjekkliste noter'!G137<>"",1,0) -> 0 | C78: 0 | D78: =IF($C78=1,'Sjekkliste noter'!A137,"") ->  | E78: =IF($C78=1,'Sjekkliste noter'!B137,"") ->  | G78: =IF($C78=1,'Sjekkliste noter'!H137,"") -> 
A79: =+'Sjekkliste noter'!A139 -> 78 | B79: =IF('Sjekkliste noter'!G139<>"",1,0) -> 0 | C79: 0 | D79: =IF($C79=1,'Sjekkliste noter'!A139,"") ->  | E79: =IF($C79=1,'Sjekkliste noter'!B139,"") ->  | G79: =IF($C79=1,'Sjekkliste noter'!H139,"") -> 
A80: =+'Sjekkliste noter'!A141 -> 79 | B80: =IF('Sjekkliste noter'!G141<>"",1,0) -> 0 | C80: 0 | D80: =IF($C80=1,'Sjekkliste noter'!A141,"") ->  | E80: =IF($C80=1,'Sjekkliste noter'!B141,"") ->  | G80: =IF($C80=1,'Sjekkliste noter'!H141,"") -> 
A81: =+'Sjekkliste noter'!A142 -> 80 | B81: =IF('Sjekkliste noter'!G142<>"",1,0) -> 0 | C81: 0 | D81: =IF($C81=1,'Sjekkliste noter'!A142,"") ->  | E81: =IF($C81=1,'Sjekkliste noter'!B142,"") ->  | G81: =IF($C81=1,'Sjekkliste noter'!H142,"") -> 
A82: =+'Sjekkliste noter'!A144 -> 81 | B82: =IF('Sjekkliste noter'!G144<>"",1,0) -> 0 | C82: 0 | D82: =IF($C82=1,'Sjekkliste noter'!A144,"") ->  | E82: =IF($C82=1,'Sjekkliste noter'!B144,"") ->  | G82: =IF($C82=1,'Sjekkliste noter'!H144,"") -> 
A83: =+'Sjekkliste noter'!A146 -> 82 | B83: =IF('Sjekkliste noter'!G146<>"",1,0) -> 0 | C83: 0 | D83: =IF($C83=1,'Sjekkliste noter'!A146,"") ->  | E83: =IF($C83=1,'Sjekkliste noter'!B146,"") ->  | G83: =IF($C83=1,'Sjekkliste noter'!H146,"") -> 
A84: =+'Sjekkliste noter'!A147 -> 83 | B84: =IF('Sjekkliste noter'!G147<>"",1,0) -> 0 | C84: 0 | D84: =IF($C84=1,'Sjekkliste noter'!A147,"") ->  | E84: =IF($C84=1,'Sjekkliste noter'!B147,"") ->  | G84: =IF($C84=1,'Sjekkliste noter'!H147,"") -> 
A85: =+'Sjekkliste noter'!A149 -> 84 | B85: =IF('Sjekkliste noter'!G149<>"",1,0) -> 0 | C85: 0 | D85: =IF($C85=1,'Sjekkliste noter'!A149,"") ->  | E85: =IF($C85=1,'Sjekkliste noter'!B149,"") ->  | G85: =IF($C85=1,'Sjekkliste noter'!H149,"") -> 
A86: =+'Sjekkliste noter'!A150 -> 85 | B86: =IF('Sjekkliste noter'!G150<>"",1,0) -> 0 | C86: 0 | D86: =IF($C86=1,'Sjekkliste noter'!A150,"") ->  | E86: =IF($C86=1,'Sjekkliste noter'!B150,"") ->  | G86: =IF($C86=1,'Sjekkliste noter'!H150,"") -> 
A87: =+'Sjekkliste noter'!A152 -> 86 | B87: =IF('Sjekkliste noter'!G152<>"",1,0) -> 0 | C87: 0 | D87: =IF($C87=1,'Sjekkliste noter'!A152,"") ->  | E87: =IF($C87=1,'Sjekkliste noter'!B152,"") ->  | G87: =IF($C87=1,'Sjekkliste noter'!H152,"") -> 
A88: =+'Sjekkliste noter'!A153 -> 87 | B88: =IF('Sjekkliste noter'!G153<>"",1,0) -> 0 | C88: 0 | D88: =IF($C88=1,'Sjekkliste noter'!A153,"") ->  | E88: =IF($C88=1,'Sjekkliste noter'!B153,"") ->  | G88: =IF($C88=1,'Sjekkliste noter'!H153,"") -> 
A89: =+'Sjekkliste noter'!A155 -> 88 | B89: =IF('Sjekkliste noter'!G155<>"",1,0) -> 0 | C89: 0 | D89: =IF($C89=1,'Sjekkliste noter'!A155,"") ->  | E89: =IF($C89=1,'Sjekkliste noter'!B155,"") ->  | G89: =IF($C89=1,'Sjekkliste noter'!H155,"") -> 
A90: =+'Sjekkliste noter'!A156 -> 89 | B90: =IF('Sjekkliste noter'!G156<>"",1,0) -> 0 | C90: 0 | D90: =IF($C90=1,'Sjekkliste noter'!A156,"") ->  | E90: =IF($C90=1,'Sjekkliste noter'!B156,"") ->  | G90: =IF($C90=1,'Sjekkliste noter'!H156,"") -> 
A91: =+'Sjekkliste noter'!A158 -> 90 | B91: =IF('Sjekkliste noter'!G158<>"",1,0) -> 0 | C91: 0 | D91: =IF($C91=1,'Sjekkliste noter'!A158,"") ->  | E91: =IF($C91=1,'Sjekkliste noter'!B158,"") ->  | G91: =IF($C91=1,'Sjekkliste noter'!H158,"") -> 
A92: =+'Sjekkliste noter'!A160 -> 91 | B92: =IF('Sjekkliste noter'!G160<>"",1,0) -> 0 | C92: 0 | D92: =IF($C92=1,'Sjekkliste noter'!A160,"") ->  | E92: =IF($C92=1,'Sjekkliste noter'!B160,"") ->  | G92: =IF($C92=1,'Sjekkliste noter'!H160,"") -> 
A93: =+'Sjekkliste noter'!A162 -> 92 | B93: =IF('Sjekkliste noter'!G162<>"",1,0) -> 0 | C93: 0 | D93: =IF($C93=1,'Sjekkliste noter'!A162,"") ->  | E93: =IF($C93=1,'Sjekkliste noter'!B162,"") ->  | G93: =IF($C93=1,'Sjekkliste noter'!H162,"") -> 
A94: =+'Sjekkliste noter'!A164 -> 93 | B94: =IF('Sjekkliste noter'!G164<>"",1,0) -> 0 | C94: 0 | D94: =IF($C94=1,'Sjekkliste noter'!A164,"") ->  | E94: =IF($C94=1,'Sjekkliste noter'!B164,"") ->  | G94: =IF($C94=1,'Sjekkliste noter'!H164,"") -> 
A95: =+'Sjekkliste noter'!A166 -> 94 | B95: =IF('Sjekkliste noter'!G166<>"",1,0) -> 0 | C95: 0 | D95: =IF($C95=1,'Sjekkliste noter'!A166,"") ->  | E95: =IF($C95=1,'Sjekkliste noter'!B166,"") ->  | G95: =IF($C95=1,'Sjekkliste noter'!H166,"") -> 
A96: =+'Sjekkliste noter'!A167 -> 95 | B96: =IF('Sjekkliste noter'!G167<>"",1,0) -> 0 | C96: 0 | D96: =IF($C96=1,'Sjekkliste noter'!A167,"") ->  | E96: =IF($C96=1,'Sjekkliste noter'!B167,"") ->  | G96: =IF($C96=1,'Sjekkliste noter'!H167,"") -> 
A97: =+'Sjekkliste noter'!A170 -> 96 | B97: =IF('Sjekkliste noter'!G170<>"",1,0) -> 0 | C97: 0 | D97: =IF($C97=1,'Sjekkliste noter'!A170,"") ->  | E97: =IF($C97=1,'Sjekkliste noter'!B170,"") ->  | G97: =IF($C97=1,'Sjekkliste noter'!H170,"") -> 
A98: =+'Sjekkliste noter'!A171 -> 97 | B98: =IF('Sjekkliste noter'!G171<>"",1,0) -> 0 | C98: 0 | D98: =IF($C98=1,'Sjekkliste noter'!A171,"") ->  | E98: =IF($C98=1,'Sjekkliste noter'!B171,"") ->  | G98: =IF($C98=1,'Sjekkliste noter'!H171,"") -> 
A99: =+'Sjekkliste noter'!A172 -> 98 | B99: =IF('Sjekkliste noter'!G172<>"",1,0) -> 0 | C99: 0 | D99: =IF($C99=1,'Sjekkliste noter'!A172,"") ->  | E99: =IF($C99=1,'Sjekkliste noter'!B172,"") ->  | G99: =IF($C99=1,'Sjekkliste noter'!H172,"") -> 
A100: =+'Sjekkliste noter'!A173 -> 99 | B100: =IF('Sjekkliste noter'!G173<>"",1,0) -> 0 | C100: 0 | D100: =IF($C100=1,'Sjekkliste noter'!A173,"") ->  | E100: =IF($C100=1,'Sjekkliste noter'!B173,"") ->  | G100: =IF($C100=1,'Sjekkliste noter'!H173,"") -> 
A101: =+'Sjekkliste noter'!A174 -> 100 | B101: =IF('Sjekkliste noter'!G174<>"",1,0) -> 0 | C101: 0 | D101: =IF($C101=1,'Sjekkliste noter'!A174,"") ->  | E101: =IF($C101=1,'Sjekkliste noter'!B174,"") ->  | G101: =IF($C101=1,'Sjekkliste noter'!H174,"") -> 
A102: =+'Sjekkliste noter'!A175 -> 101 | B102: =IF('Sjekkliste noter'!G175<>"",1,0) -> 0 | C102: 0 | D102: =IF($C102=1,'Sjekkliste noter'!A175,"") ->  | E102: =IF($C102=1,'Sjekkliste noter'!B175,"") ->  | G102: =IF($C102=1,'Sjekkliste noter'!H175,"") -> 
A103: =+'Sjekkliste noter'!A178 -> 102 | B103: =IF('Sjekkliste noter'!G178<>"",1,0) -> 0 | C103: 0 | D103: =IF($C103=1,'Sjekkliste noter'!A178,"") ->  | E103: =IF($C103=1,'Sjekkliste noter'!B178,"") ->  | G103: =IF($C103=1,'Sjekkliste noter'!H178,"") -> 
A104: =+'Sjekkliste noter'!A179 -> 103 | B104: =IF('Sjekkliste noter'!G179<>"",1,0) -> 0 | C104: 0 | D104: =IF($C104=1,'Sjekkliste noter'!A179,"") ->  | E104: =IF($C104=1,'Sjekkliste noter'!B179,"") ->  | G104: =IF($C104=1,'Sjekkliste noter'!H179,"") -> 
A105: =+'Sjekkliste noter'!A180 -> 104 | B105: =IF('Sjekkliste noter'!G180<>"",1,0) -> 0 | C105: 0 | D105: =IF($C105=1,'Sjekkliste noter'!A180,"") ->  | E105: =IF($C105=1,'Sjekkliste noter'!B180,"") ->  | G105: =IF($C105=1,'Sjekkliste noter'!H180,"") -> 
A106: =+'Sjekkliste noter'!A181 -> 105 | B106: =IF('Sjekkliste noter'!G181<>"",1,0) -> 0 | C106: 0 | D106: =IF($C106=1,'Sjekkliste noter'!A181,"") ->  | E106: =IF($C106=1,'Sjekkliste noter'!B181,"") ->  | G106: =IF($C106=1,'Sjekkliste noter'!H181,"") -> 
A107: =+'Sjekkliste noter'!A182 -> 106 | B107: =IF('Sjekkliste noter'!G182<>"",1,0) -> 0 | C107: 0 | D107: =IF($C107=1,'Sjekkliste noter'!A182,"") ->  | E107: =IF($C107=1,'Sjekkliste noter'!B182,"") ->  | G107: =IF($C107=1,'Sjekkliste noter'!H182,"") -> 
A108: =+'Sjekkliste noter'!A183 -> 107 | B108: =IF('Sjekkliste noter'!G183<>"",1,0) -> 0 | C108: 0 | D108: =IF($C108=1,'Sjekkliste noter'!A183,"") ->  | E108: =IF($C108=1,'Sjekkliste noter'!B183,"") ->  | G108: =IF($C108=1,'Sjekkliste noter'!H183,"") -> 
A109: =+'Sjekkliste noter'!A184 -> 108 | B109: =IF('Sjekkliste noter'!G184<>"",1,0) -> 0 | C109: 0 | D109: =IF($C109=1,'Sjekkliste noter'!A184,"") ->  | E109: =IF($C109=1,'Sjekkliste noter'!B184,"") ->  | G109: =IF($C109=1,'Sjekkliste noter'!H184,"") -> 
A110: =+'Sjekkliste noter'!A185 -> 109 | B110: =IF('Sjekkliste noter'!G185<>"",1,0) -> 0 | C110: 0 | D110: =IF($C110=1,'Sjekkliste noter'!A185,"") ->  | E110: =IF($C110=1,'Sjekkliste noter'!B185,"") ->  | G110: =IF($C110=1,'Sjekkliste noter'!H185,"") -> 
A111: =+'Sjekkliste noter'!A186 -> 110 | B111: =IF('Sjekkliste noter'!G186<>"",1,0) -> 0 | C111: 0 | D111: =IF($C111=1,'Sjekkliste noter'!A186,"") ->  | E111: =IF($C111=1,'Sjekkliste noter'!B186,"") ->  | G111: =IF($C111=1,'Sjekkliste noter'!H186,"") -> 
A112: =+'Sjekkliste noter'!A188 -> 111 | B112: =IF('Sjekkliste noter'!G188<>"",1,0) -> 0 | C112: 0 | D112: =IF($C112=1,'Sjekkliste noter'!A188,"") ->  | E112: =IF($C112=1,'Sjekkliste noter'!B188,"") ->  | G112: =IF($C112=1,'Sjekkliste noter'!H188,"") -> 
A113: =+'Sjekkliste noter'!A189 -> 112 | B113: =IF('Sjekkliste noter'!G189<>"",1,0) -> 0 | C113: 0 | D113: =IF($C113=1,'Sjekkliste noter'!A189,"") ->  | E113: =IF($C113=1,'Sjekkliste noter'!B189,"") ->  | G113: =IF($C113=1,'Sjekkliste noter'!H189,"") -> 
A114: =+'Sjekkliste noter'!A191 -> 113 | B114: =IF('Sjekkliste noter'!G191<>"",1,0) -> 0 | C114: 0 | D114: =IF($C114=1,'Sjekkliste noter'!A191,"") ->  | E114: =IF($C114=1,'Sjekkliste noter'!B191,"") ->  | G114: =IF($C114=1,'Sjekkliste noter'!H191,"") -> 
A115: =+'Sjekkliste noter'!A192 -> 114 | B115: =IF('Sjekkliste noter'!G192<>"",1,0) -> 0 | C115: 0 | D115: =IF($C115=1,'Sjekkliste noter'!A192,"") ->  | E115: =IF($C115=1,'Sjekkliste noter'!B192,"") ->  | G115: =IF($C115=1,'Sjekkliste noter'!H192,"") -> 
A116: =+'Sjekkliste noter'!A194 -> 115 | B116: =IF('Sjekkliste noter'!G194<>"",1,0) -> 0 | C116: 0 | D116: =IF($C116=1,'Sjekkliste noter'!A194,"") ->  | E116: =IF($C116=1,'Sjekkliste noter'!B194,"") ->  | G116: =IF($C116=1,'Sjekkliste noter'!H194,"") -> 
A117: =+'Sjekkliste noter'!A195 -> 116 | B117: =IF('Sjekkliste noter'!G195<>"",1,0) -> 0 | C117: 0 | D117: =IF($C117=1,'Sjekkliste noter'!A195,"") ->  | E117: =IF($C117=1,'Sjekkliste noter'!B195,"") ->  | G117: =IF($C117=1,'Sjekkliste noter'!H195,"") -> 
A118: =+'Sjekkliste noter'!A196 -> 117 | B118: =IF('Sjekkliste noter'!G196<>"",1,0) -> 0 | C118: 0 | D118: =IF($C118=1,'Sjekkliste noter'!A196,"") ->  | E118: =IF($C118=1,'Sjekkliste noter'!B196,"") ->  | G118: =IF($C118=1,'Sjekkliste noter'!H196,"") -> 
A119: =+'Sjekkliste noter'!A197 -> 118 | B119: =IF('Sjekkliste noter'!G197<>"",1,0) -> 0 | C119: 0 | D119: =IF($C119=1,'Sjekkliste noter'!A197,"") ->  | E119: =IF($C119=1,'Sjekkliste noter'!B197,"") ->  | G119: =IF($C119=1,'Sjekkliste noter'!H197,"") -> 
A120: =+'Sjekkliste noter'!A198 -> 119 | B120: =IF('Sjekkliste noter'!G198<>"",1,0) -> 0 | C120: 0 | D120: =IF($C120=1,'Sjekkliste noter'!A198,"") ->  | E120: =IF($C120=1,'Sjekkliste noter'!B198,"") ->  | G120: =IF($C120=1,'Sjekkliste noter'!H198,"") -> 
A121: =+'Sjekkliste noter'!A199 -> 120 | B121: =IF('Sjekkliste noter'!G199<>"",1,0) -> 0 | C121: 0 | D121: =IF($C121=1,'Sjekkliste noter'!A199,"") ->  | E121: =IF($C121=1,'Sjekkliste noter'!B199,"") ->  | G121: =IF($C121=1,'Sjekkliste noter'!H199,"") -> 
A122: =+'Sjekkliste noter'!A203 -> 121 | B122: =IF('Sjekkliste noter'!G203<>"",1,0) -> 0 | C122: 0 | D122: =IF($C122=1,'Sjekkliste noter'!A203,"") ->  | E122: =IF($C122=1,'Sjekkliste noter'!B203,"") ->  | G122: =IF($C122=1,'Sjekkliste noter'!H203,"") -> 
A123: =+'Sjekkliste noter'!A204 -> 122 | B123: =IF('Sjekkliste noter'!G204<>"",1,0) -> 0 | C123: 0 | D123: =IF($C123=1,'Sjekkliste noter'!A204,"") ->  | E123: =IF($C123=1,'Sjekkliste noter'!B204,"") ->  | G123: =IF($C123=1,'Sjekkliste noter'!H204,"") -> 
A124: =+'Sjekkliste noter'!A205 -> 123 | B124: =IF('Sjekkliste noter'!G205<>"",1,0) -> 0 | C124: 0 | D124: =IF($C124=1,'Sjekkliste noter'!A205,"") ->  | E124: =IF($C124=1,'Sjekkliste noter'!B205,"") ->  | G124: =IF($C124=1,'Sjekkliste noter'!H205,"") -> 
A125: =+'Sjekkliste noter'!A206 -> 124 | B125: =IF('Sjekkliste noter'!G206<>"",1,0) -> 0 | C125: 0 | D125: =IF($C125=1,'Sjekkliste noter'!A206,"") ->  | E125: =IF($C125=1,'Sjekkliste noter'!B206,"") ->  | G125: =IF($C125=1,'Sjekkliste noter'!H206,"") -> 
A126: =+'Sjekkliste noter'!A208 -> 125 | B126: =IF('Sjekkliste noter'!G208<>"",1,0) -> 0 | C126: 0 | D126: =IF($C126=1,'Sjekkliste noter'!A208,"") ->  | E126: =IF($C126=1,'Sjekkliste noter'!B208,"") ->  | G126: =IF($C126=1,'Sjekkliste noter'!H208,"") -> 
A127: =+'Sjekkliste noter'!A209 -> 126 | B127: =IF('Sjekkliste noter'!G209<>"",1,0) -> 0 | C127: 0 | D127: =IF($C127=1,'Sjekkliste noter'!A209,"") ->  | E127: =IF($C127=1,'Sjekkliste noter'!B209,"") ->  | G127: =IF($C127=1,'Sjekkliste noter'!H209,"") -> 
A128: =+'Sjekkliste noter'!A210 -> 127 | B128: =IF('Sjekkliste noter'!G210<>"",1,0) -> 0 | C128: 0 | D128: =IF($C128=1,'Sjekkliste noter'!A210,"") ->  | E128: =IF($C128=1,'Sjekkliste noter'!B210,"") ->  | G128: =IF($C128=1,'Sjekkliste noter'!H210,"") -> 
A129: =+'Sjekkliste noter'!A212 -> 128 | B129: =IF('Sjekkliste noter'!G212<>"",1,0) -> 0 | C129: 0 | D129: =IF($C129=1,'Sjekkliste noter'!A212,"") ->  | E129: =IF($C129=1,'Sjekkliste noter'!B212,"") ->  | G129: =IF($C129=1,'Sjekkliste noter'!H212,"") -> 
A130: =+'Sjekkliste noter'!A213 -> 129 | B130: =IF('Sjekkliste noter'!G213<>"",1,0) -> 0 | C130: =SUM(B130:B130) -> 0 | D130: =IF($C130=1,'Sjekkliste noter'!A213,"") ->  | E130: =IF($C130=1,'Sjekkliste noter'!B213,"") ->  | G130: =IF($C130=1,'Sjekkliste noter'!H213,"") -> 
A131: =+'Sjekkliste noter'!A214 -> 130 | B131: =IF('Sjekkliste noter'!G214<>"",1,0) -> 0 | C131: 0 | D131: =IF($C131=1,'Sjekkliste noter'!A214,"") ->  | E131: =IF($C131=1,'Sjekkliste noter'!B214,"") ->  | G131: =IF($C131=1,'Sjekkliste noter'!H214,"") -> 
A132: =+'Sjekkliste noter'!A217 -> 131 | B132: =IF('Sjekkliste noter'!G217<>"",1,0) -> 0 | C132: 0 | D132: =IF($C132=1,'Sjekkliste noter'!A217,"") ->  | E132: =IF($C132=1,'Sjekkliste noter'!B217,"") ->  | G132: =IF($C132=1,'Sjekkliste noter'!H217,"") -> 
A133: =+'Sjekkliste noter'!A218 -> 132 | B133: =IF('Sjekkliste noter'!G218<>"",1,0) -> 0 | C133: 0 | D133: =IF($C133=1,'Sjekkliste noter'!A218,"") ->  | E133: =IF($C133=1,'Sjekkliste noter'!B218,"") ->  | G133: =IF($C133=1,'Sjekkliste noter'!H218,"") -> 
A134: =+'Sjekkliste noter'!A220 -> 133 | B134: =IF('Sjekkliste noter'!G220<>"",1,0) -> 0 | C134: 0 | D134: =IF($C134=1,'Sjekkliste noter'!A220,"") ->  | E134: =IF($C134=1,'Sjekkliste noter'!B220,"") ->  | G134: =IF($C134=1,'Sjekkliste noter'!H220,"") -> 
A135: =+'Sjekkliste noter'!A221 -> 134 | B135: =IF('Sjekkliste noter'!G221<>"",1,0) -> 0 | C135: 0 | D135: =IF($C135=1,'Sjekkliste noter'!A221,"") ->  | E135: =IF($C135=1,'Sjekkliste noter'!B221,"") ->  | G135: =IF($C135=1,'Sjekkliste noter'!H221,"") -> 
A136: =+'Sjekkliste noter'!A224 -> 135 | B136: =IF('Sjekkliste noter'!G224<>"",1,0) -> 0 | C136: 0 | D136: =IF($C136=1,'Sjekkliste noter'!A224,"") ->  | E136: =IF($C136=1,'Sjekkliste noter'!B224,"") ->  | G136: =IF($C136=1,'Sjekkliste noter'!H224,"") -> 
A137: =+'Sjekkliste noter'!A225 -> 136 | B137: =IF('Sjekkliste noter'!G225<>"",1,0) -> 0 | C137: 0 | D137: =IF($C137=1,'Sjekkliste noter'!A225,"") ->  | E137: =IF($C137=1,'Sjekkliste noter'!B225,"") ->  | G137: =IF($C137=1,'Sjekkliste noter'!H225,"") -> 
A138: =+'Sjekkliste noter'!A227 -> 137 | B138: =IF('Sjekkliste noter'!G227<>"",1,0) -> 0 | C138: 0 | D138: =IF($C138=1,'Sjekkliste noter'!A227,"") ->  | E138: =IF($C138=1,'Sjekkliste noter'!B227,"") ->  | G138: =IF($C138=1,'Sjekkliste noter'!H227,"") -> 
A139: =+'Sjekkliste noter'!A228 -> 138 | B139: =IF('Sjekkliste noter'!G228<>"",1,0) -> 0 | C139: 0 | D139: =IF($C139=1,'Sjekkliste noter'!A228,"") ->  | E139: =IF($C139=1,'Sjekkliste noter'!B228,"") ->  | G139: =IF($C139=1,'Sjekkliste noter'!H228,"") -> 
A140: =+'Sjekkliste noter'!A230 -> 139 | B140: =IF('Sjekkliste noter'!G230<>"",1,0) -> 0 | C140: 0 | D140: =IF($C140=1,'Sjekkliste noter'!A230,"") ->  | E140: =IF($C140=1,'Sjekkliste noter'!B230,"") ->  | G140: =IF($C140=1,'Sjekkliste noter'!H230,"") -> 
A141: =+'Sjekkliste noter'!A232 -> 140 | B141: =IF('Sjekkliste noter'!G232<>"",1,0) -> 0 | C141: 0 | D141: =IF($C141=1,'Sjekkliste noter'!A232,"") ->  | E141: =IF($C141=1,'Sjekkliste noter'!B232,"") ->  | G141: =IF($C141=1,'Sjekkliste noter'!H232,"") -> 
A142: =+'Sjekkliste noter'!A235 -> 141 | B142: =IF('Sjekkliste noter'!G235<>"",1,0) -> 0 | C142: 0 | D142: =IF($C142=1,'Sjekkliste noter'!A235,"") ->  | E142: =IF($C142=1,'Sjekkliste noter'!B235,"") ->  | G142: =IF($C142=1,'Sjekkliste noter'!H235,"") -> 
A143: =+'Sjekkliste noter'!A236 -> 142 | B143: =IF('Sjekkliste noter'!G236<>"",1,0) -> 0 | C143: 0 | D143: =IF($C143=1,'Sjekkliste noter'!A236,"") ->  | E143: =IF($C143=1,'Sjekkliste noter'!B236,"") ->  | G143: =IF($C143=1,'Sjekkliste noter'!H236,"") -> 
A144: =+'Sjekkliste noter'!A237 -> 143 | B144: =IF('Sjekkliste noter'!G237<>"",1,0) -> 0 | C144: 0 | D144: =IF($C144=1,'Sjekkliste noter'!A237,"") ->  | E144: =IF($C144=1,'Sjekkliste noter'!B237,"") ->  | G144: =IF($C144=1,'Sjekkliste noter'!H237,"") -> 
A145: =+'Sjekkliste noter'!A239 -> 144 | B145: =IF('Sjekkliste noter'!G239<>"",1,0) -> 0 | C145: 0 | D145: =IF($C145=1,'Sjekkliste noter'!A239,"") ->  | E145: =IF($C145=1,'Sjekkliste noter'!B239,"") ->  | G145: =IF($C145=1,'Sjekkliste noter'!H239,"") -> 
A146: =+'Sjekkliste noter'!A240 -> 145 | B146: =IF('Sjekkliste noter'!G240<>"",1,0) -> 0 | C146: 0 | D146: =IF($C146=1,'Sjekkliste noter'!A240,"") ->  | E146: =IF($C146=1,'Sjekkliste noter'!B240,"") ->  | G146: =IF($C146=1,'Sjekkliste noter'!H240,"") -> 
A147: =+'Sjekkliste noter'!A242 -> 146 | B147: =IF('Sjekkliste noter'!G242<>"",1,0) -> 0 | C147: 0 | D147: =IF($C147=1,'Sjekkliste noter'!A242,"") ->  | E147: =IF($C147=1,'Sjekkliste noter'!B242,"") ->  | G147: =IF($C147=1,'Sjekkliste noter'!H242,"") -> 
A148: =+'Sjekkliste noter'!A243 -> 147 | B148: =IF('Sjekkliste noter'!G243<>"",1,0) -> 0 | C148: 0 | D148: =IF($C148=1,'Sjekkliste noter'!A243,"") ->  | E148: =IF($C148=1,'Sjekkliste noter'!B243,"") ->  | G148: =IF($C148=1,'Sjekkliste noter'!H243,"") -> 
A149: =+'Sjekkliste noter'!A244 -> 148 | B149: =IF('Sjekkliste noter'!G244<>"",1,0) -> 0 | C149: 0 | D149: =IF($C149=1,'Sjekkliste noter'!A244,"") ->  | E149: =IF($C149=1,'Sjekkliste noter'!B244,"") ->  | G149: =IF($C149=1,'Sjekkliste noter'!H244,"") -> 
A150: =+'Sjekkliste noter'!A246 -> 149 | B150: =IF('Sjekkliste noter'!G246<>"",1,0) -> 0 | C150: 0 | D150: =IF($C150=1,'Sjekkliste noter'!A246,"") ->  | E150: =IF($C150=1,'Sjekkliste noter'!B246,"") ->  | G150: =IF($C150=1,'Sjekkliste noter'!H246,"") -> 
A151: =+'Sjekkliste noter'!A247 -> 150 | B151: =IF('Sjekkliste noter'!G247<>"",1,0) -> 0 | C151: 0 | D151: =IF($C151=1,'Sjekkliste noter'!A247,"") ->  | E151: =IF($C151=1,'Sjekkliste noter'!B247,"") ->  | G151: =IF($C151=1,'Sjekkliste noter'!H247,"") -> 
A152: =+'Sjekkliste noter'!A248 -> 151 | B152: =IF('Sjekkliste noter'!G248<>"",1,0) -> 0 | C152: 0 | D152: =IF($C152=1,'Sjekkliste noter'!A248,"") ->  | E152: =IF($C152=1,'Sjekkliste noter'!B248,"") ->  | G152: =IF($C152=1,'Sjekkliste noter'!H248,"") -> 
A153: =+'Sjekkliste noter'!A249 -> 152 | B153: =IF('Sjekkliste noter'!G249<>"",1,0) -> 0 | C153: 0 | D153: =IF($C153=1,'Sjekkliste noter'!A249,"") ->  | E153: =IF($C153=1,'Sjekkliste noter'!B249,"") ->  | G153: =IF($C153=1,'Sjekkliste noter'!H249,"") -> 
A154: =+'Sjekkliste noter'!A250 -> 153 | B154: =IF('Sjekkliste noter'!G250<>"",1,0) -> 0 | C154: 0 | D154: =IF($C154=1,'Sjekkliste noter'!A250,"") ->  | E154: =IF($C154=1,'Sjekkliste noter'!B250,"") ->  | G154: =IF($C154=1,'Sjekkliste noter'!H250,"") -> 
A155: =+'Sjekkliste noter'!A251 -> 154 | B155: =IF('Sjekkliste noter'!G251<>"",1,0) -> 0 | C155: 0 | D155: =IF($C155=1,'Sjekkliste noter'!A251,"") ->  | E155: =IF($C155=1,'Sjekkliste noter'!B251,"") ->  | G155: =IF($C155=1,'Sjekkliste noter'!H251,"") -> 
A156: =+'Sjekkliste noter'!A252 -> 155 | B156: =IF('Sjekkliste noter'!G252<>"",1,0) -> 0 | C156: 0 | D156: =IF($C156=1,'Sjekkliste noter'!A252,"") ->  | E156: =IF($C156=1,'Sjekkliste noter'!B252,"") ->  | G156: =IF($C156=1,'Sjekkliste noter'!H252,"") -> 
A157: =+'Sjekkliste noter'!A254 -> 156 | B157: =IF('Sjekkliste noter'!G254<>"",1,0) -> 0 | C157: 0 | D157: =IF($C157=1,'Sjekkliste noter'!A254,"") ->  | E157: =IF($C157=1,'Sjekkliste noter'!B254,"") ->  | G157: =IF($C157=1,'Sjekkliste noter'!H254,"") -> 
A158: =+'Sjekkliste noter'!A255 -> 157 | B158: =IF('Sjekkliste noter'!G255<>"",1,0) -> 0 | C158: 0 | D158: =IF($C158=1,'Sjekkliste noter'!A255,"") ->  | E158: =IF($C158=1,'Sjekkliste noter'!B255,"") ->  | G158: =IF($C158=1,'Sjekkliste noter'!H255,"") -> 
A159: =+'Sjekkliste noter'!A256 -> 158 | B159: =IF('Sjekkliste noter'!G256<>"",1,0) -> 0 | C159: 0 | D159: =IF($C159=1,'Sjekkliste noter'!A256,"") ->  | E159: =IF($C159=1,'Sjekkliste noter'!B256,"") ->  | G159: =IF($C159=1,'Sjekkliste noter'!H256,"") -> 
A160: =+'Sjekkliste noter'!A258 -> 159 | B160: =IF('Sjekkliste noter'!G258<>"",1,0) -> 0 | C160: 0 | D160: =IF($C160=1,'Sjekkliste noter'!A258,"") ->  | E160: =IF($C160=1,'Sjekkliste noter'!B258,"") ->  | G160: =IF($C160=1,'Sjekkliste noter'!H258,"") -> 
A161: =+'Sjekkliste noter'!A259 -> 160 | B161: =IF('Sjekkliste noter'!G259<>"",1,0) -> 0 | C161: 0 | D161: =IF($C161=1,'Sjekkliste noter'!A259,"") ->  | E161: =IF($C161=1,'Sjekkliste noter'!B259,"") ->  | G161: =IF($C161=1,'Sjekkliste noter'!H259,"") -> 
A162: =+'Sjekkliste noter'!A260 -> 161 | B162: =IF('Sjekkliste noter'!G260<>"",1,0) -> 0 | C162: 0 | D162: =IF($C162=1,'Sjekkliste noter'!A260,"") ->  | E162: =IF($C162=1,'Sjekkliste noter'!B260,"") ->  | G162: =IF($C162=1,'Sjekkliste noter'!H260,"") -> 
A163: =+'Sjekkliste noter'!A261 -> 162 | B163: =IF('Sjekkliste noter'!G261<>"",1,0) -> 0 | C163: 0 | D163: =IF($C163=1,'Sjekkliste noter'!A261,"") ->  | E163: =IF($C163=1,'Sjekkliste noter'!B261,"") ->  | G163: =IF($C163=1,'Sjekkliste noter'!H261,"") -> 
A164: =+'Sjekkliste noter'!A262 -> 163 | B164: =IF('Sjekkliste noter'!G262<>"",1,0) -> 0 | C164: 0 | D164: =IF($C164=1,'Sjekkliste noter'!A262,"") ->  | E164: =IF($C164=1,'Sjekkliste noter'!B262,"") ->  | G164: =IF($C164=1,'Sjekkliste noter'!H262,"") -> 
A165: =+'Sjekkliste noter'!A263 -> 164 | B165: =IF('Sjekkliste noter'!G263<>"",1,0) -> 0 | C165: 0 | D165: =IF($C165=1,'Sjekkliste noter'!A263,"") ->  | E165: =IF($C165=1,'Sjekkliste noter'!B263,"") ->  | G165: =IF($C165=1,'Sjekkliste noter'!H263,"") -> 
A166: =+'Sjekkliste noter'!A264 -> 165 | B166: =IF('Sjekkliste noter'!G264<>"",1,0) -> 0 | C166: 0 | D166: =IF($C166=1,'Sjekkliste noter'!A264,"") ->  | E166: =IF($C166=1,'Sjekkliste noter'!B264,"") ->  | G166: =IF($C166=1,'Sjekkliste noter'!H264,"") -> 
A167: =+'Sjekkliste noter'!A265 -> 166 | B167: =IF('Sjekkliste noter'!G265<>"",1,0) -> 0 | C167: 0 | D167: =IF($C167=1,'Sjekkliste noter'!A265,"") ->  | E167: =IF($C167=1,'Sjekkliste noter'!B265,"") ->  | G167: =IF($C167=1,'Sjekkliste noter'!H265,"") -> 
A168: =+'Sjekkliste noter'!A266 -> 167 | B168: =IF('Sjekkliste noter'!G266<>"",1,0) -> 0 | C168: 0 | D168: =IF($C168=1,'Sjekkliste noter'!A266,"") ->  | E168: =IF($C168=1,'Sjekkliste noter'!B266,"") ->  | G168: =IF($C168=1,'Sjekkliste noter'!H266,"") -> 
A169: =+'Sjekkliste noter'!A268 -> 168 | B169: =IF('Sjekkliste noter'!G268<>"",1,0) -> 0 | C169: 0 | D169: =IF($C169=1,'Sjekkliste noter'!A268,"") ->  | E169: =IF($C169=1,'Sjekkliste noter'!B268,"") ->  | G169: =IF($C169=1,'Sjekkliste noter'!H268,"") -> 
A170: =+'Sjekkliste noter'!A269 -> 169 | B170: =IF('Sjekkliste noter'!G269<>"",1,0) -> 0 | C170: 0 | D170: =IF($C170=1,'Sjekkliste noter'!A269,"") ->  | E170: =IF($C170=1,'Sjekkliste noter'!B269,"") ->  | G170: =IF($C170=1,'Sjekkliste noter'!H269,"") -> 
A171: =+'Sjekkliste noter'!A271 -> 170 | B171: =IF('Sjekkliste noter'!G271<>"",1,0) -> 0 | C171: 0 | D171: =IF($C171=1,'Sjekkliste noter'!A271,"") ->  | E171: =IF($C171=1,'Sjekkliste noter'!B271,"") ->  | G171: =IF($C171=1,'Sjekkliste noter'!H271,"") -> 
A172: =+'Sjekkliste noter'!A272 -> 171 | B172: =IF('Sjekkliste noter'!G272<>"",1,0) -> 0 | C172: 0 | D172: =IF($C172=1,'Sjekkliste noter'!A272,"") ->  | E172: =IF($C172=1,'Sjekkliste noter'!B272,"") ->  | G172: =IF($C172=1,'Sjekkliste noter'!H272,"") -> 
A173: =+'Sjekkliste noter'!A275 -> 172 | B173: =IF('Sjekkliste noter'!G275<>"",1,0) -> 0 | C173: 0 | D173: =IF($C173=1,'Sjekkliste noter'!A275,"") ->  | E173: =IF($C173=1,'Sjekkliste noter'!B275,"") ->  | G173: =IF($C173=1,'Sjekkliste noter'!H275,"") -> 
A174: =+'Sjekkliste noter'!A276 -> 173 | B174: =IF('Sjekkliste noter'!G276<>"",1,0) -> 0 | C174: 0 | D174: =IF($C174=1,'Sjekkliste noter'!A276,"") ->  | E174: =IF($C174=1,'Sjekkliste noter'!B276,"") ->  | G174: =IF($C174=1,'Sjekkliste noter'!H276,"") -> 
A175: =+'Sjekkliste noter'!A278 -> 174 | B175: =IF('Sjekkliste noter'!G278<>"",1,0) -> 0 | C175: 0 | D175: =IF($C175=1,'Sjekkliste noter'!A278,"") ->  | E175: =IF($C175=1,'Sjekkliste noter'!B278,"") ->  | G175: =IF($C175=1,'Sjekkliste noter'!H278,"") -> 
A176: =+'Sjekkliste noter'!A280 -> 175 | B176: =IF('Sjekkliste noter'!G280<>"",1,0) -> 0 | C176: 0 | D176: =IF($C176=1,'Sjekkliste noter'!A280,"") ->  | E176: =IF($C176=1,'Sjekkliste noter'!B280,"") ->  | G176: =IF($C176=1,'Sjekkliste noter'!H280,"") -> 
A177: =+'Sjekkliste noter'!A281 -> 176 | B177: =IF('Sjekkliste noter'!G281<>"",1,0) -> 0 | C177: 0 | D177: =IF($C177=1,'Sjekkliste noter'!A281,"") ->  | E177: =IF($C177=1,'Sjekkliste noter'!B281,"") ->  | G177: =IF($C177=1,'Sjekkliste noter'!H281,"") -> 
A178: =+'Sjekkliste noter'!A282 -> 177 | B178: =IF('Sjekkliste noter'!G282<>"",1,0) -> 0 | C178: 0 | D178: =IF($C178=1,'Sjekkliste noter'!A282,"") ->  | E178: =IF($C178=1,'Sjekkliste noter'!B282,"") ->  | G178: =IF($C178=1,'Sjekkliste noter'!H282,"") -> 
A179: =+'Sjekkliste noter'!A283 -> 178 | B179: =IF('Sjekkliste noter'!G283<>"",1,0) -> 0 | C179: 0 | D179: =IF($C179=1,'Sjekkliste noter'!A283,"") ->  | E179: =IF($C179=1,'Sjekkliste noter'!B283,"") ->  | G179: =IF($C179=1,'Sjekkliste noter'!H283,"") -> 
A180: =+'Sjekkliste noter'!A284 -> 179 | B180: =IF('Sjekkliste noter'!G284<>"",1,0) -> 0 | C180: 0 | D180: =IF($C180=1,'Sjekkliste noter'!A284,"") ->  | E180: =IF($C180=1,'Sjekkliste noter'!B284,"") ->  | G180: =IF($C180=1,'Sjekkliste noter'!H284,"") -> 
A181: =+'Sjekkliste noter'!A285 -> 180 | B181: =IF('Sjekkliste noter'!G285<>"",1,0) -> 0 | C181: 0 | D181: =IF($C181=1,'Sjekkliste noter'!A285,"") ->  | E181: =IF($C181=1,'Sjekkliste noter'!B285,"") ->  | G181: =IF($C181=1,'Sjekkliste noter'!H285,"") -> 
A182: =+'Sjekkliste noter'!A286 -> 181 | B182: =IF('Sjekkliste noter'!G286<>"",1,0) -> 0 | C182: 0 | D182: =IF($C182=1,'Sjekkliste noter'!A286,"") ->  | E182: =IF($C182=1,'Sjekkliste noter'!B286,"") ->  | G182: =IF($C182=1,'Sjekkliste noter'!H286,"") -> 
A183: =+'Sjekkliste noter'!A287 -> 182 | B183: =IF('Sjekkliste noter'!G287<>"",1,0) -> 0 | C183: 0 | D183: =IF($C183=1,'Sjekkliste noter'!A287,"") ->  | E183: =IF($C183=1,'Sjekkliste noter'!B287,"") ->  | G183: =IF($C183=1,'Sjekkliste noter'!H287,"") -> 
A184: =+'Sjekkliste noter'!A290 -> 183 | B184: =IF('Sjekkliste noter'!G290<>"",1,0) -> 0 | C184: 0 | D184: =IF($C184=1,'Sjekkliste noter'!A290,"") ->  | E184: =IF($C184=1,'Sjekkliste noter'!B290,"") ->  | G184: =IF($C184=1,'Sjekkliste noter'!H290,"") -> 
A185: =+'Sjekkliste noter'!A291 -> 184 | B185: =IF('Sjekkliste noter'!G291<>"",1,0) -> 0 | C185: 0 | D185: =IF($C185=1,'Sjekkliste noter'!A291,"") ->  | E185: =IF($C185=1,'Sjekkliste noter'!B291,"") ->  | G185: =IF($C185=1,'Sjekkliste noter'!H291,"") -> 
A186: =+'Sjekkliste noter'!A295 -> 185 | B186: =IF('Sjekkliste noter'!G295<>"",1,0) -> 0 | C186: 0 | D186: =IF($C186=1,'Sjekkliste noter'!A295,"") ->  | E186: =IF($C186=1,'Sjekkliste noter'!B295,"") ->  | G186: =IF($C186=1,'Sjekkliste noter'!H295,"") -> 
A187: =+'Sjekkliste noter'!A296 -> 186 | B187: =IF('Sjekkliste noter'!G296<>"",1,0) -> 0 | C187: 0 | D187: =IF($C187=1,'Sjekkliste noter'!A296,"") ->  | E187: =IF($C187=1,'Sjekkliste noter'!B296,"") ->  | G187: =IF($C187=1,'Sjekkliste noter'!H296,"") -> 
A188: =+'Sjekkliste noter'!A297 -> 187 | B188: =IF('Sjekkliste noter'!G297<>"",1,0) -> 0 | C188: 0 | D188: =IF($C188=1,'Sjekkliste noter'!A297,"") ->  | E188: =IF($C188=1,'Sjekkliste noter'!B297,"") ->  | G188: =IF($C188=1,'Sjekkliste noter'!H297,"") -> 
